Workbook

Sheet Design Regulator
A1: LM70XX0/-Q1 Synchronous Buck Converter Design Tool
N2: http://www.ti.com/product/lm5175
A3: About | C3: xx | F3: = Input Box | N3: TERMS OF USE
A5: Step 1: Operating Specifications
D6: Input Voltage – Min, VIN(min) | E6: 15 | F6: V
D7: Input Voltage – Nom, VIN(nom) | E7: 48 | F7: V
D8: Input Voltage – Max, VIN(max) | E8: 72 | F8: V
D9: Output Voltage, VOUT | E9: 12 | F9: V
D10: Full Load Output Current, IOUT | E10: 8 | F10: A
D11: Switching Frequency, FSW | E11: 400 | F11: kHz
D12: Frequency Set Resistor, RT | E12: ='Variable Management'!C445 -> 54.9 | F12: kΩ
D13: Ambient Temperature, TA | E13: 25 | F13: °C
D14: IC Junction Temperature (estimate), TJ | E14: ='Variable Management'!B366 -> 73.86301299 | F14: °C
A16: Step 2: Current Sense Resistor
D17: Required IOCP Setpoint at VIN(nom) | E17: 11.2 | F17: A
D18: Recommended Sense Resistance | E18: =Rs_ideal*1000 -> 4.351351567 | F18: mΩ
D19: Sense Resistance, RS | E19: 5 | F19: mΩ
D20: Min Inductor Sat Current, ILO(SAT) | E20: ='Variable Management'!B95 -> 11.2 | F20: A
D21: Max power loss in shunt | E21: ='Variable Management'!B105 -> 0.5787434738 | F21: W
D22: VIN(min) | E22: ='Variable Management'!B97 -> 10.75559684 | F22: A
C23: IOUT(typ) at OCP Inception: | D23: VIN(nom) | E23: ='Variable Management'!B98 -> 9.530435421 | F23: A
D24: VIN(max) | E24: ='Variable Management'!B99 -> 9.344413234 | F24: A
A26: Step 3: Buck Inductance
D27: Recommended Starting Inductance | E27: =Lopt*1000000 -> 6.25 | F27: µH
D28: Inductance, LO | E28: 6.8 | F28: µH
D29: Inductor DCR | E29: 10 | F29: mΩ
D30: DIL as a % at VIN(nom) | E30: ='Variable Management'!B68*100 -> 41.73911446 | F30: %
A32: Step 4: Output Capacitors
D33: Output Voltage Ripple Spec | E33: 120 | F33: mVpk-pk
D34: Maximum Load Step | E34: 50 | F34: %
D35: Minimum Output Capacitance | E35: =Total_COUT_with_stead_state_load_step -> 46.28547748 | F35: µF
D36: Output Capacitance (derated), COUT | E36: 100 | F36: µF | K36: =CHOOSE(SCH_MODE, "", "** For Single-Output Operation in 2-Phase Mode, tie MODE to VDDA and use FB1 to set VOUT **", "** For Single-Output Operation in 3-Phase Mode, tie both MODE pins to VDDA. Use FB1 of master IC to set VOUT. Connect FB2 of master IC to AGND. Connect FB2 of slave IC to VDDA to configure it as a slave **", "** For Single-Output Operation in 4-Phase Mode, tie both MODE pins to VDDA. Use FB1 of master IC to set VOUT. Connect FB2 of master IC to AGND. Connect FB2 of slave IC to VDDA to configure it as a slave **") -> 
D37: Maximum Permitted ESR | E37: ='Variable Management'!B128 -> 35.80138642 | F37: mΩ
D38: Output Capacitor ESR | E38: 1 | F38: mΩ | K38: =CHOOSE(SCH_MODE, "", "** Tie VCCX to GND if not used **", "** Slave controller (CNTRL2) not shown **","** Slave controller (CNTRL2) not shown **") ->  | P38: =IF(SCH_MODE=1, "** Tie VCCX to GND if not used **", "") -> ** Tie VCCX to GND if not used **
D39: Resulting Output Voltage Ripple (max) | E39: ='Variable Management'!B130*1000 -> 10.95602064 | F39: mVpk-pk | K39: =IF(OR(SCH_MODE=3, SCH_MODE=4),"** Tie VCCX to GND if not used **", "") -> 
D40: Output Capacitor RMS Current (max) | E40: ='Variable Management'!B114 -> 1.071323519 | F40: A (rms)
A42: Step 5: Input Capacitors
D43: Input Voltage Ripple Spec | E43: 480 | F43: mVpk-pk
D44: Minimum Input Capacitance | E44: ='Variable Management'!B151 -> 10.41666667 | F44: µF
D45: Input Capacitance (derated), CIN | E45: 15 | F45: µF
D46: Maximum Permitted ESR | E46: ='Variable Management'!B157 -> 14.88157632 | F46: mΩ
D47: Input Capacitor ESR | E47: 1 | F47: mΩ
D48: Resulting Input Voltage Ripple (max) | E48: ='Variable Management'!B164*1000 -> 343.1889201 | F48: mVpk-pk
D49: Input Capacitor RMS Current (max) | E49: ='Variable Management'!B141 -> 4 | F49: A (rms)
A51: Step 6: Enable, CNFG, FPWM/PFM
D54: Input Voltage UVLO Turn-ON | E54: 6 | F54: V
D55: Input Voltage UVLO Turn-OFF | E55: 5 | F55: V
D56: Upper Enable Resistor, RUV1 | E56: =IF(UVLO_TYPE=1,'Variable Management'!B190,0) -> 0 | F56: kΩ
D57: Lower Enable Resistor, RUV2 | E57: =IF(UVLO_TYPE=1,'Variable Management'!B191,"DNP") -> DNP | F57: kΩ
D58: Configuration Resistor, RCNFG | E58: =IF(DITHER=1,"41.2","29.4") -> 29.4 | F58: kΩ
E59: =IF(DEMB=1, "* Tie PFM to GND", "* Tie PFM to VDDA") -> * Tie PFM to VDDA
A61: Step 7: Compensation Design
D62: Load Pole Frequency | E62: =Fp_dominant -> 1356.230043 | F62: Hz
D63: ESR Zero Frequency | E63: =Fesr/1000 -> 1591.549433 | F63: kHz
D64: Desired Crossover Frequency | E64: 40 | F64: =" kHz " -> kHz
D65: Error Amp Pole Frequency | E65: =Fp1_u -> 0.9208139805 | F65: Hz
D66: =CHOOSE(VOUT_setting, "Upper Feedback Resistor","","","") ->  | E66: 100 | F66: kΩ
D67: =CHOOSE(VOUT_setting, "Lower Feedback Resistor", "PULLUP FB to VDDA with "&'Variable Management'!D421,"TIE FB TO VDDA","PULLUP FB to VDDA with "&'Variable Management'!D421) -> PULLUP FB to VDDA with 49.9kΩ | E67: =IF(Vout=Vref,"OPEN",Rfb2_u/1000) -> 177 | F67: =IF(Vout=Vref,"","kΩ") -> kΩ
A69: Compensation Components
B70: Calculated / | C70: Std Values | D70: =C70 -> Std Values | F70: Actual P/Z Frequencies
A71: RC1 | B71: =Rcea1/1000 -> 15.51480121 | C71: ='Standard Value Calculator'!S32 -> 15.4 | D71: =C71 -> 15.4 | E71: kΩ | F71: =Fp1_u -> 0.9208139805 | G71: Hz (FPEA)
A72: CC1 | B72: =Cc1ea*1000000000 -> 2.564566267 | C72: ='Standard Value Calculator'!S33 -> 2.7 | D72: =C72 -> 2.7 | E72: nF | F72: =Fz1_u/1000 -> 3.827680213 | G72: kHz (FZCOMP)
A73: CC2 | B73: =IF(Cc2ea<0, "N/A", Cc2ea*1000000000000) -> 19.46033668 | C73: ='Standard Value Calculator'!S34 -> 18 | D73: =C73 -> 18 | E73: pF | F73: =Fp2_u/1000 -> 207.3957763 | G73: kHz (FPCOMP)
M74: ** Specify Inductor Core Loss ** | N74: 0.5 | O74: W
A76: Efficiency / Power Loss Analyzer
A78: Step 8: Efficiency
F79: Power MOSFETs | G79: (Q1, Q2)
E80: Internal NEXFETs
E81: High-side | F81: Low-side
D82: On-State Resistance, RDS(on) | E82: 24 | F82: 18 | G82: mΩ
D83: Total Gate Charge, QG | E83: 3 | F83: 4.1 | G83: nC
D84: Gate-Drain Charge, QGD | E84: 0.7 | F84: 1 | G84: nC
D85: Gate-Source Charge, QGS | E85: 0.7 | F85: 0.9 | G85: nC
D86: Output Charge, QOSS | F86: 3 | G86: nC
D87: Output Capacitance, COSS | E87: 250 | F87: 350 | G87: pF
D88: Gate Resistance, RG | E88: 3.5 | F88: 3 | G88: Ω
D89: Transconductance, gFS | E89: 71 | F89: 90 | G89: S
D90: Gate-Source Threshold Voltage, VTH | E90: 1.8 | F90: 1.8 | G90: V
D91: Body Diode Forward Voltage, VBD | E91: 0.8 | F91: 0.8 | G91: V
D92: Body Diode Rev Recovery Charge, QRR | F92: 30 | G92: nC
D93: Thermal Resistance, θJA | E93: 15 | F93: 15 | G93: °C/W
A95: External Schottky Diode (if applicable)
D96: Schottky Fwd Voltage, VFWDsch | F96: 0 | G96: V
D97: Schottky Rev Recovery Charge, QRRsch | F97: 0 | G97: nC
A101: Step 9: IC Power Loss
F102: =IF(Ext_VCC=1, "Ext. Power Supply Voltage", "") -> Ext. Power Supply Voltage | G102: 12 | H102: =IF(Ext_VCC=1, "V", "") -> V
F103: PCB RθJA | G103: 18.6 | H103: °C/W
F104: IC Power Dissipation | G104: ='Variable Management'!B364 -> 2.627043709 | H104: W
F105: IC Junction Temperature (estimate) | G105: ='Variable Management'!B366 -> 73.86301299 | H105: °C
H106: =CHOOSE(Ext_VCC, "* Tie BIAS to Ext. Power Supply", "* Tie BIAS to VOUT except for Fixed-VOUT = 3.3V", "* Tie BIAS to PGND") -> * Tie BIAS to Ext. Power Supply

Sheet Input Filters (hidden)
A1: LM(2)5149-Q1 Synchronous Buck Controller Design Tool
O2: http://www.ti.com/product/lm5175
A3: About | C3: xx | F3: = Input Box | O3: TERMS OF USE
E7: AEF | M7: Passive
B9: Design tab - LAEF | C9: ='Design Regulator'!E50 & " µH" -> µH | F9: LAEF | G9: 1 | H9: µH | J9: Suggested LIN Inductor | K9: 0.1-10 | L9: µH | N9: Chosen LIN | O9: 0.68 | P9: µH
B10: Design tab - CINJ | C10: ='Design Regulator'!#REF! & " µF" ->  | F10: CINJ | G10: 1 | H10: µF | J10: Suggested CF | K10: 0.1-10 | L10: µF | N10: Chosen CF | O10: 0.47 | P10: µF
B11: Design tab - CDAMP | C11: ='Design Regulator'!#REF! & " µF" ->  | F11: CDAMP | G11: 1 | H11: µF | J11: Suggested CDAMP | K11: 1-10 | L11: µF | N11: Chosen CDAMP | O11: 1 | P11: µF
B12: Design tab - RDAMP | C12: ='Design Regulator'!#REF! & " Ω" ->  | F12: RDAMP | G12: 10 | H12: Ω | J12: Suggested RDAMP | K12: =Rdamp_PassiveStd ->  | L12: Ω | N12: Chosen RDAMP | O12: 0.35 | P12: Ω
C14: VIN Ripple at Fsw | F14: =VinRipple_dBuV -> 110.7106652 | G14: dBµV | H14: VIN Ripple | I14: =VinRipple_dBuV -> 110.7106652 | J14: dBµV
D16: AEF Attenuation at Fsw | E16: =-#REF! ->  | F16: dB | L16: Passive Attenuation at Fsw | M16: =-#REF! ->  | N16: dB
D17: AEF EMI at Fsw | E17: =VinRipple_dBuV-E16 ->  | F17: dB-µV | L17: Passive EMI at Fsw | M17: =VinRipple_dBuV-M16 ->  | N17: dB-µV

Sheet BOM & Schematic (hidden)
A36: ** Tie DEMB to VDDA for FPWM, AGND for DEM **
A37: ** Tie VCCX to GND if not used ** | I37: =IF(OR(SCH_MODE=3, SCH_MODE=4),"** Tie VCCX to GND if not used **", "") -> 
A38: ** Tie DITH to VDDA to disable spread spectrum **
A39: ** Tie OSC to VDDA for 2.2MHz, AGND for 440kHz **
A40: ="VIN = "&VIN_min&" V to "&VIN_max&" V, VOUT = "& Vout &" V, IOUT = " &Iout & " A, Fsw = " & Fsw/1000 &" kHz, Current Limit = "&ROUNDUP(Ilimit_DC,0)&" A" -> VIN = 15 V to 72 V, VOUT = 12 V, IOUT = 8 A, Fsw = 400 kHz, Current Limit = 12 A
A41: High Efficiency Synchronous Buck Regulator BOM
A42: Count | B42: Ref Des | C42: Value | D42: Description | H42: Size | I42: Part Number | J42: MFR
A43: 1 | B43: CBOOT | C43: 0.1 | D43: =C43 -> 0.1 | H43: 0603 | I43: Std | J43: Std
A44: 1 | B44: CC1 | C44: ='Design Regulator'!D72 -> 2.7 | D44: 2.7 | H44: 0603 | I44: Std | J44: Std
A45: 1 | B45: CC2 | C45: ='Design Regulator'!D73 -> 18 | D45: 18 | H45: 0603 | I45: Std | J45: Std
A46: 1 | B46: CRES | C46: =Cres_u*1000000000 -> 82 | D46: =C46 -> 82 | H46: 0603 | I46: Std | J46: Std
A47: 1 | B47: CDITH | C47: =Cdither*1000000000 -> 2.7 | D47: =C47 -> 2.7 | H47: 0603 | I47: Std | J47: Std
A48: =ROUNDUP('Design Regulator'!E45/10,0) -> 2 | B48: CIN | C48: 10 | D48: =C48 -> 10 | H48: 1210 | I48: Std | J48: Std
A49: =ROUNDUP('Design Regulator'!E36/47,0) -> 3 | B49: COUT | C49: 47 | D49: =C49 -> 47 | H49: 1210 | I49: Std | J49: Std
A50: 1 | B50: CSS | C50: ='Design Regulator'!#REF! ->  | D50: =C50 ->  | H50: 0603 | I50: Std | J50: Std
A51: 2 | B51: CVCC, CVCCX | C51: 2.2 | D51: 2.2 | H51: 0603 | I51: Std | J51: Std
A52: 1 | B52: CVDDA | C52: 0.47 | D52: 0.47 | H52: 0603 | I52: Std | J52: Std
A53: 1 | B53: DBOOT | C53: See description | D53: Schottky Diode, 60V, 200mA | H53: - | I53: - | J53: Various
A54: 1 | B54: LO | C54: ='Design Regulator'!E28 -> 6.8 | D54: ="Inductor, "&Lf*1000000&"µH, "&Rdcr*1000&"mΩ, >"&ROUNDUP(Ilimit_DC*1.1,0)&"A" -> Inductor, 6.8µH, 10mΩ, >13A | H54: - | I54: - | J54: Various
A55: 2 | B55: Q1, Q2 | C55: See description | D55: ='Design Regulator'!E82 -> 24 | H55: Std | I55: ='Design Regulator'!E80 -> Internal NEXFETs | J55: -
A56: 1 | B56: RC1 | C56: ='Design Regulator'!D71 -> 15.4 | D56: =C56 -> 15.4 | H56: 0603 | I56: Std | J56: Std
A57: 1 | B57: RS | C57: =Rs*1000 -> 5 | D57: 5 | H57: 0508 | I57: Std | J57: Std
A58: 1 | B58: RT | C58: ='Design Regulator'!E12 -> 54.9 | D58: 54.9 | H58: 0603 | I58: Std | J58: Std
A59: 1 | B59: RFB1 | C59: ='Design Regulator'!E66 -> 100 | D59: 100 | H59: 0603 | I59: Std | J59: Std
A60: 1 | B60: RFB2 | C60: ='Design Regulator'!E67 -> 177 | D60: 177 | H60: 0603 | I60: Std | J60: Std
A61: 1 | B61: RPGOOD | C61: 100 | D61: 100 | H61: 0603 | I61: Std | J61: Std
A62: 1 | B62: RCS | C62: 100 | D62: 100 | H62: 0603 | I62: Std | J62: Std
A63: 1 | B63: RDEMB | C63: 100 | D63: 100 | H63: 0603 | I63: Std | J63: Std
A64: 1 | B64: RVIN | C64: 2.2 | D64: 2.2 | H64: 0603 | I64: Std | J64: Std
A65: 1 | B65: U1 | C65: LM5141-Q1 | D65: IC, LM5141-Q1, Synchronous Buck PWM Controller, 3.8V–65V Input | H65: VQFN-24 | I65: LM5141QRGEQ1 | J65: TI
A68: NOTES:
A69: ** For information on TI NexFETTM MOSFETs, see ** | D69: http://www.ti.com/nexfet | E69: **
A70: ** Inductor saturation current should be higher than the peak inductor current at the OCP setpoint for all input voltages and operating temperatures **
A71: ** Effective input and output capacitances should be appropriately derated for applied voltage and temperature, particularly with ceramics **

Sheet EVM (hidden)
A1: LM25149-Q1 Quickstart Design Tool
B6: LM25149-Q1EVM-2100 PCB Layout

Sheet Efficiency Calculations (hidden)
A1: BUCK CONTROLLER POWER DESIGN TOOL
H2: =AW19 -> 0.9292155385 | I2: 10% load
H3: =AW59 -> 0.9649498105 | I3: 50% load | AP3: =IF(MODE=1, (Qg_Q1+Qg_Q2)*Fsw*Vin, (Qg_Q1+Qg_Q2+Qg_Q3+Qg_Q4)*Fsw*Vin) -> 0.13632
H4: =AW109 -> 0.958299933 | I4: 100% load | AO4: I_VCC | AP4: =(Qg_Q1+Qg_Q2)*Fsw*1000 -> 2.84 | AQ4: mA | AR4: =AP4*5/1000 -> 0.0142
A6: Enter the values of your design and MOSFET datasheet specifications below. Note that thermal resistance (θJA) will change when components are placed on the PCB
G7: Operating Point Condtions | R7: Filter Inductor | V7: Cout | Y7: Cin | AB7: High-side BUCK "Control" MOSFET Losses | AH7: Low-side BUCK "Sync" MOSFET Losses | AL7: External Diode | AM7: Diode/FET | AN7: Sense Rs | AO7: Controller IC Losses | AT7: RESULTS | BA7: Consolidated Buck/Boost Efficiency & Losses
A8: Input Parameters | G8: Step | H8: Vin | I8: Mode | J8: Iout | K8: Iout/ phase | L8: Iin | M8: Duty Cycle BUCK Leg | N8: Ripple Current pk-pk | O8: Peak Inductor Current | P8: Valley Inductor Current | Q8: SW node voltage at Q1 turn-on | R8: Irms Lf | S8: DCR Loss | T8: Core Loss | U8: Total Inductor Loss | V8: Irms Cout | W8: Cout ESR Loss | X8: Total Cout Loss | Y8: Irms Cin | Z8: Cin ESR Loss | AA8: Total Cin Loss | AB8: Irms | AC8: RDS(on) Loss | AD8: Transition Loss (not including capacitive loss) | AE8: MOSFET Output Capacitance Loss | AF8: Dead Time Loss | AG8: Total Control MOSFET Loss | AH8: Irms | AI8: RDS(on) Loss | AJ8: Deadtime Loss | AK8: Total Sync MOSFET Loss | AL8: Deadtime Loss | AM8: Reverse Recovery Loss | AN8: Isense Shunt Loss | AO8: IQ Loss | AP8: Switching Current Loss | AQ8: Switching Current Diss | AR8: LDO Loss Saved from Gate Drive Current (ext VCC) | AS8: Total IC Bias Power | AT8: Total Loss | AU8: Total IC Loss | AV8: Pout | AW8: EFF, h | AX8: =IF(Vin>Vout, "High-side MOSFET Temp Rise", "Boost ''CONTROL'' MOSFET Temp Rise") -> High-side MOSFET Temp Rise | AY8: =IF(Vin>Vout, "Low-side MOSFET Temp Rise", "Boost ''SYNC'' MOSFET Temp Rise") -> Low-side MOSFET Temp Rise | BA8: h | BB8: Inductor Cu & Core Loss | BC8: Total MOSFET Loss | BD8: Control MOSFET Loss | BE8: SYNC MOSFET Loss | BF8: Shunt Loss | BG8: FETs+IC Losses | BH8: Temp rise
A9: Design | B9: Input Value | C9: Units | D9: Description | G9: 0 | H9: =Vin -> 48 | I9: =MODE -> 1 | J9: 0 | K9: =Iout*G9/100/Number_of_Phases -> 0 | L9: =Vout*K9/(Vin*Efficiency) -> 0 | M9: =(Vout+(Rdson2+Rs+Rdcr)*K9)/(Vin+(Rs+Rdson2-Rdson1)*K9) -> 0.25 | N9: =(Vin-(Rdson1+Rdcr)*K9-Vout)*M9/(Fsw*Lf) -> 3.308823529 | O9: =K9+N9/2 -> 1.654411765 | P9: =K9-N9/2 -> -1.654411765 | Q9: =IF(MIN(Vin, -P9/(Coss_Q1+Coss_Q2)*0.00000002)<0, 0, MIN(Vin, -P9/(Coss_Q1+Coss_Q2)*0.00000002)) -> 48 | R9: =SQRT(K9^2+(N9^2)/12) -> 0.9551750777 | S9: =R9^2*Rdcr -> 0.009123594291 | T9: =Core_Loss_Ch1 -> 0.5 | U9: =(T9+S9*(1+Ltc*(Ta-25)))/(1-S9*Ltc*ThetaCa) -> 0.5094954687 | V9: =N9/SQRT(12) -> 0.9551750777 | W9: =RCoutEsr*V9^2 -> 0.0009123594291 | X9: =W9 -> 0.0009123594291 | Y9: =SQRT(M9*(1-M9))*SQRT(K9^2+(N9^2)/12) -> 0.4136029412 | Z9: =RCinEsr*Y9^2 -> 0.0001710673929 | AA9: =Z9 -> 0.0001710673929 | AB9: =SQRT(M9)*SQRT(K9^2+(N9^2)/12) -> 0.4775875389 | AC9: =Rdson1*AB9^2 -> 0.005474156574 | AD9: =(Vin*K9/2)*Fsw*(Tr_buck+Tf_buck) -> 0 | AE9: =(0.5*Coss_Q1*(Vin-Q9)^2-0.5*Coss_Q2*(Vin-Q9)^2+(Qoss_Q2*(Vin-Q9)/Vin)*Vin)*Fsw -> 0 | AF9: =IF(K9>N9/2,0,ABS(K9-N9/2)*Vsd_Q1*Deadtime*Fsw) -> 0.007411764706 | AG9: =(AF9+AE9+AD9+AC9*(1+RdsonTopTc*Ta-RdsonTopTc*25))/(1-AC9*RdsonTopTc*ThetaJA_Q1) -> 0.01289333219 | AH9: =SQRT((1-M9))*SQRT(K9^2+(N9^2)/12) -> 0.8272058824 | AI9: =Rdson2*AH9^2 -> 0.01231685229 | AJ9: =IF(K9<N9/2,Deadtime*Fsw*IF(VfdSky_Q2>0,0,Vsd_Q2)*(K9+N9/2),2*Deadtime*Fsw*IF(VfdSky_Q2>0,0,Vsd_Q2)*K9) -> 0.007411764706 | AK9: =(AJ9+AI9*(1+RdsonBotTc*Ta-RdsonBotTc*25))/(1-AI9*RdsonBotTc*ThetaJA_Q2) -> 0.01975416446 | AL9: =2*Deadtime*Fsw*IF(VfdSky_Q2>0,VfdSky_Q2,Vsd_Q2)*K9 -> 0 | AM9: =IF(QrrSky_Q2>0,QrrSky_Q2,Qrr_Q2*K9/(Iout/Number_of_Phases))*Fsw*Vin -> 0 | AN9: =Rs*R9^2 -> 0.004561797145 | AO9: =Iq*Vin -> 0.0001056 | AP9: =CHOOSE(Ext_VCC, (Qg_Q1+Qg_Q2)*Fsw*'Design Regulator'!$G$102, (Qg_Q1+Qg_Q2)*Fsw*Vout, (Qg_Q1+Qg_Q2)*Fsw*Vin) -> 0.03408 | AQ9: =(Vin-VCC)*Fsw*(Qg_Q1+Qg_Q2)+(RdsonDRT+RdsonDRT2)*Fsw*Qg_Q1*VCC/(RdsonDRT+2*Rgate1+RdsonDRT2)+(RdsonDRB+RdsonDRB2)*Fsw*Qg_Q2*VCC/(RdsonDRB+2*Rgate2+RdsonDRB2) -> 0.1223389091 | AR9: =(Qg_Q1+Qg_Q2)*Fsw*(Vin-VCC) -> 0.1136 | AS9: =SUM(AO9:AP9) -> 0.0341856 | AT9: =SUM(U9,X9,AA9,AG9,AK9,AL9,AM9,AS9,AN9) -> 0.5819737893 | AU9: =SUM(AG9,AK9,AL9,AM9,AS9) -> 0.06683309665 | AV9: =Vout*K9 -> 0 | AW9: =AV9/(AV9+AT9) -> 0 | AX9: =ThetaJA_Q1*BD9 -> 0.1933999829 | AY9: =ThetaJA_Q2*BE9 -> 0.2963124668 | BA9: =AW9*100 -> 0 | BB9: =U9 -> 0.5094954687 | BC9: =AG9+AK9+AM9 -> 0.03264749665 | BD9: =AG9+AM9*0.66 -> 0.01289333219 | BE9: =AK9+AM9*0.33 -> 0.01975416446 | BF9: =AN9 -> 0.004561797145 | BG9: =BC9+AS9 -> 0.06683309665 | BH9: =BG9*$B$63 -> 1.309928694
G10: 1 | H10: 48 | I10: 1 | J10: =Iout*G10/100 -> 0.08 | K10: 0.08 | L10: 0.02222222222 | M10: 0.2500554168 | N10: 3.309306931 | O10: =K10+N10/2 -> 1.734653466 | P10: =K10-N10/2 -> -1.574653466 | Q10: 48 | R10: =SQRT(K10^2+(N10^2)/12) -> 0.9586584534 | S10: 0.009190260304 | T10: 0.5 | U10: 0.509564903 | V10: =N10/SQRT(12) -> 0.9553146238 | W10: 0.0009126260304 | X10: =W10 -> 0.0009126260304 | Y10: =SQRT(M10*(1-M10))*SQRT(K10^2+(N10^2)/12) -> 0.4151419547 | Z10: 0.0001723428426 | AA10: =Z10 -> 0.0001723428426 | AB10: =SQRT(M10)*SQRT(K10^2+(N10^2)/12) -> 0.4793823495 | AC10: 0.005515378489 | AD10: 0.004608 | AE10: 0 | AF10: 0.007054447526 | AG10: 0.01718777971 | AH10: 0.8301919015 | AI10: 0.01240593468 | AJ10: 0.007771247526 | AK10: 0.02020349975 | AL10: 0.0007168 | AM10: 0.00576 | AN10: 0.004595130152 | AO10: 0.0001056 | AP10: =CHOOSE(Ext_VCC, (Qg_Q1+Qg_Q2)*Fsw*'Design Regulator'!$G$102, (Qg_Q1+Qg_Q2)*Fsw*Vout, (Qg_Q1+Qg_Q2)*Fsw*Vin) -> 0.03408 | AQ10: 0.1223389091 | AR10: 0.1136 | AS10: 0.0341856 | AT10: 0.5932986815 | AU10: 0.07805367946 | AV10: 0.96 | AW10: =AV10/(AV10+AT10) -> 0.6180395383 | AX10: 0.3148406957 | AY10: 0.3315644963 | BA10: =AW10*100 -> 61.80395383 | BB10: 0.509564903 | BC10: 0.04315127946 | BD10: 0.02098937971 | BE10: 0.02210429975 | BF10: 0.004595130152 | BG10: =BC10+AS10 -> 0.07733687946 | BH10: =BG10*$B$63 -> 1.515802837
A11: Vin | B11: =Vin -> 48 | C11: V | D11: Vin | G11: 2 | H11: 48 | I11: 1 | J11: 0.16 | K11: 0.16 | L11: 0.04444444444 | M11: 0.2501108337 | N11: 3.309790224 | O11: 1.814895112 | P11: -1.494895112 | Q11: 48 | R11: 0.968758283 | S11: 0.009384926108 | T11: 0.5 | U11: 0.5097676567 | V11: 0.9554541385 | W11: 0.0009128926108 | X11: 0.0009128926108 | Y11: 0.419546614 | Z11: 0.0001760193613 | AA11: 0.0001760193613 | AB11: 0.4844865006 | AC11: 0.005633452063 | AD11: 0.009216 | AE11: 0 | AF11: 0.006697130103 | AG11: 0.02155933478 | AH11: 0.8389072902 | AI11: 0.01266777795 | AJ11: 0.008130730103 | AK11: 0.02082620934 | AL11: 0.0014336 | AM11: 0.01152 | AN11: 0.004692463054 | AO11: 0.0001056 | AP11: =CHOOSE(Ext_VCC, (Qg_Q1+Qg_Q2)*Fsw*'Design Regulator'!$G$102, (Qg_Q1+Qg_Q2)*Fsw*Vout, (Qg_Q1+Qg_Q2)*Fsw*Vin) -> 0.03408 | AQ11: 0.1223389091 | AR11: 0.1136 | AS11: 0.0341856 | AT11: 0.6050737758 | AU11: 0.08952474412 | AV11: 1.92 | AW11: 0.7603738229 | AX11: 0.4374380217 | AY11: 0.3694171401 | BA11: 76.03738229 | BB11: 0.5097676567 | BC11: 0.05390554412 | BD11: 0.02916253478 | BE11: 0.02462780934 | BF11: 0.004692463054 | BG11: 0.08809114412 | BH11: =BG11*$B$63 -> 1.726586425
A12: Vout | B12: =Vout -> 12 | C12: V | D12: Vout | G12: 3 | H12: 48 | I12: 1 | J12: 0.24 | K12: 0.24 | L12: 0.06666666667 | M12: 0.2501662508 | N12: 3.310273409 | O12: 1.895136705 | P12: -1.415136705 | Q12: 47.17122349 | R12: 0.9852711152 | S12: 0.009707591704 | T12: 0.5 | U12: 0.510103742 | V12: 0.955593622 | W12: 0.0009131591704 | X12: 0.0009131591704 | Y12: 0.426729437 | Z12: 0.0001820980124 | AA12: 0.0001820980124 | AB12: 0.4927993325 | AC12: 0.005828428371 | AD12: 0.013824 | AE12: 0.0009807944037 | AF12: 0.006339812437 | AG12: 0.02698955241 | AH12: 0.8531752389 | AI12: 0.01310234379 | AJ12: 0.008490212437 | AK12: 0.02162230302 | AL12: 0.0021504 | AM12: 0.01728 | AN12: 0.004853795852 | AO12: 0.0001056 | AP12: =CHOOSE(Ext_VCC, (Qg_Q1+Qg_Q2)*Fsw*'Design Regulator'!$G$102, (Qg_Q1+Qg_Q2)*Fsw*Vout, (Qg_Q1+Qg_Q2)*Fsw*Vin) -> 0.03408 | AQ12: 0.1223389091 | AR12: 0.1136 | AS12: 0.0341856 | AT12: 0.6182806505 | AU12: 0.1022278554 | AV12: 2.88 | AW12: 0.8232615641 | AX12: 0.5759152862 | AY12: 0.4098705454 | BA12: 82.32615641 | BB12: 0.510103742 | BC12: 0.06589185544 | BD12: 0.03839435241 | BE12: 0.02732470302 | BF12: 0.004853795852 | BG12: 0.1000774554 | BH12: 1.961518127
A13: Fsw | B13: =Fsw/1000 -> 400 | C13: kHz | D13: Switching Frequency | G13: 4 | H13: 48 | I13: 1 | J13: 0.32 | K13: 0.32 | L13: 0.08888888889 | M13: 0.2502216681 | N13: 3.310756486 | O13: 1.975378243 | P13: -1.335378243 | Q13: 44.5126081 | R13: 1.007881793 | S13: 0.01015825709 | T13: 0.5 | U13: 0.5105731798 | V13: 0.9557330742 | W13: 0.000913425709 | X13: 0.000913425709 | Y13: 0.4365545311 | Z13: 0.0001905798586 | AA13: 0.0001905798586 | AB13: 0.5041642624 | AC13: 0.006100358483 | AD13: 0.018432 | AE13: 0.003941632238 | AF13: 0.005982494528 | AG13: 0.03447857007 | AH13: 0.8727222385 | AI13: 0.0137095939 | AJ13: 0.008849694528 | AK13: 0.0225918095 | AL13: 0.0028672 | AM13: 0.02304 | AN13: 0.005079128545 | AO13: 0.0001056 | AP13: =CHOOSE(Ext_VCC, (Qg_Q1+Qg_Q2)*Fsw*'Design Regulator'!$G$102, (Qg_Q1+Qg_Q2)*Fsw*Vout, (Qg_Q1+Qg_Q2)*Fsw*Vin) -> 0.03408 | AQ13: 0.1223389091 | AR13: 0.1136 | AS13: 0.0341856 | AT13: 0.6339194935 | AU13: 0.1171631796 | AV13: 3.84 | AW13: 0.8583078005 | AX13: 0.7452745511 | AY13: 0.4529251426 | BA13: 85.83078005 | BB13: 0.5105731798 | BC13: 0.08011037958 | BD13: 0.04968497007 | BE13: 0.0301950095 | BF13: 0.005079128545 | BG13: 0.1142959796 | BH13: 2.2402012
A14: Iout | B14: =Iout -> 8 | C14: A | D14: Max Output Current | G14: 5 | H14: 48 | I14: 1 | J14: 0.4 | K14: 0.4 | L14: 0.1111111111 | M14: 0.2502770856 | N14: 3.311239454 | O14: 2.055619727 | P14: -1.255619727 | Q14: 41.8539909 | R14: 1.036191211 | S14: 0.01073692227 | T14: 0.5 | U14: 0.5111759988 | V14: 0.955872495 | W14: 0.0009136922268 | X14: 0.0009136922268 | Y14: 0.4488495989 | Z14: 0.0002014659624 | AA14: 0.0002014659624 | AB14: 0.5183826399 | AC14: 0.006449293474 | AD14: 0.02304 | AE14: 0.006619742364 | AF14: 0.005625176377 | AG14: 0.04176249276 | AH14: 0.8972021318 | AI14: 0.01448948998 | AJ14: 0.009209176377 | AK14: 0.02373477636 | AL14: 0.003584 | AM14: 0.0288 | AN14: 0.005368461134 | AO14: 0.0001056 | AP14: =CHOOSE(Ext_VCC, (Qg_Q1+Qg_Q2)*Fsw*'Design Regulator'!$G$102, (Qg_Q1+Qg_Q2)*Fsw*Vout, (Qg_Q1+Qg_Q2)*Fsw*Vin) -> 0.03408 | AQ14: 0.1223389091 | AR14: 0.1136 | AS14: 0.0341856 | AT14: 0.6497264873 | AU14: 0.1320668691 | AV14: 4.8 | AW14: 0.8807781475 | AX14: 0.9115573915 | AY14: 0.4985816454 | BA14: 88.07781475 | BB14: 0.5111759988 | BC14: 0.09429726912 | BD14: 0.06077049276 | BE14: 0.03323877636 | BF14: 0.005368461134 | BG14: 0.1284828691 | BH14: 2.518264235
A15: Ta | B15: =Ta -> 25 | C15: °C | D15: Ambient Temperature | G15: 6 | H15: 48 | I15: 1 | J15: 0.48 | K15: 0.48 | L15: 0.1333333333 | M15: 0.2503325033 | N15: 3.311722314 | O15: 2.135861157 | P15: -1.175861157 | Q15: 39.19537189 | R15: 1.069747037 | S15: 0.01144358724 | T15: 0.5 | U15: 0.5119122362 | V15: 0.9560118846 | W15: 0.0009139587236 | X15: 0.0009139587236 | Y15: 0.4634192332 | Z15: 0.0002147573857 | AA15: 0.0002147573857 | AB15: 0.5352290949 | AC15: 0.006875284415 | AD15: 0.027648 | AE15: 0.009015124205 | AF15: 0.005267857983 | AG15: 0.04884152554 | AH15: 0.9262227268 | AI15: 0.01544199371 | AJ15: 0.009568657983 | AK15: 0.02505127006 | AL15: 0.0043008 | AM15: 0.03456 | AN15: 0.005721793618 | AO15: 0.0001056 | AP15: =CHOOSE(Ext_VCC, (Qg_Q1+Qg_Q2)*Fsw*'Design Regulator'!$G$102, (Qg_Q1+Qg_Q2)*Fsw*Vout, (Qg_Q1+Qg_Q2)*Fsw*Vin) -> 0.03408 | AQ15: 0.1223389091 | AR15: 0.1136 | AS15: 0.0341856 | AT15: 0.6657019415 | AU15: 0.1469391956 | AV15: 5.76 | AW15: 0.8964001213 | AX15: 1.074766883 | AY15: 0.5468410509 | BA15: 89.64001213 | BB15: 0.5119122362 | BC15: 0.1084527956 | BD15: 0.07165112554 | BE15: 0.03645607006 | BF15: 0.005721793618 | BG15: 0.1426383956 | BH15: 2.795712554
A16: Vcc | B16: =VCC -> 8 | C16: V | D16: Subregulated VCC Voltage | G16: 7 | H16: 48 | I16: 1 | J16: 0.56 | K16: 0.56 | L16: 0.1555555556 | M16: 0.2503879212 | N16: 3.312205065 | O16: 2.216102533 | P16: -1.096102533 | Q16: 36.53675108 | R16: 1.108072741 | S16: 0.01227825199 | T16: 0.5 | U16: 0.5127819373 | V16: 0.956151243 | W16: 0.0009142251994 | X16: 0.0009142251994 | Y16: 0.480057486 | Z16: 0.0002304551898 | AA16: 0.0002304551898 | AB16: 0.5544660488 | AC16: 0.007378382382 | AD16: 0.032256 | AE16: 0.01112777719 | AF16: 0.004910539346 | AG16: 0.05571586367 | AH16: 0.9593709398 | AI16: 0.0165670668 | AJ16: 0.009928139346 | AK16: 0.02654137599 | AL16: 0.0050176 | AM16: 0.04032 | AN16: 0.006139125997 | AO16: 0.0001056 | AP16: =CHOOSE(Ext_VCC, (Qg_Q1+Qg_Q2)*Fsw*'Design Regulator'!$G$102, (Qg_Q1+Qg_Q2)*Fsw*Vout, (Qg_Q1+Qg_Q2)*Fsw*Vin) -> 0.03408 | AQ16: 0.1223389091 | AR16: 0.1136 | AS16: 0.0341856 | AT16: 0.6818461833 | AU16: 0.1617804397 | AV16: 6.72 | AW16: 0.907881606 | AX16: 1.234905955 | AY16: 0.5977046398 | BA16: 90.7881606 | BB16: 0.5127819373 | BC16: 0.1225772397 | BD16: 0.08232706367 | BE16: 0.03984697599 | BF16: 0.006139125997 | BG16: 0.1567628397 | BH16: 3.072551657
A17: Components | B17: Input Value | C17: Units | D17: Description | G17: 8 | H17: 48 | I17: 1 | J17: 0.64 | K17: 0.64 | L17: 0.1777777778 | M17: 0.2504433392 | N17: 3.312687708 | O17: 2.296343854 | P17: -1.016343854 | Q17: 33.87812847 | R17: 1.150691815 | S17: 0.01324091654 | T17: 0.5 | U17: 0.5137851555 | V17: 0.95629057 | W17: 0.0009144916542 | X17: 0.0009144916542 | Y17: 0.4985583575 | Z17: 0.0002485604358 | AA17: 0.0002485604358 | AB17: 0.5758558286 | AC17: 0.007958638448 | AD17: 0.036864 | AE17: 0.01295770073 | AF17: 0.004553220466 | AG17: 0.06238569269 | AH17: 0.9962337672 | AI17: 0.01786467094 | AJ17: 0.01028762047 | AK17: 0.02820519845 | AL17: 0.0057344 | AM17: 0.04608 | AN17: 0.006620458271 | AO17: 0.0001056 | AP17: =CHOOSE(Ext_VCC, (Qg_Q1+Qg_Q2)*Fsw*'Design Regulator'!$G$102, (Qg_Q1+Qg_Q2)*Fsw*Vout, (Qg_Q1+Qg_Q2)*Fsw*Vin) -> 0.03408 | AQ17: 0.1223389091 | AR17: 0.1136 | AS17: 0.0341856 | AT17: 0.6981595569 | AU17: 0.1765908911 | AV17: 7.68 | AW17: 0.9166691023 | AX17: 1.39197739 | AY17: 0.6511739767 | BA17: 91.66691023 | BB17: 0.5137851555 | BC17: 0.1366708911 | BD17: 0.09279849269 | BE17: 0.04341159845 | BF17: 0.006620458271 | BG17: 0.1708564911 | BH17: 3.348787226
A18: L | B18: =Lf*1000000 -> 6.8 | C18: uH | D18: Filter Inductance | G18: 9 | H18: 48 | I18: 1 | J18: 0.72 | K18: 0.72 | L18: 0.2 | M18: 0.2504987575 | N18: 3.313170243 | O18: 2.376585121 | P18: -0.9365851213 | Q18: 31.21950404 | R18: 1.197145809 | S18: 0.01433158088 | T18: 0.5 | U18: 0.5149219525 | V18: 0.9564298657 | W18: 0.000914758088 | X18: 0.000914758088 | Y18: 0.5187236106 | Z18: 0.0002690741842 | AA18: 0.0002690741842 | AB18: 0.5991696924 | AC18: 0.008616103688 | AD18: 0.041472 | AE18: 0.01450489426 | AF18: 0.004195901343 | AG18: 0.06885118833 | AH18: 1.036413898 | AI18: 0.01933476782 | AJ18: 0.01064710134 | AK18: 0.03004286069 | AL18: 0.0064512 | AM18: 0.05184 | AN18: 0.00716579044 | AO18: 0.0001056 | AP18: =CHOOSE(Ext_VCC, (Qg_Q1+Qg_Q2)*Fsw*'Design Regulator'!$G$102, (Qg_Q1+Qg_Q2)*Fsw*Vout, (Qg_Q1+Qg_Q2)*Fsw*Vin) -> 0.03408 | AQ18: 0.1223389091 | AR18: 0.1136 | AS18: 0.0341856 | AT18: 0.7146424243 | AU18: 0.191370849 | AV18: 8.64 | AW18: 0.9236055862 | AX18: 1.545983825 | AY18: 0.7072509104 | BA18: 92.36055862 | BB18: 0.5149219525 | BC18: 0.150734049 | BD18: 0.1030655883 | BE18: 0.04715006069 | BF18: 0.00716579044 | BG18: 0.184919649 | BH18: 3.624425121
A19: Rdcr | B19: =Rdcr*1000 -> 10 | C19: mW | D19: Inductor DCR at 25°C | G19: 10 | H19: 48 | I19: 1 | J19: 0.8 | K19: 0.8 | L19: 0.2222222222 | M19: 0.2505541759 | N19: 3.313652669 | O19: 2.456826334 | P19: -0.8568263344 | Q19: 28.56087781 | R19: 1.247006215 | S19: 0.01555024501 | T19: 0.5 | U19: 0.5161923985 | V19: 0.9565691301 | W19: 0.0009150245007 | X19: 0.0009150245007 | Y19: 0.5403679255 | Z19: 0.0002919974949 | AA19: 0.0002919974949 | AB19: 0.6241937858 | AC19: 0.009350829175 | AD19: 0.04608 | AE19: 0.0157693572 | AF19: 0.003838581978 | AG19: 0.0751125166 | AH19: 1.079540003 | AI19: 0.02097731913 | AJ19: 0.01100658198 | AK19: 0.03205450496 | AL19: 0.007168 | AM19: 0.0576 | AN19: 0.007775122504 | AO19: 0.0001056 | AP19: =CHOOSE(Ext_VCC, (Qg_Q1+Qg_Q2)*Fsw*'Design Regulator'!$G$102, (Qg_Q1+Qg_Q2)*Fsw*Vout, (Qg_Q1+Qg_Q2)*Fsw*Vin) -> 0.03408 | AQ19: 0.1223389091 | AR19: 0.1136 | AS19: 0.0341856 | AT19: 0.7312951645 | AU19: 0.2061206216 | AV19: 9.6 | AW19: 0.9292155385 | AX19: 1.696927749 | AY19: 0.7659375743 | BA19: 92.92155385 | BB19: 0.5161923985 | BC19: 0.1647670216 | BD19: 0.1131285166 | BE19: 0.05106250496 | BF19: 0.007775122504 | BG19: 0.1989526216 | BH19: 3.899471383
A20: LTc | B20: =Ltc*1000000 -> 4000 | C20: ppm | D20: Inductor Series Resistance Temp Co | G20: 11 | H20: 48 | I20: 1 | J20: 0.88 | K20: 0.88 | L20: 0.2444444444 | M20: 0.2506095945 | N20: 3.314134986 | O20: 2.537067493 | P20: -0.7770674932 | Q20: 25.90224977 | R20: 1.299881107 | S20: 0.01689690892 | T20: 0.5 | U20: 0.5175965715 | V20: 0.9567083633 | W20: 0.0009152908924 | X20: 0.0009152908924 | Y20: 0.5633217798 | Z20: 0.0003173314276 | AA20: 0.0003173314276 | AB20: 0.6507324714 | AC20: 0.01016286599 | AD20: 0.050688 | AE20: 0.01675108897 | AF20: 0.00348126237 | AG20: 0.08116983373 | AH20: 1.125272475 | AI20: 0.02279228657 | AJ20: 0.01136606237 | AK20: 0.03424029247 | AL20: 0.0078848 | AM20: 0.06336 | AN20: 0.008448454462 | AO20: 0.0001056 | AP20: =CHOOSE(Ext_VCC, (Qg_Q1+Qg_Q2)*Fsw*'Design Regulator'!$G$102, (Qg_Q1+Qg_Q2)*Fsw*Vout, (Qg_Q1+Qg_Q2)*Fsw*Vin) -> 0.03408 | AQ20: 0.1223389091 | AR20: 0.1136 | AS20: 0.0341856 | AT20: 0.7481181745 | AU20: 0.2208405262 | AV20: 10.56 | AW20: 0.9338423809 | AX20: 1.844811506 | AY20: 0.8272363871 | BA20: 93.38423809 | BB20: 0.5175965715 | BC20: 0.1787701262 | BD20: 0.1229874337 | BE20: 0.05514909247 | BF20: 0.008448454462 | BG20: 0.2129557262 | BH20: 4.173932234
A21: ThetaCa | B21: =ThetaCa -> 20 | C21: °C/W | D21: Core to Ambient Thermal Resistance | G21: 12 | H21: 48 | I21: 1 | J21: 0.96 | K21: 0.96 | L21: 0.2666666667 | M21: 0.2506650133 | N21: 3.314617196 | O21: 2.617308598 | P21: -0.6973085979 | Q21: 23.24361993 | R21: 1.355417745 | S21: 0.01837157263 | T21: 0.5 | U21: 0.5191345581 | V21: 0.9568475651 | W21: 0.0009155572629 | X21: 0.0009155572629 | Y21: 0.5874325845 | Z21: 0.0003450770413 | AA21: 0.0003450770413 | AB21: 0.6786096446 | AC21: 0.01105226519 | AD21: 0.055296 | AE21: 0.017450089 | AF21: 0.003123942519 | AG21: 0.08702328618 | AH21: 1.173305678 | AI21: 0.02477963184 | AJ21: 0.01172554252 | AK21: 0.03660040353 | AL21: 0.0086016 | AM21: 0.06912 | AN21: 0.009185786315 | AO21: 0.0001056 | AP21: =CHOOSE(Ext_VCC, (Qg_Q1+Qg_Q2)*Fsw*'Design Regulator'!$G$102, (Qg_Q1+Qg_Q2)*Fsw*Vout, (Qg_Q1+Qg_Q2)*Fsw*Vin) -> 0.03408 | AQ21: 0.1223389091 | AR21: 0.1136 | AS21: 0.0341856 | AT21: 0.7651118684 | AU21: 0.2355308897 | AV21: 11.52 | AW21: 0.9377203988 | AX21: 1.989637293 | AY21: 0.891150053 | BA21: 93.77203988 | BB21: 0.5191345581 | BC21: 0.1927436897 | BD21: 0.1326424862 | BE21: 0.05941000353 | BF21: 0.009185786315 | BG21: 0.2269292897 | BH21: 4.447814078
A22: Cin | B22: =Cin*1000000 -> 15 | C22: μF | D22: Input Capacitance | G22: 13 | H22: 48 | I22: 1 | J22: 1.04 | K22: 1.04 | L22: 0.2888888889 | M22: 0.2507204323 | N22: 3.315099297 | O22: 2.697549648 | P22: -0.6175496484 | Q22: 20.58498828 | R22: 1.413302378 | S22: 0.01997423612 | T22: 0.5 | U22: 0.520806453 | V22: 0.9569867357 | W22: 0.0009158236123 | X22: 0.0009158236123 | Y22: 0.6125646046 | Z22: 0.0003752353948 | AA22: 0.0003752353948 | AB22: 0.7076686453 | AC22: 0.01201907788 | AD22: 0.059904 | AE22: 0.01786635671 | AF22: 0.002766622425 | AG22: 0.09267301065 | AH22: 1.22336777 | AI22: 0.02693931661 | AJ22: 0.01208502242 | AK22: 0.03913503751 | AL22: 0.0093184 | AM22: 0.07488 | AN22: 0.009987118062 | AO22: 0.0001056 | AP22: =CHOOSE(Ext_VCC, (Qg_Q1+Qg_Q2)*Fsw*'Design Regulator'!$G$102, (Qg_Q1+Qg_Q2)*Fsw*Vout, (Qg_Q1+Qg_Q2)*Fsw*Vin) -> 0.03408 | AQ22: 0.1223389091 | AR22: 0.1136 | AS22: 0.0341856 | AT22: 0.7822766782 | AU22: 0.2501920482 | AV22: 12.48 | AW22: 0.9410149029 | AX22: 2.13140716 | AY22: 0.9576815627 | BA22: 94.10149029 | BB22: 0.520806453 | BC22: 0.2066880482 | BD22: 0.1420938106 | BE22: 0.06384543751 | BF22: 0.009987118062 | BG22: 0.2408736482 | BH22: 4.721123504
A23: RCinEsr | B23: =RCinEsr*1000 -> 1 | C23: mW | D23: Input Capacitor ESR | G23: 14 | H23: 48 | I23: 1 | J23: 1.12 | K23: 1.12 | L23: 0.3111111111 | M23: 0.2507758514 | N23: 3.315581289 | O23: 2.777790645 | P23: -0.5377906447 | Q23: 17.92635482 | R23: 1.473258274 | S23: 0.02170489941 | T23: 0.5 | U23: 0.5226123593 | V23: 0.957125875 | W23: 0.0009160899406 | X23: 0.0009160899406 | Y23: 0.6385981101 | Z23: 0.0004078075462 | AA23: 0.0004078075462 | AB23: 0.7377712809 | AC23: 0.01306335511 | AD23: 0.064512 | AE23: 0.01799989153 | AF23: 0.002409302088 | AG23: 0.09811913406 | AH23: 1.275218992 | AI23: 0.0292713026 | AJ23: 0.01244450209 | AK23: 0.04184441294 | AL23: 0.0100352 | AM23: 0.08064 | AN23: 0.0108524497 | AO23: 0.0001056 | AP23: =CHOOSE(Ext_VCC, (Qg_Q1+Qg_Q2)*Fsw*'Design Regulator'!$G$102, (Qg_Q1+Qg_Q2)*Fsw*Vout, (Qg_Q1+Qg_Q2)*Fsw*Vin) -> 0.03408 | AQ23: 0.1223389091 | AR23: 0.1136 | AS23: 0.0341856 | AT23: 0.7996130535 | AU23: 0.264824347 | AV23: 13.44 | AW23: 0.943845872 | AX23: 2.270123011 | AY23: 1.026834194 | BA23: 94.3845872 | BB23: 0.5226123593 | BC23: 0.220603547 | BD23: 0.1513415341 | BE23: 0.06845561294 | BF23: 0.0108524497 | BG23: 0.254789147 | BH23: 4.993867281
A24: Cout | B24: =Cout*1000000 -> 100 | C24: μF | D24: Output Capcitance | G24: 15 | H24: 48 | I24: 1 | J24: 1.2 | K24: 1.2 | L24: 0.3333333333 | M24: 0.2508312708 | N24: 3.316063174 | O24: 2.858031587 | P24: -0.4580315868 | Q24: 15.26771956 | R24: 1.535042751 | S24: 0.02356356248 | T24: 0.5 | U24: 0.5245523883 | V24: 0.957264983 | W24: 0.0009163562476 | X24: 0.0009163562476 | Y24: 0.6654280977 | Z24: 0.0004427945532 | AA24: 0.0004427945532 | AB24: 0.7687963528 | AC24: 0.01418514797 | AD24: 0.06912 | AE24: 0.01785069287 | AF24: 0.002051981509 | AG24: 0.1033617736 | AH24: 1.328649094 | AI24: 0.03177555148 | AJ24: 0.01280398151 | AK24: 0.04472876752 | AL24: 0.010752 | AM24: 0.0864 | AN24: 0.01178178124 | AO24: 0.0001056 | AP24: =CHOOSE(Ext_VCC, (Qg_Q1+Qg_Q2)*Fsw*'Design Regulator'!$G$102, (Qg_Q1+Qg_Q2)*Fsw*Vout, (Qg_Q1+Qg_Q2)*Fsw*Vin) -> 0.03408 | AQ24: 0.1223389091 | AR24: 0.1136 | AS24: 0.0341856 | AT24: 0.8171214614 | AU24: 0.2794281411 | AV24: 14.4 | AW24: 0.9463024946 | AX24: 2.405786603 | AY24: 1.098611513 | BA24: 94.63024946 | BB24: 0.5245523883 | BC24: 0.2344905411 | BD24: 0.1603857736 | BE24: 0.07324076752 | BF24: 0.01178178124 | BG24: 0.2686761411 | BH24: 5.266052365
A25: RCoutEsr | B25: =Cout_ESR*1000 -> 1 | C25: mW | D25: Output Capacitor ESR | G25: 16 | H25: 48 | I25: 1 | J25: 1.28 | K25: 1.28 | L25: 0.3555555556 | M25: 0.2508866903 | N25: 3.316544949 | O25: 2.938272475 | P25: -0.3782724747 | Q25: 12.60908249 | R25: 1.598443785 | S25: 0.02555022533 | T25: 0.5 | U25: 0.5266266597 | V25: 0.9574040597 | W25: 0.0009166225335 | X25: 0.0009166225335 | Y25: 0.6929628223 | Z25: 0.0004801974731 | AA25: 0.0004801974731 | AB25: 0.8006379626 | AC25: 0.01538450753 | AD25: 0.073728 | AE25: 0.01741876017 | AF25: 0.001694660687 | AG25: 0.1084010365 | AH25: 1.383474389 | AI25: 0.03445202495 | AJ25: 0.01316346069 | AK25: 0.04778835824 | AL25: 0.0114688 | AM25: 0.09216 | AN25: 0.01277511267 | AO25: 0.0001056 | AP25: =CHOOSE(Ext_VCC, (Qg_Q1+Qg_Q2)*Fsw*'Design Regulator'!$G$102, (Qg_Q1+Qg_Q2)*Fsw*Vout, (Qg_Q1+Qg_Q2)*Fsw*Vin) -> 0.03408 | AQ25: 0.1223389091 | AR25: 0.1136 | AS25: 0.0341856 | AT25: 0.8348023872 | AU25: 0.2940037948 | AV25: 15.36 | AW25: 0.9484524499 | AX25: 2.538399548 | AY25: 1.173017374 | BA25: 94.84524499 | BB25: 0.5266266597 | BC25: 0.2483493948 | BD25: 0.1692266365 | BE25: 0.07820115824 | BF25: 0.01277511267 | BG25: 0.2825349948 | BH25: 5.537685897
A26: Top Driver | B26: Input Value | C26: Units | D26: Description | G26: 17 | H26: 48 | I26: 1 | J26: 1.36 | K26: 1.36 | L26: 0.3777777778 | M26: 0.25094211 | N26: 3.317026617 | O26: 3.018513308 | P26: -0.2985133084 | Q26: 9.950443614 | R26: 1.663276525 | S26: 0.02766488798 | T26: 0.5 | U26: 0.5288353015 | V26: 0.9575431051 | W26: 0.0009168887981 | X26: 0.0009168887981 | Y26: 0.7211222938 | Z26: 0.0005200173626 | AA26: 0.0005200173626 | AB26: 0.8332037784 | AC26: 0.01666148487 | AD26: 0.078336 | AE26: 0.01670409284 | AF26: 0.001337339622 | AG26: 0.1132370205 | AH26: 1.439534738 | AI26: 0.03730068471 | AJ26: 0.01352293962 | AK26: 0.05102346139 | AL26: 0.0121856 | AM26: 0.09792 | AN26: 0.01383244399 | AO26: 0.0001056 | AP26: =CHOOSE(Ext_VCC, (Qg_Q1+Qg_Q2)*Fsw*'Design Regulator'!$G$102, (Qg_Q1+Qg_Q2)*Fsw*Vout, (Qg_Q1+Qg_Q2)*Fsw*Vin) -> 0.03408 | AQ26: 0.1223389091 | AR26: 0.1136 | AS26: 0.0341856 | AT26: 0.8526563336 | AU26: 0.3085516819 | AV26: 16.32 | AW26: 0.9503480232 | AX26: 2.667963308 | AY26: 1.250055921 | BA26: 95.03480232 | BB26: 0.5288353015 | BC26: 0.2621804819 | BD26: 0.1778642205 | BE26: 0.08333706139 | BF26: 0.01383244399 | BG26: 0.2963660819 | BH26: 5.808775205
A27: RdsonDRT | B27: 0.7 | C27: W | D27: Drain to Source Resistance of pullup Top FET Driver | G27: 18 | H27: 48 | I27: 1 | J27: 1.44 | K27: 1.44 | L27: 0.4 | M27: 0.2509975299 | N27: 3.317508176 | O27: 3.098754088 | P27: -0.2187540879 | Q27: 7.291802931 | R27: 1.729379959 | S27: 0.02990755041 | T27: 0.5 | U27: 0.5311784501 | V27: 0.9576821192 | W27: 0.0009171550414 | X27: 0.0009171550414 | Y27: 0.7498368343 | Z27: 0.0005622552781 | AA27: 0.0005622552781 | AB27: 0.8664133702 | AC27: 0.01801613107 | AD27: 0.082944 | AE27: 0.01570669031 | AF27: 0.0009800183139 | AG27: 0.1178698133 | AH27: 1.496690654 | AI27: 0.04032149244 | AJ27: 0.01388241831 | AK27: 0.05443437265 | AL27: 0.0129024 | AM27: 0.10368 | AN27: 0.01495377521 | AO27: 0.0001056 | AP27: =CHOOSE(Ext_VCC, (Qg_Q1+Qg_Q2)*Fsw*'Design Regulator'!$G$102, (Qg_Q1+Qg_Q2)*Fsw*Vout, (Qg_Q1+Qg_Q2)*Fsw*Vin) -> 0.03408 | AQ27: 0.1223389091 | AR27: 0.1136 | AS27: 0.0341856 | AT27: 0.8706838216 | AU27: 0.3230721859 | AV27: 17.28 | AW27: 0.9520302469 | AX27: 2.794479199 | AY27: 1.32973159 | BA27: 95.20302469 | BB27: 0.5311784501 | BC27: 0.2759841859 | BD27: 0.1862986133 | BE27: 0.08864877265 | BF27: 0.01495377521 | BG27: 0.3101697859 | BH27: 6.079327804
A28: RdsonDRT2 | B28: =RdsonDRT2 -> 1 | C28: W | D28: Drain to Source Resistance of pulldown Top FET Driver | G28: 19 | H28: 48 | I28: 1 | J28: 1.52 | K28: 1.52 | L28: 0.4222222222 | M28: 0.25105295 | N28: 3.317989626 | O28: 3.178994813 | P28: -0.1389948132 | Q28: 4.633160441 | R28: 1.796613833 | S28: 0.03227821263 | T28: 0.5 | U28: 0.5336562502 | V28: 0.957821102 | W28: 0.0009174212634 | X28: 0.0009174212634 | Y28: 0.7790457467 | Z28: 0.0006069122754 | AA28: 0.0006069122754 | AB28: 0.9001966731 | AC28: 0.01944849721 | AD28: 0.087552 | AE28: 0.014426552 | AF28: 0.0006226967632 | AG28: 0.1222994928 | AH28: 1.554820637 | AI28: 0.04351440984 | AJ28: 0.01424189676 | AK28: 0.05802140717 | AL28: 0.0136192 | AM28: 0.10944 | AN28: 0.01613910632 | AO28: 0.0001056 | AP28: =CHOOSE(Ext_VCC, (Qg_Q1+Qg_Q2)*Fsw*'Design Regulator'!$G$102, (Qg_Q1+Qg_Q2)*Fsw*Vout, (Qg_Q1+Qg_Q2)*Fsw*Vin) -> 0.03408 | AQ28: 0.1223389091 | AR28: 0.1136 | AS28: 0.0341856 | AT28: 0.8888853901 | AU28: 0.3375657 | AV28: 18.24 | AW28: 0.9535317729 | AX28: 2.917948392 | AY28: 1.412049107 | BA28: 95.35317729 | BB28: 0.5336562502 | BC28: 0.2897609 | BD28: 0.1945298928 | BE28: 0.09413660717 | BF28: 0.01613910632 | BG28: 0.3239465 | BH28: 6.3493514
A29: Bottom Driver | B29: Input Value | C29: Units | D29: Description | G29: 20 | H29: 48 | I29: 1 | J29: 1.6 | K29: 1.6 | L29: 0.4444444444 | M29: 0.2511083703 | N29: 3.318470969 | O29: 3.259235484 | P29: -0.05923548432 | Q29: 1.974516144 | R29: 1.864855883 | S29: 0.03477687464 | T29: 0.5 | U29: 0.536268855 | V29: 0.9579600535 | W29: 0.0009176874641 | X29: 0.0009176874641 | Y29: 0.8086961172 | Z29: 0.00065398941 | AA29: 0.00065398941 | AB29: 0.9344926064 | AC29: 0.02095863436 | AD29: 0.09216 | AE29: 0.01286367734 | AF29: 0.0002653749698 | AG29: 0.1265261272 | AH29: 1.613818773 | AI29: 0.04687939859 | AJ29: 0.01460137497 | AK29: 0.06178489965 | AL29: 0.014336 | AM29: 0.1152 | AN29: 0.01738843732 | AO29: 0.0001056 | AP29: =CHOOSE(Ext_VCC, (Qg_Q1+Qg_Q2)*Fsw*'Design Regulator'!$G$102, (Qg_Q1+Qg_Q2)*Fsw*Vout, (Qg_Q1+Qg_Q2)*Fsw*Vin) -> 0.03408 | AQ29: 0.1223389091 | AR29: 0.1136 | AS29: 0.0341856 | AT29: 0.9072615961 | AU29: 0.3520326269 | AV29: 19.2 | AW29: 0.9548789082 | AX29: 3.038371908 | AY29: 1.497013495 | BA29: 95.48789082 | BB29: 0.536268855 | BC29: 0.3035110269 | BD29: 0.2025581272 | BE29: 0.09980089965 | BF29: 0.01738843732 | BG29: 0.3376966269 | BH29: 6.618853887
A30: RdsonDRB | B30: 0.7 | C30: W | D30: Drain to Source Resistance of pullup Bottom FET Driver | G30: 21 | H30: 48 | I30: 1 | J30: 1.68 | K30: 1.68 | L30: 0.4666666667 | M30: 0.2511637907 | N30: 3.318952202 | O30: 3.339476101 | P30: 0.02052389878 | Q30: 0 | R30: 1.933999391 | S30: 0.03740353644 | T30: 0.5 | U30: 0.5390164261 | V30: 0.9580989738 | W30: 0.0009179536435 | X30: 0.0009179536435 | Y30: 0.838741758 | Z30: 0.0007034877366 | AA30: 0.0007034877366 | AB30: 0.9692478526 | AC30: 0.02254659359 | AD30: 0.096768 | AE30: 0.01152 | AF30: 0 | AG30: 0.1311450654 | AH30: 1.673592616 | AI30: 0.05041642039 | AJ30: 0.0150528 | AK30: 0.06581764082 | AL30: 0.0150528 | AM30: 0.12096 | AN30: 0.01870176822 | AO30: 0.0001056 | AP30: =CHOOSE(Ext_VCC, (Qg_Q1+Qg_Q2)*Fsw*'Design Regulator'!$G$102, (Qg_Q1+Qg_Q2)*Fsw*Vout, (Qg_Q1+Qg_Q2)*Fsw*Vin) -> 0.03408 | AQ30: 0.1223389091 | AR30: 0.1136 | AS30: 0.0341856 | AT30: 0.9265007419 | AU30: 0.3671611062 | AV30: 20.16 | AW30: 0.9560619017 | AX30: 3.164679981 | AY30: 1.586016612 | BA30: 95.60619017 | BB30: 0.5390164261 | BC30: 0.3179227062 | BD30: 0.2109786654 | BE30: 0.1057344408 | BF30: 0.01870176822 | BG30: 0.3521083062 | BH30: 6.901322802
A31: RdsonDRB2 | B31: 0.5 | C31: W | D31: Drain to Source Resistance of pulldown Bottom FET Driver | G31: 22 | H31: 48 | I31: 1 | J31: 1.76 | K31: 1.76 | L31: 0.4888888889 | M31: 0.2512192114 | N31: 3.319433328 | O31: 3.419716664 | P31: 0.1002833361 | Q31: 0 | R31: 2.003951048 | S31: 0.04015819802 | T31: 0.5 | U31: 0.5418991334 | V31: 0.9582378627 | W31: 0.0009182198015 | X31: 0.0009182198015 | Y31: 0.8691422841 | Z31: 0.0007554083099 | AA31: 0.0007554083099 | AB31: 1.004415792 | AC31: 0.02421242601 | AD31: 0.101376 | AE31: 0.01152 | AF31: 0 | AG31: 0.1374578858 | AH31: 1.734061336 | AI31: 0.05412543692 | AJ31: 0.0157696 | AK31: 0.07029453276 | AL31: 0.0157696 | AM31: 0.12672 | AN31: 0.02007909901 | AO31: 0.0001056 | AP31: =CHOOSE(Ext_VCC, (Qg_Q1+Qg_Q2)*Fsw*'Design Regulator'!$G$102, (Qg_Q1+Qg_Q2)*Fsw*Vout, (Qg_Q1+Qg_Q2)*Fsw*Vin) -> 0.03408 | AQ31: 0.1223389091 | AR31: 0.1136 | AS31: 0.0341856 | AT31: 0.9480794792 | AU31: 0.3844276186 | AV31: 21.12 | AW31: 0.9570384238 | AX31: 3.316396288 | AY31: 1.681681991 | BA31: 95.70384238 | BB31: 0.5418991334 | BC31: 0.3344724186 | BD31: 0.2210930858 | BE31: 0.1121121328 | BF31: 0.02007909901 | BG31: 0.3686580186 | BH31: 7.225697165
A32: Deadtime | B32: Input Value | C32: Units | D32: Description | G32: 23 | H32: 48 | I32: 1 | J32: 1.84 | K32: 1.84 | L32: 0.5111111111 | M32: 0.2512746322 | N32: 3.319914345 | O32: 3.499957172 | P32: 0.1800428276 | Q32: 0 | R32: 2.074629109 | S32: 0.04304085938 | T32: 0.5 | U32: 0.5449171556 | V32: 0.9583767203 | W32: 0.0009184859381 | X32: 0.0009184859381 | Y32: 0.8998623138 | Z32: 0.0008097521839 | AA32: 0.0008097521839 | AB32: 1.039955581 | AC32: 0.02595618266 | AD32: 0.105984 | AE32: 0.01152 | AF32: 0 | AG32: 0.1438522374 | AH32: 1.795154123 | AI32: 0.05800640989 | AJ32: 0.0164864 | AK32: 0.07494930158 | AL32: 0.0164864 | AM32: 0.13248 | AN32: 0.02152042969 | AO32: 0.0001056 | AP32: =CHOOSE(Ext_VCC, (Qg_Q1+Qg_Q2)*Fsw*'Design Regulator'!$G$102, (Qg_Q1+Qg_Q2)*Fsw*Vout, (Qg_Q1+Qg_Q2)*Fsw*Vin) -> 0.03408 | AQ32: 0.1223389091 | AR32: 0.1136 | AS32: 0.0341856 | AT32: 0.9701193624 | AU32: 0.401953539 | AV32: 22.08 | AW32: 0.95791261 | AX32: 3.469335562 | AY32: 1.780015524 | BA32: 95.791261 | BB32: 0.5449171556 | BC32: 0.351281539 | BD32: 0.2312890374 | BE32: 0.1186677016 | BF32: 0.02152042969 | BG32: 0.385467139 | BH32: 7.555155925
A33: Deadtime | B33: =Deadtime*1000000000 -> 14 | C33: ns | D33: Total Deadtime | G33: 24 | H33: 48 | I33: 1 | J33: 1.92 | K33: 1.92 | L33: 0.5333333333 | M33: 0.2513300532 | N33: 3.320395253 | O33: 3.580197627 | P33: 0.2598023733 | Q33: 0 | R33: 2.145961801 | S33: 0.04605152053 | T33: 0.5 | U33: 0.5480706796 | V33: 0.9585155467 | W33: 0.0009187520533 | X33: 0.0009187520533 | Y33: 0.9308707815 | Z33: 0.0008665204119 | AA33: 0.0008665204119 | AB33: 1.075831358 | AC33: 0.02777791465 | AD33: 0.110592 | AE33: 0.01152 | AF33: 0 | AG33: 0.1503283746 | AH33: 1.856808806 | AI33: 0.06205930097 | AJ33: 0.0172032 | AK33: 0.07978238104 | AL33: 0.0172032 | AM33: 0.13824 | AN33: 0.02302576027 | AO33: 0.0001056 | AP33: =CHOOSE(Ext_VCC, (Qg_Q1+Qg_Q2)*Fsw*'Design Regulator'!$G$102, (Qg_Q1+Qg_Q2)*Fsw*Vout, (Qg_Q1+Qg_Q2)*Fsw*Vin) -> 0.03408 | AQ33: 0.1223389091 | AR33: 0.1136 | AS33: 0.0341856 | AT33: 0.9926212679 | AU33: 0.4197395556 | AV33: 23.04 | AW33: 0.9586969205 | AX33: 3.623501619 | AY33: 1.881023716 | BA33: 95.86969205 | BB33: 0.5480706796 | BC33: 0.3683507556 | BD33: 0.2415667746 | BE33: 0.125401581 | BF33: 0.02302576027 | BG33: 0.4025363556 | BH33: 7.88971257
A34: IQ | B34: Input Value | C34: Units | D34: Description | G34: 25 | H34: 48 | I34: 1 | J34: 2 | K34: 2 | L34: 0.5555555556 | M34: 0.2513854744 | N34: 3.320876054 | O34: 3.660438027 | P34: 0.3395619732 | Q34: 0 | R34: 2.217885963 | S34: 0.04919018147 | T34: 0.5 | U34: 0.551359901 | V34: 0.9586543418 | W34: 0.000919018147 | X34: 0.000919018147 | Y34: 0.9621403469 | Z34: 0.0009257140472 | AA34: 0.0009257140472 | AB34: 1.11201156 | AC34: 0.02967767305 | AD34: 0.1152 | AE34: 0.01152 | AF34: 0 | AG34: 0.156886556 | AH34: 1.918970671 | AI34: 0.06628407186 | AJ34: 0.01792 | AK34: 0.08479422504 | AL34: 0.01792 | AM34: 0.144 | AN34: 0.02459509073 | AO34: 0.0001056 | AP34: =CHOOSE(Ext_VCC, (Qg_Q1+Qg_Q2)*Fsw*'Design Regulator'!$G$102, (Qg_Q1+Qg_Q2)*Fsw*Vout, (Qg_Q1+Qg_Q2)*Fsw*Vin) -> 0.03408 | AQ34: 0.1223389091 | AR34: 0.1136 | AS34: 0.0341856 | AT34: 1.015586105 | AU34: 0.437786381 | AV34: 24 | AW34: 0.9594018665 | AX34: 3.77889834 | AY34: 1.984713376 | BA34: 95.94018665 | BB34: 0.551359901 | BC34: 0.385680781 | BD34: 0.251926556 | BE34: 0.132314225 | BF34: 0.02459509073 | BG34: 0.419866381 | BH34: 8.229381068
A35: IQ | B35: =Iq*1000 -> 0.0022 | C35: mA | D35: Quiescent Current Of Controller (Not Switching!) | G35: 26 | H35: 48 | I35: 1 | J35: 2.08 | K35: 2.08 | L35: 0.5777777778 | M35: 0.2514408958 | N35: 3.321356745 | O35: 3.740678373 | P35: 0.4193216273 | Q35: 0 | R35: 2.290345873 | S35: 0.05245684219 | T35: 0.5 | U35: 0.5547850238 | V35: 0.9587931055 | W35: 0.0009192842192 | X35: 0.0009192842192 | Y35: 0.9936468901 | Z35: 0.0009873341422 | AA35: 0.0009873341422 | AB35: 1.148468345 | AC35: 0.03165550894 | AD35: 0.119808 | AE35: 0.01152 | AF35: 0 | AG35: 0.1635270448 | AH35: 1.981591451 | AI35: 0.07068068424 | AJ35: 0.0186368 | AK35: 0.08998530767 | AL35: 0.0186368 | AM35: 0.14976 | AN35: 0.0262284211 | AO35: 0.0001056 | AP35: =CHOOSE(Ext_VCC, (Qg_Q1+Qg_Q2)*Fsw*'Design Regulator'!$G$102, (Qg_Q1+Qg_Q2)*Fsw*Vout, (Qg_Q1+Qg_Q2)*Fsw*Vin) -> 0.03408 | AQ35: 0.1223389091 | AR35: 0.1136 | AS35: 0.0341856 | AT35: 1.039014816 | AU35: 0.4560947524 | AV35: 24.96 | AW35: 0.9600363774 | AX35: 3.935529672 | AY35: 2.091091615 | BA35: 96.00363774 | BB35: 0.5547850238 | BC35: 0.4032723524 | BD35: 0.2623686448 | BE35: 0.1394061077 | BF35: 0.0262284211 | BG35: 0.4374579524 | BH35: 8.574175868
A36: High-side FET | B36: Input Value | C36: Units | D36: Description | G36: 27 | H36: 48 | I36: 1 | J36: 2.16 | K36: 2.16 | L36: 0.6 | M36: 0.2514963173 | N36: 3.321837329 | O36: 3.820918664 | P36: 0.4990813356 | Q36: 0 | R36: 2.363292252 | S36: 0.0558515027 | T36: 0.5 | U36: 0.5583462609 | V36: 0.958931838 | W36: 0.0009195502699 | X36: 0.0009195502699 | Y36: 1.02536908 | Z36: 0.001051381749 | AA36: 0.001051381749 | AB36: 1.185177086 | AC36: 0.03371147339 | AD36: 0.124416 | AE36: 0.01152 | AF36: 0 | AG36: 0.1702501085 | AH36: 2.044628461 | AI36: 0.07524909982 | AJ36: 0.0193536 | AK36: 0.09535612337 | AL36: 0.0193536 | AM36: 0.15552 | AN36: 0.02792575135 | AO36: 0.0001056 | AP36: =CHOOSE(Ext_VCC, (Qg_Q1+Qg_Q2)*Fsw*'Design Regulator'!$G$102, (Qg_Q1+Qg_Q2)*Fsw*Vout, (Qg_Q1+Qg_Q2)*Fsw*Vin) -> 0.03408 | AQ36: 0.1223389091 | AR36: 0.1136 | AS36: 0.0341856 | AT36: 1.062908376 | AU36: 0.4746654319 | AV36: 25.92 | AW36: 0.9606080871 | AX36: 4.093399628 | AY36: 2.200165851 | BA36: 96.06080871 | BB36: 0.5583462609 | BC36: 0.4211262319 | BD36: 0.2728933085 | BE36: 0.1466777234 | BF36: 0.02792575135 | BG36: 0.4553118319 | BH36: 8.924111905
A37: RdsonTop | B37: =Rdson1*1000 -> 24 | C37: mW | D37: Drain-Source Resistance of Top FET | G37: 28 | H37: 48 | I37: 1 | J37: 2.24 | K37: 2.24 | L37: 0.6222222222 | M37: 0.2515517391 | N37: 3.322317804 | O37: 3.901158902 | P37: 0.5788410981 | Q37: 0 | R37: 2.436681411 | S37: 0.05937416299 | T37: 0.5 | U37: 0.5620438336 | V37: 0.9590705392 | W37: 0.0009198162991 | X37: 0.0009198162991 | Y37: 1.057288002 | Z37: 0.00111785792 | AA37: 0.00111785792 | AB37: 1.22211595 | AC37: 0.0358456175 | AD37: 0.129024 | AE37: 0.01152 | AF37: 0 | AG37: 0.1770560191 | AH37: 2.108043857 | AI37: 0.07998928026 | AJ37: 0.0200704 | AK37: 0.1009071871 | AL37: 0.0200704 | AM37: 0.16128 | AN37: 0.0296870815 | AO37: 0.0001056 | AP37: =CHOOSE(Ext_VCC, (Qg_Q1+Qg_Q2)*Fsw*'Design Regulator'!$G$102, (Qg_Q1+Qg_Q2)*Fsw*Vout, (Qg_Q1+Qg_Q2)*Fsw*Vin) -> 0.03408 | AQ37: 0.1223389091 | AR37: 0.1136 | AS37: 0.0341856 | AT37: 1.087267795 | AU37: 0.4934992062 | AV37: 26.88 | AW37: 0.9611235605 | AX37: 4.252512287 | AY37: 2.311943806 | BA37: 96.11235605 | BB37: 0.5620438336 | BC37: 0.4392432062 | BD37: 0.2835008191 | BE37: 0.1541295871 | BF37: 0.0296870815 | BG37: 0.4734288062 | BH37: 9.279204601
A38: RdsonTopTc | B38: =RdsonTopTc*1000000 -> 7000 | C38: ppm | D38: Drain to Source Resistance Temp Co | G38: 29 | H38: 48 | I38: 1 | J38: 2.32 | K38: 2.32 | L38: 0.6444444444 | M38: 0.251607161 | N38: 3.32279817 | O38: 3.981399085 | P38: 0.6586009148 | Q38: 0 | R38: 2.510474518 | S38: 0.06302482307 | T38: 0.5 | U38: 0.5658779718 | V38: 0.9592092091 | W38: 0.0009200823068 | X38: 0.0009200823068 | Y38: 1.089386848 | Z38: 0.001186763705 | AA38: 0.001186763705 | AB38: 1.259265532 | AC38: 0.03805799233 | AD38: 0.133632 | AE38: 0.01152 | AF38: 0 | AG38: 0.1839450532 | AH38: 2.171804003 | AI38: 0.08490118727 | AJ38: 0.0207872 | AK38: 0.1066390342 | AL38: 0.0207872 | AM38: 0.16704 | AN38: 0.03151241153 | AO38: 0.0001056 | AP38: =CHOOSE(Ext_VCC, (Qg_Q1+Qg_Q2)*Fsw*'Design Regulator'!$G$102, (Qg_Q1+Qg_Q2)*Fsw*Vout, (Qg_Q1+Qg_Q2)*Fsw*Vin) -> 0.03408 | AQ38: 0.1223389091 | AR38: 0.1136 | AS38: 0.0341856 | AT38: 1.112094117 | AU38: 0.5125968874 | AV38: 27.84 | AW38: 0.961588474 | AX38: 4.412871798 | AY38: 2.426433514 | BA38: 96.1588474 | BB38: 0.5658779718 | BC38: 0.4576240874 | BD38: 0.2941914532 | BE38: 0.1617622342 | BF38: 0.03151241153 | BG38: 0.4918096874 | BH38: 9.639469873
A39: QgTop | B39: =Qg_Q1*1000000000 -> 3 | C39: nC | D39: Gate Charge Of Top FET | G39: 30 | H39: 48 | I39: 1 | J39: 2.4 | K39: 2.4 | L39: 0.6666666667 | M39: 0.2516625831 | N39: 3.323278429 | O39: 4.061639214 | P39: 0.7383607857 | Q39: 0 | R39: 2.584636975 | S39: 0.06680348293 | T39: 0.5 | U39: 0.5698489143 | V39: 0.9593478477 | W39: 0.0009203482928 | X39: 0.0009203482928 | Y39: 1.121650639 | Z39: 0.001258100156 | AA39: 0.001258100156 | AB39: 1.296608541 | AC39: 0.04034864898 | AD39: 0.13824 | AE39: 0.01152 | AF39: 0 | AG39: 0.1909174916 | AH39: 2.235878929 | AI39: 0.08998478253 | AJ39: 0.021504 | AK39: 0.1125522212 | AL39: 0.021504 | AM39: 0.1728 | AN39: 0.03340174146 | AO39: 0.0001056 | AP39: =CHOOSE(Ext_VCC, (Qg_Q1+Qg_Q2)*Fsw*'Design Regulator'!$G$102, (Qg_Q1+Qg_Q2)*Fsw*Vout, (Qg_Q1+Qg_Q2)*Fsw*Vin) -> 0.03408 | AQ39: 0.1223389091 | AR39: 0.1136 | AS39: 0.0341856 | AT39: 1.137388417 | AU39: 0.5319593128 | AV39: 28.8 | AW39: 0.962007761 | AX39: 4.574482374 | AY39: 2.543643318 | BA39: 96.2007761 | BB39: 0.5698489143 | BC39: 0.4762697128 | BD39: 0.3049654916 | BE39: 0.1695762212 | BF39: 0.03340174146 | BG39: 0.5104553128 | BH39: 10.00492413
A40: QgdTop | B40: =Qgd_Q1*1000000000 -> 0.7 | C40: nC | D40: Gate to Drain Charge | G40: 31 | H40: 48 | I40: 1 | J40: 2.48 | K40: 2.48 | L40: 0.6888888889 | M40: 0.2517180054 | N40: 3.323758578 | O40: 4.141879289 | P40: 0.8181207108 | Q40: 0 | R40: 2.659137879 | S40: 0.07071014257 | T40: 0.5 | U40: 0.5739569086 | V40: 0.959486455 | W40: 0.0009206142573 | X40: 0.0009206142573 | Y40: 1.154065996 | Z40: 0.001331868323 | AA40: 0.001331868323 | AB40: 1.334129531 | AC40: 0.04271763853 | AD40: 0.142848 | AE40: 0.01152 | AF40: 0 | AG40: 0.1979736199 | AH40: 2.300241868 | AI40: 0.09524002774 | AJ40: 0.0222208 | AK40: 0.1186473251 | AL40: 0.0222208 | AM40: 0.17856 | AN40: 0.03535507129 | AO40: 0.0001056 | AP40: =CHOOSE(Ext_VCC, (Qg_Q1+Qg_Q2)*Fsw*'Design Regulator'!$G$102, (Qg_Q1+Qg_Q2)*Fsw*Vout, (Qg_Q1+Qg_Q2)*Fsw*Vin) -> 0.03408 | AQ40: 0.1223389091 | AR40: 0.1136 | AS40: 0.0341856 | AT40: 1.163151807 | AU40: 0.551587345 | AV40: 29.76 | AW40: 0.9623857292 | AX40: 4.737348299 | AY40: 2.663581876 | BA40: 96.23857292 | BB40: 0.5739569086 | BC40: 0.495180945 | BD40: 0.3158232199 | BE40: 0.1775721251 | BF40: 0.03535507129 | BG40: 0.529366545 | BH40: 10.37558428
A41: QgsTop | B41: =Qgs_Q1*1000000000 -> 0.7 | C41: nC | G41: 32 | H41: =Vin -> 48 | I41: =MODE -> 1 | J41: 2.56 | K41: =Iout*G41/100/Number_of_Phases -> 2.56 | L41: =Vout*K41/(Vin*Efficiency) -> 0.7111111111 | M41: =(Vout+(Rdson2+Rs+Rdcr)*K41)/(Vin+(Rs+Rdson2-Rdson1)*K41) -> 0.2517734279 | N41: =(Vin-(Rdson1+Rdcr)*K41-Vout)*M41/(Fsw*Lf) -> 3.32423862 | O41: 4.22211931 | P41: 0.8978806901 | Q41: =IF(MIN(Vin, -P41/(Coss_Q1+Coss_Q2)*0.00000002)<0, 0, MIN(Vin, -P41/(Coss_Q1+Coss_Q2)*0.00000002)) -> 0 | R41: 2.733949561 | S41: =R41^2*Rdcr -> 0.074744802 | T41: =Core_Loss_Ch1 -> 0.5 | U41: =(T41+S41*(1+Ltc*(Ta-25)))/(1-S41*Ltc*ThetaCa) -> 0.5782022108 | V41: 0.959625031 | W41: 0.0009208802001 | X41: 0.0009208802001 | Y41: 1.18662094 | Z41: 0.001408069256 | AA41: 0.001408069256 | AB41: 1.371814675 | AC41: =Rdson1*AB41^2 -> 0.04516501204 | AD41: =(Vin*K41/2)*Fsw*(Tr_buck+Tf_buck) -> 0.147456 | AE41: =(0.5*Coss_Q1*(Vin-Q41)^2-0.5*Coss_Q2*(Vin-Q41)^2+(Qoss_Q2*(Vin-Q41)/Vin)*Vin)*Fsw -> 0.01152 | AF41: =IF(K41>N41/2,0,ABS(K41-N41/2)*Vsd_Q1*Deadtime*Fsw) -> 0 | AG41: =(AF41+AE41+AD41+AC41*(1+RdsonTopTc*Ta-RdsonTopTc*25))/(1-AC41*RdsonTopTc*ThetaJA_Q1) -> 0.2051137283 | AH41: =SQRT((1-M41))*SQRT(K41^2+(N41^2)/12) -> 2.364868854 | AI41: =Rdson2*AH41^2 -> 0.1006668846 | AJ41: =IF(K41<N41/2,Deadtime*Fsw*IF(VfdSky_Q2>0,0,Vsd_Q2)*(K41+N41/2),2*Deadtime*Fsw*IF(VfdSky_Q2>0,0,Vsd_Q2)*K41) -> 0.0229376 | AK41: =(AJ41+AI41*(1+RdsonBotTc*Ta-RdsonBotTc*25))/(1-AI41*RdsonBotTc*ThetaJA_Q2) -> 0.1249249441 | AL41: =2*Deadtime*Fsw*IF(VfdSky_Q2>0,VfdSky_Q2,Vsd_Q2)*K41 -> 0.0229376 | AM41: =IF(QrrSky_Q2>0,QrrSky_Q2,Qrr_Q2*K41/(Iout/Number_of_Phases))*Fsw*Vin -> 0.18432 | AN41: =Rs*R41^2 -> 0.037372401 | AO41: =Iq*Vin -> 0.0001056 | AP41: =CHOOSE(Ext_VCC, (Qg_Q1+Qg_Q2)*Fsw*'Design Regulator'!$G$102, (Qg_Q1+Qg_Q2)*Fsw*Vout, (Qg_Q1+Qg_Q2)*Fsw*Vin) -> 0.03408 | AQ41: 0.1223389091 | AR41: =(Qg_Q1+Qg_Q2)*Fsw*(Vin-VCC) -> 0.1136 | AS41: =SUM(AO41:AP41) -> 0.0341856 | AT41: =SUM(U41,X41,AA41,AG41,AK41,AL41,AM41,AS41,AN41) -> 1.189385434 | AU41: =SUM(AG41,AK41,AL41,AM41,AS41) -> 0.5714818724 | AV41: =Vout*K41 -> 30.72 | AW41: 0.9627261567 | AX41: =ThetaJA_Q1*BD41 -> 4.901473924 | AY41: =ThetaJA_Q2*BE41 -> 2.786258161 | BA41: 96.27261567 | BB41: =U41 -> 0.5782022108 | BC41: =AG41+AK41+AM41 -> 0.5143586724 | BD41: =AG41+AM41*0.66 -> 0.3267649283 | BE41: =AK41+AM41*0.33 -> 0.1857505441 | BF41: =AN41 -> 0.037372401 | BG41: 0.5485442724 | BH41: 10.75146774
A42: RGateTop | B42: =Rgate1 -> 3.5 | C42: W | D42: Gate Resistance | G42: 33 | H42: 48 | I42: 1 | J42: =Iout*G42/100 -> 2.64 | K42: 2.64 | L42: 0.7333333333 | M42: 0.2518288506 | N42: 3.324718553 | O42: 4.302359276 | P42: 0.9776407236 | Q42: 0 | R42: 2.809047191 | S42: 0.07890746121 | T42: 0.5 | U42: 0.582585086 | V42: 0.9597635757 | W42: 0.0009211461213 | X42: 0.0009211461213 | Y42: 1.219304721 | Z42: 0.001486704003 | AA42: 0.001486704003 | AB42: 1.409651562 | AC42: 0.04769082062 | AD42: 0.152064 | AE42: 0.01152 | AF42: 0 | AG42: 0.2123381114 | AH42: 2.42973838 | AI42: 0.1062653147 | AJ42: 0.0236544 | AK42: 0.1313856977 | AL42: 0.0236544 | AM42: =IF(QrrSky_Q2>0,QrrSky_Q2,Qrr_Q2*K42/(Iout/Number_of_Phases))*Fsw*Vin -> 0.19008 | AN42: 0.03945373061 | AO42: 0.0001056 | AP42: =CHOOSE(Ext_VCC, (Qg_Q1+Qg_Q2)*Fsw*'Design Regulator'!$G$102, (Qg_Q1+Qg_Q2)*Fsw*Vout, (Qg_Q1+Qg_Q2)*Fsw*Vin) -> 0.03408 | AQ42: 0.1223389091 | AR42: 0.1136 | AS42: 0.0341856 | AT42: 1.216090476 | AU42: 0.5916438091 | AV42: 31.68 | AW42: 0.9630323708 | AX42: 5.066863671 | AY42: 2.911681465 | BA42: 96.30323708 | BB42: 0.582585086 | BC42: 0.5338038091 | BD42: 0.3377909114 | BE42: 0.1941120977 | BF42: 0.03945373061 | BG42: 0.5679894091 | BH42: 11.13259242
A43: GfsTop | B43: =Gfs_Q1 -> 71 | C43: S | D43: Transconductance of Top FET | G43: 34 | H43: 48 | I43: 1 | J43: 2.72 | K43: 2.72 | L43: 0.7555555556 | M43: 0.2518842734 | N43: 3.325198377 | O43: 4.382599189 | P43: 1.057400811 | Q43: 0 | R43: 2.884408435 | S43: 0.08319812021 | T43: 0.5 | U43: 0.5871058082 | V43: 0.9599020891 | W43: 0.0009214120207 | X43: 0.0009214120207 | Y43: 1.252107669 | Z43: 0.001567773615 | AA43: 0.001567773615 | AB43: 1.447629029 | AC43: 0.05029511534 | AD43: 0.156672 | AE43: 0.01152 | AF43: 0 | AG43: 0.2196470687 | AH43: 2.494831099 | AI43: 0.1120352799 | AJ43: 0.0243712 | AK43: 0.1380302266 | AL43: 0.0243712 | AM43: 0.19584 | AN43: 0.0415990601 | AO43: 0.0001056 | AP43: =CHOOSE(Ext_VCC, (Qg_Q1+Qg_Q2)*Fsw*'Design Regulator'!$G$102, (Qg_Q1+Qg_Q2)*Fsw*Vout, (Qg_Q1+Qg_Q2)*Fsw*Vin) -> 0.03408 | AQ43: 0.1223389091 | AR43: 0.1136 | AS43: 0.0341856 | AT43: 1.243268149 | AU43: 0.6120740953 | AV43: 32.64 | AW43: 0.9633073131 | AX43: 5.23352203 | AY43: 3.0398614 | BA43: 96.33073131 | BB43: 0.5871058082 | BC43: 0.5535172953 | BD43: 0.3489014687 | BE43: 0.2026574266 | BF43: 0.0415990601 | BG43: 0.5877028953 | BH43: 11.51897675
A44: VthTop | B44: =Vth_Q1 -> 1.8 | C44: V | D44: Threshold Voltage of Top FET | G44: 35 | H44: 48 | I44: 1 | J44: 2.8 | K44: 2.8 | L44: 0.7777777778 | M44: 0.2519396965 | N44: 3.325678093 | O44: 4.462839047 | P44: 1.137160953 | Q44: 0 | R44: 2.960013158 | S44: 0.08761677898 | T44: 0.5 | U44: 0.5917646601 | V44: 0.9600405713 | W44: 0.0009216778985 | X44: 0.0009216778985 | Y44: 1.285021065 | Z44: 0.001651279139 | AA44: 0.001651279139 | AB44: 1.485737013 | AC44: 0.05297794729 | AD44: 0.16128 | AE44: 0.01152 | AF44: 0 | AG44: 0.2270409042 | AH44: 2.560129573 | AI44: 0.1179767417 | AJ44: 0.025088 | AK44: 0.1448591933 | AL44: 0.025088 | AM44: 0.2016 | AN44: 0.04380838949 | AO44: 0.0001056 | AP44: =CHOOSE(Ext_VCC, (Qg_Q1+Qg_Q2)*Fsw*'Design Regulator'!$G$102, (Qg_Q1+Qg_Q2)*Fsw*Vout, (Qg_Q1+Qg_Q2)*Fsw*Vin) -> 0.03408 | AQ44: 0.1223389091 | AR44: 0.1136 | AS44: 0.0341856 | AT44: 1.270919704 | AU44: 0.6327736975 | AV44: 33.6 | AW44: 0.9635535938 | AX44: 5.401453563 | AY44: 3.1708079 | BA44: 96.35535938 | BB44: 0.5917646601 | BC44: 0.5735000975 | BD44: 0.3600969042 | BE44: 0.2113871933 | BF44: 0.04380838949 | BG44: 0.6076856975 | BH44: 11.91063967
A45: VspTop | B45: =Vsp_Q1 -> 1.912676056 | C45: V | G45: 36 | H45: 48 | I45: 1 | J45: 2.88 | K45: 2.88 | L45: 0.8 | M45: 0.2519951197 | N45: 3.326157701 | O45: 4.543078851 | P45: 1.216921149 | Q45: 0 | R45: 3.03584317 | S45: 0.09216343754 | T45: 0.5 | U45: 0.5965619334 | V45: 0.9601790221 | W45: 0.0009219437545 | X45: 0.0009219437545 | Y45: 1.318037034 | Z45: 0.001737221623 | AA45: 0.001737221623 | AB45: 1.523966419 | AC45: 0.05573936754 | AD45: 0.165888 | AE45: 0.01152 | AF45: 0 | AG45: 0.2345199267 | AH45: 2.625618043 | AI45: 0.1240896619 | AJ45: 0.0258048 | AK45: 0.1518732819 | AL45: 0.0258048 | AM45: 0.20736 | AN45: 0.04608171877 | AO45: 0.0001056 | AP45: =CHOOSE(Ext_VCC, (Qg_Q1+Qg_Q2)*Fsw*'Design Regulator'!$G$102, (Qg_Q1+Qg_Q2)*Fsw*Vout, (Qg_Q1+Qg_Q2)*Fsw*Vin) -> 0.03408 | AQ45: 0.1223389091 | AR45: 0.1136 | AS45: 0.0341856 | AT45: 1.299046426 | AU45: 0.6537436086 | AV45: 34.56 | AW45: 0.9637735368 | AX45: 5.570662901 | AY45: 3.304531228 | BA45: 96.37735368 | BB45: 0.5965619334 | BC45: 0.5937532086 | BD45: 0.3713775267 | BE45: 0.2203020819 | BF45: 0.04608171877 | BG45: 0.6279388086 | BH45: 12.30760065
A46: VsdTop | B46: =Vsd_Q1 -> 0.8 | C46: V | G46: 37 | H46: 48 | I46: 1 | J46: 2.96 | K46: 2.96 | L46: 0.8222222222 | M46: 0.2520505431 | N46: 3.326637201 | O46: 4.6233186 | P46: 1.2966814 | Q46: 0 | R46: 3.111882001 | S46: 0.09683809589 | T46: 0.5 | U46: 0.601497929 | V46: 0.9603174416 | W46: 0.0009222095887 | X46: 0.0009222095887 | Y46: 1.351148443 | Z46: 0.001825602115 | AA46: 0.001825602115 | AB46: 1.562309018 | AC46: 0.05857942719 | AD46: 0.170496 | AE46: 0.01152 | AF46: 0 | AG46: 0.2420844499 | AH46: 2.691282245 | AI46: 0.1303740022 | AJ46: 0.0265216 | AK46: 0.1590731982 | AL46: 0.0265216 | AM46: 0.21312 | AN46: 0.04841904794 | AO46: 0.0001056 | AP46: =CHOOSE(Ext_VCC, (Qg_Q1+Qg_Q2)*Fsw*'Design Regulator'!$G$102, (Qg_Q1+Qg_Q2)*Fsw*Vout, (Qg_Q1+Qg_Q2)*Fsw*Vin) -> 0.03408 | AQ46: 0.1223389091 | AR46: 0.1136 | AS46: 0.0341856 | AT46: 1.327649637 | AU46: 0.6749848481 | AV46: 35.52 | AW46: 0.9639692179 | AX46: 5.741154748 | AY46: 3.441041973 | BA46: 96.39692179 | BB46: 0.601497929 | BC46: 0.6142776481 | BD46: 0.3827436499 | BE46: 0.2294027982 | BF46: 0.04841904794 | BG46: 0.6484632481 | BH46: 12.70987966
A47: θJATop | B47: =ThetaJA_Q1 -> 15 | C47: °C/W | D47: Junction to Ambient Resistance | G47: 38 | H47: 48 | I47: 1 | J47: 3.04 | K47: 3.04 | L47: 0.8444444444 | M47: 0.2521059667 | N47: 3.327116592 | O47: 4.703558296 | P47: 1.376441704 | Q47: 0 | R47: 3.18811471 | S47: 0.101640754 | T47: 0.5 | U47: 0.6065729566 | V47: 0.9604558299 | W47: 0.0009224754011 | X47: 0.0009224754011 | Y47: 1.384348822 | Z47: 0.001916421661 | AA47: 0.001916421661 | AB47: 1.600757338 | AC47: 0.06149817731 | AD47: 0.175104 | AE47: 0.01152 | AF47: 0 | AG47: 0.2497347919 | AH47: 2.757109237 | AI47: 0.1368297242 | AJ47: 0.0272384 | AK47: 0.1664596705 | AL47: 0.0272384 | AM47: 0.21888 | AN47: 0.05082037701 | AO47: 0.0001056 | AP47: =CHOOSE(Ext_VCC, (Qg_Q1+Qg_Q2)*Fsw*'Design Regulator'!$G$102, (Qg_Q1+Qg_Q2)*Fsw*Vout, (Qg_Q1+Qg_Q2)*Fsw*Vin) -> 0.03408 | AQ47: 0.1223389091 | AR47: 0.1136 | AS47: 0.0341856 | AT47: 1.356730693 | AU47: 0.6964984624 | AV47: 36.48 | AW47: 0.9641424968 | AX47: 5.912933879 | AY47: 3.580351057 | BA47: 96.41424968 | BB47: 0.6065729566 | BC47: 0.6350744624 | BD47: 0.3941955919 | BE47: 0.2386900705 | BF47: 0.05082037701 | BG47: 0.6692600624 | BH47: 13.11749722
A48: Low-side FET | B48: Input Value | C48: Units | D48: Description | G48: 39 | H48: 48 | I48: 1 | J48: 3.12 | K48: 3.12 | L48: 0.8666666667 | M48: 0.2521613905 | N48: 3.327595874 | O48: 4.783797937 | P48: 1.456202063 | Q48: 0 | R48: 3.264527713 | S48: 0.1065714119 | T48: 0.5 | U48: 0.6117873351 | V48: 0.9605941868 | W48: 0.0009227411917 | X48: 0.0009227411917 | Y48: 1.41763229 | Z48: 0.002009681309 | AA48: 0.002009681309 | AB48: 1.639304591 | AC48: 0.064495669 | AD48: 0.179712 | AE48: 0.01152 | AF48: 0 | AG48: 0.2574712761 | AH48: 2.823087255 | AI48: 0.1434567897 | AJ48: 0.0279552 | AK48: 0.1740334491 | AL48: 0.0279552 | AM48: 0.22464 | AN48: 0.05328570596 | AO48: 0.0001056 | AP48: =CHOOSE(Ext_VCC, (Qg_Q1+Qg_Q2)*Fsw*'Design Regulator'!$G$102, (Qg_Q1+Qg_Q2)*Fsw*Vout, (Qg_Q1+Qg_Q2)*Fsw*Vin) -> 0.03408 | AQ48: 0.1223389091 | AR48: 0.1136 | AS48: 0.0341856 | AT48: 1.386290989 | AU48: 0.7182855252 | AV48: 37.44 | AW48: 0.9642950446 | AX48: 6.086005142 | AY48: 3.722469736 | BA48: 96.42950446 | BB48: 0.6117873351 | BC48: 0.6561447252 | BD48: 0.4057336761 | BE48: 0.2481646491 | BF48: 0.05328570596 | BG48: 0.6903303252 | BH48: 13.53047437
A49: RdsonBot | B49: =Rdson2*1000 -> 18 | C49: mW | D49: Drain-Source Resistance of Low-side FET | G49: 40 | H49: 48 | I49: 1 | J49: 3.2 | K49: 3.2 | L49: 0.8888888889 | M49: 0.2522168145 | N49: 3.328075048 | O49: 4.864037524 | P49: 1.535962476 | Q49: 0 | R49: 3.341108642 | S49: 0.1116300696 | T49: 0.5 | U49: 0.6171413925 | V49: 0.9607325125 | W49: 0.0009230069605 | X49: 0.0009230069605 | Y49: 1.450993489 | Z49: 0.002105382105 | AA49: 0.002105382105 | AB49: 1.677944592 | AC49: 0.06757195333 | AD49: 0.18432 | AE49: 0.01152 | AF49: 0 | AG49: 0.2652942305 | AH49: 2.889205584 | AI49: 0.1502551603 | AJ49: 0.028672 | AK49: 0.181795307 | AL49: 0.028672 | AM49: 0.2304 | AN49: 0.0558150348 | AO49: 0.0001056 | AP49: =CHOOSE(Ext_VCC, (Qg_Q1+Qg_Q2)*Fsw*'Design Regulator'!$G$102, (Qg_Q1+Qg_Q2)*Fsw*Vout, (Qg_Q1+Qg_Q2)*Fsw*Vin) -> 0.03408 | AQ49: 0.1223389091 | AR49: 0.1136 | AS49: 0.0341856 | AT49: 1.416331954 | AU49: 0.7403471375 | AV49: 38.4 | AW49: 0.9644283668 | AX49: 6.260373458 | AY49: 3.867409605 | BA49: 96.44283668 | BB49: 0.6171413925 | BC49: 0.6774895375 | BD49: 0.4173582305 | BE49: 0.257827307 | BF49: 0.0558150348 | BG49: 0.7116751375 | BH49: 13.9488327
A50: RdsonBotTc | B50: =RdsonBotTc*1000000 -> 7000 | C50: ppm | D50: Drain To Source Resitance Temp Co | G50: 41 | H50: 48 | I50: 1 | J50: 3.28 | K50: 3.28 | L50: 0.9111111111 | M50: 0.2522722386 | N50: 3.328554114 | O50: 4.944277057 | P50: 1.615722943 | Q50: 0 | R50: 3.417846209 | S50: 0.1168167271 | T50: 0.5 | U50: 0.6226354661 | V50: 0.9608708068 | W50: 0.0009232727074 | X50: 0.0009232727074 | Y50: 1.48442753 | Z50: 0.002203525093 | AA50: 0.002203525093 | AB50: 1.7166717 | AC50: 0.07072708139 | AD50: 0.188928 | AE50: 0.01152 | AF50: 0 | AG50: 0.2732039881 | AH50: 2.955454446 | AI50: 0.1572247977 | AJ50: 0.0293888 | AK50: 0.1897460399 | AL50: 0.0293888 | AM50: 0.23616 | AN50: 0.05840836354 | AO50: 0.0001056 | AP50: =CHOOSE(Ext_VCC, (Qg_Q1+Qg_Q2)*Fsw*'Design Regulator'!$G$102, (Qg_Q1+Qg_Q2)*Fsw*Vout, (Qg_Q1+Qg_Q2)*Fsw*Vin) -> 0.03408 | AQ50: 0.1223389091 | AR50: 0.1136 | AS50: 0.0341856 | AT50: 1.446855055 | AU50: 0.7626844279 | AV50: 39.36 | AW50: 0.9645438235 | AX50: 6.436043821 | AY50: 4.015182598 | BA50: 96.45438235 | BB50: 0.6226354661 | BC50: 0.6991100279 | BD50: 0.4290695881 | BE50: 0.2676788399 | BF50: 0.05840836354 | BG50: 0.7332956279 | BH50: 14.37259431
A51: QgBot | B51: =Qg_Q2*1000000000 -> 4.1 | C51: nC | D51: Gate Charge Of Top FET | G51: 42 | H51: 48 | I51: 1 | J51: 3.36 | K51: 3.36 | L51: 0.9333333333 | M51: 0.2523276629 | N51: 3.329033071 | O51: 5.024516536 | P51: 1.695483464 | Q51: 0 | R51: 3.494730094 | S51: 0.1221313843 | T51: 0.5 | U51: 0.6282699022 | V51: 0.9610090699 | W51: 0.0009235384324 | X51: 0.0009235384324 | Y51: 1.517929946 | Z51: 0.00230411132 | AA51: 0.00230411132 | AB51: 1.755480754 | AC51: 0.07396110427 | AD51: 0.193536 | AE51: 0.01152 | AF51: 0 | AG51: 0.2812008867 | AH51: 3.021824905 | AI51: 0.1643656636 | AJ51: 0.0301056 | AK51: 0.1978864663 | AL51: 0.0301056 | AM51: 0.24192 | AN51: 0.06106569216 | AO51: 0.0001056 | AP51: =CHOOSE(Ext_VCC, (Qg_Q1+Qg_Q2)*Fsw*'Design Regulator'!$G$102, (Qg_Q1+Qg_Q2)*Fsw*Vout, (Qg_Q1+Qg_Q2)*Fsw*Vin) -> 0.03408 | AQ51: 0.1223389091 | AR51: 0.1136 | AS51: 0.0341856 | AT51: 1.477861797 | AU51: 0.785298553 | AV51: 40.32 | AW51: 0.964642646 | AX51: 6.613021301 | AY51: 4.165800995 | BA51: 96.4642646 | BB51: 0.6282699022 | BC51: 0.721007353 | BD51: 0.4408680867 | BE51: 0.2777200663 | BF51: 0.06106569216 | BG51: 0.755192953 | BH51: 14.80178188
A52: RGateBot | B52: =Rgate2 -> 3 | C52: W | D52: Gate Resistance | G52: 43 | H52: 48 | I52: 1 | J52: 3.44 | K52: 3.44 | L52: 0.9555555556 | M52: 0.2523830875 | N52: 3.32951192 | O52: 5.10475596 | P52: 1.77524404 | Q52: 0 | R52: 3.57175085 | S52: 0.1275740414 | T52: 0.5 | U52: 0.6340450566 | V52: 0.9611473016 | W52: 0.0009238041355 | X52: 0.0009238041355 | Y52: 1.551496642 | Z52: 0.00240714183 | AA52: 0.00240714183 | AB52: 1.794367031 | AC52: 0.07727407305 | AD52: 0.198144 | AE52: 0.01152 | AF52: 0 | AG52: 0.2892852694 | AH52: 3.088308775 | AI52: 0.1716777197 | AJ52: 0.0308224 | AK52: 0.2062174281 | AL52: 0.0308224 | AM52: 0.24768 | AN52: 0.06378702068 | AO52: 0.0001056 | AP52: =CHOOSE(Ext_VCC, (Qg_Q1+Qg_Q2)*Fsw*'Design Regulator'!$G$102, (Qg_Q1+Qg_Q2)*Fsw*Vout, (Qg_Q1+Qg_Q2)*Fsw*Vin) -> 0.03408 | AQ52: 0.1223389091 | AR52: 0.1136 | AS52: 0.0341856 | AT52: 1.509353721 | AU52: 0.8081906975 | AV52: 41.28 | AW52: 0.9647259519 | AX52: 6.791311041 | AY52: 4.319277422 | BA52: 96.47259519 | BB52: 0.6340450566 | BC52: 0.7431826975 | BD52: 0.4527540694 | BE52: 0.2879518281 | BF52: 0.06378702068 | BG52: 0.7773682975 | BH52: 15.23641863
A53: VsdBot | B53: =Vsd_Q2 -> 0.8 | C53: V | D53: Diode Forward Voltage of Bottom FET Body Diode | G53: 44 | H53: 48 | I53: 1 | J53: 3.52 | K53: 3.52 | L53: 0.9777777778 | M53: 0.2524385122 | N53: 3.32999066 | O53: 5.18499533 | P53: 1.85500467 | Q53: 0 | R53: 3.648899809 | S53: 0.1331446982 | T53: 0.5 | U53: 0.6399612944 | V53: 0.9612855021 | W53: 0.0009240698166 | X53: 0.0009240698166 | Y53: 1.585123865 | Z53: 0.002512617666 | AA53: 0.002512617666 | AB53: 1.833326199 | AC53: 0.08066603882 | AD53: 0.202752 | AE53: 0.01152 | AF53: 0 | AG53: 0.2974574841 | AH53: 3.154898551 | AI53: 0.1791609276 | AJ53: 0.0315392 | AK53: 0.2147397905 | AL53: 0.0315392 | AM53: 0.25344 | AN53: 0.06657234908 | AO53: 0.0001056 | AP53: =CHOOSE(Ext_VCC, (Qg_Q1+Qg_Q2)*Fsw*'Design Regulator'!$G$102, (Qg_Q1+Qg_Q2)*Fsw*Vout, (Qg_Q1+Qg_Q2)*Fsw*Vin) -> 0.03408 | AQ53: 0.1223389091 | AR53: 0.1136 | AS53: 0.0341856 | AT53: 1.541332406 | AU53: 0.8313620746 | AV53: 42.24 | AW53: 0.9647947579 | AX53: 6.970918261 | AY53: 4.475624857 | BA53: 96.47947579 | BB53: 0.6399612944 | BC53: 0.7656372746 | BD53: 0.4647278841 | BE53: 0.2983749905 | BF53: 0.06657234908 | BG53: 0.7998228746 | BH53: 15.67652834
A54: QrrBot | B54: =Qrr_Q2*1000000000 -> 30 | C54: nC | D54: Reverse Recovery Charge of Body Diode | G54: 45 | H54: 48 | I54: 1 | J54: 3.6 | K54: 3.6 | L54: 1 | M54: 0.252493937 | N54: 3.330469293 | O54: 5.265234646 | P54: 1.934765354 | Q54: 0 | R54: 3.726169008 | S54: 0.1388433548 | T54: 0.5 | U54: 0.6460189903 | V54: 0.9614236713 | W54: 0.0009243354757 | X54: 0.0009243354757 | Y54: 1.618808165 | Z54: 0.002620539874 | AA54: 0.002620539874 | AB54: 1.872354274 | AC54: 0.08413705266 | AD54: 0.20736 | AE54: 0.01152 | AF54: 0 | AG54: 0.3057178838 | AH54: 3.221587334 | AI54: 0.1868152491 | AJ54: 0.032256 | AK54: 0.2234544423 | AL54: 0.032256 | AM54: 0.2592 | AN54: 0.06942167738 | AO54: 0.0001056 | AP54: =CHOOSE(Ext_VCC, (Qg_Q1+Qg_Q2)*Fsw*'Design Regulator'!$G$102, (Qg_Q1+Qg_Q2)*Fsw*Vout, (Qg_Q1+Qg_Q2)*Fsw*Vin) -> 0.03408 | AQ54: 0.1223389091 | AR54: 0.1136 | AS54: 0.0341856 | AT54: 1.573799469 | AU54: 0.8548139261 | AV54: 43.2 | AW54: 0.9648499907 | AX54: 7.151848258 | AY54: 4.634856634 | BA54: 96.48499907 | BB54: 0.6460189903 | BC54: 0.7883723261 | BD54: 0.4767898838 | BE54: 0.3089904423 | BF54: 0.06942167738 | BG54: 0.8225579261 | BH54: 16.12213535
A55: TrrBot | B55: =Trr_Q2*1000000000 -> 40 | C55: ns | D55: Reverse Recovery Time of Body Diode | G55: 46 | H55: 48 | I55: 1 | J55: 3.68 | K55: 3.68 | L55: 1.022222222 | M55: 0.2525493621 | N55: 3.330947816 | O55: 5.345473908 | P55: 2.014526092 | Q55: 0 | R55: 3.803551119 | S55: 0.1446700111 | T55: 0.5 | U55: 0.6522185281 | V55: 0.9615618092 | W55: 0.0009246011129 | X55: 0.0009246011129 | Y55: 1.652546367 | Z55: 0.002730909496 | AA55: 0.002730909496 | AB55: 1.911447594 | AC55: 0.08768716567 | AD55: 0.211968 | AE55: 0.01152 | AF55: 0 | AG55: 0.3140668268 | AH55: 3.288368776 | AI55: 0.1946406458 | AJ55: 0.0329728 | AK55: 0.2323622963 | AL55: 0.0329728 | AM55: 0.26496 | AN55: 0.07233500556 | AO55: 0.0001056 | AP55: =CHOOSE(Ext_VCC, (Qg_Q1+Qg_Q2)*Fsw*'Design Regulator'!$G$102, (Qg_Q1+Qg_Q2)*Fsw*Vout, (Qg_Q1+Qg_Q2)*Fsw*Vin) -> 0.03408 | AQ55: 0.1223389091 | AR55: 0.1136 | AS55: 0.0341856 | AT55: 1.606756567 | AU55: 0.8785475231 | AV55: 44.16 | AW55: 0.9648924965 | AX55: 7.334106402 | AY55: 4.796986444 | BA55: 96.48924965 | BB55: 0.6522185281 | BC55: 0.8113891231 | BD55: 0.4889404268 | BE55: 0.3197990963 | BF55: 0.07233500556 | BG55: 0.8455747231 | BH55: 16.57326457
A56: θJABot | B56: =ThetaJA_Q2 -> 15 | C56: °C/W | D56: Junction to Ambient Resistance | G56: 47 | H56: 48 | I56: 1 | J56: 3.76 | K56: 3.76 | L56: 1.044444444 | M56: 0.2526047874 | N56: 3.331426231 | O56: 5.425713116 | P56: 2.094286884 | Q56: 0 | R56: 3.881039388 | S56: 0.1506246673 | T56: 0.5 | U56: 0.6585603014 | V56: 0.9616999157 | W56: 0.000924866728 | X56: 0.000924866728 | Y56: 1.686335547 | Z56: 0.002843727575 | AA56: 0.002843727575 | AB56: 1.95060278 | AC56: 0.09131642892 | AD56: 0.216576 | AE56: 0.01152 | AF56: 0 | AG56: 0.3225046763 | AH56: 3.355237029 | AI56: 0.2026370794 | AJ56: 0.0336896 | AK56: 0.2414642893 | AL56: 0.0336896 | AM56: 0.27072 | AN56: 0.07531233364 | AO56: 0.0001056 | AP56: =CHOOSE(Ext_VCC, (Qg_Q1+Qg_Q2)*Fsw*'Design Regulator'!$G$102, (Qg_Q1+Qg_Q2)*Fsw*Vout, (Qg_Q1+Qg_Q2)*Fsw*Vin) -> 0.03408 | AQ56: 0.1223389091 | AR56: 0.1136 | AS56: 0.0341856 | AT56: 1.640205395 | AU56: 0.9025641657 | AV56: 45.12 | AW56: 0.9649230498 | AX56: 7.517698145 | AY56: 4.96202834 | BA56: 96.49230498 | BB56: 0.6585603014 | BC56: 0.8346889657 | BD56: 0.5011798763 | BE56: 0.3308018893 | BF56: 0.07531233364 | BG56: 0.8688745657 | BH56: 17.02994149
A57: Bottom Schottky | B57: Input Value | C57: Units | D57: Std Units | G57: 48 | H57: 48 | I57: 1 | J57: 3.84 | K57: 3.84 | L57: 1.066666667 | M57: 0.2526602128 | N57: 3.331904538 | O57: 5.505952269 | P57: 2.174047731 | Q57: 0 | R57: 3.95862758 | S57: 0.1567073232 | T57: 0.5 | U57: 0.6650447134 | V57: 0.961837991 | W57: 0.000925132321 | X57: 0.000925132321 | Y57: 1.720173001 | Z57: 0.002958995154 | AA57: 0.002958995154 | AB57: 1.989816716 | AC57: 0.09502489352 | AD57: 0.221184 | AE57: 0.01152 | AF57: 0 | AG57: 0.331031801 | AH57: 3.422186692 | AI57: 0.2108045116 | AJ57: 0.0344064 | AK57: 0.2507613829 | AL57: 0.0344064 | AM57: 0.27648 | AN57: 0.0783536616 | AO57: 0.0001056 | AP57: =CHOOSE(Ext_VCC, (Qg_Q1+Qg_Q2)*Fsw*'Design Regulator'!$G$102, (Qg_Q1+Qg_Q2)*Fsw*Vout, (Qg_Q1+Qg_Q2)*Fsw*Vin) -> 0.03408 | AQ57: 0.1223389091 | AR57: 0.1136 | AS57: 0.0341856 | AT57: 1.674147686 | AU57: 0.9268651839 | AV57: 46.08 | AW57: 0.9649423607 | AX57: 7.702629015 | AY57: 5.129996743 | BA57: 96.49423607 | BB57: 0.6650447134 | BC57: 0.8582731839 | BD57: 0.513508601 | BE57: 0.3419997829 | BF57: 0.0783536616 | BG57: 0.8924587839 | BH57: 17.49219216
A58: VfdSky | B58: =VfdSky_Q2 -> 0 | C58: V | D58: Diode Forward Voltage | G58: 49 | H58: 48 | I58: 1 | J58: 3.92 | K58: 3.92 | L58: 1.088888889 | M58: 0.2527156384 | N58: 3.332382737 | O58: 5.586191368 | P58: 2.253808632 | Q58: 0 | R58: 4.036309935 | S58: 0.1629179789 | T58: 0.5 | U58: 0.6716721768 | V58: 0.961976035 | W58: 0.000925397892 | X58: 0.000925397892 | Y58: 1.754056235 | Z58: 0.003076713274 | AA58: 0.003076713274 | AB58: 2.02908652 | AC58: 0.09881261054 | AD58: 0.225792 | AE58: 0.01152 | AF58: 0 | AG58: 0.3396485746 | AH58: 3.489212775 | AI58: 0.2191429042 | AJ58: 0.0351232 | AK58: 0.2602545629 | AL58: 0.0351232 | AM58: 0.28224 | AN58: 0.08145898946 | AO58: 0.0001056 | AP58: =CHOOSE(Ext_VCC, (Qg_Q1+Qg_Q2)*Fsw*'Design Regulator'!$G$102, (Qg_Q1+Qg_Q2)*Fsw*Vout, (Qg_Q1+Qg_Q2)*Fsw*Vin) -> 0.03408 | AQ58: 0.1223389091 | AR58: 0.1136 | AS58: 0.0341856 | AT58: 1.708585215 | AU58: 0.9514519375 | AV58: 47.04 | AW58: 0.964951081 | AX58: 7.888904619 | AY58: 5.300906444 | BA58: 96.4951081 | BB58: 0.6716721768 | BC58: 0.8821431375 | BD58: 0.5259269746 | BE58: 0.3533937629 | BF58: 0.08145898946 | BG58: 0.9163287375 | BH58: 17.96004326
A59: QrrSky | B59: =QrrSky_Q2*1000000000 -> 0 | C59: nC | D59: Diode Reverse Recovery Charge | G59: 50 | H59: 48 | I59: 1 | J59: 4 | K59: 4 | L59: 1.111111111 | M59: 0.2527710643 | N59: 3.332860827 | O59: 5.666430413 | P59: 2.333569587 | Q59: 0 | R59: 4.114081117 | S59: 0.1692566344 | T59: 0.5 | U59: 0.6784431143 | V59: 0.9621140477 | W59: 0.0009256634408 | X59: 0.0009256634408 | Y59: 1.787982935 | Z59: 0.003196882977 | AA59: 0.003196882977 | AB59: 2.068409525 | AC59: 0.1026796311 | AD59: 0.2304 | AE59: 0.01152 | AF59: 0 | AG59: 0.3483553762 | AH59: 3.556310656 | AI59: 0.2276522186 | AJ59: 0.03584 | AK59: 0.2699448405 | AL59: 0.03584 | AM59: 0.288 | AN59: 0.0846283172 | AO59: 0.0001056 | AP59: =CHOOSE(Ext_VCC, (Qg_Q1+Qg_Q2)*Fsw*'Design Regulator'!$G$102, (Qg_Q1+Qg_Q2)*Fsw*Vout, (Qg_Q1+Qg_Q2)*Fsw*Vin) -> 0.03408 | AQ59: 0.1223389091 | AR59: 0.1136 | AS59: 0.0341856 | AT59: 1.743519795 | AU59: 0.9763258168 | AV59: 48 | AW59: 0.9649498105 | AX59: 8.076530643 | AY59: 5.474772608 | BA59: 96.49498105 | BB59: 0.6784431143 | BC59: 0.9063002168 | BD59: 0.5384353762 | BE59: 0.3649848405 | BF59: 0.0846283172 | BG59: 0.9404858168 | BH59: 18.43352201
A60: Ireverse | B60: =Ireverse -> 0 | C60: mA | D60: Reverse Leakage Current | G60: 51 | H60: 48 | I60: 1 | J60: 4.08 | K60: 4.08 | L60: 1.133333333 | M60: 0.2528264903 | N60: 3.333338808 | O60: 5.746669404 | P60: 2.413330596 | Q60: 0 | R60: 4.191936184 | S60: 0.1757232897 | T60: 0.5 | U60: 0.6853579581 | V60: 0.9622520291 | W60: 0.0009259289675 | X60: 0.0009259289675 | Y60: 1.821950961 | Z60: 0.003319505304 | AA60: 0.003319505304 | AB60: 2.107783257 | AC60: 0.1066260062 | AD60: 0.235008 | AE60: 0.01152 | AF60: 0 | AG60: 0.3571525904 | AH60: 3.623476053 | AI60: 0.2363324168 | AJ60: 0.0365568 | AK60: 0.279833252 | AL60: 0.0365568 | AM60: 0.29376 | AN60: 0.08786164484 | AO60: 0.0001056 | AP60: =CHOOSE(Ext_VCC, (Qg_Q1+Qg_Q2)*Fsw*'Design Regulator'!$G$102, (Qg_Q1+Qg_Q2)*Fsw*Vout, (Qg_Q1+Qg_Q2)*Fsw*Vin) -> 0.03408 | AQ60: 0.1223389091 | AR60: 0.1136 | AS60: 0.0341856 | AT60: 1.77895328 | AU60: 1.001488242 | AV60: 48.96 | AW60: 0.9649391017 | AX60: 8.265512856 | AY60: 5.65161078 | BA60: 96.49391017 | BB60: 0.6853579581 | BC60: 0.9307458424 | BD60: 0.5510341904 | BE60: 0.376774052 | BF60: 0.08786164484 | BG60: 0.9649314424 | BH60: 18.91265627
A61: Controller | B61: Input Value | C61: Units | D61: Std Units | G61: 52 | H61: 48 | I61: 1 | J61: 4.16 | K61: 4.16 | L61: 1.155555556 | M61: 0.2528819164 | N61: 3.333816681 | O61: 5.826908341 | P61: 2.493091659 | Q61: 0 | R61: 4.269870545 | S61: 0.1823179447 | T61: 0.5 | U61: 0.6924171505 | V61: 0.9623899792 | W61: 0.0009261944721 | X61: 0.0009261944721 | Y61: 1.855958322 | Z61: 0.003444581294 | AA61: 0.003444581294 | AB61: 2.147205422 | AC61: 0.110651787 | AD61: 0.239616 | AE61: 0.01152 | AF61: 0 | AG61: 0.366040607 | AH61: 3.690704993 | AI61: 0.2451834602 | AJ61: 0.0372736 | AK61: 0.2899208592 | AL61: 0.0372736 | AM61: 0.29952 | AN61: 0.09115897236 | AO61: 0.0001056 | AP61: =CHOOSE(Ext_VCC, (Qg_Q1+Qg_Q2)*Fsw*'Design Regulator'!$G$102, (Qg_Q1+Qg_Q2)*Fsw*Vout, (Qg_Q1+Qg_Q2)*Fsw*Vin) -> 0.03408 | AQ61: 0.1223389091 | AR61: 0.1136 | AS61: 0.0341856 | AT61: 1.814887565 | AU61: 1.026940666 | AV61: 49.92 | AW61: 0.9649194644 | AX61: 8.455857105 | AY61: 5.831436888 | BA61: 96.49194644 | BB61: 0.6924171505 | BC61: 0.9554814662 | BD61: 0.563723807 | BE61: 0.3887624592 | BF61: 0.09115897236 | BG61: 0.9896670662 | BH61: 19.3974745
A62: θJA | B62: 30 | C62: °C/W | D62: Junction to Ambient Resistance | G62: 53 | H62: 48 | I62: 1 | J62: 4.24 | K62: 4.24 | L62: 1.177777778 | M62: 0.2529373428 | N62: 3.334294446 | O62: 5.907147223 | P62: 2.572852777 | Q62: 0 | R62: 4.347879938 | S62: 0.1890405995 | T62: 0.5 | U62: 0.6996211436 | V62: 0.962527898 | W62: 0.0009264599544 | X62: 0.0009264599544 | Y62: 1.890003172 | Z62: 0.00357211199 | AA62: 0.00357211199 | AB62: 2.186673888 | AC62: 0.1147570246 | AD62: 0.244224 | AE62: 0.01152 | AF62: 0 | AG62: 0.3750198213 | AH62: 3.757993781 | AI62: 0.2542053107 | AJ62: 0.0379904 | AK62: 0.3002087499 | AL62: 0.0379904 | AM62: 0.30528 | AN62: 0.09452029977 | AO62: 0.0001056 | AP62: =CHOOSE(Ext_VCC, (Qg_Q1+Qg_Q2)*Fsw*'Design Regulator'!$G$102, (Qg_Q1+Qg_Q2)*Fsw*Vout, (Qg_Q1+Qg_Q2)*Fsw*Vin) -> 0.03408 | AQ62: 0.1223389091 | AR62: 0.1136 | AS62: 0.0341856 | AT62: 1.851324586 | AU62: 1.052684571 | AV62: 50.88 | AW62: 0.9648913696 | AX62: 8.64756932 | AY62: 6.014267248 | BA62: 96.48913696 | BB62: 0.6996211436 | BC62: 0.9805085712 | BD62: 0.5765046213 | BE62: 0.4009511499 | BF62: 0.09452029977 | BG62: 1.014694171 | BH62: 19.88800575
A63: Theta Ja | B63: 19.6 | C63: °C/W | D63: Junction to Ambient Resistance | G63: 54 | H63: 48 | I63: 1 | J63: 4.32 | K63: 4.32 | L63: 1.2 | M63: 0.2529927693 | N63: 3.334772102 | O63: 5.987386051 | P63: 2.652613949 | Q63: 0 | R63: 4.425960395 | S63: 0.1958912541 | T63: 0.5 | U63: 0.7069703996 | V63: 0.9626657855 | W63: 0.0009267254146 | X63: 0.0009267254146 | Y63: 1.924083789 | Z63: 0.003702098429 | AA63: 0.003702098429 | AB63: 2.22618667 | AC63: 0.1189417701 | AD63: 0.248832 | AE63: 0.01152 | AF63: 0 | AG63: 0.3840906342 | AH63: 3.825338982 | AI63: 0.2633979299 | AJ63: 0.0387072 | AK63: 0.310698038 | AL63: 0.0387072 | AM63: 0.31104 | AN63: 0.09794562707 | AO63: 0.0001056 | AP63: =CHOOSE(Ext_VCC, (Qg_Q1+Qg_Q2)*Fsw*'Design Regulator'!$G$102, (Qg_Q1+Qg_Q2)*Fsw*Vout, (Qg_Q1+Qg_Q2)*Fsw*Vin) -> 0.03408 | AQ63: 0.1223389091 | AR63: 0.1136 | AS63: 0.0341856 | AT63: 1.888266323 | AU63: 1.078721472 | AV63: 51.84 | AW63: 0.9648552531 | AX63: 8.840655513 | AY63: 6.20011857 | BA63: 96.48552531 | BB63: 0.7069703996 | BC63: 1.005828672 | BD63: 0.5893770342 | BE63: 0.413341238 | BF63: 0.09794562707 | BG63: 1.040014272 | BH63: 20.38427973
G64: 55 | H64: 48 | I64: 1 | J64: 4.4 | K64: 4.4 | L64: 1.222222222 | M64: 0.2530481961 | N64: 3.33524965 | O64: 6.067624825 | P64: 2.732375175 | Q64: 0 | R64: 4.504108219 | S64: 0.2028699085 | T64: 0.5 | U64: 0.7144653908 | V64: 0.9628036417 | W64: 0.0009269908525 | X64: 0.0009269908525 | Y64: 1.958198573 | Z64: 0.003834541651 | AA64: 0.003834541651 | AB64: 2.265741918 | AC64: 0.1232060745 | AD64: 0.25344 | AE64: 0.01152 | AF64: 0 | AG64: 0.393253452 | AH64: 3.892737393 | AI64: 0.2727612794 | AJ64: 0.039424 | AK64: 0.321389864 | AL64: 0.039424 | AM64: 0.3168 | AN64: 0.1014349543 | AO64: 0.0001056 | AP64: =CHOOSE(Ext_VCC, (Qg_Q1+Qg_Q2)*Fsw*'Design Regulator'!$G$102, (Qg_Q1+Qg_Q2)*Fsw*Vout, (Qg_Q1+Qg_Q2)*Fsw*Vin) -> 0.03408 | AQ64: 0.1223389091 | AR64: 0.1136 | AS64: 0.0341856 | AT64: 1.925714794 | AU64: 1.105052916 | AV64: 52.8 | AW64: 0.9648115187 | AX64: 9.03512178 | AY64: 6.389007961 | BA64: 96.48115187 | BB64: 0.7144653908 | BC64: 1.031443316 | BD64: 0.602341452 | BE64: 0.425933864 | BF64: 0.1014349543 | BG64: 1.065628916 | BH64: 20.88632675
G65: 56 | H65: 48 | I65: 1 | J65: 4.48 | K65: 4.48 | L65: 1.244444444 | M65: 0.253103623 | N65: 3.33572709 | O65: 6.147863545 | P65: 2.812136455 | Q65: 0 | R65: 4.582319966 | S65: 0.2099765627 | T65: 0.5 | U65: 0.7221065996 | V65: 0.9629414666 | W65: 0.0009272562681 | X65: 0.0009272562681 | Y65: 1.992346028 | Z65: 0.003969442695 | AA65: 0.003969442695 | AB65: 2.305337909 | AC65: 0.127549989 | AD65: 0.258048 | AE65: 0.01152 | AF65: 0 | AG65: 0.4025086868 | AH65: 3.96018603 | AI65: 0.2822953211 | AJ65: 0.0401408 | AK65: 0.3322853954 | AL65: 0.0401408 | AM65: 0.32256 | AN65: 0.1049882813 | AO65: 0.0001056 | AP65: =CHOOSE(Ext_VCC, (Qg_Q1+Qg_Q2)*Fsw*'Design Regulator'!$G$102, (Qg_Q1+Qg_Q2)*Fsw*Vout, (Qg_Q1+Qg_Q2)*Fsw*Vin) -> 0.03408 | AQ65: 0.1223389091 | AR65: 0.1136 | AS65: 0.0341856 | AT65: 1.963672062 | AU65: 1.131680482 | AV65: 53.76 | AW65: 0.9647605409 | AX65: 9.230974302 | AY65: 6.58095293 | BA65: 96.47605409 | BB65: 0.7221065996 | BC65: 1.057354082 | BD65: 0.6153982868 | BE65: 0.4387301954 | BF65: 0.1049882813 | BG65: 1.091539682 | BH65: 21.39417777
A66: Outputs | G66: 57 | H66: 48 | I66: 1 | J66: 4.56 | K66: 4.56 | L66: 1.266666667 | M66: 0.2531590501 | N66: 3.336204421 | O66: 6.22810221 | P66: 2.89189779 | Q66: 0 | R66: 4.660592415 | S66: 0.2172112166 | T66: 0.5 | U66: 0.7298945187 | V66: 0.9630792602 | W66: 0.0009275216615 | X66: 0.0009275216615 | Y66: 2.026524759 | Z66: 0.004106802599 | AA66: 0.004106802599 | AB66: 2.344973033 | AC66: 0.1319735647 | AD66: 0.262656 | AE66: 0.01152 | AF66: 0 | AG66: 0.4118567561 | AH66: 4.027682104 | AI66: 0.2920000164 | AJ66: 0.0408576 | AK66: 0.3433858264 | AL66: 0.0408576 | AM66: 0.32832 | AN66: 0.1086056083 | AO66: 0.0001056 | AP66: =CHOOSE(Ext_VCC, (Qg_Q1+Qg_Q2)*Fsw*'Design Regulator'!$G$102, (Qg_Q1+Qg_Q2)*Fsw*Vout, (Qg_Q1+Qg_Q2)*Fsw*Vin) -> 0.03408 | AQ66: 0.1223389091 | AR66: 0.1136 | AS66: 0.0341856 | AT66: 2.002140234 | AU66: 1.158605783 | AV66: 54.72 | AW66: 0.9647026677 | AX66: 9.428219341 | AY66: 6.775971397 | BA66: 96.47026677 | BB66: 0.7298945187 | BC66: 1.083562583 | BD66: 0.6285479561 | BE66: 0.4517314264 | BF66: 0.1086056083 | BG66: 1.117748183 | BH66: 21.90786438
A67: Design | B67: Value | C67: Units | G67: 58 | H67: 48 | I67: 1 | J67: 4.64 | K67: 4.64 | L67: 1.288888889 | M67: 0.2532144774 | N67: 3.336681644 | O67: 6.308340822 | P67: 2.971659178 | Q67: 0 | R67: 4.73892256 | S67: 0.2245738703 | T67: 0.5 | U67: 0.7378296512 | V67: 0.9632170225 | W67: 0.0009277870325 | X67: 0.0009277870325 | Y67: 2.060733462 | Z67: 0.004246622401 | AA67: 0.004246622401 | AB67: 2.384645785 | AC67: 0.1364768525 | AD67: 0.267264 | AE67: 0.01152 | AF67: 0 | AG67: 0.4212980833 | AH67: 4.095223011 | AI67: 0.3018753272 | AJ67: 0.0415744 | AK67: 0.3546923794 | AL67: 0.0415744 | AM67: 0.33408 | AN67: 0.1122869352 | AO67: 0.0001056 | AP67: =CHOOSE(Ext_VCC, (Qg_Q1+Qg_Q2)*Fsw*'Design Regulator'!$G$102, (Qg_Q1+Qg_Q2)*Fsw*Vout, (Qg_Q1+Qg_Q2)*Fsw*Vin) -> 0.03408 | AQ67: 0.1223389091 | AR67: 0.1136 | AS67: 0.0341856 | AT67: 2.041121458 | AU67: 1.185830463 | AV67: 55.68 | AW67: 0.9646382224 | AX67: 9.62686325 | AY67: 6.974081691 | BA67: 96.46382224 | BB67: 0.7378296512 | BC67: 1.110070463 | BD67: 0.6417908833 | BE67: 0.4649387794 | BF67: 0.1122869352 | BG67: 1.144256063 | BH67: 22.42741883
A68: Dmax | B68: =D1_Vinmin -> 0.8 | C68: index | G68: 59 | H68: 48 | I68: 1 | J68: 4.72 | K68: 4.72 | L68: 1.311111111 | M68: 0.2532699049 | N68: 3.337158758 | O68: 6.388579379 | P68: 3.051420621 | Q68: 0 | R68: 4.817307586 | S68: 0.2320645238 | T68: 0.5 | U68: 0.7459125103 | V68: 0.9633547536 | W68: 0.0009280523812 | X68: 0.0009280523812 | Y68: 2.094970916 | Z68: 0.004388903138 | AA68: 0.004388903138 | AB68: 2.424354757 | AC68: 0.1410599037 | AD68: 0.271872 | AE68: 0.01152 | AF68: 0 | AG68: 0.4308330976 | AH68: 4.162806312 | AI68: 0.3119212151 | AJ68: 0.0422912 | AK68: 0.3662063042 | AL68: 0.0422912 | AM68: 0.33984 | AN68: 0.1160322619 | AO68: 0.0001056 | AP68: =CHOOSE(Ext_VCC, (Qg_Q1+Qg_Q2)*Fsw*'Design Regulator'!$G$102, (Qg_Q1+Qg_Q2)*Fsw*Vout, (Qg_Q1+Qg_Q2)*Fsw*Vin) -> 0.03408 | AQ68: 0.1223389091 | AR68: 0.1136 | AS68: 0.0341856 | AT68: 2.08061793 | AU68: 1.213356202 | AV68: 56.64 | AW68: 0.9645675062 | AX68: 9.826912464 | AY68: 7.175302563 | BA68: 96.45675062 | BB68: 0.7459125103 | BC68: 1.136879402 | BD68: 0.6551274976 | BE68: 0.4783535042 | BF68: 0.1160322619 | BG68: 1.171065002 | BH68: 22.95287404
A69: Dprime | B69: =1-B68 -> 0.2 | C69: index | G69: 60 | H69: 48 | I69: 1 | J69: 4.8 | K69: 4.8 | L69: 1.333333333 | M69: 0.2533253325 | N69: 3.337635764 | O69: 6.468817882 | P69: 3.131182118 | Q69: 0 | R69: 4.895744857 | S69: 0.2396831771 | T69: 0.5 | U69: 0.7541436202 | V69: 0.9634924533 | W69: 0.0009283177075 | X69: 0.0009283177075 | Y69: 2.129235977 | Z69: 0.004533645846 | AA69: 0.004533645846 | AB69: 2.464098629 | AC69: 0.1457227693 | AD69: 0.27648 | AE69: 0.01152 | AF69: 0 | AG69: 0.4404622338 | AH69: 4.230429725 | AI69: 0.3221376418 | AJ69: 0.043008 | AK69: 0.3779288792 | AL69: 0.043008 | AM69: 0.3456 | AN69: 0.1198415885 | AO69: 0.0001056 | AP69: =CHOOSE(Ext_VCC, (Qg_Q1+Qg_Q2)*Fsw*'Design Regulator'!$G$102, (Qg_Q1+Qg_Q2)*Fsw*Vout, (Qg_Q1+Qg_Q2)*Fsw*Vin) -> 0.03408 | AQ69: 0.1223389091 | AR69: 0.1136 | AS69: 0.0341856 | AT69: 2.120631885 | AU69: 1.241184713 | AV69: 57.6 | AW69: 0.9644907996 | AX69: 10.02837351 | AY69: 7.379653187 | BA69: 96.44907996 | BB69: 0.7541436202 | BC69: 1.163991113 | BD69: 0.6685582338 | BE69: 0.4919768792 | BF69: 0.1198415885 | BG69: 1.198176713 | BH69: 23.48426357
A70: Ipp | B70: =Iripple_Vinnom -> 3.339129157 | C70: A | G70: 61 | H70: 48 | I70: 1 | J70: 4.88 | K70: 4.88 | L70: 1.355555556 | M70: 0.2533807604 | N70: 3.338112661 | O70: 6.54905633 | P70: 3.21094367 | Q70: 0 | R70: 4.974231902 | S70: 0.2474298301 | T70: 0.5 | U70: 0.7625235152 | V70: 0.9636301217 | W70: 0.0009285830114 | X70: 0.0009285830114 | Y70: 2.163527574 | Z70: 0.004680851562 | AA70: 0.004680851562 | AB70: 2.503876165 | AC70: 0.1504655004 | AD70: 0.281088 | AE70: 0.01152 | AF70: 0 | AG70: 0.4501859328 | AH70: 4.298091107 | AI70: 0.3325245689 | AJ70: 0.0437248 | AK70: 0.3898614112 | AL70: 0.0437248 | AM70: 0.35136 | AN70: 0.1237149151 | AO70: 0.0001056 | AP70: =CHOOSE(Ext_VCC, (Qg_Q1+Qg_Q2)*Fsw*'Design Regulator'!$G$102, (Qg_Q1+Qg_Q2)*Fsw*Vout, (Qg_Q1+Qg_Q2)*Fsw*Vin) -> 0.03408 | AQ70: 0.1223389091 | AR70: 0.1136 | AS70: 0.0341856 | AT70: 2.161165609 | AU70: 1.269317744 | AV70: 58.56 | AW70: 0.9644083642 | AX70: 10.23125299 | AY70: 7.587153168 | BA70: 96.44083642 | BB70: 0.7625235152 | BC70: 1.191407344 | BD70: 0.6820835328 | BE70: 0.5058102112 | BF70: 0.1237149151 | BG70: 1.225592944 | BH70: 24.0216217
A71: Top FET | B71: Value | C71: Units | G71: 62 | H71: 48 | I71: 1 | J71: 4.96 | K71: 4.96 | L71: 1.377777778 | M71: 0.2534361884 | N71: 3.33858945 | O71: 6.629294725 | P71: 3.290705275 | Q71: 0 | R71: 5.0527664 | S71: 0.2553044829 | T71: 0.5 | U71: 0.7710527406 | V71: 0.9637677588 | W71: 0.0009288482929 | X71: 0.0009288482929 | Y71: 2.197844699 | Z71: 0.004830521322 | AA71: 0.004830521322 | AB71: 2.543686204 | AC71: 0.1552881481 | AD71: 0.285696 | AE71: 0.01152 | AF71: 0 | AG71: 0.4600046413 | AH71: 4.36578845 | AI71: 0.3430819582 | AJ71: 0.0444416 | AK71: 0.4020052363 | AL71: 0.0444416 | AM71: 0.35712 | AN71: 0.1276522415 | AO71: 0.0001056 | AP71: =CHOOSE(Ext_VCC, (Qg_Q1+Qg_Q2)*Fsw*'Design Regulator'!$G$102, (Qg_Q1+Qg_Q2)*Fsw*Vout, (Qg_Q1+Qg_Q2)*Fsw*Vin) -> 0.03408 | AQ71: 0.1223389091 | AR71: 0.1136 | AS71: 0.0341856 | AT71: 2.202221429 | AU71: 1.297757078 | AV71: 59.52 | AW71: 0.9643204444 | AX71: 10.43555762 | AY71: 7.797822544 | BA71: 96.43204444 | BB71: 0.7710527406 | BC71: 1.219129878 | BD71: 0.6957038413 | BE71: 0.5198548363 | BF71: 0.1276522415 | BG71: 1.253315478 | BH71: 24.56498336
A72: Tr | B72: =(Qgd_Q1+Qgs_Q1/2)*(RdsonDRT+Rgate1)/(VCC-Vsp_Q1)*1000000000 -> 1.121182323 | C72: ns | D72: Turn on of MOSFET -> Rise time of current | G72: 63 | H72: 48 | I72: 1 | J72: 5.04 | K72: 5.04 | L72: 1.4 | M72: 0.2534916166 | N72: 3.33906613 | O72: 6.709533065 | P72: 3.370466935 | Q72: 0 | R72: 5.131346173 | S72: 0.2633071355 | T72: 0.5 | U72: 0.7797318524 | V72: 0.9639053646 | W72: 0.000929113552 | X72: 0.000929113552 | Y72: 2.232186408 | Z72: 0.004982656162 | AA72: 0.004982656162 | AB72: 2.583527655 | AC72: 0.1601907635 | AD72: 0.290304 | AE72: 0.01152 | AF72: 0 | AG72: 0.4699188121 | AH72: 4.433519867 | AI72: 0.3538097713 | AJ72: 0.0451584 | AK72: 0.41436172 | AL72: 0.0451584 | AM72: 0.36288 | AN72: 0.1316535678 | AO72: 0.0001056 | AP72: =CHOOSE(Ext_VCC, (Qg_Q1+Qg_Q2)*Fsw*'Design Regulator'!$G$102, (Qg_Q1+Qg_Q2)*Fsw*Vout, (Qg_Q1+Qg_Q2)*Fsw*Vin) -> 0.03408 | AQ72: 0.1223389091 | AR72: 0.1136 | AS72: 0.0341856 | AT72: 2.243801722 | AU72: 1.326504532 | AV72: 60.48 | AW72: 0.9642272684 | AX72: 10.64129418 | AY72: 8.0116818 | BA72: 96.42272684 | BB72: 0.7797318524 | BC72: 1.247160532 | BD72: 0.7094196121 | BE72: 0.53411212 | BF72: 0.1316535678 | BG72: 1.281346132 | BH72: 25.11438419
A73: Tf | B73: =(Qgd_Q1+Qgs_Q1/2)*(RdsonDRT2+Rgate1)/(Vsp_Q1)*1000000000 -> 2.470360825 | C73: ns | D73: Turn off of MOSFET -> Fall time of current | G73: 64 | H73: =Vin -> 48 | I73: =MODE -> 1 | J73: 5.12 | K73: =Iout*G73/100/Number_of_Phases -> 5.12 | L73: =Vout*K73/(Vin*Efficiency) -> 1.422222222 | M73: =(Vout+(Rdson2+Rs+Rdcr)*K73)/(Vin+(Rs+Rdson2-Rdson1)*K73) -> 0.253547045 | N73: =(Vin-(Rdson1+Rdcr)*K73-Vout)*M73/(Fsw*Lf) -> 3.339542703 | O73: 6.789771351 | P73: 3.450228649 | Q73: =IF(MIN(Vin, -P73/(Coss_Q1+Coss_Q2)*0.00000002)<0, 0, MIN(Vin, -P73/(Coss_Q1+Coss_Q2)*0.00000002)) -> 0 | R73: 5.209969173 | S73: =R73^2*Rdcr -> 0.2714377879 | T73: =Core_Loss_Ch1 -> 0.5 | U73: =(T73+S73*(1+Ltc*(Ta-25)))/(1-S73*Ltc*ThetaCa) -> 0.7885614172 | V73: 0.9640429392 | W73: 0.0009293787885 | X73: 0.0009293787885 | Y73: 2.266551812 | Z73: 0.005137257115 | AA73: 0.005137257115 | AB73: 2.623399493 | AC73: =Rdson1*AB73^2 -> 0.1651733977 | AD73: =(Vin*K73/2)*Fsw*(Tr_buck+Tf_buck) -> 0.294912 | AE73: =(0.5*Coss_Q1*(Vin-Q73)^2-0.5*Coss_Q2*(Vin-Q73)^2+(Qoss_Q2*(Vin-Q73)/Vin)*Vin)*Fsw -> 0.01152 | AF73: =IF(K73>N73/2,0,ABS(K73-N73/2)*Vsd_Q1*Deadtime*Fsw) -> 0 | AG73: =(AF73+AE73+AD73+AC73*(1+RdsonTopTc*Ta-RdsonTopTc*25))/(1-AC73*RdsonTopTc*ThetaJA_Q1) -> 0.4799289039 | AH73: =SQRT((1-M73))*SQRT(K73^2+(N73^2)/12) -> 4.501283582 | AI73: =Rdson2*AH73^2 -> 0.3647079699 | AJ73: =IF(K73<N73/2,Deadtime*Fsw*IF(VfdSky_Q2>0,0,Vsd_Q2)*(K73+N73/2),2*Deadtime*Fsw*IF(VfdSky_Q2>0,0,Vsd_Q2)*K73) -> 0.0458752 | AK73: =(AJ73+AI73*(1+RdsonBotTc*Ta-RdsonBotTc*25))/(1-AI73*RdsonBotTc*ThetaJA_Q2) -> 0.4269322576 | AL73: =2*Deadtime*Fsw*IF(VfdSky_Q2>0,VfdSky_Q2,Vsd_Q2)*K73 -> 0.0458752 | AM73: =IF(QrrSky_Q2>0,QrrSky_Q2,Qrr_Q2*K73/(Iout/Number_of_Phases))*Fsw*Vin -> 0.36864 | AN73: =Rs*R73^2 -> 0.1357188939 | AO73: =Iq*Vin -> 0.0001056 | AP73: =CHOOSE(Ext_VCC, (Qg_Q1+Qg_Q2)*Fsw*'Design Regulator'!$G$102, (Qg_Q1+Qg_Q2)*Fsw*Vout, (Qg_Q1+Qg_Q2)*Fsw*Vin) -> 0.03408 | AQ73: =(Vin-VCC)*Fsw*(Qg_Q1+Qg_Q2)+(RdsonDRT+RdsonDRT2)*Fsw*Qg_Q1*VCC/(RdsonDRT+2*Rgate1+RdsonDRT2)+(RdsonDRB+RdsonDRB2)*Fsw*Qg_Q2*VCC/(RdsonDRB+2*Rgate2+RdsonDRB2) -> 0.1223389091 | AR73: =(Qg_Q1+Qg_Q2)*Fsw*(Vin-VCC) -> 0.1136 | AS73: =SUM(AO73:AP73) -> 0.0341856 | AT73: =SUM(U73,X73,AA73,AG73,AK73,AL73,AM73,AS73,AN73) -> 2.285908909 | AU73: =SUM(AG73,AK73,AL73,AM73,AS73) -> 1.355561961 | AV73: =Vout*K73 -> 61.44 | AW73: 0.9641290497 | AX73: =ThetaJA_Q1*BD73 -> 10.84846956 | AY73: =ThetaJA_Q2*BE73 -> 8.228751864 | BA73: 96.41290497 | BB73: =U73 -> 0.7885614172 | BC73: =AG73+AK73+AM73 -> 1.275501161 | BD73: =AG73+AM73*0.66 -> 0.7232313039 | BE73: =AK73+AM73*0.33 -> 0.5485834576 | BF73: =AN73 -> 0.1357188939 | BG73: 1.309686761 | BH73: 25.66986053
A74: Part Power | B74: Value | C74: Units | G74: 65 | H74: 48 | I74: 1 | J74: =Iout*G74/100 -> 5.2 | K74: 5.2 | L74: 1.444444444 | M74: 0.2536024736 | N74: 3.340019166 | O74: =K74+N74/2 -> 6.870009583 | P74: =K74-N74/2 -> 3.529990417 | Q74: 0 | R74: =SQRT(K74^2+(N74^2)/12) -> 5.288633472 | S74: 0.27969644 | T74: 0.5 | U74: 0.797542013 | V74: =N74/SQRT(12) -> 0.9641804824 | W74: =RCoutEsr*V74^2 -> 0.0009296440026 | X74: =W74 -> 0.0009296440026 | Y74: =SQRT(M74*(1-M74))*SQRT(K74^2+(N74^2)/12) -> 2.300940073 | Z74: =RCinEsr*Y74^2 -> 0.005294325218 | AA74: =Z74 -> 0.005294325218 | AB74: =SQRT(M74)*SQRT(K74^2+(N74^2)/12) -> 2.663300754 | AC74: 0.1702361017 | AD74: 0.29952 | AE74: 0.01152 | AF74: 0 | AG74: 0.4900353816 | AH74: 4.569077926 | AI74: 0.3757765158 | AJ74: 0.046592 | AK74: 0.4397182749 | AL74: 0.046592 | AM74: 0.3744 | AN74: 0.13984822 | AO74: 0.0001056 | AP74: =CHOOSE(Ext_VCC, (Qg_Q1+Qg_Q2)*Fsw*'Design Regulator'!$G$102, (Qg_Q1+Qg_Q2)*Fsw*Vout, (Qg_Q1+Qg_Q2)*Fsw*Vin) -> 0.03408 | AQ74: 0.1223389091 | AR74: 0.1136 | AS74: 0.0341856 | AT74: 2.328545459 | AU74: 1.384931256 | AV74: 62.4 | AW74: =AV74/(AV74+AT74) -> 0.9640259882 | AX74: 11.05709072 | AY74: 8.449054123 | BA74: =AW74*100 -> 96.40259882 | BB74: 0.797542013 | BC74: 1.304153656 | BD74: 0.7371393816 | BE74: 0.5632702749 | BF74: 0.13984822 | BG74: =BC74+AS74 -> 1.338339256 | BH74: 26.23144943
A75: Power Dis | B75: =AS9 -> 0.0341856 | C75: W | G75: 66 | H75: 48 | I75: 1 | J75: 5.28 | K75: 5.28 | L75: 1.466666667 | M75: 0.2536579024 | N75: 3.340495522 | O75: 6.950247761 | P75: 3.609752239 | Q75: 0 | R75: 5.367337254 | S75: 0.2880830919 | T75: 0.5 | U75: 0.8066742284 | V75: 0.9643179943 | W75: 0.0009299091941 | X75: 0.0009299091941 | Y75: 2.335350403 | Z75: 0.005453861503 | AA75: 0.005453861503 | AB75: 2.703230527 | AC75: 0.1753789267 | AD75: 0.304128 | AE75: 0.01152 | AF75: 0 | AG75: 0.5002387163 | AH75: 4.636901327 | AI75: 0.3870153704 | AJ75: 0.0473088 | AK75: 0.4527212282 | AL75: 0.0473088 | AM75: 0.38016 | AN75: 0.144041546 | AO75: 0.0001056 | AP75: =CHOOSE(Ext_VCC, (Qg_Q1+Qg_Q2)*Fsw*'Design Regulator'!$G$102, (Qg_Q1+Qg_Q2)*Fsw*Vout, (Qg_Q1+Qg_Q2)*Fsw*Vin) -> 0.03408 | AQ75: 0.1223389091 | AR75: 0.1136 | AS75: 0.0341856 | AT75: 2.37171389 | AU75: 1.414614344 | AV75: 63.36 | AW75: 0.963918271 | AX75: 11.26716474 | AY75: 8.672610423 | BA75: 96.3918271 | BB75: 0.8066742284 | BC75: 1.333119944 | BD75: 0.7511443163 | BE75: 0.5781740282 | BF75: 0.144041546 | BG75: 1.367305544 | BH75: =BG75*$B$63 -> 26.79918867
A76: Temp rise | B76: =B75*B62 -> 1.025568 | C76: °C | G76: 67 | H76: 48 | I76: 1 | J76: 5.36 | K76: 5.36 | L76: 1.488888889 | M76: 0.2537133313 | N76: 3.340971768 | O76: 7.030485884 | P76: 3.689514116 | Q76: 0 | R76: 5.446078806 | S76: 0.2965977436 | T76: 0.5 | U76: 0.8159586635 | V76: 0.9644554749 | W76: 0.0009301743631 | X76: 0.0009301743631 | Y76: 2.369782058 | Z76: 0.005615867004 | AA76: 0.005615867004 | AB76: 2.743187956 | AC76: 0.1806019238 | AD76: 0.308736 | AE76: 0.01152 | AF76: 0 | AG76: 0.5105393853 | AH76: 4.7047523 | AI76: 0.3984244957 | AJ76: 0.0480256 | AK76: 0.4659426051 | AL76: 0.0480256 | AM76: 0.38592 | AN76: 0.1482988718 | AO76: 0.0001056 | AP76: =CHOOSE(Ext_VCC, (Qg_Q1+Qg_Q2)*Fsw*'Design Regulator'!$G$102, (Qg_Q1+Qg_Q2)*Fsw*Vout, (Qg_Q1+Qg_Q2)*Fsw*Vin) -> 0.03408 | AQ76: 0.1223389091 | AR76: 0.1136 | AS76: 0.0341856 | AT76: 2.415416767 | AU76: 1.44461319 | AV76: 64.32 | AW76: 0.9638060735 | AX76: 11.47869878 | AY76: 8.899443077 | BA76: 96.38060735 | BB76: 0.8159586635 | BC76: 1.36240199 | BD76: 0.7652465853 | BE76: 0.5932962051 | BF76: 0.1482988718 | BG76: 1.39658759 | BH76: 27.37311677
A77: Current (switching) | B77: =(Qg_Q1+Qg_Q2)*Fsw+Iq -> 0.0028422 | C77: A | G77: 68 | H77: 48 | I77: 1 | J77: 5.44 | K77: 5.44 | L77: 1.511111111 | M77: 0.2537687605 | N77: 3.341447907 | O77: 7.110723953 | P77: 3.769276047 | Q77: 0 | R77: 5.524856515 | S77: 0.3052403951 | T77: 0.5 | U77: 0.8253959295 | V77: 0.9645929242 | W77: 0.0009304395095 | X77: 0.0009304395095 | Y77: 2.404234339 | Z77: 0.005780342755 | AA77: 0.005780342755 | AB77: 2.783172232 | AC77: 0.1859051441 | AD77: 0.313344 | AE77: 0.01152 | AF77: 0 | AG77: 0.5209378723 | AH77: 4.772629447 | AI77: 0.4100038531 | AJ77: 0.0487424 | AK77: 0.479383925 | AL77: 0.0487424 | AM77: 0.39168 | AN77: 0.1526201975 | AO77: 0.0001056 | AP77: =CHOOSE(Ext_VCC, (Qg_Q1+Qg_Q2)*Fsw*'Design Regulator'!$G$102, (Qg_Q1+Qg_Q2)*Fsw*Vout, (Qg_Q1+Qg_Q2)*Fsw*Vin) -> 0.03408 | AQ77: 0.1223389091 | AR77: 0.1136 | AS77: 0.0341856 | AT77: 2.459656707 | AU77: 1.474929797 | AV77: 65.28 | AW77: 0.9636895605 | AX77: 11.69170008 | AY77: 9.129574875 | BA77: 96.36895605 | BB77: 0.8253959295 | BC77: 1.392001797 | BD77: 0.7794466723 | BE77: 0.608638325 | BF77: 0.1526201975 | BG77: 1.426187397 | BH77: 27.95327299
A78: Qrr Current | B78: =Qrr_Q2*Fsw -> 0.012 | C78: A | G78: 69 | H78: 48 | I78: 1 | J78: 5.52 | K78: 5.52 | L78: 1.533333333 | M78: 0.2538241898 | N78: 3.341923937 | O78: 7.190961968 | P78: 3.849038032 | Q78: 0 | R78: 5.603668855 | S78: 0.3140110463 | T78: 0.5 | U78: 0.8349866488 | V78: 0.9647303423 | W78: 0.0009307046333 | X78: 0.0009307046333 | Y78: 2.438706581 | Z78: 0.005947289787 | AA78: 0.005947289787 | AB78: 2.823182591 | AC78: 0.1912886386 | AD78: 0.317952 | AE78: 0.01152 | AF78: 0 | AG78: 0.5314346671 | AH78: 4.840531447 | AI78: 0.4217534044 | AJ78: 0.0494592 | AK78: 0.4930467392 | AL78: 0.0494592 | AM78: 0.39744 | AN78: 0.1570055232 | AO78: 0.0001056 | AP78: =CHOOSE(Ext_VCC, (Qg_Q1+Qg_Q2)*Fsw*'Design Regulator'!$G$102, (Qg_Q1+Qg_Q2)*Fsw*Vout, (Qg_Q1+Qg_Q2)*Fsw*Vin) -> 0.03408 | AQ78: 0.1223389091 | AR78: 0.1136 | AS78: 0.0341856 | AT78: 2.504436373 | AU78: 1.505566206 | AV78: 66.24 | AW78: 0.9635688864 | AX78: 11.90617601 | AY78: 9.363029089 | BA78: 96.35688864 | BB78: 0.8349866488 | BC78: 1.421921406 | BD78: 0.7937450671 | BE78: 0.6242019392 | BF78: 0.1570055232 | BG78: 1.456107006 | BH78: 28.53969732
A79: Diode Current | B79: =Deadtime*Fsw*(Iripple_Vinnom/2)*(Vsd_Q2)/Vin -> 0.0001558260273 | G79: 70 | H79: 48 | I79: 1 | J79: 5.6 | K79: 5.6 | L79: 1.555555556 | M79: 0.2538796193 | N79: 3.342399858 | O79: 7.271199929 | P79: 3.928800071 | Q79: 0 | R79: 5.682514385 | S79: 0.3229096973 | T79: 0.5 | U79: 0.8447314556 | V79: 0.964867729 | W79: 0.0009309697345 | X79: 0.0009309697345 | Y79: 2.473198159 | Z79: 0.006116709134 | AA79: 0.006116709134 | AB79: 2.863218312 | AC79: 0.1967524585 | AD79: 0.32256 | AE79: 0.01152 | AF79: 0 | AG79: 0.5420302661 | AH79: 4.908457052 | AI79: 0.4336731114 | AJ79: 0.050176 | AK79: 0.5069326318 | AL79: 0.050176 | AM79: 0.4032 | AN79: 0.1614548487 | AO79: 0.0001056 | AP79: =CHOOSE(Ext_VCC, (Qg_Q1+Qg_Q2)*Fsw*'Design Regulator'!$G$102, (Qg_Q1+Qg_Q2)*Fsw*Vout, (Qg_Q1+Qg_Q2)*Fsw*Vin) -> 0.03408 | AQ79: 0.1223389091 | AR79: 0.1136 | AS79: 0.0341856 | AT79: 2.549758481 | AU79: 1.536524498 | AV79: 67.2 | AW79: 0.9634441963 | AX79: 12.12213399 | AY79: 9.599829477 | BA79: 96.34441963 | BB79: 0.8447314556 | BC79: 1.452162898 | BD79: 0.8081422661 | BE79: 0.6399886318 | BF79: 0.1614548487 | BG79: 1.486348498 | BH79: 29.13243056
A80: Total | B80: =SUM(B77:B79) -> 0.01499802603 | C80: A | G80: 71 | H80: 48 | I80: 1 | J80: 5.68 | K80: 5.68 | L80: 1.577777778 | M80: 0.253935049 | N80: 3.342875672 | O80: 7.351437836 | P80: 4.008562164 | Q80: 0 | R80: 5.761391743 | S80: 0.3319363481 | T80: 0.5 | U80: 0.8546309955 | V80: 0.9650050844 | W80: 0.000931234813 | X80: 0.000931234813 | Y80: 2.507708481 | Z80: 0.006288601826 | AA80: 0.006288601826 | AB80: 2.903278712 | AC80: 0.2022966548 | AD80: 0.327168 | AE80: 0.01152 | AF80: 0 | AG80: 0.5527251724 | AH80: 4.976405081 | AI80: 0.4457629356 | AJ80: 0.0508928 | AK80: 0.5210432199 | AL80: 0.0508928 | AM80: 0.40896 | AN80: 0.1659681741 | AO80: 0.0001056 | AP80: =CHOOSE(Ext_VCC, (Qg_Q1+Qg_Q2)*Fsw*'Design Regulator'!$G$102, (Qg_Q1+Qg_Q2)*Fsw*Vout, (Qg_Q1+Qg_Q2)*Fsw*Vin) -> 0.03408 | AQ80: 0.1223389091 | AR80: 0.1136 | AS80: 0.0341856 | AT80: 2.595625798 | AU80: 1.567806792 | AV80: 68.16 | AW80: 0.9633156266 | AX80: 12.33958159 | AY80: 9.840000298 | BA80: 96.33156266 | BB80: 0.8546309955 | BC80: 1.482728392 | BD80: 0.8226387724 | BE80: 0.6560000199 | BF80: 0.1659681741 | BG80: 1.516913992 | BH80: 29.73151425
G81: 72 | H81: 48 | I81: 1 | J81: 5.76 | K81: 5.76 | L81: 1.6 | M81: 0.2539904789 | N81: 3.343351376 | O81: 7.431675688 | P81: 4.088324312 | Q81: 0 | R81: 5.840299639 | S81: 0.3410909987 | T81: 0.5 | U81: 0.8646859256 | V81: 0.9651424085 | W81: 0.0009314998688 | X81: 0.0009314998688 | Y81: 2.542236987 | Z81: 0.006462968896 | AA81: 0.006462968896 | AB81: 2.943363146 | AC81: 0.2079212786 | AD81: 0.331776 | AE81: 0.01152 | AF81: 0 | AG81: 0.5635198952 | AH81: 5.044374417 | AI81: 0.4580228387 | AJ81: 0.0516096 | AK81: 0.5353801542 | AL81: 0.0516096 | AM81: 0.41472 | AN81: 0.1705454993 | AO81: 0.0001056 | AP81: =CHOOSE(Ext_VCC, (Qg_Q1+Qg_Q2)*Fsw*'Design Regulator'!$G$102, (Qg_Q1+Qg_Q2)*Fsw*Vout, (Qg_Q1+Qg_Q2)*Fsw*Vin) -> 0.03408 | AQ81: 0.1223389091 | AR81: 0.1136 | AS81: 0.0341856 | AT81: 2.642041143 | AU81: 1.599415249 | AV81: 69.12 | AW81: 0.9631833055 | AX81: 12.55852643 | AY81: 10.08356631 | BA81: 96.31833055 | BB81: 0.8646859256 | BC81: 1.513620049 | BD81: 0.8372350952 | BE81: 0.6722377542 | BF81: 0.1705454993 | BG81: 1.547805649 | BH81: 30.33699073
G82: 73 | H82: 48 | I82: 1 | J82: 5.84 | K82: 5.84 | L82: 1.622222222 | M82: 0.2540459089 | N82: 3.343826973 | O82: 7.511913486 | P82: 4.168086514 | Q82: 0 | R82: 5.919236851 | S82: 0.350373649 | T82: 0.5 | U82: 0.874896915 | V82: 0.9652797014 | W82: 0.0009317649019 | X82: 0.0009317649019 | Y82: 2.576783144 | Z82: 0.006639811373 | AA82: 0.006639811373 | AB82: 2.983471001 | AC82: 0.2136263811 | AD82: 0.336384 | AE82: 0.01152 | AF82: 0 | AG82: 0.5744149508 | AH82: 5.112364002 | AI82: 0.4704527824 | AJ82: 0.0523264 | AK82: 0.5499451196 | AL82: 0.0523264 | AM82: 0.42048 | AN82: 0.1751868245 | AO82: 0.0001056 | AP82: =CHOOSE(Ext_VCC, (Qg_Q1+Qg_Q2)*Fsw*'Design Regulator'!$G$102, (Qg_Q1+Qg_Q2)*Fsw*Vout, (Qg_Q1+Qg_Q2)*Fsw*Vin) -> 0.03408 | AQ82: 0.1223389091 | AR82: 0.1136 | AS82: 0.0341856 | AT82: 2.689007386 | AU82: 1.63135207 | AV82: 70.08 | AW82: 0.9630473538 | AX82: 12.77897626 | AY82: 10.33055279 | BA82: 96.30473538 | BB82: 0.874896915 | BC82: 1.54484007 | BD82: 0.8519317508 | BE82: 0.6887035196 | BF82: 0.1751868245 | BG82: 1.57902567 | BH82: 30.94890314
G83: 74 | H83: 48 | I83: 1 | J83: 5.92 | K83: 5.92 | L83: 1.644444444 | M83: 0.2541013392 | N83: 3.34430246 | O83: 7.59215123 | P83: 4.24784877 | Q83: 0 | R83: 5.998202223 | S83: 0.3597842991 | T83: 0.5 | U83: 0.8852646447 | V83: 0.9654169629 | W83: 0.0009320299122 | X83: 0.0009320299122 | Y83: 2.611346451 | Z83: 0.006819130288 | AA83: 0.006819130288 | AB83: 3.023601697 | AC83: 0.2194120133 | AD83: 0.340992 | AE83: 0.01152 | AF83: 0 | AG83: 0.5854108618 | AH83: 5.180372833 | AI83: 0.4830527284 | AJ83: 0.0530432 | AK83: 0.5647398359 | AL83: 0.0530432 | AM83: 0.42624 | AN83: 0.1798921496 | AO83: 0.0001056 | AP83: =CHOOSE(Ext_VCC, (Qg_Q1+Qg_Q2)*Fsw*'Design Regulator'!$G$102, (Qg_Q1+Qg_Q2)*Fsw*Vout, (Qg_Q1+Qg_Q2)*Fsw*Vin) -> 0.03408 | AQ83: 0.1223389091 | AR83: 0.1136 | AS83: 0.0341856 | AT83: 2.736527452 | AU83: 1.663619498 | AV83: 71.04 | AW83: 0.9629078848 | AX83: 13.00093893 | AY83: 10.58098554 | BA83: 96.29078848 | BB83: 0.8852646447 | BC83: 1.576390698 | BD83: 0.8667292618 | BE83: 0.7053990359 | BF83: 0.1798921496 | BG83: 1.610576298 | BH83: 31.56729543
G84: 75 | H84: 48 | I84: 1 | J84: 6 | K84: 6 | L84: 1.666666667 | M84: 0.2541567696 | N84: 3.34477784 | O84: 7.67238892 | P84: 4.32761108 | Q84: 0 | R84: 6.077194657 | S84: 0.369322949 | T84: 0.5 | U84: 0.8957898077 | V84: 0.9655541931 | W84: 0.0009322948998 | X84: 0.0009322948998 | Y84: 2.64592643 | Z84: 0.007000926671 | AA84: 0.007000926671 | AB84: 3.063754684 | AC84: 0.2252782264 | AD84: 0.3456 | AE84: 0.01152 | AF84: 0 | AG84: 0.5965081579 | AH84: 5.248399959 | AI84: 0.4958226384 | AJ84: 0.05376 | AK84: 0.5797660577 | AL84: 0.05376 | AM84: 0.432 | AN84: 0.1846614745 | AO84: 0.0001056 | AP84: =CHOOSE(Ext_VCC, (Qg_Q1+Qg_Q2)*Fsw*'Design Regulator'!$G$102, (Qg_Q1+Qg_Q2)*Fsw*Vout, (Qg_Q1+Qg_Q2)*Fsw*Vin) -> 0.03408 | AQ84: 0.1223389091 | AR84: 0.1136 | AS84: 0.0341856 | AT84: 2.784604319 | AU84: 1.696219816 | AV84: 72 | AW84: 0.9627650056 | AX84: 13.22442237 | AY84: 10.83489087 | BA84: 96.27650056 | BB84: 0.8957898077 | BC84: 1.608274216 | BD84: 0.8816281579 | BE84: 0.7223260577 | BF84: 0.1846614745 | BG84: 1.642459816 | BH84: 32.19221239
G85: 76 | H85: 48 | I85: 1 | J85: 6.08 | K85: 6.08 | L85: 1.688888889 | M85: 0.2542122002 | N85: 3.345253111 | O85: 7.752626555 | P85: 4.407373445 | Q85: 0 | R85: 6.156213111 | S85: 0.3789895986 | T85: 0.5 | U85: 0.906473109 | V85: 0.965691392 | W85: 0.0009325598647 | X85: 0.0009325598647 | Y85: 2.680522626 | Z85: 0.007185201551 | AA85: 0.007185201551 | AB85: 3.103929441 | AC85: 0.2312250714 | AD85: 0.350208 | AE85: 0.01152 | AF85: 0 | AG85: 0.6077073754 | AH85: 5.316444478 | AI85: 0.5087624741 | AJ85: 0.0544768 | AK85: 0.5950255759 | AL85: 0.0544768 | AM85: 0.43776 | AN85: 0.1894947993 | AO85: 0.0001056 | AP85: =CHOOSE(Ext_VCC, (Qg_Q1+Qg_Q2)*Fsw*'Design Regulator'!$G$102, (Qg_Q1+Qg_Q2)*Fsw*Vout, (Qg_Q1+Qg_Q2)*Fsw*Vin) -> 0.03408 | AQ85: 0.1223389091 | AR85: 0.1136 | AS85: 0.0341856 | AT85: 2.833241021 | AU85: 1.729155351 | AV85: 72.96 | AW85: 0.9626188169 | AX85: 13.44943463 | AY85: 11.09229564 | BA85: 96.26188169 | BB85: 0.906473109 | BC85: 1.640492951 | BD85: 0.8966289754 | BE85: 0.7394863759 | BF85: 0.1894947993 | BG85: 1.674678551 | BH85: 32.8236996
G86: 77 | H86: 48 | I86: 1 | J86: 6.16 | K86: 6.16 | L86: 1.711111111 | M86: 0.254267631 | N86: 3.345728273 | O86: 7.832864137 | P86: 4.487135863 | Q86: 0 | R86: 6.235256595 | S86: 0.3887842481 | T86: 0.5 | U86: 0.9173152661 | V86: 0.9658285597 | W86: 0.0009328248067 | X86: 0.0009328248067 | Y86: 2.715134611 | Z86: 0.007371955957 | AA86: 0.007371955957 | AB86: 3.14412547 | AC86: 0.2372525994 | AD86: 0.354816 | AE86: 0.01152 | AF86: 0 | AG86: 0.6190090577 | AH86: 5.384505533 | AI86: 0.521872197 | AJ86: 0.0551936 | AK86: 0.6105202174 | AL86: 0.0551936 | AM86: 0.44352 | AN86: 0.194392124 | AO86: 0.0001056 | AP86: =CHOOSE(Ext_VCC, (Qg_Q1+Qg_Q2)*Fsw*'Design Regulator'!$G$102, (Qg_Q1+Qg_Q2)*Fsw*Vout, (Qg_Q1+Qg_Q2)*Fsw*Vin) -> 0.03408 | AQ86: 0.1223389091 | AR86: 0.1136 | AS86: 0.0341856 | AT86: 2.882440646 | AU86: 1.762428475 | AV86: 73.92 | AW86: 0.9624694134 | AX86: 13.67598387 | AY86: 11.35322726 | BA86: 96.24694134 | BB86: 0.9173152661 | BC86: 1.673049275 | BD86: 0.9117322577 | BE86: 0.7568818174 | BF86: 0.194392124 | BG86: 1.707234875 | BH86: 33.46180355
G87: 78 | H87: 48 | I87: 1 | J87: 6.24 | K87: 6.24 | L87: 1.733333333 | M87: 0.254323062 | N87: 3.346203328 | O87: 7.913101664 | P87: 4.566898336 | Q87: 0 | R87: 6.31432417 | S87: 0.3987068973 | T87: 0.5 | U87: 0.9283170088 | V87: 0.965965696 | W87: 0.0009330897258 | X87: 0.0009330897258 | Y87: 2.749761975 | Z87: 0.007561190917 | AA87: 0.007561190917 | AB87: 3.184342302 | AC87: 0.2433608615 | AD87: 0.359424 | AE87: 0.01152 | AF87: 0 | AG87: 0.6304137551 | AH87: 5.452582308 | AI87: 0.535151769 | AJ87: 0.0559104 | AK87: 0.6262518462 | AL87: 0.0559104 | AM87: 0.44928 | AN87: 0.1993534486 | AO87: 0.0001056 | AP87: =CHOOSE(Ext_VCC, (Qg_Q1+Qg_Q2)*Fsw*'Design Regulator'!$G$102, (Qg_Q1+Qg_Q2)*Fsw*Vout, (Qg_Q1+Qg_Q2)*Fsw*Vin) -> 0.03408 | AQ87: 0.1223389091 | AR87: 0.1136 | AS87: 0.0341856 | AT87: 2.932206339 | AU87: 1.796041601 | AV87: 74.88 | AW87: 0.9623168847 | AX87: 13.90407833 | AY87: 11.61771369 | BA87: 96.23168847 | BB87: 0.9283170088 | BC87: 1.705945601 | BD87: 0.9269385551 | BE87: 0.7745142462 | BF87: 0.1993534486 | BG87: 1.740131201 | BH87: 34.10657155
G88: 79 | H88: 48 | I88: 1 | J88: 6.32 | K88: 6.32 | L88: 1.755555556 | M88: 0.2543784932 | N88: 3.346678273 | O88: 7.993339137 | P88: 4.646660863 | Q88: 0 | R88: 6.393414942 | S88: 0.4087575462 | T88: 0.5 | U88: 0.9394790793 | V88: 0.966102801 | W88: 0.0009333546221 | X88: 0.0009333546221 | Y88: 2.784404328 | Z88: 0.00775290746 | AA88: 0.00775290746 | AB88: 3.224579487 | AC88: 0.2495499088 | AD88: 0.364032 | AE88: 0.01152 | AF88: 0 | AG88: 0.641922025 | AH88: 5.520674031 | AI88: 0.5486011516 | AJ88: 0.0566272 | AK88: 0.6422223641 | AL88: 0.0566272 | AM88: 0.45504 | AN88: 0.2043787731 | AO88: 0.0001056 | AP88: =CHOOSE(Ext_VCC, (Qg_Q1+Qg_Q2)*Fsw*'Design Regulator'!$G$102, (Qg_Q1+Qg_Q2)*Fsw*Vout, (Qg_Q1+Qg_Q2)*Fsw*Vin) -> 0.03408 | AQ88: 0.1223389091 | AR88: 0.1136 | AS88: 0.0341856 | AT88: 2.982541304 | AU88: 1.829997189 | AV88: 75.84 | AW88: 0.9621613151 | AX88: 14.13372638 | AY88: 11.88578346 | BA88: 96.21613151 | BB88: 0.9394790793 | BC88: 1.739184389 | BD88: 0.942248425 | BE88: 0.7923855641 | BF88: 0.2043787731 | BG88: 1.773369989 | BH88: 34.75805179
G89: 80 | H89: 48 | I89: 1 | J89: 6.4 | K89: 6.4 | L89: 1.777777778 | M89: 0.2544339245 | N89: 3.347153111 | O89: 8.073576555 | P89: 4.726423445 | Q89: 0 | R89: 6.472528061 | S89: 0.418936195 | T89: 0.5 | U89: 0.9508022325 | V89: 0.9662398747 | W89: 0.0009336194955 | X89: 0.0009336194955 | Y89: 2.8190613 | Z89: 0.007947106613 | AA89: 0.007947106613 | AB89: 3.264836599 | AC89: 0.2558197925 | AD89: 0.36864 | AE89: 0.01152 | AF89: 0 | AG89: 0.653534432 | AH89: 5.588779963 | AI89: 0.5622203065 | AJ89: 0.057344 | AK89: 0.6584337108 | AL89: 0.057344 | AM89: 0.4608 | AN89: 0.2094680975 | AO89: 0.0001056 | AP89: =CHOOSE(Ext_VCC, (Qg_Q1+Qg_Q2)*Fsw*'Design Regulator'!$G$102, (Qg_Q1+Qg_Q2)*Fsw*Vout, (Qg_Q1+Qg_Q2)*Fsw*Vin) -> 0.03408 | AQ89: 0.1223389091 | AR89: 0.1136 | AS89: 0.0341856 | AT89: 3.033448799 | AU89: 1.864297743 | AV89: 76.8 | AW89: 0.962002784 | AX89: 14.36493648 | AY89: 12.15746566 | BA89: 96.2002784 | BB89: 0.9508022325 | BC89: 1.772768143 | BD89: 0.957662432 | BE89: 0.8104977108 | BF89: 0.2094680975 | BG89: 1.806953743 | BH89: 35.41629336
G90: 81 | H90: 48 | I90: 1 | J90: 6.48 | K90: 6.48 | L90: 1.8 | M90: 0.2544893561 | N90: 3.347627839 | O90: 8.15381392 | P90: 4.80618608 | Q90: 0 | R90: 6.551662716 | S90: 0.4292428435 | T90: 0.5 | U90: 0.9622872362 | V90: 0.9663769171 | W90: 0.000933884346 | X90: 0.000933884346 | Y90: 2.853732539 | Z90: 0.008143789403 | AA90: 0.008143789403 | AB90: 3.305113233 | AC90: 0.2621705636 | AD90: 0.373248 | AE90: 0.01152 | AF90: 0 | AG90: 0.6652515478 | AH90: 5.656899404 | AI90: 0.5760091955 | AJ90: 0.0580608 | AK90: 0.6748878653 | AL90: 0.0580608 | AM90: 0.46656 | AN90: 0.2146214217 | AO90: 0.0001056 | AP90: =CHOOSE(Ext_VCC, (Qg_Q1+Qg_Q2)*Fsw*'Design Regulator'!$G$102, (Qg_Q1+Qg_Q2)*Fsw*Vout, (Qg_Q1+Qg_Q2)*Fsw*Vin) -> 0.03408 | AQ90: 0.1223389091 | AR90: 0.1136 | AS90: 0.0341856 | AT90: 3.084932145 | AU90: 1.898945813 | AV90: 77.76 | AW90: 0.9618413664 | AX90: 14.59771722 | AY90: 12.43278998 | BA90: 96.18413664 | BB90: 0.9622872362 | BC90: 1.806699413 | BD90: 0.9731811478 | BE90: 0.8288526653 | BF90: 0.2146214217 | BG90: 1.840885013 | BH90: 36.08134626
G91: 82 | H91: 48 | I91: 1 | J91: 6.56 | K91: 6.56 | L91: 1.822222222 | M91: 0.2545447878 | N91: 3.34810246 | O91: 8.23405123 | P91: 4.88594877 | Q91: 0 | R91: 6.630818138 | S91: 0.4396774917 | T91: 0.5 | U91: 0.973934871 | V91: 0.9665139282 | W91: 0.0009341491735 | X91: 0.0009341491735 | Y91: 2.888417708 | Z91: 0.008342956857 | AA91: 0.008342956857 | AB91: 3.345409001 | AC91: 0.2686022732 | AD91: 0.377856 | AE91: 0.01152 | AF91: 0 | AG91: 0.6770739514 | AH91: 5.725031685 | AI91: 0.5899677802 | AJ91: 0.0587776 | AK91: 0.6915868456 | AL91: 0.0587776 | AM91: 0.47232 | AN91: 0.2198387459 | AO91: 0.0001056 | AP91: =CHOOSE(Ext_VCC, (Qg_Q1+Qg_Q2)*Fsw*'Design Regulator'!$G$102, (Qg_Q1+Qg_Q2)*Fsw*Vout, (Qg_Q1+Qg_Q2)*Fsw*Vin) -> 0.03408 | AQ91: 0.1223389091 | AR91: 0.1136 | AS91: 0.0341856 | AT91: 3.13699472 | AU91: 1.933943997 | AV91: 78.72 | AW91: 0.961677133 | AX91: 14.83207727 | AY91: 12.71178668 | BA91: 96.1677133 | BB91: 0.973934871 | BC91: 1.840980797 | BD91: 0.9888051514 | BE91: 0.8474524456 | BF91: 0.2198387459 | BG91: 1.875166397 | BH91: 36.75326138
G92: 83 | H92: 48 | I92: 1 | J92: 6.64 | K92: 6.64 | L92: 1.844444444 | M92: 0.2546002197 | N92: 3.348576972 | O92: 8.314288486 | P92: 4.965711514 | Q92: 0 | R92: 6.70999359 | S92: 0.4502401398 | T92: 0.5 | U92: 0.9857459306 | V92: 0.9666509081 | W92: 0.000934413978 | X92: 0.000934413978 | Y92: 2.923116488 | Z92: 0.00854461 | AA92: 0.00854461 | AB92: 3.385723534 | AC92: 0.2751149724 | AD92: 0.382464 | AE92: 0.01152 | AF92: 0 | AG92: 0.6890022295 | AH92: 5.793176169 | AI92: 0.6040960223 | AJ92: 0.0594944 | AK92: 0.7085327105 | AL92: 0.0594944 | AM92: 0.47808 | AN92: 0.2251200699 | AO92: 0.0001056 | AP92: =CHOOSE(Ext_VCC, (Qg_Q1+Qg_Q2)*Fsw*'Design Regulator'!$G$102, (Qg_Q1+Qg_Q2)*Fsw*Vout, (Qg_Q1+Qg_Q2)*Fsw*Vin) -> 0.03408 | AQ92: 0.1223389091 | AR92: 0.1136 | AS92: 0.0341856 | AT92: 3.189639964 | AU92: 1.96929494 | AV92: 79.68 | AW92: 0.9615101506 | AX92: 15.06802544 | AY92: 12.99448666 | BA92: 96.15101506 | BB92: 0.9857459306 | BC92: 1.87561494 | BD92: 1.004535029 | BE92: 0.8662991105 | BF92: 0.2251200699 | BG92: 1.90980054 | BH92: 37.43209058
G93: 84 | H93: 48 | I93: 1 | J93: 6.72 | K93: 6.72 | L93: 1.866666667 | M93: 0.2546556518 | N93: 3.349051375 | O93: 8.394525688 | P93: 5.045474312 | Q93: 0 | R93: 6.789188373 | S93: 0.4609307876 | T93: 0.5 | U93: 0.9977212219 | V93: 0.9667878566 | W93: 0.0009346787596 | X93: 0.0009346787596 | Y93: 2.957828571 | Z93: 0.008748749858 | AA93: 0.008748749858 | AB93: 3.426056482 | AC93: 0.2817087124 | AD93: 0.387072 | AE93: 0.01152 | AF93: 0 | AG93: 0.7010369758 | AH93: 5.86133225 | AI93: 0.6183938834 | AJ93: 0.0602112 | AK93: 0.7257275592 | AL93: 0.0602112 | AM93: 0.48384 | AN93: 0.2304653938 | AO93: 0.0001056 | AP93: =CHOOSE(Ext_VCC, (Qg_Q1+Qg_Q2)*Fsw*'Design Regulator'!$G$102, (Qg_Q1+Qg_Q2)*Fsw*Vout, (Qg_Q1+Qg_Q2)*Fsw*Vin) -> 0.03408 | AQ93: 0.1223389091 | AR93: 0.1136 | AS93: 0.0341856 | AT93: 3.242871379 | AU93: 2.005001335 | AV93: 80.64 | AW93: 0.961340482 | AX93: 15.30557064 | AY93: 13.28092139 | BA93: 96.1340482 | BB93: 0.9977212219 | BC93: 1.910604535 | BD93: 1.020371376 | BE93: 0.8853947592 | BF93: 0.2304653938 | BG93: 1.944790135 | BH93: 38.11788665
G94: 85 | H94: 48 | I94: 1 | J94: 6.8 | K94: 6.8 | L94: 1.888888889 | M94: 0.2547110841 | N94: 3.349525671 | O94: 8.474762835 | P94: 5.125237165 | Q94: 0 | R94: 6.868401817 | S94: 0.4717494352 | T94: 0.5 | U94: 1.009861565 | V94: 0.9669247738 | W94: 0.0009349435181 | X94: 0.0009349435181 | Y94: 2.992553668 | Z94: 0.008955377457 | AA94: 0.008955377457 | AB94: 3.466407507 | AC94: 0.2883835441 | AD94: 0.39168 | AE94: 0.01152 | AF94: 0 | AG94: 0.713178792 | AH94: 5.929499348 | AI94: 0.6328613252 | AJ94: 0.060928 | AK94: 0.7431735329 | AL94: 0.060928 | AM94: 0.4896 | AN94: 0.2358747176 | AO94: 0.0001056 | AP94: =CHOOSE(Ext_VCC, (Qg_Q1+Qg_Q2)*Fsw*'Design Regulator'!$G$102, (Qg_Q1+Qg_Q2)*Fsw*Vout, (Qg_Q1+Qg_Q2)*Fsw*Vin) -> 0.03408 | AQ94: 0.1223389091 | AR94: 0.1136 | AS94: 0.0341856 | AT94: 3.296692528 | AU94: 2.041065925 | AV94: 81.6 | AW94: 0.9611681865 | AX94: 15.54472188 | AY94: 13.57112299 | BA94: 96.11681865 | BB94: 1.009861565 | BC94: 1.945952325 | BD94: 1.036314792 | BE94: 0.9047415329 | BF94: 0.2358747176 | BG94: 1.980137925 | BH94: 38.81070333
G95: 86 | H95: 48 | I95: 1 | J95: 6.88 | K95: 6.88 | L95: 1.911111111 | M95: 0.2547665165 | N95: 3.349999857 | O95: 8.554999929 | P95: 5.205000071 | Q95: 0 | R95: 6.947633284 | S95: 0.4826960825 | T95: 0.5 | U95: 1.022167794 | V95: 0.9670616597 | W95: 0.0009352082536 | X95: 0.0009352082536 | Y95: 3.027291499 | Z95: 0.00916449382 | AA95: 0.00916449382 | AB95: 3.50677629 | AC95: 0.2951395188 | AD95: 0.396288 | AE95: 0.01152 | AF95: 0 | AG95: 0.7254282871 | AH95: 5.997676909 | AI95: 0.6474983095 | AJ95: 0.0616448 | AK95: 0.7608728149 | AL95: 0.0616448 | AM95: 0.49536 | AN95: 0.2413480413 | AO95: 0.0001056 | AP95: =CHOOSE(Ext_VCC, (Qg_Q1+Qg_Q2)*Fsw*'Design Regulator'!$G$102, (Qg_Q1+Qg_Q2)*Fsw*Vout, (Qg_Q1+Qg_Q2)*Fsw*Vin) -> 0.03408 | AQ95: 0.1223389091 | AR95: 0.1136 | AS95: 0.0341856 | AT95: 3.351107039 | AU95: 2.077491502 | AV95: 82.56 | AW95: 0.9609933203 | AX95: 15.78548831 | AY95: 13.86512422 | BA95: 96.09933203 | BB95: 1.022167794 | BC95: 1.981661102 | BD95: 1.052365887 | BE95: 0.9243416149 | BF95: 0.2413480413 | BG95: 2.015846702 | BH95: 39.51059536
G96: 87 | H96: 48 | I96: 1 | J96: 6.96 | K96: 6.96 | L96: 1.933333333 | M96: 0.2548219492 | N96: 3.350473935 | O96: 8.635236968 | P96: 5.284763032 | Q96: 0 | R96: 7.026882165 | S96: 0.4937707297 | T96: 0.5 | U96: 1.034640755 | V96: 0.9671985143 | W96: 0.000935472966 | X96: 0.000935472966 | Y96: 3.062041798 | Z96: 0.009376099974 | AA96: 0.009376099974 | AB96: 3.547162525 | AC96: 0.3019766875 | AD96: 0.400896 | AE96: 0.01152 | AF96: 0 | AG96: 0.737786078 | AH96: 6.065864406 | AI96: 0.6623047978 | AJ96: 0.0623616 | AK96: 0.7788276319 | AL96: 0.0623616 | AM96: 0.50112 | AN96: 0.2468853648 | AO96: 0.0001056 | AP96: =CHOOSE(Ext_VCC, (Qg_Q1+Qg_Q2)*Fsw*'Design Regulator'!$G$102, (Qg_Q1+Qg_Q2)*Fsw*Vout, (Qg_Q1+Qg_Q2)*Fsw*Vin) -> 0.03408 | AQ96: 0.1223389091 | AR96: 0.1136 | AS96: 0.0341856 | AT96: 3.406118603 | AU96: 2.11428091 | AV96: 83.52 | AW96: 0.9608159359 | AX96: 16.02787917 | AY96: 14.16295848 | BA96: 96.08159359 | BB96: 1.034640755 | BC96: 2.01773371 | BD96: 1.068525278 | BE96: 0.9441972319 | BF96: 0.2468853648 | BG96: 2.05191931 | BH96: 40.21761847
G97: 88 | H97: 48 | I97: 1 | J97: 7.04 | K97: 7.04 | L97: 1.955555556 | M97: 0.254877382 | N97: 3.350947905 | O97: 8.715473953 | P97: 5.364526047 | Q97: 0 | R97: 7.106147877 | S97: 0.5049733766 | T97: 0.5 | U97: 1.047281311 | V97: 0.9673353376 | W97: 0.0009357376553 | X97: 0.0009357376553 | Y97: 3.096804311 | Z97: 0.00959019694 | AA97: 0.00959019694 | AB97: 3.587565919 | AC97: 0.3088951013 | AD97: 0.405504 | AE97: 0.01152 | AF97: 0 | AG97: 0.7502527895 | AH97: 6.134061333 | AI97: 0.6772807518 | AJ97: 0.0630784 | AK97: 0.7970402542 | AL97: 0.0630784 | AM97: 0.50688 | AN97: 0.2524866883 | AO97: 0.0001056 | AP97: =CHOOSE(Ext_VCC, (Qg_Q1+Qg_Q2)*Fsw*'Design Regulator'!$G$102, (Qg_Q1+Qg_Q2)*Fsw*Vout, (Qg_Q1+Qg_Q2)*Fsw*Vin) -> 0.03408 | AQ97: 0.1223389091 | AR97: 0.1136 | AS97: 0.0341856 | AT97: 3.461730977 | AU97: 2.151437044 | AV97: 84.48 | AW97: 0.9606360832 | AX97: 16.27190384 | AY97: 14.46465981 | BA97: 96.06360832 | BB97: 1.047281311 | BC97: 2.054173044 | BD97: 1.084793589 | BE97: 0.9643106542 | BF97: 0.2524866883 | BG97: 2.088358644 | BH97: 40.93182942
G98: 89 | H98: 48 | I98: 1 | J98: 7.12 | K98: 7.12 | L98: 1.977777778 | M98: 0.254932815 | N98: 3.351421767 | O98: 8.795710883 | P98: 5.444289117 | Q98: 0 | R98: 7.185429863 | S98: 0.5163040232 | T98: 0.5 | U98: 1.060090336 | V98: 0.9674721296 | W98: 0.0009360023215 | X98: 0.0009360023215 | Y98: 3.131578794 | Z98: 0.009806785742 | AA98: 0.009806785742 | AB98: 3.627986191 | AC98: 0.3158948113 | AD98: 0.410112 | AE98: 0.01152 | AF98: 0 | AG98: 0.762829054 | AH98: 6.202267208 | AI98: 0.6924261333 | AJ98: 0.0637952 | AK98: 0.815512997 | AL98: 0.0637952 | AM98: 0.51264 | AN98: 0.2581520116 | AO98: 0.0001056 | AP98: =CHOOSE(Ext_VCC, (Qg_Q1+Qg_Q2)*Fsw*'Design Regulator'!$G$102, (Qg_Q1+Qg_Q2)*Fsw*Vout, (Qg_Q1+Qg_Q2)*Fsw*Vin) -> 0.03408 | AQ98: 0.1223389091 | AR98: 0.1136 | AS98: 0.0341856 | AT98: 3.517947986 | AU98: 2.188962851 | AV98: 85.44 | AW98: 0.9604538092 | AX98: 16.51757181 | AY98: 14.77026295 | BA98: 96.04538092 | BB98: 1.060090336 | BC98: 2.090982051 | BD98: 1.101171454 | BE98: 0.984684197 | BF98: 0.2581520116 | BG98: 2.125167651 | BH98: 41.65328596
G99: 90 | H99: 48 | I99: 1 | J99: 7.2 | K99: 7.2 | L99: 2 | M99: 0.2549882482 | N99: 3.35189552 | O99: 8.87594776 | P99: 5.52405224 | Q99: 0 | R99: 7.264727591 | S99: 0.5277626696 | T99: 0.5 | U99: 1.073068719 | V99: 0.9676088903 | W99: 0.0009362669645 | X99: 0.0009362669645 | Y99: 3.166365014 | Z99: 0.0100258674 | AA99: 0.0100258674 | AB99: 3.668423076 | AC99: 0.3229758687 | AD99: 0.41472 | AE99: 0.01152 | AF99: 0 | AG99: 0.7755155123 | AH99: 6.270481569 | AI99: 0.7077409038 | AJ99: 0.064512 | AK99: 0.8342482208 | AL99: 0.064512 | AM99: 0.5184 | AN99: 0.2638813348 | AO99: 0.0001056 | AP99: =CHOOSE(Ext_VCC, (Qg_Q1+Qg_Q2)*Fsw*'Design Regulator'!$G$102, (Qg_Q1+Qg_Q2)*Fsw*Vout, (Qg_Q1+Qg_Q2)*Fsw*Vin) -> 0.03408 | AQ99: 0.1223389091 | AR99: 0.1136 | AS99: 0.0341856 | AT99: 3.574773521 | AU99: 2.226861333 | AV99: 86.4 | AW99: 0.9602691579 | AX99: 16.76489268 | AY99: 15.07980331 | BA99: 96.02691579 | BB99: 1.073068719 | BC99: 2.128163733 | BD99: 1.117659512 | BE99: 1.005320221 | BF99: 0.2638813348 | BG99: 2.162349333 | BH99: 42.38204693
G100: 91 | H100: 48 | I100: 1 | J100: 7.28 | K100: 7.28 | L100: 2.022222222 | M100: 0.2550436816 | N100: 3.352369164 | O100: 8.956184582 | P100: 5.603815418 | Q100: 0 | R100: 7.344040549 | S100: 0.5393493158 | T100: 0.5 | U100: 1.086217363 | V100: 0.9677456197 | W100: 0.0009365315844 | X100: 0.0009365315844 | Y100: 3.201162749 | Z100: 0.01024744295 | AA100: 0.01024744295 | AB100: 3.708876315 | AC100: 0.3301383245 | AD100: 0.419328 | AE100: 0.01152 | AF100: 0 | AG100: 0.7883128129 | AH100: 6.338703974 | AI100: 0.7232250252 | AJ100: 0.0652288 | AK100: 0.8532483326 | AL100: 0.0652288 | AM100: 0.52416 | AN100: 0.2696746579 | AO100: 0.0001056 | AP100: =CHOOSE(Ext_VCC, (Qg_Q1+Qg_Q2)*Fsw*'Design Regulator'!$G$102, (Qg_Q1+Qg_Q2)*Fsw*Vout, (Qg_Q1+Qg_Q2)*Fsw*Vin) -> 0.03408 | AQ100: 0.1223389091 | AR100: 0.1136 | AS100: 0.0341856 | AT100: 3.632211541 | AU100: 2.265135546 | AV100: 87.36 | AW100: 0.960082171 | AX100: 17.01387619 | AY100: 15.39331699 | BA100: 96.0082171 | BB100: 1.086217363 | BC100: 2.165721146 | BD100: 1.134258413 | BE100: 1.026221133 | BF100: 0.2696746579 | BG100: 2.199906746 | BH100: 43.11817221
G101: 92 | H101: 48 | I101: 1 | J101: 7.36 | K101: 7.36 | L101: 2.044444444 | M101: 0.2550991152 | N101: 3.3528427 | O101: 9.03642135 | P101: 5.68357865 | Q101: 0 | R101: 7.42336825 | S101: 0.5510639618 | T101: 0.5 | U101: 1.099537187 | V101: 0.9678823178 | W101: 0.000936796181 | X101: 0.000936796181 | Y101: 3.235971785 | Z101: 0.01047151339 | AA101: 0.01047151339 | AB101: 3.749345664 | AC101: 0.3373822298 | AD101: 0.423936 | AE101: 0.01152 | AF101: 0 | AG101: 0.8012216129 | AH101: 6.406933999 | AI101: 0.7388784589 | AJ101: 0.0659456 | AK101: 0.8725157865 | AL101: 0.0659456 | AM101: 0.52992 | AN101: 0.2755319809 | AO101: 0.0001056 | AP101: =CHOOSE(Ext_VCC, (Qg_Q1+Qg_Q2)*Fsw*'Design Regulator'!$G$102, (Qg_Q1+Qg_Q2)*Fsw*Vout, (Qg_Q1+Qg_Q2)*Fsw*Vin) -> 0.03408 | AQ101: 0.1223389091 | AR101: 0.1136 | AS101: 0.0341856 | AT101: 3.690266077 | AU101: 2.303788599 | AV101: 88.32 | AW101: 0.9598928877 | AX101: 17.26453219 | AY101: 15.7108408 | BA101: 95.98928877 | BB101: 1.099537187 | BC101: 2.203657399 | BD101: 1.150968813 | BE101: 1.047389386 | BF101: 0.2755319809 | BG101: 2.237842999 | BH101: 43.86172279
G102: 93 | H102: 48 | I102: 1 | J102: 7.44 | K102: 7.44 | L102: 2.066666667 | M102: 0.255154549 | N102: 3.353316128 | O102: 9.116658064 | P102: 5.763341936 | Q102: 0 | R102: 7.502710227 | S102: 0.5629066075 | T102: 0.5 | U102: 1.113029123 | V102: 0.9680189845 | W102: 0.0009370607544 | X102: 0.0009370607544 | Y102: 3.270791917 | Z102: 0.01069807977 | AA102: 0.01069807977 | AB102: 3.789830887 | AC102: 0.3447076357 | AD102: 0.428544 | AE102: 0.01152 | AF102: 0 | AG102: 0.8142425773 | AH102: 6.475171241 | AI102: 0.7547011668 | AJ102: 0.0666624 | AK102: 0.8920530847 | AL102: 0.0666624 | AM102: 0.53568 | AN102: 0.2814533038 | AO102: 0.0001056 | AP102: =CHOOSE(Ext_VCC, (Qg_Q1+Qg_Q2)*Fsw*'Design Regulator'!$G$102, (Qg_Q1+Qg_Q2)*Fsw*Vout, (Qg_Q1+Qg_Q2)*Fsw*Vin) -> 0.03408 | AQ102: 0.1223389091 | AR102: 0.1136 | AS102: 0.0341856 | AT102: 3.74894123 | AU102: 2.342823662 | AV102: 89.28 | AW102: 0.9597013448 | AX102: 17.51687066 | AY102: 16.03241227 | BA102: 95.97013448 | BB102: 1.113029123 | BC102: 2.241975662 | BD102: 1.167791377 | BE102: 1.068827485 | BF102: 0.2814533038 | BG102: 2.276161262 | BH102: 44.61276073
G103: 94 | H103: 48 | I103: 1 | J103: 7.52 | K103: 7.52 | L103: 2.088888889 | M103: 0.2552099829 | N103: 3.353789447 | O103: 9.196894724 | P103: 5.843105276 | Q103: 0 | R103: 7.582066031 | S103: 0.574877253 | T103: 0.5 | U103: 1.126694119 | V103: 0.96815562 | W103: 0.0009373253046 | X103: 0.0009373253046 | Y103: 3.30562295 | Z103: 0.01092714309 | AA103: 0.01092714309 | AB103: 3.83033176 | AC103: 0.3521145934 | AD103: 0.433152 | AE103: 0.01152 | AF103: 0 | AG103: 0.8273763796 | AH103: 6.54341531 | AI103: 0.7706931104 | AJ103: 0.0673792 | AK103: 0.9118627783 | AL103: 0.0673792 | AM103: 0.54144 | AN103: 0.2874386265 | AO103: 0.0001056 | AP103: =CHOOSE(Ext_VCC, (Qg_Q1+Qg_Q2)*Fsw*'Design Regulator'!$G$102, (Qg_Q1+Qg_Q2)*Fsw*Vout, (Qg_Q1+Qg_Q2)*Fsw*Vin) -> 0.03408 | AQ103: 0.1223389091 | AR103: 0.1136 | AS103: 0.0341856 | AT103: 3.808241172 | AU103: 2.382243958 | AV103: 90.24 | AW103: 0.9595075769 | AX103: 17.77090169 | AY103: 16.35806967 | BA103: 95.95075769 | BB103: 1.126694119 | BC103: 2.280679158 | BD103: 1.18472678 | BE103: 1.090537978 | BF103: 0.2874386265 | BG103: 2.314864758 | BH103: 45.37134926
G104: 95 | H104: 48 | I104: 1 | J104: 7.6 | K104: 7.6 | L104: 2.111111111 | M104: 0.255265417 | N104: 3.354262658 | O104: 9.277131329 | P104: 5.922868671 | Q104: 0 | R104: 7.661435233 | S104: 0.5869758983 | T104: 0.5 | U104: 1.140533135 | V104: 0.9682922242 | W104: 0.0009375898314 | X104: 0.0009375898314 | Y104: 3.340464694 | Z104: 0.01115870437 | AA104: 0.01115870437 | AB104: 3.870848066 | AC104: 0.3596031539 | AD104: 0.43776 | AE104: 0.01152 | AF104: 0 | AG104: 0.840623702 | AH104: 6.611665833 | AI104: 0.7868542515 | AJ104: 0.068096 | AK104: 0.9319474684 | AL104: 0.068096 | AM104: 0.5472 | AN104: 0.2934879492 | AO104: 0.0001056 | AP104: =CHOOSE(Ext_VCC, (Qg_Q1+Qg_Q2)*Fsw*'Design Regulator'!$G$102, (Qg_Q1+Qg_Q2)*Fsw*Vout, (Qg_Q1+Qg_Q2)*Fsw*Vin) -> 0.03408 | AQ104: 0.1223389091 | AR104: 0.1136 | AS104: 0.0341856 | AT104: 3.868170149 | AU104: 2.42205277 | AV104: 91.2 | AW104: 0.9593116167 | AX104: 18.02663553 | AY104: 16.68785203 | BA104: 95.93116167 | BB104: 1.140533135 | BC104: 2.31977117 | BD104: 1.201775702 | BE104: 1.112523468 | BF104: 0.2934879492 | BG104: 2.35395677 | BH104: 46.1375527
G105: 96 | H105: 48 | I105: 1 | J105: 7.68 | K105: 7.68 | L105: =Vout*K105/(Vin*Efficiency) -> 2.133333333 | M105: 0.2553208513 | N105: =(Vin-(Rdson1+Rdcr)*K105-Vout)*M105/(Fsw*Lf) -> 3.35473576 | O105: 9.35736788 | P105: 6.00263212 | Q105: =IF(MIN(Vin, -P105/(Coss_Q1+Coss_Q2)*0.00000002)<0, 0, MIN(Vin, -P105/(Coss_Q1+Coss_Q2)*0.00000002)) -> 0 | R105: 7.74081742 | S105: =R105^2*Rdcr -> 0.5992025433 | T105: 0.5 | U105: =(T105+S105*(1+Ltc*(Ta-25)))/(1-S105*Ltc*ThetaCa) -> 1.15454715 | V105: 0.9684287971 | W105: 0.000937854335 | X105: 0.000937854335 | Y105: 3.375316969 | Z105: 0.01139276464 | AA105: 0.01139276464 | AB105: 3.911379597 | AC105: =Rdson1*AB105^2 -> 0.3671733684 | AD105: 0.442368 | AE105: 0.01152 | AF105: 0 | AG105: =(AF105+AE105+AD105+AC105*(1+RdsonTopTc*Ta-RdsonTopTc*25))/(1-AC105*RdsonTopTc*ThetaJA_Q1) -> 0.8539852351 | AH105: 6.679922454 | AI105: =Rdson2*AH105^2 -> 0.8031845517 | AJ105: 0.0688128 | AK105: =(AJ105+AI105*(1+RdsonBotTc*Ta-RdsonBotTc*25))/(1-AI105*RdsonBotTc*ThetaJA_Q2) -> 0.9523098069 | AL105: 0.0688128 | AM105: 0.55296 | AN105: 0.2996012717 | AO105: 0.0001056 | AP105: =CHOOSE(Ext_VCC, (Qg_Q1+Qg_Q2)*Fsw*'Design Regulator'!$G$102, (Qg_Q1+Qg_Q2)*Fsw*Vout, (Qg_Q1+Qg_Q2)*Fsw*Vin) -> 0.03408 | AQ105: 0.1223389091 | AR105: 0.1136 | AS105: 0.0341856 | AT105: =SUM(U105,X105,AA105,AG105,AK105,AL105,AM105,AS105,AN105) -> 3.928732483 | AU105: 2.462253442 | AV105: 92.16 | AW105: 0.9591134946 | AX105: 18.28408253 | AY105: 17.0217991 | BA105: 95.91134946 | BB105: 1.15454715 | BC105: 2.359255042 | BD105: 1.218938835 | BE105: 1.134786607 | BF105: 0.2996012717 | BG105: 2.393440642 | BH105: 46.91143658
G106: 97 | H106: 48 | I106: 1 | J106: 7.76 | K106: 7.76 | L106: =Vout*K106/(Vin*Efficiency) -> 2.155555556 | M106: 0.2553762858 | N106: =(Vin-(Rdson1+Rdcr)*K106-Vout)*M106/(Fsw*Lf) -> 3.355208754 | O106: 9.437604377 | P106: 6.082395623 | Q106: =IF(MIN(Vin, -P106/(Coss_Q1+Coss_Q2)*0.00000002)<0, 0, MIN(Vin, -P106/(Coss_Q1+Coss_Q2)*0.00000002)) -> 0 | R106: 7.820212198 | S106: =R106^2*Rdcr -> 0.6115571882 | T106: 0.5 | U106: =(T106+S106*(1+Ltc*(Ta-25)))/(1-S106*Ltc*ThetaCa) -> 1.168737157 | V106: 0.9685653386 | W106: 0.0009381188152 | X106: 0.0009381188152 | Y106: 3.410179602 | Z106: 0.01162932492 | AA106: 0.01162932492 | AB106: 3.951926154 | AC106: =Rdson1*AB106^2 -> 0.3748252879 | AD106: 0.446976 | AE106: 0.01152 | AF106: 0 | AG106: =(AF106+AE106+AD106+AC106*(1+RdsonTopTc*Ta-RdsonTopTc*25))/(1-AC106*RdsonTopTc*ThetaJA_Q1) -> 0.8674616781 | AH106: 6.748184829 | AI106: =Rdson2*AH106^2 -> 0.8196839728 | AJ106: 0.0695296 | AK106: =(AJ106+AI106*(1+RdsonBotTc*Ta-RdsonBotTc*25))/(1-AI106*RdsonBotTc*ThetaJA_Q2) -> 0.9729524974 | AL106: 0.0695296 | AM106: 0.55872 | AN106: 0.3057785941 | AO106: 0.0001056 | AP106: =CHOOSE(Ext_VCC, (Qg_Q1+Qg_Q2)*Fsw*'Design Regulator'!$G$102, (Qg_Q1+Qg_Q2)*Fsw*Vout, (Qg_Q1+Qg_Q2)*Fsw*Vin) -> 0.03408 | AQ106: 0.1223389091 | AR106: 0.1136 | AS106: 0.0341856 | AT106: 3.98993257 | AU106: 2.502849376 | AV106: 93.12 | AW106: 0.9589132392 | AX106: 18.54325317 | AY106: 17.35995146 | BA106: 95.89132392 | BB106: 1.168737157 | BC106: 2.399134176 | BD106: 1.236216878 | BE106: 1.157330097 | BF106: 0.3057785941 | BG106: 2.433319776 | BH106: 47.6930676
G107: 98 | H107: 48 | I107: 1 | J107: 7.84 | K107: 7.84 | L107: =Vout*K107/(Vin*Efficiency) -> 2.177777778 | M107: 0.2554317205 | N107: =(Vin-(Rdson1+Rdcr)*K107-Vout)*M107/(Fsw*Lf) -> 3.355681639 | O107: 9.51784082 | P107: 6.16215918 | Q107: =IF(MIN(Vin, -P107/(Coss_Q1+Coss_Q2)*0.00000002)<0, 0, MIN(Vin, -P107/(Coss_Q1+Coss_Q2)*0.00000002)) -> 0 | R107: 7.899619185 | S107: =R107^2*Rdcr -> 0.6240398327 | T107: 0.5 | U107: =(T107+S107*(1+Ltc*(Ta-25)))/(1-S107*Ltc*ThetaCa) -> 1.183104163 | V107: 0.9687018489 | W107: 0.0009383832721 | X107: 0.0009383832721 | Y107: 3.445052426 | Z107: 0.01186838622 | AA107: 0.01186838622 | AB107: 3.992487547 | AC107: =Rdson1*AB107^2 -> 0.3825589635 | AD107: 0.451584 | AE107: 0.01152 | AF107: 0 | AG107: =(AF107+AE107+AD107+AC107*(1+RdsonTopTc*Ta-RdsonTopTc*25))/(1-AC107*RdsonTopTc*ThetaJA_Q1) -> 0.8810537391 | AH107: 6.81645263 | AI107: =Rdson2*AH107^2 -> 0.8363524762 | AJ107: 0.0702464 | AK107: =(AJ107+AI107*(1+RdsonBotTc*Ta-RdsonBotTc*25))/(1-AI107*RdsonBotTc*ThetaJA_Q2) -> 0.9938782966 | AL107: 0.0702464 | AM107: 0.56448 | AN107: 0.3120199164 | AO107: 0.0001056 | AP107: =CHOOSE(Ext_VCC, (Qg_Q1+Qg_Q2)*Fsw*'Design Regulator'!$G$102, (Qg_Q1+Qg_Q2)*Fsw*Vout, (Qg_Q1+Qg_Q2)*Fsw*Vin) -> 0.03408 | AQ107: 0.1223389091 | AR107: 0.1136 | AS107: 0.0341856 | AT107: 4.051774884 | AU107: 2.543844036 | AV107: 94.08 | AW107: 0.9587108774 | AX107: 18.80415809 | AY107: 17.70235045 | BA107: 95.87108774 | BB107: 1.183104163 | BC107: 2.439412036 | BD107: 1.253610539 | BE107: 1.180156697 | BF107: 0.3120199164 | BG107: 2.473597636 | BH107: 48.48251366
G108: 99 | H108: 48 | I108: 1 | J108: 7.92 | K108: 7.92 | L108: =Vout*K108/(Vin*Efficiency) -> 2.2 | M108: 0.2554871554 | N108: =(Vin-(Rdson1+Rdcr)*K108-Vout)*M108/(Fsw*Lf) -> 3.356154416 | O108: 9.598077208 | P108: 6.241922792 | Q108: =IF(MIN(Vin, -P108/(Coss_Q1+Coss_Q2)*0.00000002)<0, 0, MIN(Vin, -P108/(Coss_Q1+Coss_Q2)*0.00000002)) -> 0 | R108: 7.979038019 | S108: =R108^2*Rdcr -> 0.6366504771 | T108: 0.5 | U108: =(T108+S108*(1+Ltc*(Ta-25)))/(1-S108*Ltc*ThetaCa) -> 1.197649191 | V108: 0.9688383279 | W108: 0.0009386477055 | X108: 0.0009386477055 | Y108: 3.479935282 | Z108: 0.01210994957 | AA108: 0.01210994957 | AB108: 4.033063592 | AC108: =Rdson1*AB108^2 -> 0.3903744465 | AD108: 0.456192 | AE108: 0.01152 | AF108: 0 | AG108: =(AF108+AE108+AD108+AC108*(1+RdsonTopTc*Ta-RdsonTopTc*25))/(1-AC108*RdsonTopTc*ThetaJA_Q1) -> 0.8947621351 | AH108: 6.884725541 | AI108: =Rdson2*AH108^2 -> 0.8531900239 | AJ108: 0.0709632 | AK108: =(AJ108+AI108*(1+RdsonBotTc*Ta-RdsonBotTc*25))/(1-AI108*RdsonBotTc*ThetaJA_Q2) -> 1.015090015 | AL108: 0.0709632 | AM108: 0.57024 | AN108: 0.3183252385 | AO108: 0.0001056 | AP108: =CHOOSE(Ext_VCC, (Qg_Q1+Qg_Q2)*Fsw*'Design Regulator'!$G$102, (Qg_Q1+Qg_Q2)*Fsw*Vout, (Qg_Q1+Qg_Q2)*Fsw*Vin) -> 0.03408 | AQ108: 0.1223389091 | AR108: 0.1136 | AS108: 0.0341856 | AT108: 4.114263977 | AU108: 2.58524095 | AV108: 95.04 | AW108: 0.9585064342 | AX108: 19.06680803 | AY108: 18.04903822 | BA108: 95.85064342 | BB108: 1.197649191 | BC108: 2.48009215 | BD108: 1.271120535 | BE108: 1.203269215 | BF108: 0.3183252385 | BG108: 2.51427775 | BH108: 49.2798439
G109: 100 | H109: 48 | I109: 1 | J109: 8 | K109: 8 | L109: =Vout*K109/(Vin*Efficiency) -> 2.222222222 | M109: 0.2555425904 | N109: =(Vin-(Rdson1+Rdcr)*K109-Vout)*M109/(Fsw*Lf) -> 3.356627085 | O109: 9.678313542 | P109: 6.321686458 | Q109: =IF(MIN(Vin, -P109/(Coss_Q1+Coss_Q2)*0.00000002)<0, 0, MIN(Vin, -P109/(Coss_Q1+Coss_Q2)*0.00000002)) -> 0 | R109: 8.058468348 | S109: =R109^2*Rdcr -> 0.6493891212 | T109: 0.5 | U109: =(T109+S109*(1+Ltc*(Ta-25)))/(1-S109*Ltc*ThetaCa) -> 1.212373283 | V109: 0.9689747755 | W109: 0.0009389121156 | X109: 0.0009389121156 | Y109: 3.514828015 | Z109: 0.01235401597 | AA109: 0.01235401597 | AB109: 4.073654112 | AC109: =Rdson1*AB109^2 -> 0.3982717877 | AD109: 0.4608 | AE109: 0.01152 | AF109: 0 | AG109: =(AF109+AE109+AD109+AC109*(1+RdsonTopTc*Ta-RdsonTopTc*25))/(1-AC109*RdsonTopTc*ThetaJA_Q1) -> 0.9085875922 | AH109: 6.953003257 | AI109: =Rdson2*AH109^2 -> 0.8701965773 | AJ109: 0.07168 | AK109: =(AJ109+AI109*(1+RdsonBotTc*Ta-RdsonBotTc*25))/(1-AI109*RdsonBotTc*ThetaJA_Q2) -> 1.036590517 | AL109: 0.07168 | AM109: 0.576 | AN109: 0.3246945606 | AO109: 0.0001056 | AP109: =CHOOSE(Ext_VCC, (Qg_Q1+Qg_Q2)*Fsw*'Design Regulator'!$G$102, (Qg_Q1+Qg_Q2)*Fsw*Vout, (Qg_Q1+Qg_Q2)*Fsw*Vin) -> 0.03408 | AQ109: 0.1223389091 | AR109: 0.1136 | AS109: 0.0341856 | AT109: 4.177404481 | AU109: 2.627043709 | AV109: 96 | AW109: 0.958299933 | AX109: 19.33121388 | AY109: 18.40005775 | BA109: 95.8299933 | BB109: 1.212373283 | BC109: 2.521178109 | BD109: 1.288747592 | BE109: 1.226670517 | BF109: 0.3246945606 | BG109: 2.555363709 | BH109: 50.0851287

Sheet Bode Plot Management (hidden)
J1: Single or dual output (MODE) | N1: 3.3V or 5V fixed (FB1/2)
A2: =CHOOSE(BODE_PLOT_TYPE, "BODE_PLOT_Ch1", "BODE_PLOT_Ch2") -> BODE_PLOT_Ch1 | J2: With/without dither (DITH) | N2: With/without VOUT connected to VCCX
J3: FPWM or DEM (DEMB)
J4: Shunt or inductor DCR current sensing
F6: =INDIRECT(A2) -> 0

Sheet Stability Calculations (hidden)
A2: Divider Network & EA Poles/Zeros | E2: Modulator | J2: Power Stage Poles/Zeros | M2: Complex Pole Pair | P2: Feedback natural frequencies | T2: Total System
B3: Afb1 | C3: =Afb -> 0.06749667855 | D3: V/V | E3: Acs | F3: =Acs -> 20 | G3: A/V | H3: gm | I3: =gm -> 0.0012 | J3: z_ESR | K3: =Fesr -> 1591549.433 | L3: Hz | M3: p3 | N3: =Fsw/2 -> 200000 | O3: Hz | P3: zterm1 | Q3: =((1/wffHz)+(1/wfftHz)) -> 5.810941093e-06 | T3: Adc | U3: =IF(VOUT_setting=1,Am*Afb*AEA,Am*AEA) -> 1802511.263 | V3: V/V
B4: EA zero, z1 | C4: =Fz1_u -> 3827.680213 | D4: Hz | E4: Am | F4: =Am -> 23.47019874 | G4: V/V | J4: p_dom | K4: =Fp_dominant -> 1356.230043 | L4: Hz | M4: pterm1 | N4: =Q*pole3 -> 126188.356 | P4: pterm3 | Q4: =((1/wfbtHz)+(1/wffHz)+(1/wfftHz)+(Afbr/wffHz)) -> 4.101985262e-05 | T4: Crossover | U4: =AI7 -> 38.6835 | V4: kHz
B5: EA pole, p1 | C5: =Fp1_u -> 0.9208139805 | D5: Hz | E5: Q | F5: =Q -> 0.63094178 | M5: pterm2 | N5: =pole3^2 -> 40000000000 | P5: pterm4 | Q5: =1/(wffHz*wfbtHz) -> 1.593743715e-12 | T5: Phase Margin | U5: =AI9 -> 66.19877616 | V5: ° | AH5: Gain | AK5: Phase
B6: Aea | C6: =AEA -> 76800 | D6: V/V | E6: mc | F6: =mc -> 1.343434343 | P6: Afbr | Q6: =Rfb1_/Rfb2_u -> 14.12429379 | T6: radconv | U6: =180/Pi -> 57.29577958 | AH6: XOVER SEARCH | AK6: XOVER SEARCH
B7: EA pole, p2 | C7: =Fp2_u -> 207395.7763 | D7: Hz | E7: k | F7: =k -> 1.004499617 | T7: Gain Margin | U7: =AL9 -> -14.55137144 | AH7: xover | AI7: =SUM(AH12:AH613)/1000 -> 38.6835 | AK7: Phase xover | AL7: =SUM(AK12:AK613)/1000 -> 158.49
AH9: phase margin | AI9: =SUM(AI13:AI613) -> 66.19877616 | AK9: gain margin | AL9: =SUM(AL13:AL613) -> -14.55137144
A10: Freq (Hz) | C10: Power Stage | I10: Error Amplifier | O10: Feedback Gain | S10: Sampling Double Pole | U10: System Response | AB10: ERROR AMP Response | AE10: PLANT Response
C11: p_dom | E11: z_ESR | G11: z_RHP | I11: p1 | K11: z1 | M11: p2 | O11: z1 | Q11: p1p2 | S11: p3
C12: Gain(V/V) | D12: Phase(rad) | E12: Gain(V/V) | F12: Phase(rad) | G12: Gain(V/V) | H12: Phase(rad) | I12: Gain(V/V) | J12: Phase(rad) | K12: Gain(V/V) | L12: Phase(rad) | M12: Gain(V/V) | N12: Phase(rad) | O12: Gain(V/V) | P12: Phase(rad) | Q12: Gain(V/V) | R12: Phase(rad) | S12: Gain(V/V) | T12: Phase(rad) | U12: Gain (dB) | V12: Phase (°) | W12: Phase Margin (°) | Z12: Fsquare | AB12: Gain(dB) | AC12: Phase(Deg) | AE12: Gain(dB) | AF12: Phase(Deg)
A13: 1 | B13: =A13/1000 -> 0.001 | C13: =SQRT(1+(A13/pole1)^2) -> 1.000000272 | D13: =ATAN(A13/pole1) -> 0.000737337905 | E13: =SQRT(1+(A13/Zero1)^2) -> 1 | F13: =ATAN(A13/Zero1) -> 6.2831853e-07 | G13: =IF(VIN_nom>Vout, 1, SQRT(1+(A13/z_RHP)^2)) -> 1 | H13: =IF(VIN_nom>Vout, 0, -ATAN(A13/z_RHP)) -> 0 | I13: =SQRT(1+(A13/Pole2)^2) -> 1.47627457 | J13: =ATAN(A13/Pole2) -> 0.8266000739 | K13: =SQRT(1+(A13/Zero2)^2) -> 1.000000034 | L13: =ATAN(A13/Zero2) -> 0.0002612548388 | M13: =SQRT(1+(A13/pole4)^2) -> 1 | N13: =ATAN(A13/pole4) -> 4.821698965e-06 | O13: =IF(VOUT_setting=1,1,SQRT(1+(A13*zterm1)^2)) -> 1 | P13: =IF(VOUT_setting=1,0,ATAN(((A13*zterm1)))) -> 5.810941093e-06 | Q13: =IF(VOUT_setting=1,1,SQRT((1+Afbr-pterm4*(A13)^2)^2+(A13*$Q$4)^2)) -> 15.12429379 | R13: =IF(VOUT_setting=1,0,ATAN(A13*$Q$4/(1+Afbr-$Q$5*(A13)^2))) -> 2.712183008e-06 | S13: =SQRT((1-(Z13/pterm2))^2+(A13/pterm1)^2) -> 1 | T13: =IF((ATAN((A13/pterm1)/(1-A13^2/pterm2))>0),ATAN((A13/pterm1)/(1-A13^2/pterm2)),PI()+ATAN((A13/pterm1)/(1-A13^2/pterm2))) -> 7.924661449e-06 | U13: =20*LOG10(((E13*K13*G13*O13)/(C13*I13*S13*M13*Q13))*Adc) -> 98.14071281 | V13: =((F13+L13+H13+P13)-(D13+J13+T13+N13+R13))*radconv -> -47.38848995 | W13: =IF(V13>0,V13,V13+180) -> 132.61151 | Y13: =IF(U13<0,A13,1000000000) -> 1000000000 | Z13: =A13^2 -> 1 | AB13: =20*LOG10((K13/(I13*M13))*AEA) -> 94.32388192 | AC13: =(L13-(J13+N13))*radconv -> -47.3460031 | AE13: =20*LOG10((E13*G13/(C13*S13))*Acs*Am) -> 53.43093289 | AF13: =(F13+H13-(D13+T13))*radconv -> -0.04266439973 | AH13: =SUM((U14<0)*(U13>0))*A13 -> 0 | AI13: =IF(AH13>0,W11,0) -> 0 | AK13: =SUM((V14<-182)*(V13>-182))*A13 -> 0 | AL13: =IF(AK13>0,U13,0) -> 0
A14: 1.0965 | B14: =A14/1000 -> 0.0010965 | C14: 1.000000327 | D14: 0.0008084909831 | E14: 1 | F14: 6.889512681e-07 | G14: 1 | H14: 0 | I14: 1.554989056 | J14: 0.8722680645 | K14: 1.000000041 | L14: 0.0002864659295 | M14: 1 | N14: 5.286992915e-06 | O14: 1 | P14: 6.371696908e-06 | Q14: =IF(VOUT_setting=1,1,SQRT((1+Afbr-pterm4*(A14)^2)^2+(A14*$Q$4)^2)) -> 15.12429379 | R14: 2.973908669e-06 | S14: 1 | T14: 8.689391278e-06 | U14: 97.68950843 | V14: -50.00775522 | W14: 129.9922448 | Y14: 1000000000 | Z14: 1.20231225 | AB14: 93.87267802 | AC14: -49.96116839 | AE14: 53.43093242 | AF14: -0.04678151261 | AH14: 0 | AI14: 0 | AK14: =SUM((V15<-183)*(V14>-183))*A14 -> 0 | AL14: =IF(AK14>0,U14,0) -> 0
A15: 1.2023 | B15: 0.0012023 | C15: 1.000000393 | D15: 0.0008865012916 | E15: 1 | F15: 7.554273686e-07 | G15: 1 | H15: 0 | I15: 1.6446377 | J15: 0.9172110996 | K15: 1.000000049 | L15: 0.0003141066895 | M15: 1 | N15: 5.797128666e-06 | O15: 1 | P15: 6.986494476e-06 | Q15: =IF(VOUT_setting=1,1,SQRT((1+Afbr-$Q$5*(A15)^2)^2+(A15*$Q$4)^2)) -> 15.12429379 | R15: 3.260857631e-06 | S15: 1 | T15: 9.52782046e-06 | U15: 97.20264983 | V15: -52.58574209 | W15: 127.4142579 | Y15: 1000000000 | Z15: 1.44552529 | AB15: 93.38582 | AC15: -52.53466015 | AE15: 53.43093184 | AF15: -0.0512954037 | AH15: 0 | AI15: 0 | AK15: 0 | AL15: 0
A16: 1.3183 | B16: 0.0013183 | C16: 1.000000472 | D16: 0.0009720324301 | E16: 1 | F16: 8.283123181e-07 | G16: 1 | H16: 0 | I16: 1.746331453 | J16: 0.9610872505 | K16: 1.000000059 | L16: 0.0003444122482 | M16: 1 | N16: 6.356445746e-06 | O16: 1 | P16: 7.660563643e-06 | Q16: 15.12429379 | R16: 3.57547086e-06 | S16: 1 | T16: 1.044708119e-05 | U16: 96.68152054 | V16: -55.1028845 | W16: 124.8971155 | Y16: 1000000000 | Z16: 1.73791489 | AB16: 92.86469139 | AC16: -55.04687409 | AE16: 53.43093115 | AF16: -0.05624447072 | AH16: 0 | AI16: 0 | AK16: 0 | AL16: 0
A17: 1.4454 | B17: 0.0014454 | C17: 1.000000568 | D17: 0.001065747997 | E17: 1 | F17: 9.081716033e-07 | G17: 1 | H17: 0 | I17: 1.861169599 | J17: 1.003567949 | K17: 1.000000071 | L17: 0.0003776177347 | M17: 1 | N17: 6.969283684e-06 | O17: 1 | P17: 8.399134255e-06 | Q17: 15.12429379 | R17: 3.92018932e-06 | S17: 1 | T17: 1.145430566e-05 | U17: 96.12833433 | V17: -57.54038189 | W17: 122.4596181 | Y17: 1000000000 | Z17: 2.08918116 | AB17: 92.31150602 | AC17: -57.47897141 | AE17: 53.43093032 | AF17: -0.06166711132 | AH17: 0 | AI17: 0 | AK17: 0 | AL17: 0
A18: 1.5849 | B18: 0.0015849 | C18: 1.000000683 | D18: 0.001168606525 | E18: 1 | F18: 9.958220382e-07 | G18: 1 | H18: 0 | I18: 1.990605602 | J18: 1.044470673 | K18: 1.000000086 | L18: 0.0004140627798 | M18: 1 | N18: 7.64191069e-06 | O18: 1 | P18: 9.209760538e-06 | Q18: 15.12429379 | R18: 4.29853885e-06 | S18: 1 | T18: 1.255979593e-05 | U18: 95.54434802 | V18: -59.88781268 | W18: 120.1121873 | Y18: 1000000000 | Z18: 2.51190801 | AB18: 91.72752071 | AC18: -59.82047528 | AE18: 53.43092932 | AF18: -0.06761878879 | AH18: 0 | AI18: 0 | AK18: 0 | AL18: 0
A19: 1.7378 | B19: 0.0017378 | C19: 1.000000821 | D19: 0.001281345342 | E19: 1 | F19: 1.091891941e-06 | G19: 1 | H19: 0 | I19: 2.135810668 | J19: 1.083536596 | K19: 1.000000103 | L19: 0.0004540086381 | M19: 1 | N19: 8.379148461e-06 | O19: 1 | P19: 1.009825343e-05 | Q19: 15.12429379 | R19: 4.713231632e-06 | S19: 1 | T19: 1.377147667e-05 | U19: 94.93279638 | V19: -62.13037488 | W19: 117.8696251 | Y19: 1000000000 | Z19: 3.01994884 | AB19: 91.11597027 | AC19: -62.05654125 | AE19: 53.43092813 | AF19: -0.07414216698 | AH19: 0 | AI19: 0 | AK19: 0 | AL19: 0
A20: 1.9055 | B20: 0.0019055 | C20: 1.000000987 | D20: 0.001404996708 | E20: 1 | F20: 1.197260959e-06 | G20: 1 | H20: 0 | I20: 2.29831906 | J20: 1.120646324 | K20: 1.000000124 | L20: 0.0004978210656 | M20: 1 | N20: 9.187747378e-06 | O20: 1 | P20: 1.107274825e-05 | Q20: 15.12429379 | R20: 5.168064722e-06 | S20: 1 | T20: 1.510044239e-05 | U20: 94.29584378 | V20: -64.26126678 | W20: 115.7387332 | Y20: 1000000000 | Z20: 3.63093025 | AB20: 90.4790191 | AC20: -64.18030812 | AE20: 53.43092668 | AF20: -0.08129697531 | AH20: 0 | AI20: 0 | AK20: 0 | AL20: 0
A21: 2.0893 | B21: 0.0020893 | C21: 1.000001187 | D21: 0.001540519145 | E21: 1 | F21: 1.312745905e-06 | G21: 1 | H21: 0 | I21: 2.479562123 | J21: 1.155679308 | K21: 1.000000149 | L21: 0.000545839693 | M21: 1 | N21: 1.007397565e-05 | O21: 1 | P21: 1.214079922e-05 | Q21: 15.12429379 | R21: 5.666563959e-06 | S21: 1 | T21: 1.655699516e-05 | U21: 93.63654876 | V21: -66.27361749 | W21: 113.7263825 | Y21: 1000000000 | Z21: 4.36517449 | AB21: 89.81972582 | AC21: -66.18484975 | AE21: 53.43092495 | AF21: -0.08913867653 | AH21: 0 | AI21: 0 | AK21: 0 | AL21: 0
A22: 2.2909 | B22: 0.0022909 | C22: 1.000001427 | D22: 0.001689166106 | E22: 1 | F22: 1.43941492e-06 | G22: 1 | H22: 0 | I22: 2.681358552 | J22: 1.188615035 | K22: 1.000000179 | L22: 0.0005985086524 | M22: 1 | N22: 1.104603016e-05 | O22: 1 | P22: 1.331228495e-05 | Q22: 15.12429379 | R22: 6.213340054e-06 | S22: 1 | T22: 1.815460691e-05 | U22: 92.95694897 | V22: -68.16629897 | W22: 111.833701 | Y22: 1000000000 | Z22: 5.24822281 | AB22: 89.14012812 | AC22: -68.06896591 | AE22: 53.43092286 | AF22: -0.09773979884 | AH22: 0 | AI22: 0 | AK22: 0 | AL22: 0
A23: 2.5119 | B23: 0.0025119 | C23: 1.000001715 | D23: 0.001852117301 | E23: 1 | F23: 1.578273316e-06 | G23: 1 | H23: 0 | I23: 2.905427129 | J23: 1.219427342 | K23: 1.000000215 | L23: 0.0006562459504 | M23: 1 | N23: 1.211162563e-05 | O23: 1 | P23: 1.459650293e-05 | Q23: 15.12429379 | R23: 6.812732498e-06 | S23: 1 | T23: 1.990595709e-05 | U23: 92.25984487 | V23: -69.93785662 | W23: 110.0621434 | Y23: 1000000000 | Z23: 6.30964161 | AB23: 88.44302652 | AC23: -69.831134 | AE23: 53.43092036 | AF23: -0.1071686036 | AH23: 0 | AI23: 0 | AK23: 0 | AL23: 0
A24: 2.7542 | B24: 0.0027542 | C24: 1.000002062 | D24: 0.002030773634 | E24: 1 | F24: 1.730514895e-06 | G24: 1 | H24: 0 | I24: 3.153787539 | J24: 1.248148291 | K24: 1.000000259 | L24: 0.0007195479693 | M24: 1 | N24: 1.327992329e-05 | O24: 1 | P24: 1.600449396e-05 | Q24: 15.12429379 | R24: 7.469894441e-06 | S24: 1 | T24: 2.182610256e-05 | U24: 91.54739333 | V24: -71.59018036 | W24: 108.4098196 | Y24: 1000000000 | Z24: 7.58561764 | AB24: 87.73057799 | AC24: -71.47316321 | AE24: 53.43091735 | AF24: -0.1175061509 | AH24: 0 | AI24: 0 | AK24: 0 | AL24: 0
A25: 3.02 | B25: 0.00302 | C25: 1.000002479 | D25: 0.002226757196 | E25: 1 | F25: 1.897521961e-06 | G25: 1 | H25: 0 | I25: 3.428772025 | J25: 1.274845363 | K25: 1.000000311 | L25: 0.0007889894675 | M25: 1 | N25: 1.456153087e-05 | O25: 1 | P25: 1.75490421e-05 | Q25: 15.12429379 | R25: 8.190792685e-06 | S25: 1 | T25: 2.393247758e-05 | U25: 90.82126661 | V25: -73.12719755 | W25: 106.8728024 | Y25: 1000000000 | Z25: 9.1204 | AB25: 87.0044549 | AC25: -72.99888744 | AE25: 53.43091372 | AF25: -0.1288462994 | AH25: 0 | AI25: 0 | AK25: 0 | AL25: 0
A26: 3.3113 | B26: 0.0033113 | C26: 1.000002981 | D26: 0.002441542596 | E26: 1 | F26: 2.080551148e-06 | G26: 1 | H26: 0 | I26: 3.732509797 | J26: 1.299566773 | K26: 1.000000374 | L26: 0.0008650929517 | M26: 1 | N26: 1.596609178e-05 | O26: 1 | P26: 1.924176924e-05 | Q26: 15.12429379 | R26: 8.980851595e-06 | S26: 1 | T26: 2.624093146e-05 | U26: 90.08401588 | V26: -74.55172648 | W26: 105.4482735 | Y26: 1000000000 | Z26: 10.96470769 | AB26: 86.26720852 | AC26: -74.41104001 | AE26: 53.43090937 | AF26: -0.1412743742 | AH26: 0 | AI26: 0 | AK26: 0 | AL26: 0
A27: 3.6308 | B27: 0.0036308 | C27: 1.000003583 | D27: 0.002677120555 | E27: 1 | F27: 2.281298919e-06 | G27: 1 | H27: 0 | I27: 4.067863075 | J27: 1.322421155 | K27: 1.00000045 | L27: 0.0009485638059 | M27: 1 | N27: 1.75066246e-05 | O27: 1 | P27: 2.109836492e-05 | Q27: 15.12429379 | R27: 9.847394066e-06 | S27: 1 | T27: 2.877286079e-05 | U27: 89.33670391 | V27: -75.87006632 | W27: 104.1299337 | Y27: 1000000000 | Z27: 13.18270864 | AB27: 85.51990179 | AC27: -75.71580539 | AE27: 53.43090413 | AF27: -0.1549055639 | AH27: 0 | AI27: 0 | AK27: 0 | AL27: 0
A28: 3.9811 | B28: 0.0039811 | C28: 1.000004308 | D28: 0.002935408034 | E28: 1 | F28: 2.5013989e-06 | G28: 1 | H28: 0 | I28: 4.437598869 | J28: 1.34349705 | K28: 1.000000541 | L28: 0.001040081287 | M28: 1 | N28: 1.919566575e-05 | O28: 1 | P28: 2.313393758e-05 | Q28: 15.12429379 | R28: 1.079747177e-05 | S28: 1 | T28: 3.154886969e-05 | U28: 88.58106408 | V28: -77.08736237 | W28: 102.9126376 | Y28: 1000000000 | Z28: 15.84915721 | AB28: 84.76426825 | AC28: -76.9182184 | AE28: 53.43089783 | AF28: -0.1698507892 | AH28: 0 | AI28: 0 | AK28: 0 | AL28: 0
A29: 4.3652 | B29: 0.0043652 | C29: 1.00000518 | D29: 0.003218616892 | E29: 1 | F29: 2.742736047e-06 | G29: 1 | H29: 0 | I29: 4.844912549 | J29: 1.362899906 | K29: 1.00000065 | L29: 0.001140429154 | M29: 1 | N29: 2.104768032e-05 | O29: 1 | P29: 2.536592005e-05 | Q29: 15.12429379 | R29: 1.183922127e-05 | S29: 1 | T29: 3.459273216e-05 | U29: 87.81829945 | V29: -78.2097398 | W29: 101.7902602 | Y29: 1000000000 | Z29: 19.05497104 | AB29: 84.0015112 | AC29: -78.02427679 | AE29: 53.43089026 | AF29: -0.1862380343 | AH29: 0 | AI29: 0 | AK29: 0 | AL29: 0
A30: 4.7863 | B30: 0.0047863 | C30: 1.000006227 | D30: 0.003529106403 | E30: 1 | F30: 3.00732098e-06 | G30: 1 | H30: 0 | I30: 5.293219797 | J30: 1.380733156 | K30: 1.000000782 | L30: 0.001250443412 | M30: 1 | N30: 2.307809775e-05 | O30: 1 | P30: 2.781290735e-05 | Q30: 15.12429379 | R30: 1.298132153e-05 | S30: 1 | T30: 3.792980709e-05 | U30: 87.04961178 | V30: -79.24321373 | W30: 100.7567863 | Y30: 1000000000 | Z30: 22.90866769 | AB30: 83.23283263 | AC30: -79.0398597 | AE30: 53.43088116 | AF30: -0.2042038136 | AH30: 0 | AI30: 0 | AK30: 0 | AL30: 0
A31: 5.2481 | B31: 0.0052481 | C31: 1.000007487 | D31: 0.003869604446 | E31: 1 | F31: 3.297478477e-06 | G31: 1 | H31: 0 | I31: 5.786477236 | J31: 1.397107626 | K31: 1.00000094 | L31: 0.001371090692 | M31: 1 | N31: 2.530475833e-05 | O31: 1 | P31: 3.049639994e-05 | Q31: 15.12429379 | R31: 1.423380764e-05 | S31: 1 | T31: 4.158941575e-05 | U31: 86.2757158 | V31: -80.19423692 | W31: 99.80576308 | Y31: 1000000000 | Z31: 27.54255361 | AB31: 82.45894758 | AC31: -79.97126273 | AE31: 53.43087022 | AF31: -0.2239059698 | AH31: 0 | AI31: 0 | AK31: 0 | AL31: 0
A32: 5.7544 | B32: 0.0057544 | C32: 1.000009001 | D32: 0.004242912548 | E32: 1 | F32: 3.615596149e-06 | G32: 1 | H32: 0 | I32: 6.328757338 | J32: 1.412122429 | K32: 1.00000113 | L32: 0.001503363746 | M32: 1 | N32: 2.774598452e-05 | O32: 1.000000001 | P32: 3.343847941e-05 | Q32: 15.12429379 | R32: 1.56069859e-05 | S32: 1 | T32: 4.560167185e-05 | U32: 85.4976204 | V32: -81.06859372 | W32: 98.93140628 | Y32: 1000000000 | Z32: 33.11311936 | AB32: 81.68086533 | AC32: -80.82410878 | AE32: 53.43085707 | AF32: -0.2455066071 | AH32: 0 | AI32: 0 | AK32: 0 | AL32: 0
A33: 6.3096 | B33: 0.0063096 | C33: 1.000010822 | D33: 0.004652274524 | E33: 1 | F33: 3.964438597e-06 | G33: 1 | H33: 0 | I33: 6.924783149 | J33: 1.425880788 | K33: 1.000001359 | L33: 0.001648412076 | M33: 1 | N33: 3.042299178e-05 | O33: 1.000000001 | P33: 3.66647139e-05 | Q33: 15.12429379 | R33: 1.711278991e-05 | S33: 1 | T33: 5.000144388e-05 | U33: 84.71585189 | V33: -81.87232058 | W33: 98.12767942 | Y33: 1000000000 | Z33: 39.81105216 | AB33: 80.89911264 | AC33: -81.6042474 | AE33: 53.43084126 | AF33: -0.2691934218 | AH33: 0 | AI33: 0 | AK33: 0 | AL33: 0
A34: 6.9183 | B34: 0.0069183 | C34: 1.000013011 | D34: 0.005101081507 | E34: 1 | F34: 4.346896086e-06 | G34: 1 | H34: 0 | I34: 7.579500877 | J34: 1.438475728 | K34: 1.000001633 | L34: 0.001807437424 | M34: 1.000000001 | N34: 3.335795994e-05 | O34: 1.000000001 | P34: 4.020183374e-05 | Q34: 15.12429379 | R34: 1.87636957e-05 | S34: 1 | T34: 5.482518531e-05 | U34: 83.93114667 | V34: -82.61087529 | W34: 97.38912471 | Y34: 1000000000 | Z34: 47.86287489 | AB34: 80.11442643 | AC34: -82.31694097 | AE34: 53.43082224 | AF34: -0.2951626346 | AH34: 0 | AI34: 0 | AK34: 0 | AL34: 0
A35: 7.5858 | B35: 0.0075858 | C35: 1.000015642 | D35: 0.005593240565 | E35: 1 | F35: 4.766298705e-06 | G35: 1 | H35: 0 | I35: 8.298617315 | J35: 1.450000773 | K35: 1.000001964 | L35: 0.001981824407 | M35: 1.000000001 | N35: 3.657644399e-05 | O35: 1.000000001 | P35: 4.408063691e-05 | Q35: 15.12429379 | R35: 2.057407786e-05 | S35: 1 | T35: 6.011489683e-05 | U35: 83.14382408 | V35: -83.28976367 | W35: 96.71023633 | Y35: 1000000000 | Z35: 57.54436164 | AB35: 79.3271267 | AC35: -82.96747018 | AE35: 53.43079939 | AF35: -0.3236403196 | AH35: 0 | AI35: 0 | AK35: 0 | AL35: 0
A36: 8.3176 | B36: 0.0083176 | C36: 1.000018806 | D36: 0.006132805981 | E36: 1 | F36: 5.226102205e-06 | G36: 1 | H36: 0 | I36: 9.088062399 | J36: 1.460538611 | K36: 1.000002361 | L36: 0.002173009877 | M36: 1.000000001 | N36: 4.010496329e-05 | O36: 1.000000001 | P36: 4.83330836e-05 | Q36: 15.12429379 | R36: 2.255885339e-05 | S36: 1 | T36: 6.591416408e-05 | U36: 82.3544888 | V36: -83.91387616 | W36: 96.08612384 | Y36: 1000000000 | Z36: 69.18246976 | AB36: 78.5378189 | AC36: -83.56049185 | AE36: 53.43077191 | AF36: -0.3548610695 | AH36: 0 | AI36: 0 | AK36: 0 | AL36: 0
A37: 9.1201 | B37: 0.0091201 | C37: 1.00002261 | D37: 0.006724495286 | E37: 1 | F37: 5.730327825e-06 | G37: 1 | H37: 0 | I37: 9.954743818 | J37: 1.470171986 | K37: 1.000002839 | L37: 0.002382665801 | M37: 1.000000001 | N37: 4.39743767e-05 | O37: 1.000000001 | P37: 5.299636381e-05 | Q37: 15.12429379 | R37: 2.473538025e-05 | S37: 1.000000001 | T37: 7.22737049e-05 | U37: 81.56328415 | V37: -84.4881315 | W37: 95.5118685 | Y37: 1000000000 | Z37: 83.17622401 | AB37: 77.74664729 | AC37: -84.10065288 | AE37: 53.43073887 | AF37: -0.3890978543 | AH37: 0 | AI37: 0 | AK37: 0 | AL37: 0
A38: 10 | B38: 0.01 | C38: 1.000027183 | D38: 0.007373246768 | E38: 1 | F38: 6.2831853e-06 | G38: 1 | H38: 0 | I38: 10.90590026 | J38: 1.478973865 | K38: 1.000003413 | L38: 0.002612542504 | M38: 1.000000001 | N38: 4.821698961e-05 | O38: 1.000000002 | P38: 5.810941086e-05 | Q38: 15.12429379 | R38: 2.712183008e-05 | S38: 1.000000001 | T38: 7.924661452e-05 | U38: 80.77062075 | V38: -85.0168965 | W38: 94.9831035 | Y38: 1000000000 | Z38: 100 | AB38: 76.9540236 | AC38: -84.59203554 | AE38: 53.43069915 | AF38: -0.4266364182 | AH38: 0 | AI38: 0 | AK38: 0 | AL38: 0
A39: 10.965 | B39: 0.010965 | C39: 1.000032682 | D39: 0.008084735441 | E39: 1 | F39: 6.889512681e-06 | G39: 1 | H39: 0 | I39: 11.94985759 | J39: 1.487015342 | K39: 1.000004103 | L39: 0.002864651537 | M39: 1.000000001 | N39: 5.28699291e-05 | O39: 1.000000002 | P39: 6.3716969e-05 | Q39: 15.12429379 | R39: 2.973908668e-05 | S39: 1.000000001 | T39: 8.689391283e-05 | U39: 79.97655482 | V39: -85.5044584 | W39: 94.4955416 | Y39: 1000000000 | Z39: 120.231225 | AB39: 76.16000544 | AC39: -85.03860006 | AE39: 53.43065138 | AF39: -0.4678051343 | AH39: 0 | AI39: 0 | AK39: 0 | AL39: 0
A40: 12.023 | B40: 0.012023 | C40: 1.000039293 | D40: 0.008864783019 | E40: 1 | F40: 7.554273686e-06 | G40: 1 | H40: 0 | I40: 13.09516386 | J40: 1.494357843 | K40: 1.000004933 | L40: 0.003141056669 | M40: 1.000000002 | N40: 5.797128659e-05 | O40: 1.000000002 | P40: 6.986494465e-05 | Q40: 15.12429379 | R40: 3.26085763e-05 | S40: 1.000000001 | T40: 9.527820465e-05 | U40: 79.18154046 | V40: -85.95455603 | W40: 94.04544397 | Y40: 1000000000 | Z40: 144.552529 | AB40: 75.36504849 | AC40: -85.4437498 | AE40: 53.43059396 | AF40: -0.5129408649 | AH40: 0 | AI40: 0 | AK40: 0 | AL40: 0
A41: 13.183 | B41: 0.013183 | C41: 1.000047241 | D41: 0.009720021239 | E41: 1 | F41: 8.283123181e-06 | G41: 1 | H41: 0 | I41: 14.35156278 | J41: 1.501060997 | K41: 1.000005931 | L41: 0.003444109001 | M41: 1.000000002 | N41: 6.356445737e-05 | O41: 1.000000003 | P41: 7.660563628e-05 | Q41: 15.12429379 | R41: 3.575470858e-05 | S41: 1.000000001 | T41: 0.0001044708119 | U41: 78.38571493 | V41: -86.37085584 | W41: 93.62914416 | Y41: 1000000000 | Z41: 173.791489 | AB41: 74.569292 | AC41: -85.81076909 | AE41: 53.43052492 | AF41: -0.562427343 | AH41: 0 | AI41: 0 | AK41: 0 | AL41: 0
A42: 14.454 | B42: 0.014454 | C42: 1.000056789 | D42: 0.01065708054 | E42: 1 | F42: 9.081716032e-06 | G42: 1 | H42: 0 | I42: 15.72880249 | J42: 1.507175786 | K42: 1.00000713 | L42: 0.003776159578 | M42: 1.000000002 | N42: 6.969283673e-05 | O42: 1.000000004 | P42: 8.399134236e-05 | Q42: 15.1242938 | R42: 3.920189318e-05 | S42: 1.000000001 | T42: 0.0001145430567 | U42: 77.58971314 | V42: -86.75652872 | W42: 93.24347128 | Y42: 1000000000 | Z42: 208.918116 | AB42: 73.77337313 | AC42: -86.14244674 | AE42: 53.43044199 | AF42: -0.6166482272 | AH42: 0 | AI42: 0 | AK42: 0 | AL42: 0
A43: 15.849 | B43: 0.015849 | C43: 1.00006828 | D43: 0.01168553865 | E43: 1 | F43: 9.958220382e-06 | G43: 1 | H43: 0 | I43: 17.24097057 | J43: 1.512762381 | K43: 1.000008572 | L43: 0.004140604372 | M43: 1.000000003 | N43: 7.641910675e-05 | O43: 1.000000004 | P43: 9.209760512e-05 | Q43: 15.1242938 | R43: 4.298538847e-05 | S43: 1.000000002 | T43: 0.0001255979594 | U43: 76.79230484 | V43: -87.11538309 | W43: 92.88461691 | Y43: 1000000000 | Z43: 251.190801 | AB43: 72.97606462 | AC43: -86.4420393 | AE43: 53.43034219 | AF43: -0.6761577158 | AH43: 0 | AI43: 0 | AK43: 0 | AL43: 0
A44: 17.378 | B44: 0.017378 | C44: 1.000082089 | D44: 0.01281275925 | E44: 1 | F44: 1.091891941e-05 | G44: 1 | H44: 0 | I44: 18.89890793 | J44: 1.517858494 | K44: 1.000010306 | L44: 0.004540055499 | M44: 1.000000004 | N44: 8.379148442e-05 | O44: 1.000000005 | P44: 0.000100982534 | Q44: 15.1242938 | R44: 4.713231628e-05 | S44: 1.000000002 | T44: 0.0001377147668 | U44: 75.99469998 | V44: -87.44985711 | W44: 92.55014289 | Y44: 1000000000 | Z44: 301.994884 | AB44: 72.1785797 | AC44: -86.7115606 | AE44: 53.43022225 | AF44: -0.7413818964 | AH44: 0 | AI44: 0 | AK44: 0 | AL44: 0
A45: 19.055 | B45: 0.019055 | C45: 1.000098696 | D45: 0.01404905194 | E45: 1 | F45: 1.197260959e-05 | G45: 1 | H45: 0 | I45: 20.7177955 | J45: 1.522509881 | K45: 1.000012391 | L45: 0.004978169943 | M45: 1.000000004 | N45: 9.187747352e-05 | O45: 1.000000006 | P45: 0.0001107274821 | Q45: 15.1242938 | R45: 5.168064718e-05 | S45: 1.000000002 | T45: 0.0001510044241 | U45: 75.1964372 | V45: -87.76296081 | W45: 92.23703919 | Y45: 1000000000 | Z45: 363.093025 | AB45: 71.38046115 | AC45: -86.95342663 | AE45: 53.43007802 | AF45: -0.8129173193 | AH45: 0 | AI45: =IF(AH45>0,W43,0) -> 0 | AK45: 0 | AL45: 0
A46: 20.893 | B46: 0.020893 | C46: 1.000118653 | D46: 0.01540398516 | E46: 1 | F46: 1.312745905e-05 | G46: 1 | H46: 0 | I46: 22.71173336 | J46: 1.526751983 | K46: 1.000014897 | L46: 0.005458343263 | M46: 1.000000005 | N46: 0.0001007397561 | O46: 1.000000007 | P46: 0.0001214079917 | Q46: 15.12429381 | R46: 5.666563953e-05 | S46: 1.000000003 | T46: 0.0001655699519 | U46: 74.39815086 | V46: -88.05708521 | W46: 91.94291479 | Y46: 1000000000 | Z46: 436.517449 | AB46: 70.58234813 | AC46: -87.16947702 | AE46: 53.42990469 | AF46: -0.8913176497 | AH46: 0 | AI46: 0 | AK46: 0 | AL46: 0
A47: 22.909 | B47: 0.022909 | C47: 1.000142654 | D47: 0.01689007084 | E47: 1 | F47: 1.43941492e-05 | G47: 1 | H47: 0 | I47: 24.89916401 | J47: 1.530623531 | K47: 1.00001791 | L47: 0.005985015776 | M47: 1.000000006 | N47: 0.0001104603011 | O47: 1.000000009 | P47: 0.0001331228487 | Q47: 15.12429381 | R47: 6.213340046e-05 | S47: 1.000000003 | T47: 0.0001815460695 | U47: 73.59927888 | V47: -88.33492071 | W47: 91.66507929 | Y47: 1000000000 | Z47: 524.822281 | AB47: 69.7836846 | AC47: -87.36168123 | AE47: 53.42969624 | AF47: -0.9773068755 | AH47: 0 | AI47: 0 | AK47: 0 | AL47: 0
A48: 25.119 | B48: 0.025119 | C48: 1.000171503 | D48: 0.01851907682 | E48: 1 | F48: 1.578273315e-05 | G48: 1 | H48: 0 | I48: 27.29744823 | J48: 1.534154667 | K48: 1.000021533 | L48: 0.006562366242 | M48: 1.000000007 | N48: 0.0001211162557 | O48: 1.000000011 | P48: 0.0001459650283 | Q48: 15.12429382 | R48: 6.812732488e-05 | S48: 1.000000004 | T48: 0.0001990595714 | U48: 72.8003141 | V48: -88.59863738 | W48: 91.40136262 | Y48: 1000000000 | Z48: 630.964161 | AB48: 68.98497034 | AC48: -87.53153122 | AE48: 53.4294457 | AF48: -1.071565933 | AH48: 0 | AI48: 0 | AK48: 0 | AL48: 0
A49: 27.542 | B49: 0.027542 | C49: 1.000206181 | D49: 0.02030497327 | E49: 1 | F49: 1.730514895e-05 | G49: 1 | H49: 0 | I49: 29.92720475 | J49: 1.537375692 | K49: 1.000025887 | L49: 0.007195356757 | M49: 1.000000009 | N49: 0.0001327992321 | O49: 1.000000013 | P49: 0.0001600449382 | Q49: 15.12429383 | R49: 7.469894428e-05 | S49: 1.000000005 | T49: 0.0002182610263 | U49: 72.00116869 | V49: -88.85049727 | W49: 91.14950273 | Y49: 1000000000 | Z49: 758.561764 | AB49: 68.18612608 | AC49: -87.68048404 | AE49: 53.42914453 | AF49: -1.174903197 | AH49: 0 | AI49: 0 | AK49: 0 | AL49: 0
A50: 30.2 | B50: 0.0302 | C50: 1.000247892 | D50: 0.02226392942 | E50: 1 | F50: 1.89752196e-05 | G50: 1 | H50: 0 | I50: 32.8123111 | J50: 1.540315241 | K50: 1.000031125 | L50: 0.007889732602 | M50: 1.000000011 | N50: 0.0001456153077 | O50: 1.000000015 | P50: 0.0001754904192 | Q50: 15.12429383 | R50: 8.190792668e-05 | S50: 1.000000006 | T50: 0.0002393247766 | U50: 71.20143864 | V50: -89.09274971 | W50: 90.90725029 | Y50: 1000000000 | Z50: 912.04 | AB50: 67.38675824 | AC50: -87.8098573 | AE50: 53.42878231 | AF50: -1.288254292 | AH50: 0 | AI50: 0 | AK50: 0 | AL50: 0
A51: 33.113 | B51: 0.033113 | C51: 1.000298013 | D51: 0.02441062473 | E51: 1 | F51: 2.080551148e-05 | G51: 1 | H51: 0 | I51: 35.9744762 | J51: 1.54299526 | K51: 1.000037419 | L51: 0.008650715877 | M51: 1.000000013 | N51: 0.0001596609165 | O51: 1.000000019 | P51: 0.00019241769 | Q51: 15.12429384 | R51: 8.980851572e-05 | S51: 1.000000007 | T51: 0.0002624093157 | U51: 70.4019049 | V51: -89.32720425 | W51: 90.67279575 | Y51: 1000000000 | Z51: 1096.470769 | AB51: 66.58765971 | AC51: -87.92061467 | AE51: 53.42834707 | AF51: -1.412468652 | AH51: 0 | AI51: 0 | AK51: 0 | AL51: 0
A52: 36.308 | B52: 0.036308 | C52: 1.000358286 | D52: 0.02676487659 | E52: 1 | F52: 2.281298918e-05 | G52: 1 | H52: 0 | I52: 39.44300951 | J52: 1.545440575 | K52: 1.000044988 | L52: 0.009485356422 | M52: 1.000000015 | N52: 0.0001750662442 | O52: 1.000000022 | P52: 0.0002109836461 | Q52: 15.12429386 | R52: 9.847394036e-05 | S52: 1.000000008 | T52: 0.0002877286094 | U52: 69.60193598 | V52: -89.55602889 | W52: 90.44397111 | Y52: 1000000000 | Z52: 1318.270864 | AB52: 65.78821413 | AC52: -88.0137822 | AE52: 53.42782371 | AF52: -1.548693017 | AH52: 0 | AI52: 0 | AK52: 0 | AL52: 0
A53: 39.811 | B53: 0.039811 | C53: 1.000430741 | D53: 0.02934573784 | E53: 1 | F53: 2.501398899e-05 | G53: 1 | H53: 0 | I53: 43.24613708 | J53: 1.547670813 | K53: 1.000054087 | L53: 0.01040044161 | M53: 1.000000018 | N53: 0.0001919566551 | O53: 1.000000027 | P53: 0.0002313393717 | Q53: 15.12429387 | R53: 0.0001079747173 | S53: 1.00000001 | T53: 0.000315488699 | U53: 68.80184039 | V53: -89.78106429 | W53: 90.21893571 | Y53: 1000000000 | Z53: 1584.915721 | AB53: 64.98874761 | AC53: -88.09010266 | AE53: 53.42719461 | AF53: -1.698029902 | AH53: 0 | AI53: 0 | AK53: 0 | AL53: 0
A54: 43.652 | B54: 0.043652 | C54: 1.000517844 | D54: 0.03217517243 | E54: 1 | F54: 2.742736046e-05 | G54: 1 | H54: 0 | I54: 47.41642923 | J54: 1.549705027 | K54: 1.000065027 | L54: 0.01140380212 | M54: 1.000000022 | N54: 0.0002104768001 | O54: 1.000000032 | P54: 0.0002536591951 | Q54: 15.12429389 | R54: 0.0001183922121 | S54: 1.000000012 | T54: 0.0003459273242 | U54: 68.00154868 | V54: -90.00422738 | W54: 89.99577262 | Y54: 1000000000 | Z54: 1905.497104 | AB54: 64.18921209 | AC54: -88.15022731 | AE54: 53.42643838 | AF54: -1.861750291 | AH54: 0 | AI54: 0 | AK54: 0 | AL54: 0
A55: 47.863 | B55: 0.047863 | C55: 1.000622541 | D55: 0.0352765701 | E55: 1 | F55: 3.007320979e-05 | G55: 1 | H55: 0 | I55: 51.98862935 | J55: 1.551560165 | K55: 1.000078177 | L55: 0.01250378896 | M55: 1.000000027 | N55: 0.0002307809735 | O55: 1.000000039 | P55: 0.0002781290664 | Q55: 15.12429391 | R55: 0.0001298132146 | S55: 1.000000015 | T55: 0.0003792980744 | U55: 67.20116358 | V55: -90.22736749 | W55: 89.77263251 | Y55: 1000000000 | Z55: 2290.866769 | AB55: 63.38973583 | AC55: -88.19465767 | AE55: 53.42552949 | AF55: -2.041207696 | AH55: 0 | AI55: 0 | AK55: 0 | AL55: 0
A56: 52.481 | B56: 0.052481 | C56: 1.000748419 | D56: 0.03867694037 | E56: 1.000000001 | F56: 3.297478476e-05 | G56: 1 | H56: 0 | I56: 57.00291116 | J56: 1.553252463 | K56: 1.00009399 | L56: 0.01371005644 | M56: 1.000000032 | N56: 0.000253047578 | O56: 1.000000047 | P56: 0.00030496399 | Q56: 15.12429393 | R56: 0.0001423380755 | S56: 1.000000018 | T56: 0.0004158941621 | U56: 66.40043492 | V56: -90.45242828 | W56: 89.54757172 | Y56: 1000000000 | Z56: 2754.255361 | AB56: 62.59009976 | AC56: -88.22378095 | AE56: 53.42443685 | AF56: -2.237965114 | AH56: 0 | AI56: 0 | AK56: 0 | AL56: 0
A57: 57.544 | B57: 0.057544 | C57: 1.000899721 | D57: 0.04240394636 | E57: 1.000000001 | F57: 3.615596147e-05 | G57: 1 | H57: 0 | I57: 62.50053555 | J57: 1.554795781 | K57: 1.000112999 | L57: 0.01503251635 | M57: 1.000000038 | N57: 0.0002774598381 | O57: 1.000000056 | P57: 0.0003343847818 | Q57: 15.12429396 | R57: 0.0001560698578 | S57: 1.000000021 | T57: 0.0004560167245 | U57: 65.59955282 | V57: -90.68124062 | W57: 89.31875938 | Y57: 1000000000 | Z57: 3311.311936 | AB57: 61.79053073 | AC57: -88.2378339 | AE57: 53.42312371 | AF57: -2.453623414 | AH57: 0 | AI57: 0 | AK57: 0 | AL57: 0
A58: 63.096 | B58: 0.063096 | C58: 1.001081614 | D58: 0.0464895596 | E58: 1.000000001 | F58: 3.964438595e-05 | G58: 1 | H58: 0 | I58: 68.52927963 | J58: 1.556203506 | K58: 1.000135854 | L58: 0.01648264287 | M58: 1.000000046 | N58: 0.0003042299085 | O58: 1.000000067 | P58: 0.0003666471228 | Q58: 15.124294 | R58: 0.0001711278975 | S58: 1.000000025 | T58: 0.0005000144469 | U58: 64.79832439 | V58: -90.91576867 | W58: 89.08423133 | Y58: 1000000000 | Z58: 3981.105216 | AB58: 60.9908806 | AC58: -88.23693828 | AE58: 53.42154534 | AF58: -2.690032821 | AH58: 0 | AI58: 0 | AK58: 0 | AL58: 0
A59: 69.183 | B59: 0.069183 | C59: 1.001300229 | D59: 0.05096708019 | E59: 1.000000001 | F59: 4.346896083e-05 | G59: 1 | H59: 0 | I59: 75.13909338 | J59: 1.557487282 | K59: 1.000163329 | L59: 0.01807242611 | M59: 1.000000056 | N59: 0.0003335795871 | O59: 1.000000081 | P59: 0.000402018316 | Q59: 15.12429404 | R59: 0.000187636955 | S59: 1.000000031 | T59: 0.0005482518637 | U59: 63.99687068 | V59: -91.15792437 | W59: 88.84207563 | Y59: 1000000000 | Z59: 4786.287489 | AB59: 60.19132344 | AC59: -88.22108699 | AE59: 53.41964869 | AF59: -2.949120522 | AH59: 0 | AI59: 0 | AK59: 0 | AL59: 0
A60: 75.858 | B60: 0.075858 | C60: 1.001563028 | D60: 0.0558747694 | E60: 1.000000001 | F60: 4.766298701e-05 | G60: 1 | H60: 0 | I60: 82.38752899 | J60: 1.558658269 | K60: 1.000196363 | L60: 0.01981567599 | M60: 1.000000067 | N60: 0.0003657644238 | O60: 1.000000097 | P60: 0.0004408063409 | Q60: 15.1242941 | R60: 0.0002057407759 | S60: 1.000000037 | T60: 0.0006011489822 | U60: 63.1949676 | V60: -91.40977541 | W60: 88.59022459 | Y60: 1000000000 | Z60: 5754.436164 | AB60: 59.39169969 | AC60: -88.1901428 | AE60: 53.41736926 | AF60: -3.233100883 | AH60: 0 | AI60: 0 | AK60: 0 | AL60: 0
A61: 83.176 | B61: 0.083176 | C61: 1.001878848 | D61: 0.06125211124 | E61: 1.000000001 | F61: 5.2261022e-05 | G61: 1 | H61: 0 | I61: 90.3343114 | J61: 1.55972611 | K61: 1.000236071 | L61: 0.02172671362 | M61: 1.00000008 | N61: 0.0004010496116 | O61: 1.000000117 | P61: 0.0004833307987 | Q61: 15.12429416 | R61: 0.0002255885302 | S61: 1.000000044 | T61: 0.0006591416592 | U61: 62.39274871 | V61: -91.67334447 | W61: 88.32665553 | Y61: 1000000000 | Z61: 6918.246976 | AB61: 58.59221918 | AC61: -88.14385285 | AE61: 53.41463073 | AF61: -3.544259164 | AH61: 0 | AI61: 0 | AK61: 0 | AL61: 0
A62: 91.201 | B62: 0.091201 | C62: 1.00225846 | D62: 0.06714487805 | E62: 1.000000002 | F62: 5.730327819e-05 | G62: 1 | H62: 0 | I62: 99.04893967 | J62: 1.560700136 | K62: 1.000283816 | L62: 0.02382219573 | M62: 1.000000097 | N62: 0.000439743739 | O62: 1.00000014 | P62: 0.000529963589 | Q62: 15.12429423 | R62: 0.0002473537977 | S62: 1.000000053 | T62: 0.0007227370732 | U62: 61.58993093 | V62: -91.9508675 | W62: 88.0491325 | Y62: 1000000000 | Z62: 8317.622401 | AB62: 57.79269179 | AC62: -88.08181517 | AE62: 53.41134019 | AF62: -3.885244681 | AH62: 0 | AI62: 0 | AK62: 0 | AL62: 0
A63: 100 | B63: 0.1 | C63: 1.002714652 | D63: 0.07360061584 | E63: 1.000000002 | F63: 6.283185292e-05 | G63: 1 | H63: 0 | I63: 108.6041714 | J63: 1.561588447 | K63: 1.000341212 | L63: 0.02611954301 | M63: 1.000000116 | N63: 0.0004821698591 | O63: 1.000000169 | P63: 0.0005810940439 | Q63: 15.12429433 | R63: 0.0002712182945 | S63: 1.000000064 | T63: 0.0007924661771 | U63: 60.78654313 | V63: -92.24456924 | W63: 87.75543076 | Y63: 1000000000 | Z63: 10000 | AB63: 56.99325648 | AC63: -88.00351418 | AE63: 53.40738749 | AF63: -4.258809629 | AH63: 0 | AI63: 0 | AK63: 0 | AL63: 0
A64: 109.65 | B64: 0.10965 | C64: 1.003262966 | D64: 0.08067364471 | E64: 1.000000002 | F64: 6.889512671e-05 | G64: 1 | H64: 0 | I64: 119.0836245 | J64: 1.562398768 | K64: 1.00041023 | L64: 0.02863876153 | M64: 1.00000014 | N64: 0.0005286992423 | O64: 1.000000203 | P64: 0.0006371696046 | Q64: 15.12429443 | R64: 0.0002973908585 | S64: 1.000000077 | T64: 0.0008689391703 | U64: 59.98228313 | V64: -92.55689811 | W64: 87.44310189 | Y64: 1000000000 | Z64: 12023.1225 | AB64: 56.19374477 | AC64: -87.90826749 | AE64: 53.40263898 | AF64: -4.668098513 | AH64: 0 | AI64: 0 | AK64: 0 | AL64: 0
A65: 120.23 | B65: 0.12023 | C65: 1.003921735 | D65: 0.0884190119 | E65: 1.000000003 | F65: 7.554273672e-05 | G65: 1 | H65: 0 | I65: 130.5730893 | J65: 1.563137706 | K65: 1.000493193 | L65: 0.03140034586 | M65: 1.000000168 | N65: 0.0005797128016 | O65: 1.000000244 | P65: 0.0006986493339 | Q65: 15.12429457 | R65: 0.000326085752 | S65: 1.000000093 | T65: 0.000952782102 | U65: 59.17726912 | V65: -92.89025327 | W65: 87.10974673 | Y65: 1000000000 | Z65: 14455.2529 | AB65: 55.39443212 | AC65: -87.79530126 | AE65: 53.39693734 | AF65: -5.11629833 | AH65: 0 | AI65: 0 | AK65: 0 | AL65: 0
A66: 131.83 | B66: 0.13183 | C66: 1.004713131 | D66: 0.09689885659 | E66: 1.000000003 | F66: 8.283123162e-05 | G66: 1 | H66: 0 | I66: 143.1703022 | J66: 1.563811581 | K66: 1.000592923 | L66: 0.03442761783 | M66: 1.000000202 | N66: 0.000635644489 | O66: 1.000000293 | P66: 0.0007660562144 | Q66: 15.12429472 | R66: 0.0003575470714 | S66: 1.000000111 | T66: 0.001044708193 | U66: 58.3713051 | V66: -93.24726737 | W66: 86.75273263 | Y66: 1000000000 | Z66: 17379.1489 | AB66: 54.59531235 | AC66: -87.66366621 | AE66: 53.39009275 | AF66: -5.607007019 | AH66: 0 | AI66: 0 | AK66: 0 | AL66: 0
A67: 144.54 | B67: 0.14454 | C67: 1.005663063 | D67: 0.1061740685 | E67: 1.000000004 | F67: 9.081716008e-05 | G67: 1 | H67: 0 | I67: 156.9730001 | J67: 1.564425761 | K67: 1.000712722 | L67: 0.03774384178 | M67: 1.000000243 | N67: 0.0006969282556 | O67: 1.000000353 | P67: 0.0008399132281 | Q67: 15.12429491 | R67: 0.0003920189128 | S67: 1.000000134 | T67: 0.001145430663 | U67: 57.56469609 | V67: -93.63045027 | W67: 86.36954973 | Y67: 1000000000 | Z67: 20891.8116 | AB67: 53.79691154 | AC67: -87.5123618 | AE67: 53.38188414 | AF67: -6.143750927 | AH67: 0 | AI67: 0 | AK67: 0 | AL67: 0
A68: 158.49 | B68: 0.15849 | C68: 1.006805058 | D68: 0.116333056 | E68: 1.000000005 | F68: 9.958220349e-05 | G68: 1 | H68: 0 | I68: 172.1223594 | J68: 1.564986474 | K68: 1.000856873 | L68: 0.04138264125 | M68: 1.000000292 | N68: 0.0007641909202 | O68: 1.000000424 | P68: 0.0009209757934 | Q68: 15.12429514 | R68: 0.0004298538596 | S68: 1.000000161 | T68: 0.001255979721 | U68: 56.75584259 | V68: -94.04336488 | W68: 85.95663512 | Y68: 1000000000 | Z68: 25119.0801 | AB68: 52.99791557 | AC68: -87.33985426 | AE68: 53.37202613 | AF68: -6.731649834 | AH68: 0 | AI68: 0 | AK68: 0 | AL68: 0
A69: 173.78 | B69: 0.17378 | C69: 1.008175816 | D69: 0.1274401742 | E69: 1.000000006 | F69: 0.0001091891937 | G69: 1 | H69: 0 | I69: 188.7269777 | J69: 1.565497642 | K69: 1.001030089 | L69: 0.04536971144 | M69: 1.000000351 | N69: 0.0008379146501 | O69: 1.00000051 | P69: 0.001009825 | Q69: 15.12429542 | R69: 0.0004713231298 | S69: 1.000000193 | T69: 0.001377147836 | U69: 55.94559388 | V69: -94.48850276 | W69: 85.51149724 | Y69: 1000000000 | Z69: 30199.4884 | AB69: 52.19948428 | AC69: -87.14492384 | AE69: 53.36020812 | AF69: -7.374432807 | AH69: 0 | AI69: 0 | AK69: 0 | AL69: 0
A70: 190.55 | B70: 0.19055 | C70: 1.009821857 | D70: 0.139586064 | E70: 1.000000007 | F70: 0.0001197260953 | G70: 1 | H70: 0 | I70: 206.938892 | J70: 1.565963964 | K70: 1.001238363 | L70: 0.0497410474 | M70: 1.000000422 | N70: 0.0009187744793 | O70: 1.000000613 | P70: 0.001107274373 | Q70: 15.12429575 | R70: 0.0005168064282 | S70: 1.000000232 | T70: 0.001510044462 | U70: 55.13306813 | V70: -94.96933631 | W70: 85.03066369 | Y70: 1000000000 | Z70: 36309.3025 | AB70: 51.40112797 | AC70: -86.9258159 | AE70: 53.34603797 | AF70: -8.07735173 | AH70: 0 | AI70: 0 | AK70: 0 | AL70: 0
A71: 208.93 | B71: 0.20893 | C71: 1.011796437 | D71: 0.1528504444 | E71: 1.000000009 | F71: 0.0001312745897 | G71: 1 | H71: 0 | I71: 226.8992799 | J71: 1.566389071 | K71: 1.001488597 | L71: 0.05452986207 | M71: 1.000000507 | N71: 0.001007397224 | O71: 1.000000737 | P71: 0.001214079326 | Q71: 15.12429614 | R71: 0.0005666563379 | S71: 1.000000279 | T71: 0.00165569981 | U71: 54.31845084 | V71: -95.48880548 | W71: 84.51119452 | Y71: 1000000000 | Z71: 43651.7449 | AB71: 50.60347782 | AC71: -86.68087158 | AE71: 53.32906999 | AF71: -8.845028504 | AH71: 0 | AI71: 0 | AK71: 0 | AL71: 0
A72: 229.09 | B72: 0.22909 | C72: 1.014166099 | D72: 0.1673371663 | E72: 1.00000001 | F72: 0.000143941491 | G72: 1 | H72: 0 | I72: 248.7927588 | J72: 1.566776906 | K72: 1.001789462 | L72: 0.05977956112 | M72: 1.00000061 | N72: 0.001104602567 | O72: 1.000000886 | P72: 0.001331227709 | Q72: 15.12429662 | R72: 0.0006213339289 | S72: 1.000000336 | T72: 0.001815461079 | U72: 53.50064827 | V72: -96.05068728 | W72: 83.94931272 | Y72: 1000000000 | Z72: 52482.2281 | AB72: 49.80599356 | AC72: -86.40787678 | AE72: 53.30875065 | AF72: -9.683484415 | AH72: 0 | AI72: 0 | AK72: 0 | AL72: 0
A73: 251.19 | B73: 0.25119 | C73: 1.017007111 | D73: 0.1831366867 | E73: 1.000000012 | F73: 0.0001578273302 | G73: 1 | H73: 0 | I73: 272.7930864 | J73: 1.567130537 | K73: 1.002150981 | L73: 0.06553064108 | M73: 1.000000733 | N73: 0.001211161971 | O73: 1.000001065 | P73: 0.001459649256 | Q73: 15.12429719 | R73: 0.000681273149 | S73: 1.000000404 | T73: 0.00199059622 | U73: 52.67957131 | V73: -96.65810259 | W73: 83.34189741 | Y73: 1000000000 | Z73: 63096.4161 | AB73: 49.00921396 | AC73: -86.10473109 | AE73: 53.28445207 | AF73: -10.59796916 | AH73: 0 | AI73: 0 | AK73: 0 | AL73: 0
A74: 275.42 | B74: 0.27542 | C74: 1.020411941 | D74: 0.2003530725 | E74: 1.000000015 | F74: 0.0001730514878 | G74: 1 | H74: 0 | I74: 299.1066004 | J74: 1.567453031 | K74: 1.002585405 | L74: 0.07183101182 | M74: 1.000000882 | N74: 0.001327991548 | O74: 1.000001281 | P74: 0.001600448029 | Q74: 15.12429788 | R74: 0.0007469893112 | S74: 1.000000485 | T74: 0.002182610929 | U74: 51.85445166 | V74: -97.31454302 | W74: 82.68545698 | Y74: 1000000000 | Z74: 75856.1764 | AB74: 48.21312437 | AC74: -85.76891785 | AE74: 53.25542053 | AF74: -11.59452476 | AH74: 0 | AI74: 0 | AK74: 0 | AL74: 0
A75: 302 | B75: 0.302 | C75: 1.024492382 | D75: 0.2191014113 | E75: 1.000000018 | F75: 0.0001897521938 | G75: 1 | H75: 0 | I75: 327.9722183 | J75: 1.567747283 | K75: 1.003107694 | L75: 0.07873585533 | M75: 1.00000106 | N75: 0.001456152058 | O75: 1.00000154 | P75: 0.001754902409 | Q75: 15.12429871 | R75: 0.0008190790932 | S75: 1.000000584 | T75: 0.002393248645 | U75: 51.02408949 | V75: -98.02372043 | W75: 81.97627957 | Y75: 1000000000 | Z75: 91204 | AB75: 47.41742528 | AC75: -85.39750194 | AE75: 53.22075568 | AF75: -12.67983722 | AH75: 0 | AI75: 0 | AK75: 0 | AL75: 0
A76: 331.13 | B76: 0.33113 | C76: 1.029374344 | D76: 0.2394697253 | E76: 1.000000022 | F76: 0.0002080551118 | G76: 1 | H76: 0 | I76: 359.6071382 | J76: 1.568015511 | K76: 1.003734956 | L76: 0.08629447272 | M76: 1.000001275 | N76: 0.001596607822 | O76: 1.000001851 | P76: 0.001924174549 | Q76: 15.12429971 | R76: 0.0008980849285 | S76: 1.000000702 | T76: 0.002624094316 | U76: 50.18840146 | V76: -98.78808372 | W76: 81.21191628 | Y76: 1000000000 | Z76: 109647.0769 | AB76: 46.62302824 | AC76: -84.98784088 | AE76: 53.17946256 | AF76: -13.85903345 | AH76: 0 | AI76: 0 | AK76: 0 | AL76: 0
A77: 363.08 | B77: 0.36308 | C77: =SQRT(1+(A77/pole1)^2) -> 1.035214996 | D77: =ATAN(A77/pole1) -> 0.2615787197 | E77: =SQRT(1+(A77/Zero1)^2) -> 1.000000026 | F77: =ATAN(A77/Zero1) -> 0.0002281298879 | G77: =IF(VIN_nom>Vout, 1, SQRT(1+(A77/z_RHP)^2)) -> 1 | H77: =IF(VIN_nom>Vout, 0, -ATAN(A77/z_RHP)) -> 0 | I77: =SQRT(1+(A77/Pole2)^2) -> 394.3045776 | J77: =ATAN(A77/Pole2) -> 1.568260214 | K77: =SQRT(1+(A77/Zero2)^2) -> 1.004488795 | L77: =ATAN(A77/Zero2) -> 0.09457343742 | M77: =SQRT(1+(A77/pole4)^2) -> 1.000001532 | N77: =ATAN(A77/pole4) -> 0.001750660672 | O77: =IF(VOUT_setting=1,1,SQRT(1+(A77*zterm1)^2)) -> 1.000002226 | P77: =IF(VOUT_setting=1,0,ATAN(((A77*zterm1)))) -> 0.002109833361 | Q77: 15.12430091 | R77: =IF(VOUT_setting=1,0,ATAN(A77*$Q$4/(1+Afbr-$Q$5*(A77)^2))) -> 0.000984739102 | S77: =SQRT((1-(Z77/pterm2))^2+(A77/pterm1)^2) -> 1.000000844 | T77: =IF((ATAN((A77/pterm1)/(1-A77^2/pterm2))>0),ATAN((A77/pterm1)/(1-A77^2/pterm2)),PI()+ATAN((A77/pterm1)/(1-A77^2/pterm2))) -> 0.002877287621 | U77: =20*LOG10(((E77*K77*G77*O77)/(C77*I77*S77*M77*Q77))*Adc) -> 49.34570694 | V77: =((F77+L77+H77+P77)-(D77+J77+T77+N77+R77))*radconv -> -99.61101723 | W77: =IF(V77>0,V77,V77+180) -> 80.38898277 | Y77: =IF(U77<0,A77,1000000000) -> 1000000000 | Z77: =A77^2 -> 131827.0864 | AB77: =20*LOG10((K77/(I77*M77))*AEA) -> 45.82947664 | AC77: =(L77-(J77+N77))*radconv -> -84.53633816 | AE77: =20*LOG10((E77*G77/(C77*S77))*Acs*Am) -> 53.13031707 | AF77: =(F77+H77-(D77+T77))*radconv -> -15.13914222 | AH77: =SUM((U78<0)*(U77>0))*A77 -> 0 | AI77: =IF(AH77>0,W75,0) -> 0 | AK77: 0 | AL77: 0
A78: 398.11 | B78: =A78/1000 -> 0.39811 | C78: 1.042193215 | D78: 0.2855212185 | E78: 1.000000031 | F78: 0.0002501398848 | G78: 1 | H78: 0 | I78: 432.3468945 | J78: 1.568483367 | K78: 1.0053943 | L78: 0.1036355389 | M78: 1.000001842 | N78: 0.001919564217 | O78: 1.000002676 | P78: 0.002313389632 | Q78: 15.12430235 | R78: 0.001079746776 | S78: 1.000001014 | T78: 0.003154889003 | U78: 48.49516809 | V78: -100.4944894 | W78: 79.50551065 | Y78: 1000000000 | Z78: 158491.5721 | AB78: 45.0372899 | AC78: -84.03958122 | AE78: 53.07196188 | AF78: -16.52559066 | AH78: 0 | AI78: 0 | AK78: =SUM((V79<-183)*(V78>-183))*A78 -> 0 | AL78: =IF(AK78>0,U78,0) -> 0
A79: 436.52 | B79: 0.43652 | C79: 1.050521614 | D79: 0.3113917981 | E79: 1.000000038 | F79: 0.0002742735978 | G79: 1 | H79: 0 | I79: 474.0598866 | J79: 1.568686887 | K79: 1.006481891 | L79: 0.1135523809 | M79: 1.000002215 | N79: 0.002104764924 | O79: 1.000003217 | P79: 0.002536586565 | Q79: =IF(VOUT_setting=1,1,SQRT((1+Afbr-$Q$5*(A79)^2)^2+(A79*$Q$4)^2)) -> 15.12430408 | R79: 0.001183921597 | S79: 1.00000122 | T79: 0.003459275896 | U79: 47.63540547 | V79: -101.4400811 | W79: 78.55991891 | Y79: 1000000000 | Z79: 190549.7104 | AB79: 44.2466603 | AC79: -83.49366007 | AE79: 53.00282514 | AF79: -18.02392301 | AH79: 0 | AI79: 0 | AK79: 0 | AL79: 0
A80: 478.63 | B80: 0.47863 | C80: 1.060446582 | D80: 0.3392667633 | E80: 1.000000045 | F80: 0.0003007320889 | G80: 1 | H80: 0 | I80: 519.7910717 | J80: 1.568872476 | K80: 1.007787727 | L80: 0.1243987175 | M80: 1.000002663 | N80: 0.002307805679 | O80: 1.000003868 | P80: 0.002781283564 | Q80: 15.12430616 | R80: 0.001298131455 | S80: 1.000001466 | T80: 0.003792984243 | U80: 46.76507772 | V80: -102.4481442 | W80: 77.55185577 | Y80: 1000000000 | Z80: 229086.6769 | AB80: 43.45800627 | AC80: -82.89447758 | AE80: 52.92114698 | AF80: -19.638645 | AH80: 0 | AI80: 0 | AK80: 0 | AL80: 0
A81: 524.81 | B81: 0.52481 | C81: 1.072259241 | D81: 0.3692167686 | E81: 1.000000054 | F81: 0.0003297478358 | G81: 1 | H81: 0 | I81: 569.9422673 | J81: 1.569041762 | K81: 1.009355696 | L81: 0.1362595497 | M81: 1.000003202 | N81: 0.002530470433 | O81: 1.00000465 | P81: 0.003049630541 | Q81: 15.12430867 | R81: 0.001423379845 | S81: 1.000001763 | T81: 0.004158946233 | U81: 45.88231833 | V81: -103.5181413 | W81: 76.4818587 | Y81: 1000000000 | Z81: 275425.5361 | AB81: 42.67146404 | AC81: -82.23735911 | AE81: 52.82492446 | AF81: -21.37395949 | AH81: 0 | AI81: 0 | AK81: 0 | AL81: 0
A82: 575.44 | B82: 0.57544 | C82: 1.086289662 | D82: 0.4012723384 | E82: 1.000000065 | F82: 0.0003615595991 | G82: 1 | H82: 0 | I82: 624.9261511 | J82: 1.569196137 | K82: 1.01123739 | L82: 0.1492190149 | M82: 1.000003849 | N82: 0.002774591333 | O82: 1.000005591 | P82: 0.00334383548 | Q82: 15.12431168 | R82: 0.001560697378 | S82: 1.000002119 | T82: 0.004560173324 | U82: 44.98562014 | V82: -104.6472766 | W82: 75.35272341 | Y82: 1000000000 | Z82: 331131.1936 | AB82: 41.88767937 | AC82: -81.51766857 | AE82: 52.71200449 | AF82: -23.2317743 | AH82: 0 | AI82: 0 | AK82: 0 | AL82: 0
A83: 630.96 | B83: 0.63096 | C83: 1.102923255 | D83: 0.4354474309 | E83: 1.000000079 | F83: 0.0003964438389 | G83: 1 | H83: 0 | I83: 685.2205606 | J83: 1.569336942 | K83: 1.013495275 | L83: 0.1633721763 | M83: 1.000004628 | N83: 0.003042289793 | O83: 1.000006721 | P83: 0.003666454963 | Q83: 15.1243153 | R83: 0.001711277392 | S83: 1.000002548 | T83: 0.005000152482 | U83: 44.07296301 | V83: -105.8312074 | W83: 74.16879265 | Y83: 1000000000 | Z83: 398110.5216 | AB83: 41.10701106 | AC83: -80.73015768 | AE83: 52.58000793 | AF83: -25.21307309 | AH83: 0 | AI83: 0 | AK83: 0 | AL83: 0
A84: 691.83 | B84: 0.69183 | C84: 1.122592909 | D84: 0.4717049021 | E84: 1.000000094 | F84: 0.0004346895812 | G84: 1 | H84: 0 | I84: 751.3250531 | J84: 1.569465345 | K84: 1.016202919 | L84: 0.1788134367 | M84: 1.000005564 | N84: 0.003335783622 | O84: 1.000008081 | P84: 0.004020161719 | Q84: 15.12431965 | R84: 0.001876367463 | S84: 1.000003063 | T84: 0.005482529201 | U84: 43.14264432 | V84: -107.0627011 | W84: 72.93729885 | Y84: 1000000000 | Z84: 478628.7489 | AB84: 40.33022742 | AC84: -79.8696115 | AE84: 52.42646358 | AF84: -27.31592 | AH84: 0 | AI84: 0 | AK84: 0 | AL84: 0
A85: 758.58 | B85: 0.75858 | C85: 1.145796633 | D85: 0.5099780432 | E85: 1.000000114 | F85: 0.0004766298344 | G85: 1 | H85: 0 | I85: 823.8152058 | J85: 1.569582462 | K85: 1.019449058 | L85: 0.195647547 | M85: 1.000006689 | N85: 0.00365762809 | O85: 1.000009715 | P85: 0.004408035143 | Q85: 15.12432488 | R85: 0.002057405008 | S85: 1.000003683 | T85: 0.006011503749 | U85: 42.19259874 | V85: -108.332272 | W85: 71.66772802 | Y85: 1000000000 | Z85: 575443.6164 | AB85: 39.5578808 | AC85: -78.9302387 | AE85: 52.24875342 | AF85: -29.53671447 | AH85: 0 | AI85: 0 | AK85: 0 | AL85: 0
A86: 831.76 | B86: 0.83176 | C86: 1.173082488 | D86: 0.5501330467 | E86: 1.000000137 | F86: 0.0005226101729 | G86: 1 | H86: 0 | I86: 903.2883159 | J86: 1.56968926 | K86: 1.023337612 | L86: 0.2139747675 | M86: 1.000008042 | N86: 0.00401047483 | O86: 1.00001168 | P86: 0.004833270727 | Q86: 15.12433117 | R86: 0.002255881677 | S86: 1.000004428 | T86: 0.00659143495 | U86: 41.22131035 | V86: -109.6268483 | W86: 70.37315165 | Y86: 1000000000 | Z86: 691824.6976 | AB86: 38.79100543 | AC86: -77.90650203 | AE86: 52.04432695 | AF86: -31.86801983 | AH86: 0 | AI86: 0 | AK86: 0 | AL86: 0
A87: 912.01 | B87: 0.91201 | C87: 1.205073442 | D87: 0.5920024249 | E87: 1.000000164 | F87: 0.0005730327198 | G87: 1 | H87: 0 | I87: 990.4394201 | J87: 1.569786674 | K87: 1.027993764 | L87: 0.2339057511 | M87: 1.000009669 | N87: 0.004397409328 | O87: 1.000014043 | P87: 0.005299586771 | Q87: 15.12433873 | R87: 0.002473533198 | S87: 1.000005324 | T87: 0.007227394933 | U87: 40.22700597 | V87: -110.9308783 | W87: 69.06912174 | Y87: 1000000000 | Z87: 831762.2401 | AB87: 38.03039168 | AC87: -76.79229188 | AE87: 51.81062014 | AF87: -34.30050732 | AH87: 0 | AI87: 0 | AK87: 0 | AL87: 0
A88: 1000 | B88: 1 | C88: 1.242444117 | D88: 0.635348081 | E88: 1.000000197 | F88: 0.0006283184473 | G88: 1 | H88: 0 | I88: 1085.996135 | J88: 1.569875513 | K88: 1.033563783 | L88: 0.2555430874 | M88: 1.000011624 | N88: 0.004821661599 | O88: 1.000016883 | P88: 0.005810875688 | Q88: 15.12434782 | R88: 0.002712176644 | S88: 1.0000064 | T88: 0.007924693674 | U88: 39.2086612 | V88: -112.2252345 | W88: 67.77476545 | Y88: 1000000000 | Z88: 1000000 | AB88: 37.2773035 | AC88: -75.58196181 | AE88: 51.5453441 | AF88: -36.82081511 | AH88: 0 | AI88: 0 | AK88: 0 | AL88: 0
A89: 1096.5 | B89: 1.0965 | C89: 1.285946327 | D89: 0.6798970756 | E89: 1.000000237 | F89: 0.0006889511591 | G89: 1 | H89: 0 | I89: 1190.794677 | J89: 1.569956551 | K89: 1.040222444 | L89: 0.2789944441 | M89: 1.000013976 | N89: 0.005286943655 | O89: 1.000020299 | P89: 0.006371610683 | Q89: 15.12435875 | R89: 0.002973900278 | S89: 1.000007695 | T89: 0.008689433761 | U89: 38.16534034 | V89: -113.4885523 | W89: 66.5114477 | Y89: 1000000000 | Z89: 1202312.25 | AB89: 36.53288971 | AC89: -74.2695999 | AE89: 51.24641363 | AF89: -39.41362687 | AH89: 0 | AI89: 0 | AK89: 0 | AL89: 0
A90: 1202.3 | B90: 1.2023 | C90: 1.336370065 | D90: 0.7253071271 | E90: 1.000000285 | F90: 0.0007554272249 | G90: 1 | H90: 0 | I90: 1305.692983 | J90: 1.57003045 | K90: 1.048171274 | L90: 0.3043479531 | M90: 1.000016803 | N90: 0.005797063726 | O90: 1.000024405 | P90: 0.006986380806 | Q90: 15.12437189 | R90: 0.00326084657 | S90: 1.000009252 | T90: 0.009527876464 | U90: 37.09728982 | V90: -114.6966168 | W90: 65.30338315 | Y90: 1000000000 | Z90: 1445525.29 | AB90: 35.79890211 | AC90: -72.85041264 | AE90: 50.91232259 | AF90: -42.0596616 | AH90: 0 | AI90: =IF(AH90>0,W90,0) -> 0 | AK90: 0 | AL90: 0
A91: 1318.3 | B91: 1.3183 | C91: 1.394577943 | D91: 0.7712171671 | E91: 1.000000343 | F91: 0.0008283121287 | G91: 1 | H91: 0 | I91: 1431.668447 | J91: 1.570097841 | K91: 1.057648243 | L91: 0.3316882322 | M91: 1.000020202 | N91: 0.006356360138 | O91: 1.000029342 | P91: 0.007660413797 | Q91: 15.12438769 | R91: 0.003575456278 | S91: 1.000011124 | T91: 0.01044715502 | U91: 36.00510959 | V91: -115.8243937 | W91: 64.17560633 | Y91: 1000000000 | Z91: 1737914.89 | AB91: 35.0770249 | AC91: -71.31983658 | AE91: 50.54198577 | AF91: -44.73860791 | AH91: 0 | AI91: 0 | AK91: 0 | AL91: 0
A92: 1445.4 | B92: 1.4454 | C92: 1.461444373 | D92: 0.8172153068 | E92: 1.000000412 | F92: 0.0009081713536 | G92: 1 | H92: 0 | I92: 1569.698467 | J92: 1.570159262 | K92: 1.068922433 | L92: 0.3610637088 | M92: 1.000024285 | N92: 0.006969170853 | O92: 1.000035272 | P92: 0.008398936757 | Q92: 15.12440667 | R92: 0.003920170102 | S92: 1.000013372 | T92: 0.01145440296 | U92: 34.89092904 | V92: -116.8460046 | W92: 63.15399541 | Y92: 1000000000 | Z92: 2089181.16 | AB92: 34.36961261 | AC92: -69.67537637 | AE92: 50.1351769 | AF92: -47.42724265 | AH92: 0 | AI92: 0 | AK92: 0 | AL92: 0
A93: 1584.9 | B93: 1.5849 | C93: 1.538064516 | D93: 0.8629910798 | E93: 1.000000496 | F93: 0.000995821709 | G93: 1 | H93: 0 | I93: 1721.194835 | J93: 1.570215335 | K93: 1.082334516 | L93: 0.3925703941 | M93: 1.000029199 | N93: 0.007641761936 | O93: 1.000042409 | P93: 0.009209500162 | Q93: 15.12442951 | R93: 0.004298513513 | S93: 1.000016078 | T93: 0.01255992421 | U93: 33.75509752 | V93: -117.7388678 | W93: 62.26113219 | Y93: 1000000000 | Z93: 2511908.01 | AB93: 33.67760027 | AC93: -67.91192567 | AE93: 49.69130885 | AF93: -50.10832096 | AH93: 0 | AI93: 0 | AK93: 0 | AL93: 0
A94: 1737.8 | B94: 1.7378 | C94: 1.625376167 | D94: 0.9081031752 | E94: 1.000000596 | F94: 0.001091891508 | G94: 1 | H94: 0 | I94: 1887.243548 | J94: 1.570266453 | K94: 1.09823671 | L94: 0.4261825332 | M94: 1.000035104 | N94: 0.00837895237 | O94: 1.000050986 | P94: 0.0100979102 | Q94: 15.12445696 | R94: 0.004713198231 | S94: 1.000019331 | T94: 0.01377164577 | U94: 32.60222155 | V94: -118.4797132 | W94: 61.52028678 | Y94: 1000000000 | Z94: 3019948.84 | AB94: 33.00427964 | AC94: -66.03125872 | AE94: 49.21169479 | AF94: -52.75697577 | AH94: 0 | AI94: 0 | AK94: 0 | AL94: 0
A95: 1905.5 | B95: 1.9055 | C95: 1.724534241 | D95: 0.9522312471 | E95: 1.000000717 | F95: 0.001197260387 | G95: 1 | H95: 0 | I95: 2069.365 | J95: 1.570313087 | K95: 1.117061258 | L95: 0.4619029756 | M95: 1.000042206 | N95: 0.009187488864 | O95: 1.000061301 | P95: 0.01107229576 | Q95: 15.12448997 | R95: 0.005168020689 | S95: 1.000023242 | T95: 0.01510066532 | U95: 31.43527654 | V95: -119.0507738 | W95: 60.94922623 | Y95: 1000000000 | Z95: 3630930.25 | AB95: 32.35165562 | AC95: -64.03362575 | AE95: 48.69730317 | AF95: -55.35543806 | AH95: 0 | AI95: 0 | AK95: 0 | AL95: 0
A96: 2089.3 | B96: 2.0893 | C96: 1.836628158 | D96: 0.9950320279 | E96: 1.000000862 | F96: 0.001312745151 | G96: 1 | H96: 0 | I96: 2268.970983 | J96: 1.570355598 | K96: 1.139272149 | L96: 0.4996435488 | M96: 1.000050741 | N96: 0.01007363488 | O96: 1.000073697 | P96: 0.01214020276 | Q96: 15.12452965 | R96: 0.005666505916 | S96: 1.000027943 | T96: 0.01655728902 | U96: 30.25943235 | V96: -119.4381266 | W96: 60.56187339 | Y96: 1000000000 | Z96: 4365174.49 | AB96: 31.72275445 | AC96: -61.92445835 | AE96: 48.15027526 | AF96: -57.88458377 | AH96: 0 | AI96: 0 | AK96: 0 | AL96: 0
A97: 2290.9 | B97: 2.2909 | C97: 1.962979256 | D97: 1.036274372 | E97: 1.000001036 | F97: 0.001439413926 | G97: 1 | H97: 0 | I97: 2487.907692 | J97: 1.570394383 | K97: 1.165423825 | L97: 0.5393222523 | M97: 1.000061006 | N97: 0.01104558093 | O97: 1.000088605 | P97: 0.01331149865 | Q97: 15.12457736 | R97: 0.006213263535 | S97: 1.000033597 | T97: 0.0181549943 | U97: 29.07853006 | V97: -119.634128 | W97: 60.36587202 | Y97: 1000000000 | Z97: 5248222.81 | AB97: 31.11968712 | AC97: -59.70894668 | AE97: 47.57233823 | AF97: -60.33188022 | AH97: 0 | AI97: 0 | AK97: 0 | AL97: 0
A98: 2511.9 | B98: 2.5119 | C98: 2.104838793 | D98: 1.075723464 | E98: 1.000001245 | F98: 0.001578272005 | G98: 1 | H98: 0 | I98: 2727.912719 | J98: 1.570429746 | K98: 1.19610153 | L98: 0.5807535888 | M98: 1.000073343 | N98: 0.01211103346 | O98: 1.000106523 | P98: 0.01459546643 | Q98: 15.12463471 | R98: 0.00681263163 | S98: 1.000040394 | T98: 0.01990646773 | U98: 27.89818472 | V98: -119.6367972 | W98: 60.36320276 | Y98: 1000000000 | Z98: 6309641.61 | AB98: 30.54533888 | AC98: -57.39817807 | AE98: 46.96621844 | AF98: -62.68454276 | AH98: 0 | AI98: 0 | AK98: 0 | AL98: 0
A99: 2754.2 | B99: 2.7542 | C99: 2.263637094 | D99: 1.113229074 | E99: 1.000001497 | F99: 0.001730513168 | G99: 1 | H99: 0 | I99: 2991.049454 | J99: 1.570461996 | K99: 1.231969748 | L99: 0.623725369 | M99: 1.000088174 | N99: 0.01327914271 | O99: 1.000128064 | P99: 0.01600312768 | Q99: 15.12470365 | R99: 0.007469761478 | S99: 1.000048566 | T99: 0.02182677565 | U99: 26.72315283 | V99: -119.4506848 | W99: 60.54931524 | Y99: 1000000000 | Z99: 7585617.64 | AB99: 30.00198755 | AC99: -55.00485193 | AE99: 46.3343904 | AF99: -64.9347587 | AH99: 0 | AI99: 0 | AK99: 0 | AL99: 0
A100: 3020 | B100: 3.02 | C100: 2.440996518 | D100: 1.14870541 | E100: 1.0000018 | F100: 0.001897519683 | G100: 1 | H100: 0 | I100: 3279.70709 | J100: 1.570491422 | K100: 1.273775741 | L100: 0.6679911522 | M100: 1.000106013 | N100: 0.01456050181 | O100: 1.000153973 | P100: 0.01754724091 | Q100: 15.12478658 | R100: 0.008190617393 | S100: 1.000058396 | T100: 0.02393336489 | U100: 25.55751468 | V100: -119.0861497 | W100: 60.91385032 | Y100: 1000000000 | Z100: 9120400 | AB100: 29.49146192 | AC100: -52.5437118 | AE100: 45.67910049 | AF100: -67.07853291 | AH100: 0 | AI100: 0 | AK100: 0 | AL100: 0
A101: 3311.3 | B101: 3.3113 | C101: 2.638399882 | D101: 1.182061865 | E101: 1.000002164 | F101: 0.002080548146 | G101: 1 | H101: 0 | I101: 3596.057617 | J101: 1.570518244 | K101: 1.322265551 | L101: 0.7131914267 | M101: 1.00012745 | N101: 0.01596473532 | O101: 1.000185106 | P101: 0.01923939504 | Q101: 15.12488623 | R101: 0.008980620531 | S101: 1.000070211 | T101: 0.02624210102 | U101: 24.40665557 | V101: -118.5596469 | W101: 61.44035308 | Y101: 1000000000 | Z101: 10964707.69 | AB101: 29.0159583 | AC101: -50.03592034 | AE101: 45.00353186 | AF101: -69.11151106 | AH101: 0 | AI101: 0 | AK101: 0 | AL101: 0
A102: 3630.8 | B102: 3.6308 | C102: 2.857797878 | D102: 1.21331086 | E102: 1.000002602 | F102: 0.002281294961 | G102: 1 | H102: 0 | I102: 3943.033222 | J102: 1.570542715 | K102: 1.378322834 | L102: 0.7590074647 | M102: 1.000153229 | N102: 0.01750483644 | O102: 1.000222546 | P102: 0.02109523517 | Q102: 15.12500607 | R102: 0.009847089459 | S102: 1.000084422 | T102: 0.02877440248 | U102: 23.27332001 | V102: -117.8915616 | W102: 62.10843836 | Y102: 1000000000 | Z102: 13182708.64 | AB102: 28.57630386 | AC102: -47.50049807 | AE102: 44.30959442 | AF102: -71.03553485 | AH102: 0 | AI102: 0 | AK102: 0 | AL102: 0
A103: 3981.1 | B103: 3.9811 | C103: 3.101075592 | D103: 1.242459911 | E103: 1.000003128 | F103: 0.002501393683 | G103: 1 | H103: 0 | I103: 4323.457496 | J103: 1.57056503 | K103: 1.44283397 | L103: 0.8050427233 | M103: 1.00018422 | N103: 0.01919330857 | O103: 1.000267554 | P103: 0.02312981198 | Q103: 15.12515014 | R103: 0.01079707023 | S103: 1.00010151 | T103: 0.03155090184 | U103: 22.16089128 | V103: -117.1064023 | W103: 62.8935977 | Y103: 1000000000 | Z103: 15849157.21 | AB103: 28.17332773 | AC103: -44.96089295 | AE103: 43.59983372 | AF103: -72.8521234 | AH103: 0 | AI103: 0 | AK103: 0 | AL103: 0
A104: 4365.2 | B104: 4.3652 | C104: 3.370395562 | D104: 1.26956001 | E104: 1.000003761 | F104: 0.00274272917 | G104: 1 | H104: 0 | I104: 4740.588425 | J104: 1.570585383 | K104: 1.516766226 | L104: 0.8509124294 | M104: 1.000221478 | N104: 0.02104457307 | O104: 1.000321663 | P104: 0.02536048176 | Q104: 15.12532335 | R104: 0.01183869193 | S104: 1.00012206 | T104: 0.03459541073 | U104: 21.07141936 | V104: -116.2307013 | W104: 63.76929866 | Y104: 1000000000 | Z104: 19054971.04 | AB104: 27.80702884 | AC104: -42.43998811 | AE104: 42.8762903 | AF104: -74.56545472 | AH104: 0 | AI104: 0 | AK104: 0 | AL104: 0
A105: 4786.3 | B105: 4.7863 | C105: 3.66806426 | D105: 1.294677702 | E105: 1.000004522 | F105: 0.003007311914 | G105: 1 | H105: 0 | I105: 5197.901194 | J105: 1.570603941 | K105: 1.601127839 | L105: 0.8962286401 | M105: 1.000266264 | N105: 0.02307400194 | O105: 1.000386704 | P105: 0.02780573905 | Q105: 15.12553156 | R105: 0.01298062376 | S105: 1.000146772 | T105: 0.03793333752 | U105: 20.00637821 | V105: -115.2921671 | W105: 64.70783286 | Y105: 1000000000 | Z105: 22908667.69 | AB105: 27.47687175 | AC105: -39.96090155 | AE105: 42.14096108 | AF105: -76.18068213 | AH105: 0 | AI105: 0 | AK105: 0 | AL105: 0
A106: 5248.1 | B106: 5.2481 | C106: 3.996747183 | D106: 1.317905927 | E106: 1.000005437 | F106: 0.003297466526 | G106: 1 | H106: 0 | I106: 5699.413988 | J106: 1.57062087 | K106: 1.697024467 | L106: 0.9406454106 | M106: 1.000320114 | N106: 0.02529935927 | O106: 1.000464907 | P106: 0.03048695103 | Q106: 15.12578192 | R106: 0.0142328878 | S106: 1.000176497 | T106: 0.041594069 | U106: 18.96599898 | V106: -114.3178735 | W106: 65.68212647 | Y106: 1000000000 | Z106: 27542553.61 | AB106: 27.18160237 | AC106: -37.54448158 | AE106: 41.39531603 | AF106: -77.70468117 | AH106: 0 | AI106: 0 | AK106: 0 | AL106: 0
A107: 5370.3 | B107: 5.3703 | C107: 4.084046242 | D107: 1.323425973 | E107: 1.000005693 | F107: 0.003374246196 | G107: 1 | H107: 0 | I107: 5832.122657 | J107: 1.570624863 | K107: 1.722920892 | L107: 0.9515646088 | M107: 1.000335193 | N107: 0.025888185 | O107: 1.000486804 | P107: 0.03119637276 | Q107: 15.12585202 | R107: 0.01456425081 | S107: 1.000184823 | T107: 0.04256279506 | U107: 18.70988413 | V107: -114.0719345 | W107: 65.92806551 | Y107: 1000000000 | Z107: 28840122.09 | AB107: 27.11308721 | AC107: -36.95282359 | AE107: 41.20756648 | AF107: -78.07206129 | AH107: 0 | AI107: 0 | AK107: 0 | AL107: 0
A108: 5432.85 | B108: 5.43285 | C108: 4.128778256 | D108: 1.32616113 | E108: 1.000005826 | F108: 0.003413547067 | G108: 1 | H108: 0 | I108: 5900.051686 | J108: 1.570626837 | K108: 1.736254077 | L108: 0.9570274076 | M108: 1.000343045 | N108: 0.02618957782 | O108: 1.000498207 | P108: 0.03155948938 | Q108: 15.12588853 | R108: 0.01473386302 | S108: 1.00018916 | T108: 0.04305865874 | U108: 18.5816148 | V108: -113.9481059 | W108: 66.05189408 | Y108: 1000000000 | Z108: 29515859.12 | AB108: 27.07939451 | AC108: -36.65720992 | AE108: 41.11291182 | AF108: -78.25493338 | AH108: 0 | AI108: 0 | AK108: 0 | AL108: 0
A109: 5495.4 | B109: 5.4954 | C109: 4.173540496 | D109: 1.328837636 | E109: 1.000005961 | F109: 0.003452847928 | G109: 1 | H109: 0 | I109: 5967.980714 | J109: 1.570628766 | K109: 1.749638285 | L109: 0.9624067875 | M109: 1.000350988 | N109: 0.02649096589 | O109: 1.000509743 | P109: 0.03192259766 | Q109: 15.12592546 | R109: 0.01490347442 | S109: 1.000193546 | T109: 0.04355452652 | U109: 18.45519438 | V109: -113.8256943 | W109: 66.17430572 | Y109: 1000000000 | Z109: 30199421.16 | AB109: 27.04659353 | AC109: -36.36637296 | AE109: 41.01921344 | AF109: -78.43444525 | AH109: 0 | AI109: 0 | AK109: 0 | AL109: 0
A110: 5559.4 | B110: 5.5594 | C110: 4.219370671 | D110: 1.33151739 | E110: 1.000006101 | F110: 0.003493059829 | G110: 1 | H110: 0 | I110: 6037.484437 | J110: 1.570630695 | K110: 1.763384357 | L110: 0.9678261873 | M110: 1.00035921 | N110: 0.02679933558 | O110: 1.000521682 | P110: 0.03229411461 | Q110: 15.12596369 | R110: 0.0150770168 | S110: 1.000198087 | T110: 0.04406189353 | U110: 18.32770746 | V110: -113.7019258 | W110: 66.2980742 | Y110: 1000000000 | Z110: 30906928.36 | AB110: 27.0139241 | AC110: -36.07364302 | AE110: 40.92431426 | AF110: -78.61474983 | AH110: 0 | AI110: 0 | AK110: 0 | AL110: 0
A111: 5623.4 | B111: 5.6234 | C111: 4.265230495 | D111: 1.334139536 | E111: 1.000006242 | F111: 0.003533271718 | G111: 1 | H111: 0 | I111: 6106.988159 | J111: 1.57063258 | K111: 1.777181418 | L111: 0.9731615954 | M111: 1.000367526 | N111: 0.02710770018 | O111: 1.000533759 | P111: 0.03266562264 | Q111: 15.12600235 | R111: 0.01525055832 | S111: 1.000202681 | T111: 0.04456926492 | U111: 18.20205723 | V111: -113.579667 | W111: 66.42033302 | Y111: 1000000000 | Z111: 31622627.56 | AB111: 26.98212641 | AC111: -35.78572265 | AE111: 40.83037908 | AF111: -78.79175401 | AH111: 0 | AI111: 0 | AK111: 0 | AL111: 0
A112: 5688.9 | B112: 5.6889 | C112: 4.31219487 | D112: 1.336765372 | E112: 1.000006388 | F112: 0.003574426062 | G112: 1 | H112: 0 | I112: 6178.120875 | J112: 1.570634465 | K112: 1.791353412 | L112: 0.9785367963 | M112: 1.000376136 | N112: 0.02742328674 | O112: 1.000546262 | P112: 0.03304582855 | Q112: 15.12604238 | R112: 0.01542816631 | S112: 1.000207437 | T112: 0.04508853242 | U112: 18.07531431 | V112: -113.4561156 | W112: 66.54388439 | Y112: 1000000000 | Z112: 32363583.21 | AB112: 26.95045542 | AC112: -35.49593612 | AE112: 40.73522159 | AF112: -78.96959718 | AH112: 0 | AI112: 0 | AK112: 0 | AL112: 0
A113: 5754.4 | B113: 5.7544 | C113: 4.359188336 | D113: 1.33933461 | E113: 1.000006536 | F113: 0.003615580394 | G113: 1 | H113: 0 | I113: 6249.25359 | J113: 1.570636308 | K113: 1.805576351 | L113: 0.9838274648 | M113: 1.000384846 | N113: 0.02773886783 | O113: 1.00055891 | P113: 0.0334260249 | Q113: 15.12608288 | R113: 0.01560577336 | S113: 1.000212248 | T113: 0.04560780462 | U113: 17.95039635 | V113: -113.3341628 | W113: 66.66583719 | Y113: 1000000000 | Z113: 33113119.36 | AB113: 26.9196365 | AC113: -35.21099018 | AE113: 40.641036 | AF113: -79.14419784 | AH113: 0 | AI113: 0 | AK113: 0 | AL113: 0
A114: 5821.4 | B114: 5.8214 | C114: 4.407287118 | D114: 1.341905983 | E114: 1.000006689 | F114: 0.003657677179 | G114: 1 | H114: 0 | I114: 6322.0153 | J114: 1.570638149 | K114: 1.820176468 | L114: 0.9891535959 | M114: 1.000393858 | N114: 0.02806167025 | O114: 1.000571997 | P114: 0.03381491804 | Q114: 15.12612478 | R114: 0.01578744678 | S114: 1.000217227 | T114: 0.04613897347 | U114: 17.82445639 | V114: -113.2110764 | W114: 66.78892357 | Y114: 1000000000 | Z114: 33888697.96 | AB114: 26.88896312 | AC114: -34.92442608 | AE114: 40.54567987 | AF114: -79.31954838 | AH114: 0 | AI114: 0 | AK114: 0 | AL114: 0
A115: 5888.4 | B115: 5.8884 | C115: 4.455414411 | D115: 1.344421819 | E115: 1.000006844 | F115: 0.003699773951 | G115: 1 | H115: 0 | I115: 6394.777009 | J115: 1.570639949 | K115: 1.834827396 | L115: 0.9943948164 | M115: 1.000402974 | N115: 0.02838446682 | O115: 1.000585235 | P115: 0.03420380094 | Q115: 15.12616717 | R115: 0.0159691192 | S115: 1.000222264 | T115: 0.04667014735 | U115: 17.70032736 | V115: -113.0896712 | W115: 66.91032879 | Y115: 1000000000 | Z115: 34673254.56 | AB115: 26.85912114 | AC115: -34.64272426 | AE115: 40.45130225 | AF115: -79.49171726 | AH115: 0 | AI115: 0 | AK115: 0 | AL115: 0
A116: 5957 | B116: 5.957 | C116: 4.504719599 | D116: 1.346942021 | E116: 1.000007005 | F116: 0.003742876005 | G116: 1 | H116: 0 | I116: 6469.276311 | J116: 1.57064175 | K116: 1.849879583 | L116: 0.9996750339 | M116: 1.000412416 | N116: 0.02871496583 | O116: 1.000598947 | P116: 0.03460195988 | Q116: 15.12621107 | R116: 0.01615512902 | S116: 1.000227482 | T116: 0.04721401125 | U116: 17.57506107 | V116: -112.9671096 | W116: 67.03289036 | Y116: 1000000000 | Z116: 35485849 | AB116: 26.8293981 | AC116: -34.35922946 | AE116: 40.35566518 | AF116: -79.66480573 | AH116: 0 | AI116: 0 | AK116: 0 | AL116: 0
A117: 6025.6 | B117: 6.0256 | C117: 4.554052779 | D117: 1.349407637 | E117: 1.000007167 | F117: 0.003785978045 | G117: 1 | H117: 0 | I117: 6543.775614 | J117: 1.57064351 | K117: 1.864982512 | L117: 1.004869874 | M117: 1.000421968 | N117: 0.02904545857 | O117: 1.000612817 | P117: 0.03500010784 | Q117: 15.12625548 | R117: 0.01634113777 | S117: 1.00023276 | T117: 0.04775788055 | U117: 17.45159482 | V117: -112.8463104 | W117: 67.15368957 | Y117: 1000000000 | Z117: 36307855.36 | AB117: 26.80048731 | AC117: -34.08062371 | AE117: 40.26101482 | AF117: -79.83476695 | AH117: 0 | AI117: 0 | AK117: 0 | AL117: 0
A118: 6095.8 | B118: 6.0958 | C118: 4.604564627 | D118: 1.351876048 | E118: 1.000007335 | F118: 0.003830085367 | G118: 1 | H118: 0 | I118: 6620.012509 | J118: 1.57064527 | K118: 1.880488952 | L118: 1.010099347 | M118: 1.000431855 | N118: 0.02938365302 | O118: 1.000627174 | P118: 0.03540753056 | Q118: 15.12630145 | R118: 0.01653148379 | S118: 1.000238224 | T118: 0.04831444049 | U118: 17.32706318 | V118: -112.724515 | W118: 67.27548498 | Y118: 1000000000 | Z118: 37158777.64 | AB118: 26.77171369 | AC118: -33.80047495 | AE118: 40.16515857 | AF118: -80.00555789 | AH118: 0 | AI118: 0 | AK118: 0 | AL118: 0
A119: 6166 | B119: 6.166 | C119: 4.655103921 | D119: 1.354290876 | E119: 1.000007505 | F119: 0.003874192673 | G119: 1 | H119: 0 | I119: 6696.249405 | J119: 1.570646989 | K119: 1.896045977 | L119: 1.015243143 | M119: 1.000441857 | N119: 0.02972184075 | O119: 1.000641698 | P119: 0.03581494152 | Q119: 15.12634795 | R119: 0.01672182867 | S119: 1.000243752 | T119: 0.04887100622 | U119: 17.20431837 | V119: -112.6045567 | W119: 67.39544332 | Y119: 1000000000 | Z119: 38019556 | AB119: 26.7437322 | AC119: -33.52523241 | AE119: 40.07029588 | AF119: -80.17327905 | AH119: 0 | AI119: 0 | AK119: 0 | AL119: 0
A120: 6237.8 | B120: 6.2378 | C120: 4.70682258 | D120: 1.356707084 | E120: 1.000007681 | F120: 0.003919305258 | G120: 1 | H120: 0 | I120: 6774.223893 | J120: 1.570648708 | K120: 1.912008617 | L120: 1.020417448 | M120: 1.000452205 | N120: 0.03006772943 | O120: 1.000656725 | P120: 0.0362316259 | Q120: 15.12639607 | R120: 0.0169165107 | S120: 1.000249472 | T120: 0.04944026325 | U120: 17.08057535 | V120: -112.4837573 | W120: 67.51624273 | Y120: 1000000000 | Z120: 38910148.84 | AB120: 26.71590347 | AC120: -33.24868302 | AE120: 39.97427879 | AF120: -80.34174883 | AH120: 0 | AI120: 0 | AK120: 0 | AL120: 0
A121: 6309.6 | B121: 6.3096 | C121: 4.75856812 | D121: 1.359070757 | E121: 1.000007858 | F121: 0.003964417828 | G121: 1 | H121: 0 | I121: 6852.198382 | J121: 1.570650388 | K121: 1.928021601 | L121: 1.025505938 | M121: 1.000462672 | N121: 0.03041361091 | O121: 1.000671925 | P121: 0.03664829768 | Q121: 15.12644474 | R121: 0.01711119149 | S121: 1.000255259 | T121: 0.05000952647 | U121: 16.95860388 | V121: -112.364863 | W121: 67.63513699 | Y121: 1000000000 | Z121: 39811052.16 | AB121: 26.68884596 | AC121: -32.97704782 | AE121: 39.87926083 | AF121: -80.50720893 | AH121: 0 | AI121: 0 | AK121: 0 | AL121: 0
A122: 6383.05 | B122: 6.38305 | C122: 4.811529708 | D122: 1.361436129 | E122: 1.000008042 | F122: 0.00401056709 | G122: 1 | H122: 0 | I122: 6931.964763 | J122: 1.570652068 | K122: 1.944453365 | L122: 1.030624508 | M122: 1.000473504 | N122: 0.03076743339 | O122: 1.000687654 | P122: 0.03707453163 | Q122: 15.12649511 | R122: 0.01731034487 | S122: 1.000261247 | T122: 0.05059187812 | U122: 16.83561378 | V122: -112.2451965 | W122: 67.75480349 | Y122: 1000000000 | Z122: 40743327.3 | AB122: 26.66193627 | AC122: -32.70414413 | AE122: 39.78307281 | AF122: -80.67345687 | AH122: 0 | AI122: 0 | AK122: 0 | AL122: 0
A123: 6456.5 | B123: 6.4565 | C123: 4.864517632 | D123: 1.363749982 | E123: 1.000008229 | F123: 0.004056716335 | G123: 1 | H123: 0 | I123: 7011.731145 | J123: 1.570653709 | K123: 1.960935219 | L123: 1.035657163 | M123: 1.000484462 | N123: 0.03112124817 | O123: 1.000703565 | P123: 0.03750075209 | Q123: 15.12654606 | R123: 0.01750949693 | S123: 1.000267306 | T123: 0.0511742364 | U123: 16.71438043 | V123: -112.1274992 | W123: 67.87250079 | Y123: 1000000000 | Z123: 41686392.25 | AB123: 26.63577727 | AC123: -32.43616032 | AE123: 39.68788961 | AF123: -80.83675343 | AH123: 0 | AI123: 0 | AK123: 0 | AL123: 0
A124: 6531.7 | B124: 6.5317 | C124: 4.918794425 | D124: 1.366067305 | E124: 1.000008421 | F124: 0.004103965102 | G124: 1 | H124: 0 | I124: 7093.398019 | J124: 1.570655351 | K124: 1.977860351 | L124: 1.040722696 | M124: 1.00049581 | N124: 0.03148348476 | O124: 1.000720044 | P124: 0.03793711344 | Q124: 15.12659882 | R124: 0.01771339256 | S124: 1.000273581 | T124: 0.05177047672 | U124: 16.5920301 | V124: -112.0090226 | W124: 67.99097739 | Y124: 1000000000 | Z124: 42663104.89 | AB124: 26.60974482 | AC124: -32.16677535 | AE124: 39.59145899 | AF124: -81.00098111 | AH124: 0 | AI124: 0 | AK124: 0 | AL124: 0
A125: 6606.9 | B125: 6.6069 | C125: 4.973097055 | D125: 1.368334032 | E125: 1.000008616 | F125: 0.00415121385 | G125: 1 | H125: 0 | I125: 7175.064893 | J125: 1.570656955 | K125: 1.994835373 | L125: 1.045702146 | M125: 1.000507289 | N125: 0.03184571309 | O125: 1.000736713 | P125: 0.03837346034 | Q125: 15.1266522 | R125: 0.01791728677 | S125: 1.000279929 | T125: 0.05236672415 | U125: 16.47142442 | V125: -111.8925779 | W125: 68.10742208 | Y125: 1000000000 | Z125: 43651127.61 | AB125: 26.58444381 | AC125: -31.90232002 | AE125: 39.4960403 | AF125: -81.16231032 | AH125: 0 | AI125: 0 | AK125: 0 | AL125: 0
A126: 6683.85 | B126: 6.68385 | C126: 5.02868925 | D126: 1.37060282 | E126: 1.000008818 | F126: 0.004199562118 | G126: 1 | H126: 0 | I126: 7258.632259 | J126: 1.57065856 | K126: 2.012255752 | L126: 1.050710379 | M126: 1.000519172 | N126: 0.03221636228 | O126: 1.000753968 | P126: 0.03881994646 | Q126: 15.12670745 | R126: 0.01812592439 | S126: 1.000286501 | T126: 0.05297685446 | U126: 16.34976981 | V126: -111.7755079 | W126: 68.22449214 | Y126: 1000000000 | Z126: 44673850.82 | AB126: 26.55928376 | AC126: -31.63669795 | AE126: 39.39942771 | AF126: -81.32449003 | AH126: 0 | AI126: 0 | AK126: 0 | AL126: 0
A127: 6760.8 | B127: 6.7608 | C127: 5.084306763 | D127: 1.372821982 | E127: 1.000009022 | F127: 0.004247910367 | G127: 1 | H127: 0 | I127: 7342.199626 | J127: 1.570660128 | K127: 2.029725736 | L127: 1.055632522 | M127: 1.000531191 | N127: 0.03258700261 | O127: 1.000771421 | P127: 0.03926641709 | Q127: 15.12676334 | R127: 0.0183345605 | S127: 1.00029315 | T127: 0.05358699237 | U127: 16.2298457 | V127: -111.6605257 | W127: 68.33947427 | Y127: 1000000000 | Z127: 45708416.64 | AB127: 26.53483516 | AC127: -31.37600592 | AE127: 39.30383281 | AF127: -81.48382684 | AH127: 0 | AI127: 0 | AK127: 0 | AL127: 0
A128: 6839.55 | B128: 6.83955 | C128: 5.141250627 | D128: 1.375043332 | E128: 1.000009234 | F128: 0.004297389548 | G128: 1 | H128: 0 | I128: 7427.721784 | J128: 1.570661696 | K128: 2.047654409 | L128: 1.060582721 | M128: 1.000543635 | N128: 0.03296630362 | O128: 1.00078949 | P128: 0.03972331526 | Q128: 15.1268212 | R128: 0.01854807541 | S128: 1.000300033 | T128: 0.05421141049 | U128: 16.10886 | V128: -111.5449931 | W128: 68.45500686 | Y128: 1000000000 | Z128: 46779444.2 | AB128: 26.51052438 | AC128: -31.1142026 | AE128: 39.20703428 | AF128: -81.64404241 | AH128: 0 | AI128: 0 | AK128: 0 | AL128: 0
A129: 6918.3 | B129: 6.9183 | C129: 5.198219305 | D129: 1.377216004 | E129: 1.000009448 | F129: 0.004346868707 | G129: 1 | H129: 0 | I129: 7513.243943 | J129: 1.570663228 | K129: 2.065632387 | L129: 1.06544687 | M129: 1.000556222 | N129: 0.03334559514 | O129: 1.000807767 | P129: 0.04018019684 | Q129: 15.12687974 | R129: 0.01876158869 | S129: 1.000306997 | T129: 0.05483583676 | U129: 15.98959092 | V129: -111.4316005 | W129: 68.5683995 | Y129: 1000000000 | Z129: 47862874.89 | AB129: 26.48690535 | AC129: -30.85732696 | AE129: 39.11125923 | AF129: -81.80146939 | AH129: 0 | AI129: 0 | AK129: 0 | AL129: 0
A130: 6998.9 | B130: 6.9989 | C130: 5.256551146 | D130: 1.37939094 | E130: 1.000009669 | F130: 0.004397510213 | G130: 1 | H130: 0 | I130: 7600.775193 | J130: 1.570664761 | K130: 2.084082429 | L130: 1.070338271 | M130: 1.000569254 | N130: 0.03373378707 | O130: 1.000826691 | P130: 0.04064779413 | Q130: 15.12694034 | R130: 0.01898011615 | S130: 1.000314208 | T130: 0.05547494062 | U130: 15.8692498 | V130: -111.3177339 | W130: 68.68226608 | Y130: 1000000000 | Z130: 48984601.21 | AB130: 26.46342142 | AC130: -30.59939995 | AE130: 39.0142726 | AF130: -81.95980047 | AH130: 0 | AI130: 0 | AK130: 0 | AL130: 0
A131: 7079.5 | B131: 7.0795 | C131: 5.314907307 | D131: 1.381518126 | E131: 1.000009893 | F131: 0.004448151696 | G131: 1 | H131: 0 | I131: 7688.306444 | J131: 1.570666259 | K131: 2.102581459 | L131: 1.075143713 | M131: 1.000582437 | N131: 0.03412196882 | O131: 1.000845833 | P131: 0.04111537363 | Q131: 15.12700164 | R131: 0.01919864187 | S131: 1.000321503 | T131: 0.05611405323 | U131: 15.7506117 | V131: -111.2060553 | W131: 68.79394468 | Y131: 1000000000 | Z131: 50119320.25 | AB131: 26.44060979 | AC131: -30.3463954 | AE131: 38.9183152 | AF131: -82.11539615 | AH131: 0 | AI131: 0 | AK131: 0 | AL131: 0
A132: 7161.95 | B132: 7.16195 | C132: 5.374627246 | D132: 1.383646332 | E132: 1.000010125 | F132: 0.004499955522 | G132: 1 | H132: 0 | I132: 7777.846787 | J132: 1.570667757 | K132: 2.121554445 | L132: 1.079972629 | M132: 1.000596078 | N132: 0.0345190498 | O132: 1.000865641 | P132: 0.04159366681 | Q132: 15.12706507 | R132: 0.01942218157 | S132: 1.000329053 | T132: 0.05676784443 | U132: 15.63096518 | V132: -111.0940479 | W132: 68.90595212 | Y132: 1000000000 | Z132: 51293527.8 | AB132: 26.41794443 | AC132: -30.09255573 | AE132: 38.82119856 | AF132: -82.27182468 | AH132: 0 | AI132: 0 | AK132: 0 | AL132: 0
A133: 7244.4 | B133: 7.2444 | C133: 5.434370993 | D133: 1.385727753 | E133: 1.000010359 | F133: 0.004551759323 | G133: 1 | H133: 0 | I133: 7867.387129 | J133: 1.57066922 | K133: 2.140576025 | L133: 1.084715833 | M133: 1.000609878 | N133: 0.0349161199 | O133: 1.000885677 | P133: 0.04207194094 | Q133: 15.12712924 | R133: 0.01964571941 | S133: 1.000336691 | T133: 0.05742164499 | U133: 15.51300623 | V133: -110.9842698 | W133: 69.0157302 | Y133: 1000000000 | Z133: 52481331.36 | AB133: 26.39593141 | AC133: -29.84362444 | AE133: 38.7251156 | AF133: -82.42557321 | AH133: 0 | AI133: 0 | AK133: 0 | AL133: 0
A134: 7328.75 | B134: 7.32875 | C134: 5.495515318 | D134: 1.387810298 | E134: 1.000010602 | F134: 0.00460475688 | G134: 1 | H134: 0 | I134: 7958.990864 | J134: 1.570670683 | K134: 2.160084891 | L134: 1.089481785 | M134: 1.000624158 | N134: 0.03532232879 | O134: 1.000906413 | P134: 0.04256121663 | Q134: 15.12719565 | R134: 0.01987440657 | S134: 1.000344597 | T134: 0.05809052169 | U134: 15.39402831 | V134: -110.8742365 | W134: 69.12576355 | Y134: 1000000000 | Z134: 53710576.56 | AB134: 26.37406099 | AC134: -29.59391341 | AE134: 38.62786627 | AF134: -82.58018151 | AH134: 0 | AI134: 0 | AK134: 0 | AL134: 0
A135: 7413.1 | B135: 7.4131 | C135: 5.556682952 | D135: 1.389847002 | E135: 1.000010847 | F135: 0.004657754412 | G135: 1 | H135: 0 | I135: 8050.594598 | J135: 1.570672112 | K135: 2.179641943 | L135: 1.094162315 | M135: 1.000638603 | N135: 0.03572852602 | O135: 1.000927388 | P135: 0.04305047192 | Q135: 15.12726282 | R135: 0.02010309173 | S135: 1.000352595 | T135: 0.05875940841 | U135: 15.27672286 | V135: -110.76647 | W135: 69.23353003 | Y135: 1000000000 | Z135: 54954051.61 | AB135: 26.35282331 | AC135: -29.34909409 | AE135: 38.53165506 | AF135: -82.73216392 | AH135: 0 | AI135: 0 | AK135: 0 | AL135: 0
A136: 7499.45 | B136: 7.49945 | C136: 5.619324266 | D136: 1.39188606 | E136: 1.000011102 | F136: 0.004712008526 | G136: 1 | H136: 0 | I136: 8144.370324 | J136: 1.570673543 | K136: 2.199711278 | L136: 1.098867508 | M136: 1.000653562 | N136: 0.03614434226 | O136: 1.000949108 | P136: 0.04355130645 | Q136: 15.12733239 | R136: 0.02033719711 | S136: 1.000360878 | T136: 0.0594441654 | U136: 15.15832171 | V136: -110.6584608 | W136: 69.34153917 | Y136: 1000000000 | Z136: 56241750.3 | AB136: 26.33171286 | AC136: -29.10341284 | AE136: 38.43421582 | AF136: -82.88511849 | AH136: 0 | AI136: 0 | AK136: 0 | AL136: 0
A137: 7585.8 | B137: 7.5858 | C137: 5.681988429 | D137: 1.39388015 | E137: 1.000011359 | F137: 0.004766262612 | G137: 1 | H137: 0 | I137: 8238.14605 | J137: 1.57067494 | K137: 2.219828431 | L137: 1.10348752 | M137: 1.000668695 | N137: 0.03656014599 | O137: 1.00097108 | P137: 0.04405211912 | Q137: 15.12740276 | R137: 0.02057130035 | S137: 1.000369258 | T137: 0.06012893313 | U137: 15.04158015 | V137: -110.5527549 | W137: 69.4472451 | Y137: 1000000000 | Z137: 57544361.64 | AB137: 26.31121658 | AC137: -28.8626095 | AE137: 38.33782027 | AF137: -83.03549722 | AH137: 0 | AI137: 0 | AK137: 0 | AL137: 0
A138: 7674.15 | B138: 7.67415 | C138: 5.74612686 | D138: 1.395875403 | E138: 1.000011625 | F138: 0.004821773279 | G138: 1 | H138: 0 | I138: 8334.093767 | J138: 1.570676338 | K138: 2.240459677 | L138: 1.108128567 | M138: 1.000684356 | N138: 0.0369855673 | O138: 1.00099382 | P138: 0.0445645085 | Q138: 15.12747559 | R138: 0.02081082356 | S138: 1.000377933 | T138: 0.06082957239 | U138: 14.92380595 | V138: -110.4469461 | W138: 69.55305393 | Y138: 1000000000 | Z138: 58892578.22 | AB138: 26.29085719 | AC138: -28.62115203 | AE138: 38.24024997 | AF138: -83.18677993 | AH138: 0 | AI138: 0 | AK138: 0 | AL138: 0
A139: 7762.5 | B139: 7.7625 | C139: 5.810287661 | D139: 1.397826598 | E139: 1.000011894 | F139: 0.004877283915 | G139: 1 | H139: 0 | I139: 8430.041484 | J139: 1.570677703 | K139: 2.2611383 | L139: 1.112684823 | M139: 1.000700199 | N139: 0.03741097521 | O139: 1.001016823 | P139: 0.04507687446 | Q139: 15.12754927 | R139: 0.02105034448 | S139: 1.000386709 | T139: 0.06153022313 | U139: 14.80767668 | V139: -110.3434703 | W139: 69.6565297 | Y139: 1000000000 | Z139: 60256406.25 | AB139: 26.27109297 | AC139: -28.3845501 | AE139: 38.14372762 | AF139: -83.33553896 | AH139: 0 | AI139: 0 | AK139: 0 | AL139: 0
A140: 7852.9 | B140: 7.8529 | C140: 5.875959587 | D140: 1.399778953 | E140: 1.000012173 | F140: 0.004934082543 | G140: 1 | H140: 0 | I140: 8528.215492 | J140: 1.570679069 | K140: 2.282344427 | L140: 1.117261244 | M140: 1.000716597 | N140: 0.03784623991 | O140: 1.001040632 | P140: 0.04560110443 | Q140: 15.12762552 | R140: 0.02129542065 | S140: 1.000395794 | T140: 0.06224714323 | U140: 14.69050946 | V140: -110.2399673 | W140: 69.76003268 | Y140: 1000000000 | Z140: 61668038.41 | AB140: 26.25146272 | AC140: -28.14735755 | AE140: 38.04602784 | AF140: -83.48522287 | AH140: 0 | AI140: 0 | AK140: 0 | AL140: 0
A141: 7943.3 | B141: 7.9433 | C141: =SQRT(1+(A141/pole1)^2) -> 5.941653415 | D141: =ATAN(A141/pole1) -> 1.401688144 | E141: =SQRT(1+(A141/Zero1)^2) -> 1.000012455 | F141: =ATAN(A141/Zero1) -> 0.00499088114 | G141: =IF(VIN_nom>Vout, 1, SQRT(1+(A141/z_RHP)^2)) -> 1 | H141: =IF(VIN_nom>Vout, 0, -ATAN(A141/z_RHP)) -> 0 | I141: =SQRT(1+(A141/Pole2)^2) -> 8626.389501 | J141: =ATAN(A141/Pole2) -> 1.570680403 | K141: =SQRT(1+(A141/Zero2)^2) -> 2.303597475 | L141: =ATAN(A141/Zero2) -> 1.121753314 | M141: =SQRT(1+(A141/pole4)^2) -> 1.000733184 | N141: =ATAN(A141/pole4) -> 0.03828149026 | O141: =IF(VOUT_setting=1,1,SQRT(1+(A141*zterm1)^2)) -> 1.001064716 | P141: =IF(VOUT_setting=1,0,ATAN(((A141*zterm1)))) -> 0.04612530931 | Q141: 15.12770266 | R141: =IF(VOUT_setting=1,0,ATAN(A141*$Q$4/(1+Afbr-$Q$5*(A141)^2))) -> 0.02154049437 | S141: =SQRT((1-(Z141/pterm2))^2+(A141/pterm1)^2) -> 1.000404985 | T141: =IF((ATAN((A141/pterm1)/(1-A141^2/pterm2))>0),ATAN((A141/pterm1)/(1-A141^2/pterm2)),PI()+ATAN((A141/pterm1)/(1-A141^2/pterm2))) -> 0.06296407564 | U141: =20*LOG10(((E141*K141*G141*O141)/(C141*I141*S141*M141*Q141))*Adc) -> 14.57497275 | V141: =((F141+L141+H141+P141)-(D141+J141+T141+N141+R141))*radconv -> -110.1388236 | W141: =IF(V141>0,V141,V141+180) -> 69.86117645 | Y141: =IF(U141<0,A141,1000000000) -> 1000000000 | Z141: =A141^2 -> 63096014.89 | AB141: =20*LOG10((K141/(I141*M141))*AEA) -> 26.23240898 | AC141: =(L141-(J141+N141))*radconv -> -27.91499539 | AE141: =20*LOG10((E141*G141/(C141*S141))*Acs*Am) -> 37.94938019 | AF141: =(F141+H141-(D141+T141))*radconv -> -83.6324343 | AH141: =SUM((U142<0)*(U141>0))*A141 -> 0 | AI141: 0 | AK141: 0 | AL141: 0
A142: 8035.8 | B142: =A142/1000 -> 8.0358 | C142: 6.008895238 | D142: 1.403598466 | E142: 1.000012746 | F142: 0.005048999139 | G142: 1 | H142: 0 | I142: 8726.8441 | J142: 1.570681738 | K142: 2.325391458 | L142: 1.126264647 | M142: 1.000750353 | N142: 0.0387268365 | O142: 1.001089644 | P142: 0.04666166526 | Q142: 15.12778251 | R142: 0.02179125861 | S142: 1.0004145 | T142: 0.06369767534 | U142: 14.45839425 | V142: -110.0377286 | W142: 69.96227141 | Y142: 1000000000 | Z142: 64574081.64 | AB142: 26.21348647 | AC142: -27.68210796 | AE142: 37.85155377 | AF142: -83.78058996 | AH142: 0 | AI142: 0 | AK142: =SUM((V143<-183)*(V142>-183))*A142 -> 0 | AL142: =IF(AK142>0,U142,0) -> 0
A143: 8128.3 | B143: 8.1283 | C143: 6.076158505 | D143: 1.405466501 | E143: 1.000013041 | F143: 0.005107117105 | G143: 1 | H143: 0 | I143: 8827.298699 | J143: 1.570683042 | K143: 2.347231888 | L143: 1.130692115 | M143: 1.00076772 | N143: 0.03917216737 | O143: 1.00111486 | P143: 0.04719799435 | Q143: =IF(VOUT_setting=1,1,SQRT((1+Afbr-$Q$5*(A143)^2)^2+(A143*$Q$4)^2)) -> 15.12786328 | R143: 0.02204202023 | S143: 1.000424126 | T143: 0.06443128823 | U143: 14.34343205 | V143: -109.9390153 | W143: 70.06098466 | Y143: 1000000000 | Z143: 66069260.89 | AB143: 26.19512211 | AC143: -27.45402303 | AE143: 37.75478351 | AF143: -83.92632347 | AH143: 0 | AI143: 0 | AK143: 0 | AL143: 0
A144: 8222.95 | B144: 8.22295 | C144: 6.14500665 | D144: 1.407335616 | E144: 1.000013347 | F144: 0.005166585884 | G144: 1 | H144: 0 | I144: 8930.088189 | J144: 1.570684346 | K144: 2.369626701 | L144: 1.135137921 | M144: 1.000785697 | N144: 0.03962783308 | O144: 1.00114096 | P144: 0.04774676133 | Q144: 15.12794688 | R144: 0.02229860761 | S144: 1.000434092 | T144: 0.06518196646 | U144: 14.22742561 | V144: -109.840427 | W144: 70.15957298 | Y144: 1000000000 | Z144: 67616906.7 | AB144: 26.17688635 | AC144: -27.22547956 | AE144: 37.65683439 | AF144: -84.07301926 | AH144: 0 | AI144: 0 | AK144: 0 | AL144: 0
A145: 8270.275 | B145: 8.270275 | C145: 6.179438638 | D145: 1.408254553 | E145: 1.000013501 | F145: 0.00519632026 | G145: 1 | H145: 0 | I145: 8981.482934 | J145: 1.570684987 | K145: 2.380841422 | L145: 1.137329438 | M145: 1.000794763 | N145: 0.03985565977 | O145: 1.001154124 | P145: 0.04802113405 | Q145: 15.12798905 | R145: 0.02242690025 | S145: 1.000439118 | T145: 0.06555731086 | U145: 14.17002595 | V145: -109.792036 | W145: 70.207964 | Y145: 1000000000 | Z145: 68397448.58 | AB145: 26.16797234 | AC145: -27.11300509 | AE145: 37.60825875 | AF145: -84.14547249 | AH145: 0 | AI145: 0 | AK145: 0 | AL145: 0
A146: 8317.6 | B146: 8.3176 | C146: 6.213875787 | D146: 1.409163306 | E146: 1.000013656 | F146: 0.005226054627 | G146: 1 | H146: 0 | I146: 9032.877679 | J146: 1.57068562 | K146: 2.392067472 | L146: 1.139500396 | M146: 1.000803881 | N146: 0.04008348232 | O146: 1.001167362 | P146: 0.04829549954 | Q146: 15.12803146 | R146: 0.02255519219 | S146: 1.000444174 | T146: 0.06593265882 | U146: 14.11302141 | V146: -109.7442393 | W146: 70.25576066 | Y146: 1000000000 | Z146: 69182469.76 | AB146: 26.15919071 | AC146: -27.00170792 | AE146: 37.55994533 | AF146: -84.21734239 | AH146: 0 | AI146: 0 | AK146: 0 | AL146: 0
A147: 8366.05 | B147: 8.36605 | C147: 6.249136825 | D147: 1.410083285 | E147: 1.000013816 | F147: 0.005256495824 | G147: 1 | H147: 0 | I147: 9085.494169 | J147: 1.570686261 | K147: 2.403571953 | L147: 1.141701943 | M147: 1.00081327 | N147: 0.04031671631 | O147: 1.001180993 | P147: 0.04857637964 | Q147: 15.12807512 | R147: 0.02268653311 | S147: 1.00044938 | T147: 0.06631693316 | U147: 14.05506553 | V147: -109.6959161 | W147: 70.30408386 | Y147: 1000000000 | Z147: 69990792.6 | AB147: 26.15033477 | AC147: -26.88896864 | AE147: 37.51075219 | AF147: -84.29032645 | AH147: 0 | AI147: 0 | AK147: 0 | AL147: 0
A148: 8414.5 | B148: 8.4145 | C148: 6.284403093 | D148: 1.410992939 | E148: 1.000013976 | F148: 0.005286937011 | G148: 1 | H148: 0 | I148: 9138.110659 | J148: 1.570686895 | K148: =SQRT(1+(A148/Zero2)^2) -> 2.415087972 | L148: =ATAN(A148/Zero2) -> 1.143882505 | M148: 1.000822713 | N148: 0.04054994591 | O148: 1.001194704 | P148: 0.04885725208 | Q148: 15.12811904 | R148: 0.02281787329 | S148: 1.000454617 | T148: 0.06670121127 | U148: 13.9975126 | V148: -109.6482037 | W148: 70.35179631 | Y148: 1000000000 | Z148: 70803810.25 | AB148: 26.14161219 | AC148: -26.77743103 | AE148: 37.46182812 | AF148: -84.36271916 | AH148: 0 | AI148: 0 | AK148: 0 | AL148: 0
A149: 8462.95 | B149: 8.46295 | C149: 6.319674503 | D149: 1.411892441 | E149: 1.000014137 | F149: 0.005317378187 | G149: 1 | H149: 0 | I149: 9190.727149 | J149: 1.570687521 | K149: 2.426615367 | L149: 1.14604236 | M149: 1.00083221 | N149: 0.0407831711 | O149: 1.001208493 | P149: 0.0491381168 | Q149: 15.12816321 | R149: 0.02294921271 | S149: 1.000459884 | T149: 0.06708549316 | U149: 13.94035714 | V149: -109.6010959 | W149: 70.39890413 | Y149: 1000000000 | Z149: 71621522.7 | AB149: 26.13302033 | AC149: -26.66707918 | AE149: 37.41317026 | AF149: -84.43453036 | AH149: 0 | AI149: 0 | AK149: 0 | AL149: 0
A150: 8511.4 | B150: 8.5114 | C150: 6.35495097 | D150: 1.412781956 | E150: 1.0000143 | F150: 0.005347819355 | G150: 1 | H150: 0 | I150: 9243.34364 | J150: 1.570688141 | K150: 2.438153974 | L150: 1.148181781 | M150: 1.000841762 | N150: 0.04101639185 | O150: 1.001222361 | P150: 0.04941897376 | Q150: 15.12820764 | R150: 0.02308055138 | S150: 1.000465182 | T150: 0.06746977885 | U150: 13.88359377 | V150: -109.5545866 | W150: 70.4454134 | Y150: 1000000000 | Z150: 72443929.96 | AB150: 26.12455661 | AC150: -26.5578974 | AE150: 37.36477579 | AF150: -84.50576965 | AH150: 0 | AI150: 0 | AK150: 0 | AL150: 0
A151: 8560.95 | B151: 8.56095 | C151: 6.391033489 | D151: 1.41368151 | E151: 1.000014467 | F151: 0.005378951642 | G151: 1 | H151: 0 | I151: 9297.154725 | J151: 1.570688767 | K151: 2.449965984 | L151: 1.150348922 | M151: 1.000851587 | N151: 0.04125490298 | O151: 1.001236626 | P151: 0.04970619918 | Q151: 15.12825333 | R151: 0.02321487115 | S151: 1.000470632 | T151: 0.06786279326 | U151: 13.8259417 | V151: -109.5076342 | W151: 70.49236577 | Y151: 1000000000 | Z151: 73289864.9 | AB151: 26.11603067 | AC151: -26.44743092 | AE151: 37.31555215 | AF151: -84.5780446 | AH151: 0 | AI151: 0 | AK151: 0 | AL151: 0
A152: 8610.5 | B152: 8.6105 | C152: 6.427121123 | D152: 1.414570962 | E152: 1.000014635 | F152: 0.005410083919 | G152: 1 | H152: 0 | I152: 9350.96581 | J152: 1.570689386 | K152: 2.46178939 | L152: 1.152495257 | M152: 1.000861469 | N152: 0.04149340942 | O152: 1.001250974 | P152: 0.04999341639 | Q152: 15.1282993 | R152: 0.02334919011 | S152: 1.000476115 | T152: 0.0682558117 | U152: 13.76868866 | V152: -109.4612952 | W152: 70.5387048 | Y152: 1000000000 | Z152: 74140710.25 | AB152: 26.10763352 | AC152: -26.33815589 | AE152: 37.26659819 | AF152: -84.64974102 | AH152: 0 | AI152: 0 | AK152: 0 | AL152: 0
A153: 8660.05 | B153: 8.66005 | C153: 6.463213784 | D153: 1.415450482 | E153: 1.000014804 | F153: 0.005441216186 | G153: 1 | H153: 0 | I153: 9404.776896 | J153: 1.570689998 | K153: 2.473624028 | L153: 1.154621063 | M153: 1.000871409 | N153: 0.04173191113 | O153: 1.001265404 | P153: 0.05028062534 | Q153: 15.12834552 | R153: 0.02348350827 | S153: 1.000481629 | T153: 0.06864883418 | U153: 13.71182925 | V153: -109.4155632 | W153: 70.58443682 | Y153: 1000000000 | Z153: 74996466 | AB153: 26.09936261 | AC153: -26.23005634 | AE153: 37.21791104 | AF153: -84.72086855 | AH153: 0 | AI153: 0 | AK153: 0 | AL153: 0
A154: 8709.6 | B154: 8.7096 | C154: 6.499311389 | D154: 1.416320232 | E154: 1.000014973 | F154: 0.005472348442 | G154: 1 | H154: 0 | I154: 9458.587981 | J154: 1.570690603 | K154: 2.485469739 | L154: 1.156726616 | M154: 1.000881404 | N154: 0.04197040809 | O154: 1.001279916 | P154: 0.050567826 | Q154: 15.12839201 | R154: 0.02361782562 | S154: 1.000487175 | T154: 0.06904186074 | U154: 13.65535812 | V154: -109.3704319 | W154: 70.62956813 | Y154: 1000000000 | Z154: 75857132.16 | AB154: 26.09121543 | AC154: -26.12311658 | AE154: 37.16948789 | AF154: -84.79143657 | AH154: 0 | AI154: =IF(AH154>0,W154,0) -> 0 | AK154: 0 | AL154: 0
A155: 8760.325 | B155: 8.760325 | C155: 6.536270028 | D155: 1.417200655 | E155: 1.000015148 | F155: 0.00550421894 | G155: 1 | H155: 0 | I155: 9513.675111 | J155: 1.570691215 | K155: 2.497607656 | L155: 1.158861401 | M155: 1.000891696 | N155: 0.04221455569 | O155: 1.001294858 | P155: 0.05086182851 | Q155: 15.12843988 | R155: 0.02375532725 | S155: 1.000492886 | T155: 0.06944421154 | U155: 13.59794464 | V155: -109.3248461 | W155: 70.67515393 | Y155: 1000000000 | Z155: 76743294.11 | AB155: 26.08300069 | AC155: -26.01482614 | AE155: 37.12018702 | AF155: -84.86310806 | AH155: 0 | AI155: 0 | AK155: 0 | AL155: 0
A156: 8811.05 | B156: 8.81105 | C156: 6.573233677 | D156: 1.418071177 | E156: 1.000015324 | F156: 0.005536089426 | G156: 1 | H156: 0 | I156: 9568.762242 | J156: 1.57069182 | K156: 2.509756845 | L156: 1.160975527 | M156: 1.000902048 | N156: 0.04245869824 | O156: 1.001309887 | P156: 0.05115582222 | Q156: 15.12848803 | R156: 0.02389282801 | S156: 1.000498631 | T156: 0.06984656665 | U156: 13.54092713 | V156: -109.2798766 | W156: 70.72012337 | Y156: 1000000000 | Z156: 77634602.1 | AB156: 26.07491052 | AC156: -25.90771865 | AE156: 37.07115696 | AF156: -84.93421249 | AH156: 0 | AI156: 0 | AK156: 0 | AL156: 0
A157: 8861.775 | B157: 8.861775 | C157: 6.610202251 | D157: 1.418931962 | E157: 1.000015501 | F157: 0.005567959901 | G157: 1 | H157: 0 | I157: 9623.849372 | J157: 1.570692418 | K157: 2.521917144 | L157: 1.163069274 | M157: 1.000912459 | N157: 0.04270283573 | O157: 1.001325003 | P157: 0.05144980709 | Q157: 15.12853645 | R157: 0.02403032792 | S157: 1.000504409 | T157: 0.07024892611 | U157: 13.48430022 | V157: -109.235517 | W157: 70.76448303 | Y157: 1000000000 | Z157: 78531056.15 | AB157: 26.06694243 | AC157: -25.80177809 | AE157: 37.02239481 | AF157: -85.00475932 | AH157: 0 | AI157: 0 | AK157: 0 | AL157: 0
A158: 8912.5 | B158: 8.9125 | C158: 6.647175668 | D158: 1.419783172 | E158: 1.000015679 | F158: 0.005599830365 | G158: 1 | H158: 0 | I158: 9678.936502 | J158: 1.57069301 | K158: =SQRT(1+(A158/Zero2)^2) -> 2.534088392 | L158: =ATAN(A158/Zero2) -> 1.165142918 | M158: 1.00092293 | N158: 0.04294696813 | O158: 1.001340205 | P158: 0.05174378305 | Q158: 15.12858516 | R158: 0.02416782695 | S158: 1.000510221 | T158: 0.07065128993 | U158: 13.42805861 | V158: -109.1917606 | W158: 70.80823943 | Y158: 1000000000 | Z158: 79432656.25 | AB158: 26.059094 | AC158: -25.69698869 | AE158: 36.97389773 | AF158: -85.07475778 | AH158: 0 | AI158: 0 | AK158: 0 | AL158: 0
A159: 8964.4 | B159: 8.9644 | C159: 6.685010471 | D159: 1.420644354 | E159: 1.000015862 | F159: 0.005632439068 | G159: 1 | H159: 0 | I159: 9735.299678 | J159: 1.570693608 | K159: 2.546552746 | L159: 1.16724407 | M159: 1.000933706 | N159: 0.04319675034 | O159: 1.001355848 | P159: 0.05204455944 | Q159: 15.12863527 | R159: 0.02430851012 | S159: 1.000516202 | T159: 0.0710629787 | U159: 13.37090762 | V159: -109.1476082 | W159: 70.85239177 | Y159: 1000000000 | Z159: 80360467.36 | AB159: 26.05118515 | AC159: -25.59094725 | AE159: 36.92454868 | AF159: -85.14581955 | AH159: 0 | AI159: 0 | AK159: 0 | AL159: 0
A160: 9016.3 | B160: 9.0163 | C160: 6.722850176 | D160: 1.421495842 | E160: 1.000016047 | F160: 0.005665047759 | G160: 1 | H160: 0 | I160: 9791.662853 | J160: 1.570694199 | K160: 2.559028232 | L160: 1.169324745 | M160: 1.000944543 | N160: 0.04344652716 | O160: 1.001371582 | P160: 0.05234532641 | Q160: 15.12868568 | R160: 0.02444919237 | S160: 1.000522219 | T160: 0.07147467209 | U160: 13.31414916 | V160: -109.1040738 | W160: 70.89592619 | Y160: 1000000000 | Z160: 81293665.69 | AB160: 26.04339659 | AC160: -25.48607839 | AE160: 36.87547123 | AF160: -85.21632617 | AH160: 0 | AI160: 0 | AK160: 0 | AL160: 0
A161: 9068.2 | B161: 9.0682 | C161: 6.760694701 | D161: 1.422337798 | E161: 1.000016232 | F161: 0.005697656438 | G161: 1 | H161: 0 | I161: 9848.026028 | J161: 1.570694784 | K161: 2.57151469 | L161: 1.171385223 | M161: 1.000955443 | N161: 0.04369629855 | O161: 1.001387407 | P161: 0.0526460839 | Q161: 15.12873638 | R161: 0.02458987369 | S161: 1.000528271 | T161: 0.07188637012 | U161: 13.25777788 | V161: -109.0611505 | W161: 70.93884949 | Y161: 1000000000 | Z161: 82232251.24 | AB161: 26.03572592 | AC161: -25.38236604 | AE161: 36.82666246 | AF161: -85.2862869 | AH161: 0 | AI161: 0 | AK161: 0 | AL161: 0
A162: 9120.1 | B162: 9.1201 | C162: 6.798543965 | D162: 1.423170379 | E162: 1.000016418 | F162: 0.005730265105 | G162: 1 | H162: 0 | I162: 9904.389203 | J162: 1.570695361 | K162: 2.584011959 | L162: 1.173425779 | M162: 1.000966406 | N162: 0.04394606449 | O162: 1.001403323 | P162: 0.05294683185 | Q162: 15.12878737 | R162: 0.02473055409 | S162: 1.000534358 | T162: 0.07229807283 | U162: 13.20178857 | V162: -109.0188316 | W162: 70.98116838 | Y162: 1000000000 | Z162: 83176224.01 | AB162: 26.02817078 | AC162: -25.27979445 | AE162: 36.77811952 | AF162: -85.3557108 | AH162: 0 | AI162: 0 | AK162: 0 | AL162: 0
A163: 9173.2 | B163: 9.1732 | C163: 6.83727318 | D163: 1.424012671 | E163: 1.00001661 | F163: 0.005763627717 | G163: 1 | H163: 0 | I163: 9962.055573 | J163: 1.570695946 | K163: 2.59680921 | L163: 1.17549318 | M163: 1.000977687 | N163: 0.04420159968 | O163: 1.0014197 | P163: 0.05325452359 | Q163: 15.12883984 | R163: 0.02487448623 | S163: 1.000540622 | T163: 0.07271929954 | U163: 13.14489468 | V163: -108.9761529 | W163: 71.02384714 | Y163: 1000000000 | Z163: 84147598.24 | AB163: 26.02055812 | AC163: -25.1760157 | AE163: 36.72872637 | AF163: -85.42619352 | AH163: 0 | AI163: 0 | AK163: 0 | AL163: 0
A164: 9226.3 | B164: 9.2263 | C164: 6.87600719 | D164: 1.424845473 | E164: 1.000016803 | F164: 0.005796990316 | G164: 1 | H164: 0 | I164: 10019.72194 | J164: 1.570696524 | K164: 2.609617451 | L164: 1.177540295 | M164: 1.000989033 | N164: 0.04445712909 | O164: 1.001436172 | P164: 0.05356220524 | Q164: 15.12889262 | R164: 0.02501841739 | S164: 1.000546923 | T164: 0.0731405312 | U164: 13.08838988 | V164: -108.9340928 | W164: 71.06590724 | Y164: 1000000000 | Z164: 85124611.69 | AB164: 26.01306158 | AC164: -25.0733985 | AE164: 36.67960554 | AF164: -85.49613284 | AH164: 0 | AI164: 0 | AK164: 0 | AL164: 0
A165: 9279.4 | B165: 9.2794 | C165: 6.914745916 | D165: 1.425668945 | E165: 1.000016997 | F165: 0.005830352903 | G165: 1 | H165: 0 | I165: 10077.38831 | J165: 1.570697095 | K165: 2.622436521 | L165: 1.179567405 | M165: 1.001000444 | N165: 0.0447126527 | O165: 1.001452738 | P165: 0.05386987674 | Q165: 15.1289457 | R165: 0.02516234756 | S165: 1.000553262 | T165: 0.07356176784 | U165: 13.0322689 | V165: -108.8926444 | W165: 71.10735563 | Y165: 1000000000 | Z165: 86107264.36 | AB165: 26.00567882 | AC165: -24.97192679 | AE165: 36.63075412 | AF165: -85.56553784 | AH165: 0 | AI165: 0 | AK165: 0 | AL165: 0
A166: 9332.5 | B166: 9.3325 | C166: 6.953489279 | D166: 1.426483241 | E166: 1.000017192 | F166: 0.005863715476 | G166: 1 | H166: 0 | I166: 10135.05468 | J166: 1.570697659 | K166: 2.635266263 | L166: 1.181574785 | M166: 1.001011921 | N166: 0.04496817046 | O166: 1.0014694 | P166: 0.05417753804 | Q166: 15.12899908 | R166: 0.02530627674 | S166: 1.000559637 | T166: 0.07398300947 | U166: 12.97652657 | V166: -108.8518008 | W166: 71.14819923 | Y166: 1000000000 | Z166: 87095556.25 | AB166: 25.99840753 | AC166: -24.8715848 | AE166: 36.58216921 | AF166: -85.63441739 | AH166: 0 | AI166: 0 | AK166: 0 | AL166: 0
A167: 9386.85 | B167: 9.38685 | C167: 6.9931494 | D167: 1.427307361 | E167: 1.000017393 | F167: 0.005897863407 | G167: 1 | H167: 0 | I167: 10194.07855 | J167: 1.570698231 | K167: 2.648408912 | L167: 1.183609271 | M167: 1.001023735 | N167: 0.04522969716 | O167: 1.001486552 | P167: 0.05449243119 | Q167: 15.12905404 | R167: 0.02545359303 | S167: 1.0005662 | T167: 0.07441417255 | U167: 12.91985887 | V167: -108.8106149 | W167: 71.18938511 | Y167: 1000000000 | Z167: 88112952.92 | AB167: 25.9910782 | AC167: -24.77003446 | AE167: 36.53271363 | AF167: -85.7043833 | AH167: 0 | AI167: 0 | AK167: 0 | AL167: 0
A168: 9441.2 | B168: 9.4412 | C168: 7.032814218 | D168: 1.428122186 | E168: 1.000017595 | F168: 0.005932011324 | G168: 1 | H168: 0 | I168: 10253.10241 | J168: 1.570698795 | K168: 2.661562415 | L168: 1.185623656 | M168: 1.001035618 | N168: 0.04549121766 | O168: 1.001503803 | P168: 0.05480731353 | Q168: 15.12910931 | R168: 0.02560090827 | S168: 1.000572802 | T168: 0.07484534094 | U168: 12.86357721 | V168: -108.7700482 | W168: 71.22995176 | Y168: 1000000000 | Z168: 89136257.44 | AB168: 25.98386098 | AC168: -24.66963507 | AE168: 36.4835313 | AF168: -85.77381692 | AH168: 0 | AI168: 0 | AK168: 0 | AL168: 0
A169: 9495.55 | B169: 9.49555 | C169: 7.072483653 | D169: 1.428927871 | E169: 1.000017798 | F169: 0.005966159228 | G169: 1 | H169: 0 | I169: 10312.12628 | J169: 1.570699354 | K169: 2.674726611 | L169: 1.187618221 | M169: 1.00104757 | N169: 0.04575273193 | O169: 1.001521153 | P169: 0.05512218499 | Q169: 15.12916491 | R169: 0.02574822244 | S169: 1.000579443 | T169: 0.07527651465 | U169: 12.80767637 | V169: -108.7300937 | W169: 71.26990634 | Y169: 1000000000 | Z169: 90165469.8 | AB169: 25.97675361 | AC169: -24.57037058 | AE169: 36.43461927 | AF169: -85.84272716 | AH169: 0 | AI169: 0 | AK169: 0 | AL169: 0
A170: 9549.9 | B170: 9.5499 | C170: 7.112157627 | D170: 1.429724567 | E170: 1.000018002 | F170: 0.006000307118 | G170: 1 | H170: 0 | I170: 10371.15014 | J170: 1.570699905 | K170: 2.687901344 | L170: 1.189593241 | M170: 1.00105959 | N170: 0.04601423995 | O170: 1.001538603 | P170: 0.05543704551 | Q170: 15.12922082 | R170: 0.02589553555 | S170: 1.000586123 | T170: 0.07570769373 | U170: 12.75215121 | V170: -108.6907441 | W170: 71.30925592 | Y170: 1000000000 | Z170: 91200590.01 | AB170: 25.96975385 | AC170: -24.47222521 | AE170: 36.38597464 | AF170: -85.91112272 | AH170: 0 | AI170: 0 | AK170: 0 | AL170: 0
A171: 9605.525 | B171: 9.605525 | C171: 7.152766937 | D171: 1.430530801 | E171: 1.000018212 | F171: 0.00603525607 | G171: 1 | H171: 0 | I171: 10431.55865 | J171: 1.570700464 | K171: 2.701395893 | L171: 1.191594637 | M171: 1.001071963 | N171: 0.04628187617 | O171: 1.001556565 | P171: 0.05575928097 | Q171: 15.12927837 | R171: 0.02604630337 | S171: 1.000593 | T171: 0.07614899344 | U171: 12.69570727 | V171: -108.6510906 | W171: 71.34890943 | Y171: 1000000000 | Z171: 92266110.53 | AB171: 25.96269906 | AC171: -24.37292006 | AE171: 36.33646276 | AF171: -85.98059872 | AH171: 0 | AI171: 0 | AK171: 0 | AL171: 0
A172: 9661.15 | B172: 9.66115 | C172: 7.193380845 | D172: 1.431327932 | E172: 1.000018424 | F172: 0.006070205008 | G172: 1 | H172: 0 | I172: 10491.96716 | J172: 1.570701016 | K172: 2.714901156 | L172: 1.193576129 | M172: 1.001084407 | N172: 0.04654950576 | O172: 1.001574631 | P172: 0.05608150484 | Q172: 15.12933626 | R172: 0.02619707005 | S172: 1.000599917 | T172: 0.07659029883 | U172: 12.6396463 | V172: -108.6120561 | W172: 71.38794394 | Y172: 1000000000 | Z172: 93337819.32 | AB172: 25.95575246 | AC172: -24.27475458 | AE172: 36.28722495 | AF172: -86.04955346 | AH172: 0 | AI172: 0 | AK172: 0 | AL172: 0
A173: 9716.775 | B173: 9.716775 | C173: 7.233999272 | D173: 1.432116112 | E173: 1.000018637 | F173: 0.006105153931 | G173: 1 | H173: 0 | I173: 10552.37567 | J173: 1.570701561 | K173: 2.728416972 | L173: 1.195537998 | M173: 1.001096924 | N173: 0.04681712867 | O173: 1.001592801 | P173: 0.05640371705 | Q173: 15.12939448 | R173: 0.02634783559 | S173: 1.000606874 | T173: 0.07703160993 | U173: 12.58396315 | V173: -108.5736332 | W173: 71.42636677 | Y173: 1000000000 | Z173: 94415716.4 | AB173: 25.94891184 | AC173: -24.17771272 | AE173: 36.23825827 | AF173: -86.11799567 | AH173: 0 | AI173: 0 | AK173: 0 | AL173: 0
A174: 9772.4 | B174: 9.7724 | C174: 7.274622142 | D174: 1.432895489 | E174: 1.000018851 | F174: 0.006140102839 | G174: 1 | H174: 0 | I174: 10612.78418 | J174: 1.570702101 | K174: 2.741943187 | L174: 1.197480518 | M174: 1.001109511 | N174: 0.04708474488 | O174: 1.001611075 | P174: 0.05672591754 | Q174: 15.12945304 | R174: 0.02649859999 | S174: 1.000613873 | T174: 0.07747292678 | U174: 12.52865272 | V174: -108.5358149 | W174: 71.46418513 | Y174: 1000000000 | Z174: 95499801.76 | AB174: 25.94217504 | AC174: -24.08177872 | AE174: 36.18955979 | AF174: -86.18593387 | AH174: 0 | AI174: 0 | AK174: 0 | AL174: 0
A175: 9829.3 | B175: 9.8293 | C175: 7.316180664 | D175: 1.433683776 | E175: 1.000019071 | F175: 0.006175852808 | G175: 1 | H175: 0 | I175: 10674.57733 | J175: 1.570702646 | K175: 2.755790039 | L175: 1.199447826 | M175: 1.001122462 | N175: 0.04735848822 | O175: 1.001629875 | P175: 0.05705549109 | Q175: 15.12951328 | R175: 0.02665281892 | S175: 1.000621074 | T175: 0.07792436518 | U175: 12.47245496 | V175: -108.4977476 | W175: 71.50225238 | Y175: 1000000000 | Z175: 96615138.49 | AB175: 25.93538905 | AC175: -23.98477587 | AE175: 36.14001957 | AF175: -86.25491655 | AH175: 0 | AI175: 0 | AK175: 0 | AL175: 0
A176: 9886.2 | B176: 9.8862 | C176: 7.357743681 | D176: 1.434463157 | E176: 1.000019292 | F176: 0.006211602761 | G176: 1 | H176: 0 | I176: 10736.37049 | J176: 1.570703185 | K176: 2.76964745 | L176: 1.201395455 | M176: 1.001135488 | N176: 0.04763222447 | O176: 1.001648784 | P176: 0.05738505224 | Q176: 15.12957388 | R176: 0.02680703663 | S176: 1.000628317 | T176: 0.07837580966 | U176: 12.41663679 | V176: -108.4602979 | W176: 71.53970214 | Y176: 1000000000 | Z176: 97736950.44 | AB176: 25.9287073 | AC176: -23.88889977 | AE176: 36.09075396 | AF176: -86.32338934 | AH176: 0 | AI176: 0 | AK176: 0 | AL176: 0
A177: 9943.1 | B177: 9.9431 | C177: 7.399311118 | D177: 1.435233782 | E177: 1.000019515 | F177: 0.006247352698 | G177: 1 | H177: 0 | I177: 10798.16364 | J177: 1.570703718 | K177: 2.783515262 | L177: 1.203323685 | M177: 1.001148588 | N177: 0.04790595357 | O177: 1.001667802 | P177: 0.05771460092 | Q177: 15.12963482 | R177: 0.02696125313 | S177: 1.000635603 | T177: 0.07882726024 | U177: 12.36119308 | V177: -108.4234581 | W177: 71.57654185 | Y177: 1000000000 | Z177: 98865237.61 | AB177: 25.92212766 | AC177: -23.7941344 | AE177: 36.04175997 | AF177: -86.39136079 | AH177: 0 | AI177: 0 | AK177: 0 | AL177: 0
A178: 10000 | B178: 10 | C178: 7.440882899 | D178: 1.435995796 | E178: 1.000019739 | F178: 0.006283102619 | G178: 1 | H178: 0 | I178: 10859.95679 | J178: 1.570704245 | K178: 2.797393321 | L178: 1.205232789 | M178: 1.001161764 | N178: 0.04817967548 | O178: 1.001686929 | P178: 0.05804413704 | Q178: 15.12969611 | R178: 0.02711546839 | S178: 1.000642931 | T178: 0.07927871698 | U178: 12.30611882 | V178: -108.3872211 | W178: 71.61277888 | Y178: 1000000000 | Z178: 100000000 | AB178: 25.91564803 | AC178: -23.70046406 | AE178: 35.99303467 | AF178: -86.45883924 | AH178: 0 | AI178: 0 | AK178: 0 | AL178: 0
A179: 10058.25 | B179: 10.05825 | C179: 7.483445431 | D179: 1.43676712 | E179: 1.00001997 | F179: 0.00631970072 | G179: 1 | H179: 0 | I179: 10923.21604 | J179: 1.570704779 | K179: 2.811611104 | L179: 1.207167659 | M179: 1.00117533 | N179: 0.04845988419 | O179: 1.001706622 | P179: 0.05838147861 | Q179: 15.12975922 | R179: 0.02727334127 | S179: 1.000650478 | T179: 0.0797408913 | U179: 12.25011543 | V179: -108.3507411 | W179: 71.64925893 | Y179: 1000000000 | Z179: 101168393.1 | AB179: 25.90911614 | AC179: -23.60568951 | AE179: 35.94342864 | AF179: -86.52741654 | AH179: 0 | AI179: 0 | AK179: 0 | AL179: 0
A180: 10116.5 | B180: 10.1165 | C180: 7.526012364 | D180: 1.437529718 | E180: 1.000020202 | F180: 0.006356298804 | G180: 1 | H180: 0 | I180: 10986.47529 | J180: 1.570705306 | K180: 2.825839308 | L180: 1.209083052 | M180: 1.001188975 | N180: 0.04874008529 | O180: 1.001726429 | P180: 0.05871880687 | Q180: 15.1298227 | R180: 0.02743121284 | S180: 1.000658069 | T180: 0.08020307214 | U180: 12.1944889 | V180: -108.3148774 | W180: 71.68512263 | Y180: 1000000000 | Z180: 102343572.2 | AB180: 25.9026848 | AC180: -23.51203013 | AE180: 35.89409814 | AF180: -86.59549433 | AH180: 0 | AI180: 0 | AK180: 0 | AL180: 0
A181: 10174.75 | B181: 10.17475 | C181: 7.568583625 | D181: 1.438283739 | E181: 1.000020435 | F181: 0.006392896871 | G181: 1 | H181: 0 | I181: 11049.73454 | J181: 1.570705827 | K181: 2.840077774 | L181: 1.210979246 | M181: 1.001202698 | N181: 0.04902027872 | O181: 1.00174635 | P181: 0.05905612176 | Q181: 15.12988654 | R181: 0.0275890831 | S181: 1.000665704 | T181: 0.08066525952 | U181: 12.13923415 | V181: -108.2796224 | W181: 71.72037757 | Y181: 1000000000 | Z181: 103525537.6 | AB181: 25.89635195 | AC181: -23.41946996 | AE181: 35.84504016 | AF181: -86.66308098 | AH181: 0 | AI181: 0 | AK181: 0 | AL181: 0
A182: 10233 | B182: 10.233 | C182: 7.611159142 | D182: 1.439029324 | E182: 1.00002067 | F182: 0.006429494921 | G182: 1 | H182: 0 | I182: 11112.99378 | J182: 1.570706342 | K182: 2.854326351 | L182: 1.212856516 | M182: 1.0012165 | N182: 0.04930046446 | O182: 1.001766386 | P182: 0.05939342319 | Q182: 15.12995075 | R182: 0.02774695205 | S182: 1.000673385 | T182: 0.0811274535 | U182: 12.0843462 | V182: -108.2449688 | W182: 71.75503122 | Y182: 1000000000 | Z182: 104714289 | AB182: 25.89011555 | AC182: -23.3279933 | AE182: 35.79625176 | AF182: -86.73018471 | AH182: 0 | AI182: 0 | AK182: 0 | AL182: 0
A183: 10292.5 | B183: 10.2925 | C183: 7.654652614 | D183: 1.439782345 | E183: 1.000020911 | F183: 0.006466878319 | G183: 1 | H183: 0 | I183: 11177.61053 | J183: 1.570706862 | K183: 2.868890971 | L183: 1.214754812 | M183: 1.001230679 | N183: 0.04958665476 | O183: 1.001786968 | P183: 0.05973794889 | Q183: 15.13001671 | R183: 0.02790820737 | S183: 1.000681276 | T183: 0.08159957264 | U183: 12.02865402 | V183: -108.2101846 | W183: 71.78981541 | Y183: 1000000000 | Z183: 105935556.2 | AB183: 25.88384285 | AC183: -23.23565626 | AE183: 35.74669168 | AF183: -86.79823819 | AH183: 0 | AI183: 0 | AK183: 0 | AL183: 0
A184: 10352 | B184: 10.352 | C184: 7.698150379 | D184: 1.440526857 | E184: 1.000021153 | F184: 0.006504261699 | G184: 1 | H184: 0 | I184: 11242.22727 | J184: 1.570707376 | K184: 2.883465826 | L184: 1.216633924 | M184: 1.00124494 | N184: 0.04987283694 | O184: 1.00180767 | P184: 0.06008246038 | Q184: 15.13008306 | R184: 0.02806946131 | S184: 1.000689214 | T184: 0.08207169872 | U184: 11.97333437 | V184: -108.1760123 | W184: 71.82398768 | Y184: 1000000000 | Z184: 107163904 | AB184: 25.87766667 | AC184: -23.14441755 | AE184: 35.6974068 | AF184: -86.86580451 | AH184: 0 | AI184: 0 | AK184: 0 | AL184: 0
A185: 10411.5 | B185: 10.4115 | C185: 7.741652362 | D185: 1.441263003 | E185: 1.000021397 | F185: 0.006541645061 | G185: 1 | H185: 0 | I185: 11306.84401 | J185: 1.570707885 | K185: 2.898050759 | L185: 1.218494129 | M185: 1.001259283 | N185: 0.05015901094 | O185: 1.00182849 | P185: 0.0604269576 | Q185: 15.13014979 | R185: 0.02823071385 | S185: 1.000697199 | T185: 0.0825438318 | U185: 11.91838224 | V185: -108.1424443 | W185: 71.85755568 | Y185: 1000000000 | Z185: 108399332.2 | AB185: 25.87158503 | AC185: -23.05426135 | AE185: 35.64839411 | AF185: -86.93289186 | AH185: 0 | AI185: 0 | AK185: 0 | AL185: 0
A186: 10471 | B186: 10.471 | C186: 7.785158494 | D186: 1.441990921 | E186: 1.000021642 | F186: 0.006579028405 | G186: 1 | H186: 0 | I186: 11371.46075 | J186: 1.570708387 | K186: 2.912645621 | L186: 1.220335698 | M186: 1.001273708 | N186: 0.05044517672 | O186: 1.00184943 | P186: 0.06077144045 | Q186: 15.1302169 | R186: 0.02839196498 | S186: 1.00070523 | T186: 0.08301597191 | U186: 11.86379276 | V186: -108.1094731 | W186: 71.89052695 | Y186: 1000000000 | Z186: 109641841 | AB186: 25.86559597 | AC186: -22.96517212 | AE186: 35.59965067 | AF186: -86.99950822 | AH186: 0 | AI186: 0 | AK186: 0 | AL186: 0
A187: 10532 | B187: 10.532 | C187: 7.829765653 | D187: 1.442728792 | E187: 1.000021895 | F187: 0.006617354166 | G187: 1 | H187: 0 | I187: 11437.70649 | J187: 1.570708897 | K187: 2.927618571 | L187: 1.222204625 | M187: 1.001288582 | N187: 0.05073854817 | O187: 1.001871021 | P187: 0.06112459276 | Q187: 15.1302861 | R187: 0.0285572798 | S187: 1.000713512 | T187: 0.08350002204 | U187: 11.8081985 | V187: -108.0762823 | W187: 71.92371773 | Y187: 1000000000 | Z187: 110923024 | AB187: 25.85955004 | AC187: -22.87492863 | AE187: 35.54995488 | AF187: -87.06732323 | AH187: 0 | AI187: 0 | AK187: 0 | AL187: 0
A188: 10593 | B188: 10.593 | C188: 7.874377027 | D188: 1.443458302 | E188: 1.000022149 | F188: 0.006655679909 | G188: 1 | H188: 0 | I188: 11503.95223 | J188: 1.5707094 | K188: 2.942601643 | L188: 1.224054525 | M188: 1.001303542 | N188: 0.05103191089 | O188: 1.001892736 | P188: 0.0614777298 | Q188: 15.1303557 | R188: 0.02872259313 | S188: 1.000721843 | T188: 0.08398407964 | U188: 11.75297526 | V188: -108.043703 | W188: 71.95629703 | Y188: 1000000000 | Z188: 112211649 | AB188: 25.85359742 | AC188: -22.78577441 | AE188: 35.50053595 | AF188: -87.13465965 | AH188: 0 | AI188: 0 | AK188: 0 | AL188: 0
A189: 10654 | B189: 10.654 | C189: 7.918992545 | D189: 1.444179593 | E189: 1.000022405 | F189: 0.006694005631 | G189: 1 | H189: 0 | I189: 11570.19796 | J189: 1.570709898 | K189: 2.957594683 | L189: 1.225885677 | M189: 1.001318589 | N189: 0.05132526481 | O189: 1.001914577 | P189: 0.06183085149 | Q189: 15.1304257 | R189: 0.02888790495 | S189: 1.000730224 | T189: 0.08446814476 | U189: 11.69811807 | V189: -108.0117274 | W189: 71.98827264 | Y189: 1000000000 | Z189: 113507716 | AB189: 25.84773617 | AC189: -22.69769361 | AE189: 35.45139085 | AF189: -87.20152556 | AH189: 0 | AI189: 0 | AK189: 0 | AL189: 0
A190: 10715 | B190: 10.715 | C190: 7.963612136 | D190: 1.444892801 | E190: 1.000022663 | F190: 0.006732331334 | G190: 1 | H190: 0 | I190: 11636.4437 | J190: 1.57071039 | K190: 2.97259754 | L190: 1.227698351 | M190: 1.001333721 | N190: 0.0516186099 | O190: 1.001936542 | P190: 0.06218395774 | Q190: 15.1304961 | R190: 0.02905321527 | S190: 1.000738653 | T190: 0.08495221743 | U190: 11.64362206 | V190: -107.9803478 | W190: 72.01965223 | Y190: 1000000000 | Z190: 114811225 | AB190: 25.84196439 | AC190: -22.61067068 | AE190: 35.40251661 | AF190: -87.26792881 | AH190: 0 | AI190: 0 | AK190: 0 | AL190: 0
A191: 10777.5 | B191: 10.7775 | C191: 8.009333084 | D191: 1.445615305 | E191: 1.000022928 | F191: 0.006771599452 | G191: 1 | H191: 0 | I191: 11704.31843 | J191: 1.570710888 | K191: 2.987979347 | L191: 1.229536712 | M191: 1.001349315 | N191: 0.05191915916 | O191: 1.001959178 | P191: 0.06254573083 | Q191: 15.13056865 | R191: 0.02922258901 | S191: 1.000747341 | T191: 0.08544820141 | U191: 11.58815559 | V191: -107.9488068 | W191: 72.05119318 | Y191: 1000000000 | Z191: 116154506.2 | AB191: 25.83614155 | AC191: -22.52258908 | AE191: 35.3527184 | AF191: -87.33549313 | AH191: 0 | AI191: 0 | AK191: 0 | AL191: 0
A192: 10840 | B192: 10.84 | C192: 8.055058166 | D192: 1.446329607 | E192: 1.000023194 | F192: 0.006810867549 | G192: 1 | H192: 0 | I192: 11772.19316 | J192: 1.570711381 | K192: 3.003371149 | L192: 1.231356237 | M192: 1.001364999 | N192: 0.05221969904 | O192: 1.001981944 | P192: 0.06290748752 | Q192: 15.13064163 | R192: 0.02939196115 | S192: 1.00075608 | T192: 0.0859441934 | U192: 11.53305821 | V192: -107.9178756 | W192: 72.08212439 | Y192: 1000000000 | Z192: 117505600 | AB192: 25.83040876 | AC192: -22.43558587 | AE192: 35.30319835 | AF192: -87.40258795 | AH192: 0 | AI192: 0 | AK192: 0 | AL192: 0
A193: 10902.5 | B193: 10.9025 | C193: 8.100787311 | D193: 1.447035844 | E193: 1.000023463 | F193: 0.006850135625 | G193: 1 | H193: 0 | I193: 11840.06789 | J193: 1.570711868 | K193: 3.018772793 | L193: 1.233157202 | M193: 1.001380774 | N193: 0.05252022947 | O193: 1.002004841 | P193: 0.06326922773 | Q193: 15.13071502 | R193: 0.02956133167 | S193: 1.000764871 | T193: 0.08644019346 | U193: 11.47832497 | V193: -107.8875462 | W193: 72.11245376 | Y193: 1000000000 | Z193: 118864506.2 | AB193: 25.82476412 | AC193: -22.34964523 | AE193: 35.25395341 | AF193: -87.46922119 | AH193: 0 | AI193: 0 | AK193: 0 | AL193: 0
A194: 10965 | B194: 10.965 | C194: 8.146520452 | D194: 1.447734153 | E194: 1.000023732 | F194: 0.00688940368 | G194: 1 | H194: 0 | I194: 11907.94261 | J194: 1.570712349 | K194: 3.034184128 | L194: 1.234939877 | M194: 1.001396639 | N194: 0.05282075041 | O194: 1.00202787 | P194: 0.06363095136 | Q194: 15.13078884 | R194: 0.02973070057 | S194: 1.000773713 | T194: 0.08693620163 | U194: 11.42395105 | V194: -107.8578109 | W194: 72.14218907 | Y194: 1000000000 | Z194: 120231225 | AB194: 25.81920579 | AC194: -22.26475162 | AE194: 35.20498056 | AF194: -87.5354006 | AH194: 0 | AI194: 0 | AK194: 0 | AL194: 0
A195: 11028.75 | B195: 11.02875 | C195: 8.193172301 | D195: 1.448438396 | E195: 1.000024009 | F195: 0.006929457074 | G195: 1 | H195: 0 | I195: 11977.17484 | J195: 1.570712835 | K195: 3.049913523 | L195: 1.23673964 | M195: 1.001412915 | N195: 0.05312727193 | O195: 1.002051494 | P195: 0.06399989228 | Q195: 15.13086456 | R195: 0.02990345517 | S195: 1.000782786 | T195: 0.08744213836 | U195: 11.36885487 | V195: -107.828085 | W195: 72.17191503 | Y195: 1000000000 | Z195: 121633326.6 | AB195: 25.81362336 | AC195: -22.179223 | AE195: 35.1553055 | AF195: -87.60244391 | AH195: 0 | AI195: 0 | AK195: 0 | AL195: 0
A196: 11092.5 | B196: 11.0925 | C196: 8.239828168 | D196: 1.449134664 | E196: 1.000024288 | F196: 0.006969510446 | G196: 1 | H196: 0 | I196: 12046.40706 | J196: 1.570713314 | K196: 3.065652695 | L196: 1.238520929 | M196: 1.001429285 | N196: 0.05343378346 | O196: 1.002075255 | P196: 0.06436881576 | Q196: 15.13094073 | R196: 0.03007620806 | S196: 1.000791912 | T196: 0.08794808362 | U196: 11.31412262 | V196: -107.7989611 | W196: 72.20103892 | Y196: 1000000000 | Z196: 123043556.2 | AB196: 25.80812701 | AC196: -22.09475199 | AE196: 35.10590737 | AF196: -87.66903079 | AH196: 0 | AI196: 0 | AK196: 0 | AL196: 0
A197: 11156.25 | B197: 11.15625 | C197: 8.286487985 | D197: 1.449823092 | E197: 1.000024567 | F197: 0.007009563795 | G197: 1 | H197: 0 | I197: 12115.63929 | J197: 1.570713789 | K197: 3.081401495 | L197: 1.240284015 | M197: 1.001445749 | N197: 0.05374028494 | O197: 1.002099152 | P197: 0.06473772169 | Q197: 15.13101733 | R197: 0.03024895923 | S197: 1.000801092 | T197: 0.08845403747 | U197: 11.25974947 | V197: -107.7704314 | W197: 72.22956861 | Y197: 1000000000 | Z197: 124461914.1 | AB197: 25.80271494 | AC197: -22.01132302 | AE197: 35.05678313 | AF197: -87.73516891 | AH197: 0 | AI197: 0 | AK197: 0 | AL197: 0
A198: 11220 | B198: 11.22 | C198: 8.333151684 | D198: 1.45050381 | E198: 1.000024849 | F198: 0.007049617122 | G198: 1 | H198: 0 | I198: 12184.87151 | J198: 1.570714258 | K198: 3.097159776 | L198: 1.242029165 | M198: 1.001462307 | N198: 0.05404677631 | O198: 1.002123185 | P198: 0.06510660998 | Q198: 15.13109438 | R198: 0.03042170867 | S198: 1.000810326 | T198: 0.08895999994 | U198: 11.20573065 | V198: -107.7424881 | W198: 72.25751188 | Y198: 1000000000 | Z198: 125888400 | AB198: 25.79738537 | AC198: -21.92892079 | AE198: 35.00792979 | AF198: -87.80086579 | AH198: 0 | AI198: 0 | AK198: 0 | AL198: 0
A199: 11285.5 | B199: 11.2855 | C199: 8.381100325 | D199: 1.451195318 | E199: 1.00002514 | F199: 0.007090769929 | G199: 1 | H199: 0 | I199: 12256.00423 | J199: 1.570714734 | K199: 3.113360361 | L199: 1.243803816 | M199: 1.001479417 | N199: 0.05436167058 | O199: 1.00214802 | P199: 0.06548560613 | Q199: 15.13117399 | R199: 0.03059919844 | S199: 1.00081987 | T199: 0.08947986061 | U199: 11.15059312 | V199: -107.7143805 | W199: 72.28561946 | Y199: 1000000000 | Z199: 127362510.2 | AB199: 25.79199363 | AC199: -21.8453102 | AE199: 34.95801445 | AF199: -87.86791426 | AH199: 0 | AI199: 0 | AK199: 0 | AL199: 0
A200: 11351 | B200: 11.351 | C200: 8.429052928 | D200: 1.451878959 | E200: 1.000025433 | F200: 0.007131922711 | G200: 1 | H200: 0 | I200: 12327.13694 | J200: 1.570715205 | K200: 3.129570649 | L200: 1.245560088 | M200: 1.001496627 | N200: 0.05467655407 | O200: 1.002172999 | P200: 0.06586458345 | Q200: 15.13125407 | R200: 0.03077668637 | S200: 1.00082947 | T200: 0.08999973049 | U200: 11.09581979 | V200: -107.6868758 | W200: 72.31312422 | Y200: 1000000000 | Z200: 128845201 | AB200: 25.78668537 | AC200: -21.76275171 | AE200: 34.90837884 | AF200: -87.93451248 | AH200: 0 | AI200: 0 | AK200: 0 | AL200: 0
A201: 11416.5 | B201: 11.4165 | C201: 8.477009425 | D201: 1.452554866 | E201: 1.000025727 | F201: 0.00717307547 | G201: 1 | H201: 0 | I201: 12398.26966 | J201: 1.57071567 | K201: 3.145790492 | L201: 1.247298254 | M201: 1.001513936 | N201: 0.0549914267 | O201: 1.002198122 | P201: 0.06624354182 | Q201: 15.13133461 | R201: 0.03095417244 | S201: 1.000839127 | T201: 0.09051960964 | U201: 11.04140578 | V201: -107.6599658 | W201: 72.34003421 | Y201: 1000000000 | Z201: 130336472.2 | AB201: 25.78145881 | AC201: -21.68122966 | AE201: 34.85901989 | AF201: -88.00066806 | AH201: 0 | AI201: 0 | AK201: 0 | AL201: 0
A202: 11482 | B202: 11.482 | C202: 8.524969752 | D202: 1.453223167 | E202: 1.000026023 | F202: 0.007214228204 | G202: 1 | H202: 0 | I202: 12469.40238 | J202: 1.57071613 | K202: 3.162019741 | L202: 1.249018583 | M202: 1.001531344 | N202: 0.05530628841 | O202: 1.002223389 | P202: 0.06662248113 | Q202: 15.13141561 | R202: 0.03113165664 | S202: 1.000848841 | T202: 0.09103949809 | U202: 10.98734634 | V202: -107.6336427 | W202: 72.36635732 | Y202: 1000000000 | Z202: 131836324 | AB202: 25.77631224 | AC202: -21.60072869 | AE202: 34.80993454 | AF202: -88.06638845 | AH202: 0 | AI202: 0 | AK202: 0 | AL202: 0
... 436 more rows

Sheet Variable Management (hidden)
A1: EXCEL Variables Names/Calculations
B2: Input from user =
B3: Output =
B4: Constant
A5: Variable Name | B5: Value | C5: STD Units | E5: Notes | I5: Iteration
A6: Step 1: Operational Specs
A7: VIN_min | B7: ='Design Regulator'!E6 -> 15 | C7: V | D7: Minimum input voltage | I7: 1
A8: VIN_nom | B8: ='Design Regulator'!E7 -> 48 | C8: V | D8: Nominal input voltage | K8: =CHOOSE(SCH_MODE, "Efficiency vs. IOUT (Ch1)", "Efficiency vs. IOUT - 2 Ph", "Efficiency vs. IOUT - 3 Ph", "Efficiency vs. IOUT - 4 Ph") -> Efficiency vs. IOUT (Ch1) | L8: 1 | N8: DITHER Enabled | O8: 1 | T8: Dual Outputs | U8: 1 | W8: FPWM | X8: 1 | Z8: Internal Compensation | AA8: 1 | AC8: =CHOOSE(SCH_MODE, "Bode Plot (Ch1)", "Bode Plot - 2 Ph", "Bode Plot - 3 Ph", "Bode Plot - 4 Ph") -> Bode Plot (Ch1) | AD8: 1
A9: VIN_max | B9: ='Design Regulator'!E8 -> 72 | C9: V | D9: Maximum input voltage | F9: =CHOOSE(GPN_setting,80,80,80,80,65,65,45) -> 80 | G9: IC max voltage | K9: =IF(MODE=1, "Efficiency vs. IOUT (Ch2)", "N/A - Do Not Use") -> Efficiency vs. IOUT (Ch2) | L9: 2 | N9: DITHER Disabled | O9: 2 | T9: Single Output – 2 Phases | U9: 2 | W9: PFM | X9: 2 | Z9: External Compensation | AA9: 2 | AC9: =IF(MODE=1, "Bode Plot (Ch2)", "N/A - Do Not Use") -> Bode Plot (Ch2) | AD9: 2
K10: PLOT_TYPE | L10: 1 | N10: DITHER Yes/No | O10: 2 | P10: 1 = Yes, 2 = No | T10: Single Output – 3 Phases | U10: 3 | W10: FPWM/PFM | X10: 2 | Z10: COMP_TYPE | AA10: 2 | AC10: BODE_PLOT_TYPE | AD10: 1
A11: Vout | B11: ='Design Regulator'!E9 -> 12 | C11: V | D11: Output voltage - channel 1 | T11: Single Output – 4 Phases | U11: 4
A12: Iout | B12: ='Design Regulator'!E10 -> 8 | C12: A | D12: Output current - channel 1 | F12: =CHOOSE(GPN_setting,10,8,6,4,10,6,10) -> 8 | G12: IC max current | I12: 1 | T12: Single/Dual Yes/No | U12: 1
I13: 1 | K13: Adjustable | L13: 1 | N13: 3.3V | O13: 1 | T13: MODE (Single/Dual), DUAL = 1, SINGLE = 2 | U13: =IF(U12=1, 1, 2) -> 1 | W13: BIAS connected to ext. power supply | X13: 1 | Z13: UVLO Divider | AA13: 1
A14: Rout | B14: =Vout/Iout -> 1.5 | C14: W | D14: Load resistance - Channel 1 | K14: 5V | L14: 2 | N14: 5V | O14: 2 | T14: SINGLE OUTPUT (1 = YES) | U14: =IF(U12=1, 2, 1) -> 2 | W14: BIAS connected to VOUT | X14: 2 | Z14: No UVLO Divider | AA14: 2
K15: 3.3V | L15: 3 | N15: Adjustable | O15: 3 | T15: Number of Phases | U15: =SCH_MODE -> 1 | W15: BIAS connected to GND | X15: 3 | Z15: UVLO_TYPE | AA15: 2
A16: Pout | B16: =Vout*Iout -> 96 | C16: W | D16: Output power | K16: 12V | L16: 4 | N16: Ch2 Output Setting | O16: =IF(Vout2=3.3, 1, IF(Vout2=5, 2, 3)) -> 3 | W16: Ext_VCC | X16: 1
K17: Output Voltage Setting | L17: =IF(Vout=3.3, 3, IF(Vout=5, 2, IF(Vout=12,4,1))) -> 4 | W17: BIAS pin connection | X17: =IF(AND(VOUT_setting=3,Ext_VCC=1),"Connect BIAS pin to an external bias supply from 5V to 30V", IF(AND(VOUT_setting=3,Ext_VCC=2), "BIAS pin cannot be connected to VOUT. Connect BIAS pin to an external bias supply from 5V to 30V", IF(AND(VOUT_setting=2,Ext_VCC=2),"Connect BIAS pin to VOUT", IF(AND(VOUT_setting=2,Ext_VCC=1),"Connect BIAS pin to an external bias supply from 5V to 30V",IF(AND(VOUT_setting=4,Ext_VCC=2),"Connect BIAS pin to VOUT",IF(AND(VOUT_setting=4,Ext_VCC=1),"Connect BIAS pin to an external bias supply from 10V to 30V",IF(AND(VOUT_setting=1,Ext_VCC=2),"Connect BIAS pin to VOUT. If VOUT < 5V, connect BIAS pin to an external bias supply from 10V to 30V", IF(AND(VOUT_setting=1,Ext_VCC=1),"Connect BIAS pin to an external bias supply from 10V to 30V","")))))))) -> Connect BIAS pin to an external bias supply from 10V to 30V
A18: Efficiency | B18: 0.9 | D18: Estimate of efficiency
A19: Pin | B19: =Pout/Efficiency -> 106.6666667 | C19: W | D19: Calculate input power assuming finite efficiency
A21: Iin_Vinmin | B21: =Pin/VIN_min -> 7.111111111 | C21: A | L21: =Vout -> 12
A22: Iin_Vinnom | B22: =Pin/VIN_nom -> 2.222222222 | C22: A | D22: Input currents at min, nom, max Vin | H22: =AND(OSC=1, OR(Fsw/1000>2530, Fsw/1000<1800)) -> FALSE
A23: Iin_Vinmax | B23: =Pin/VIN_max -> 1.481481481 | C23: A | H23: =AND(OSC=2, OR(Fsw/1000>500, Fsw/1000<300)) -> FALSE
H24: =OR(H22,H23) -> FALSE
A25: OSC setting | B25: =CHOOSE(OSC, 2200, 440) ->  | C25: kHz | L25: SetVout_IntComp_nEN | M25: 1 | O25: LM708A0(-Q1) | P25: 1
A26: Fsw | B26: ='Design Regulator'!E11*1000 -> 400000 | C26: Hz | D26: Nominal switching frequency - determines RT resistor (SYNCIN must be 80-120% of this) | L26: SetVout_IntComp_EN | M26: 2 | O26: LM70880(-Q1) | P26: 2
A27: RT resistor to AGND | B27: =((1000000000/Fsw)-53)/45+0.1 -> 54.47777778 | C27: kΩ | L27: SetVout_ExtComp_nEN | M27: 3 | O27: LM70860(-Q1) | P27: 3
C28: kΩ | I28: 1 | L28: SetVout_ExtComp_EN | M28: 4 | O28: LM70840(-Q1) | P28: 4
A29: Tsw | B29: =1/Fsw -> 2.5e-06 | C29: sec | D29: Switching period | L29: AdjVout_IntComp_nEN | M29: 5 | O29: LM706A0(-Q1) | P29: 5
A30: Vref | B30: 0.8 | C30: V | D30: Reference voltage | L30: AdjVout_IntComp_EN | M30: 6 | O30: LM70660(-Q1) | P30: 6
A31: Rt | B31: ='Standard Value Calculator'!S12/1000 -> 54.9 | C31: kΩ | D31: Frequency set resistor | F31: =IF(OR((Fsw=440000),(Fsw=2200000)),"N/A",Rfadj/1000) -> 0.0549 | L31: AdjVout_ExtComp_nEN | M31: 7 | O31: LM704A0(-Q1) | P31: 7
L32: AdjVout_ExtComp_EN | M32: 8 | O32: GPN setting | P32: 2
A33: Step 2: Buck Inductor | B33: Channel 1 | L33: SetVout_IntComp_nEN_BIAS_GND | M33: 9
A34: Don1 | B34: =Vout/VIN_nom -> 0.25 | F34: Ideal Duty Cycle at VIN(nom) | L34: SetVout_IntComp_EN_BIAS_GND | M34: 10
A35: Doff1 | B35: =1-34:34 -> 0.75 | F35: Ideal 1- Duty Cycle at VIN(nom) | L35: SetVout_ExtComp_nEN_BIAS_GND | M35: 11
L36: SetVout_ExtComp_EN_BIAS_GND | M36: 12
A37: D_Vinmin | B37: =Vout/VIN_min -> 0.8 | L37: AdjVout_IntComp_nEN_BIAS_GND | M37: 13
A38: D_Vinnom | B38: =Vout/VIN_nom -> 0.25 | L38: AdjVout_IntComp_EN_BIAS_GND | M38: 14
A39: D_Vinmax | B39: =Vout/VIN_max -> 0.1666666667 | L39: AdjVout_ExtComp_nEN_BIAS_GND | M39: 15
L40: AdjVout_ExtComp_EN_BIAS_GND | M40: 16
A41: L_Vinnom | B41: =(VIN_nom-Vout)*D1_Vinnom/(Fsw*(Iout/Number_of_Phases)*0.3) -> 9.375e-06 | C41: H | F41: Calculated inductance for 35% ripple at VIN(nom) | L41: PRE_schematic setting | M41: =IF(OR(Vout=3.3,Vout=5,Vout=12),CHOOSE(COMP_TYPE,IF(UVLO_TYPE=2,1,2),IF(UVLO_TYPE=2,3,4)),CHOOSE(COMP_TYPE,IF(UVLO_TYPE=2,5,6),IF(UVLO_TYPE=2,7,8))) -> 3
A42: L_slopecomp | B42: =1000*Vout*Rs/24/Fsw -> 6.25e-06 | C42: H | F42: Calculated inductance based on one times inductor downslope | L42: Schematic_setting | M42: =IF(Ext_VCC=3, PRE_schematic_setting+8, PRE_schematic_setting) -> 3
A44: Lopt | B44: =B42 -> 6.25e-06 | C44: H | F44: Slope comp
A46: Lo | B46: ='Design Regulator'!E28/1000000 -> 6.8e-06 | C46: H | F46: Chosen inductance
A47: Rdcr | B47: ='Design Regulator'!E29/1000 -> 0.01 | C47: W | F47: Chosen inductor DCR
A49: Don2 | B49: =(Vout+Iout*(Rdcr+Rs))/(Vin+Iout*Rs) -> 0.2522897585
A50: Doff2 | B50: =1-_Don2 -> 0.7477102415
A52: D_Vinmin_2 | B52: =CHOOSE(MODE, (Vout+Iout*(Rdcr+Rs))/(VIN_min+Iout*Rs), (Vout+Iout/Number_of_Phases*(Rdcr+Rs))/(VIN_min+Iout/Number_of_Phases*Rs)) -> 0.8058510638 | F52: Duty cycles adjusted for DCR/shunt voltage drops
A53: D_Vinnom_2 | B53: =CHOOSE(MODE, (Vout+Iout*(Rdcr+Rs))/(VIN_nom+Iout*Rs), (Vout+Iout/Number_of_Phases*(Rdcr+Rs))/(VIN_nom+Iout/Number_of_Phases*Rs)) -> 0.2522897585 | F53: need to include RDS(on) later
A54: D_Vinmax_2 | B54: =CHOOSE(MODE, (Vout+Iout*(Rdcr+Rs))/(VIN_max+Iout*Rs), (Vout+Iout/Number_of_Phases*(Rdcr+Rs))/(VIN_max+Iout/Number_of_Phases*Rs)) -> 0.1682398667
A56: Iripple_Vinmin | B56: =(VIN_min-Vout)*D1_Vinmin_2/(Fsw*Lf) -> 0.8888063204 | C56: A
A57: Iripple_Vinnom | B57: =(VIN_nom-Vout)*D1_Vinnom_2/(Fsw*Lf) -> 3.339129157 | C57: A
A58: Iripple_Vinmax | B58: =(VIN_max-Vout)*D1_Vinmax_2/(Fsw*Lf) -> 3.711173531 | C58: A
A60: Ishunt_rms_Vinmin | B60: =SQRT((Iout/Number_of_Phases)^2+(Iripple_Vinmin^2)/12) -> 8.004113404 | C60: A
A61: Ishunt_rms_Vinnom | B61: =SQRT((Iout/Number_of_Phases)^2+(Iripple_Vinnom^2)/12) -> 8.057862535 | C61: A
A62: Ishunt_rms_Vinmax | B62: =SQRT((Iout/Number_of_Phases)^2+(Iripple_Vinmax^2)/12) -> 8.071414627 | C62: A
A63: Max shunt power loss at full load | B63: =B61^2*Rs -> 0.3246457431 | C63: W | F63: Note this is power loss at full load - not loss near OCP!
A65: Max inductor ripple current | B65: =MAX(B56:B58) -> 3.711173531 | C65: A | F65: Ripple current at Vin(max)
B67: =B56/(Iout/Number_of_Phases) -> 0.1111007901
A68: % ripple current | B68: =B57/(Iout/Number_of_Phases) -> 0.4173911446
B69: =B58/(Iout/Number_of_Phases) -> 0.4638966914
A71: Inductor copper temerature | B71: 100 | C71: °C
A72: DCR at hot | B72: =Rdcr*(1+0.0039*(B71-25)) -> 0.012925 | C72: W
A75: Step 3: Sense Resistors, Slope Comp, Current Limit
A77: Ilimit_DC | B77: ='Design Regulator'!E17 -> 11.2 | C77: A | F77: Chosen OCP level - based on output current
A79: Ilimit_inductor_Vinmin | B79: =CHOOSE(MODE, Ilimit_DC+Iripple_Vinmin/2, Ilimit_DC/Number_of_Phases+Iripple_Vinmin/2) -> 11.64440316 | C79: A | F79: Peak inductor current at current limit inception
A80: Ilimit_inductor_Vinnom | B80: =CHOOSE(MODE, Ilimit_DC+Iripple_Vinnom/2, Ilimit_DC/Number_of_Phases+Iripple_Vinnom/2) -> 12.86956458 | C80: A
A81: Ilimit_inductor_Vinmax | B81: =CHOOSE(MODE, Ilimit_DC+Iripple_Vinmax/2, Ilimit_DC/Number_of_Phases+Iripple_Vinmax/2) -> 13.05558677 | C81: A
A84: CS threshold_min | B84: 0.05 | C84: V
A85: CS threshold | B85: 0.056 | C85: V
A86: CS threshold_max | B86: 0.062 | C86: V
A88: Shunt required to get OCP at VIN(min) | B88: =Buck_CS_threshold/B79 -> 0.004809177356 | C88: W
A89: Shunt required to get OCP at VIN(nom) | B89: =Buck_CS_threshold/B80 -> 0.004351351567 | C89: W
A90: Shunt required to get OCP at VIN(max) | B90: =Buck_CS_threshold/B81 -> 0.004289351448 | C90: W
A92: Rs_ideal | B92: =B89 -> 0.004351351567 | C92: W | F92: Ideal Rs for the required OCP -- based on 73mV CL threshold
A93: Rs | B93: ='Design Regulator'!E19/1000 -> 0.005 | C93: W | F93: Selected (starndard value) current limit sense resistor
A95: Current limit - peak | B95: =Buck_CS_threshold/Rs -> 11.2 | C95: A | F95: Peak inductor current limit = min sat current
A97: Iout_OCP_Vinmin | B97: =Number_of_Phases*(Buck_CS_threshold/Rs-Iripple_Vinmin/2) -> 10.75559684 | C97: A | F97: Current limit setpoints (i.e. IOUT) after standard components are selected
A98: Iout_OCP_Vinnom | B98: =Number_of_Phases*(Buck_CS_threshold/Rs-Iripple_Vinnom/2) -> 9.530435421 | C98: A
A99: Iout_OCP_Vinmax | B99: =Number_of_Phases*(Buck_CS_threshold/Rs-Iripple_Vinmax/2) -> 9.344413234 | C99: A
A101: Irms_OCP_Vinmin | B101: =SQRT((Iout_OCP_Vinmin/Number_of_Phases)^2+(Iripple_Vinmin^2)/12) -> 10.75865674 | C101: A
A102: Irms_OCP_Vinnom | B102: =SQRT((Iout_OCP_Vinnom/Number_of_Phases)^2+(Iripple_Vinnom^2)/12) -> 9.57905778 | C102: A
A103: Irms_OCP_Vinmax | B103: =SQRT((Iout_OCP_Vinmax/Number_of_Phases)^2+(Iripple_Vinmax^2)/12) -> 9.405625592 | C103: A
A105: Pshunt_Vinmin | B105: =B101^2*Rs -> 0.5787434738 | C105: W | F105: Max power dissipations in shunt
A106: Pshunt_Vinnom | B106: =B102^2*Rs -> 0.4587917397 | C106: W
A107: Pshunt_Vinmax | B107: =B103^2*Rs -> 0.4423289639 | C107: W
A110: Step 4: Output Capacitor
A111: Icoutrms_VINmin | B111: =Iripple_Vinmin/SQRT(12) -> 0.2565762842 | C111: A | F111: Output Cap RMS current
A112: Icoutrms_VINnom | B112: =Iripple_Vinnom/SQRT(12) -> 0.9639235588 | C112: A
A113: Icoutrms_VINmax | B113: =Iripple_Vinmax/SQRT(12) -> 1.071323519 | C113: A
A114: Max Cout rms current | B114: =MAX(B111:B113) -> 1.071323519 | C114: A
A116: Vripple1 | B116: ='Design Regulator'!E33/1000 -> 0.12 | C116: V | F116: Output voltage ripple spec(pk-pk)
A118: Output Ripple Spec (pk-pk) | B118: =Vo1_ripple*1000 -> 120 | C118: mV | F118: Vout ripple spec at Vin(nom)
A120: Coutmin | B120: =Iripple_Vinnom/(Fsw*8*Vo1_ripple) -> 8.695648847e-06 | C120: F | F120: Minimum output capacitnace | H120: =Vo2_ripple -> 0 | I120: 1
A121: Reported Coutmin | B121: =IF(Cout_min*1000000<2, 2.2,Cout_min*1000000) -> 8.695648847 | C121: uF
A122: Cout | B122: ='Design Regulator'!E36/1000000 -> 0.0001 | C122: F | F122: Chosen output capacitance | I122: 1
A123: Resrmax | B123: =SQRT((Vo1_ripple/Iripple_Vinnom)^2-(1/(Fsw*Cout*8))^2) -> 0.03580138642 | C123: W | F123: Max ESR before ripple exceeds Vripple1 | I123: 1
A124: Cout_min_loadoff | B124: =Lf*((Load_Step/100)*Iout)^2/((Vout+Vo1_ripple)^2-Vout^2)*1000000 -> 37.58982863 | C124: uF | D124: =IF(Load_Step=0, Cout_min*1000000, Cout_min_loadoff) -> 37.58982863
A125: Total COUT with stead-state+load step | B125: =Lf*((Load_Step/100)*Iout)^2/((Vout+Vo1_ripple)^2-Vout^2)*1000000 + (Cout_min*1000000) -> 46.28547748 | C125: uF
A128: Reported Cout ESR max | B128: =IF(OR(CoutEsrMax>0.3, CoutEsrMax<0, (ISERROR(CoutEsrMax))), "N/A", CoutEsrMax*1000) -> 35.80138642 | C128: mΩ
A129: CoutEsr | B129: ='Design Regulator'!E38/1000 -> 0.001 | C129: W | F129: Chosen ESR | I129: 1 | K129: =ISERROR(CoutEsrMax) -> FALSE | L129: =ISERROR(B128) -> FALSE
A130: Vripple | B130: =Iripple_Vinnom*SQRT(Cout_ESR^2+(1/(8*Fsw*Cout))^2) -> 0.01095602064 | C130: Vp-p | L130: =OR(CoutEsrMax>0.3,CoutEsrMax<0) -> FALSE
K131: =OR(TRUE, FALSE, TRUE) -> TRUE
A132: Step 5: Input Capacitor
K133: Two channels operating at full load
A134: Icinrms_VINmin | B134: =SQRT(D1_Vinmin_2*(Iout^2*(1-D1_Vinmin_2)+Iripple_Vinmin^2/12)) -> 3.17272413 | C134: A | D134: =D1_Vinmax -> 0.1666666667 | F134: Calculate input cap rms current with one output unloaded | K134: =SQRT(Iout^2*D1_Vinmin*(1-D1_Vinmin)+Iout2^2*D2_Vinmin*(1-D2_Vinmin)-2*Iout*Iout2*D1_Vinmin*D2_Vinmin) ->  | L134: A | M134: =SQRT(Iout^2*D1_Vinmin*(1-D1_Vinmin)+Iout2^2*D2_Vinmin*(1-D2_Vinmin)-2*Iout*Iout2*(0.5-D2_Vinmin*(1-D1_Vinmin))) ->  | N134: A
A135: Icinrms_VINnom | B135: =SQRT(D1_Vinnom_2*(Iout^2*(1-D1_Vinnom_2)+Iripple_Vinnom^2/12)) -> 3.508183491 | C135: A | D135: =D1_Vinmin -> 0.8 | K135: =SQRT(Iout^2*D1_Vinnom*(1-D1_Vinnom)+Iout2^2*D2_Vinnom*(1-D2_Vinnom)-2*Iout*Iout2*D1_Vinnom*D2_Vinnom) ->  | L135: A
A136: Icinrms_VINmax | B136: =SQRT(D1_Vinmax_2*(Iout^2*(1-D1_Vinmax_2)+Iripple_Vinmax^2/12)) -> 3.024722851 | C136: A | K136: =SQRT(Iout^2*D1_Vinmax*(1-D1_Vinmax)+Iout2^2*D2_Vinmax*(1-D2_Vinmax)-2*Iout*Iout2*D1_Vinmax*D2_Vinmax) ->  | L136: A
A137: Icinrms - multiphase | B137: =Iout*SQRT((D1_Vinmin-F139/Number_of_Phases)*((F139+1)/Number_of_Phases-D1_Vinmin)) -> 3.2 | C137: A | K137: =MAX(K134:K136) ->  | L137: A
A138: Max Cin rms current | B138: =MAX(B134:B136) -> 3.508183491 | C138: A | F138: =Number_of_Phases*D1_Vinnom -> 0.25 | G138: N*D
F139: =FLOOR(Number_of_Phases*D1_Vinnom,1) -> 0 | G139: floor(N*D)
A140: Icinrms - multiphase - max | B140: =Iout/2/Number_of_Phases -> 4 | C140: A
A141: Final result | B141: =IF(D1_Vinmin<0.5, B138, B140) -> 4 | C141: A | D141: …report this
A143: Vinripple1 | B143: ='Design Regulator'!E43/1000 -> 0.48 | C143: Vp-p | F143: Input voltage ripple spec (pk-pk)
A145: Cinmin_Vinmin | B145: =Iout/Number_of_Phases*D1_Vinmin*(1-D1_Vinmin)/(Vinripple1*Fsw) -> 6.666666667e-06 | C145: F
A146: Cinmin_Vinnom | B146: =Iout/Number_of_Phases*D1_Vinnom*(1-D1_Vinnom)/(Vinripple1*Fsw) -> 7.8125e-06 | C146: F
A147: Cinmin_Vinmax | B147: =Iout/Number_of_Phases*D1_Vinmax*(1-D1_Vinmax)/(Vinripple1*Fsw) -> 5.787037037e-06 | C147: F | F147: Calculate cap at Vinmax and 50% duty cycle (Vin = 2*Vout)
A149: Cinmin_50%D | B149: =Iout*0.5*(1-0.5)/(Vinripple1*Fsw) -> 1.041666667e-05 | C149: F | F149: Buck 50% typically worst case
A150: Cinmin | B150: =IF(D1_Vinmin<0.5, B145,B149) -> 1.041666667e-05 | C150: F | D150: =(VIN_min+VIN_max)/2 -> 43.5
A151: Reported Cinmin | B151: =IF(Cinmin*1000000<2.2, 2.2,Cinmin*1000000) -> 10.41666667 | C151: uF | D151: =2*Vout -> 24 | F151: …report this
A153: Cin | B153: ='Design Regulator'!E45/1000000 -> 1.5e-05 | C153: F | F153: Input capacitance
A154: CinEsrMax_Vinmax | B154: =-(Iout/Number_of_Phases*D1_Vinmax*(1-D1_Vinmax)/(Cin*Fsw)-Vinripple1)/(Iout/Number_of_Phases+Iripple_Vinmax/2) -> 0.0299134716 | C154: W
A155: CinEsrMax_50%D | B155: =-(Iout/Number_of_Phases*0.5*(1-0.5)/(Cin*Fsw)-Vinripple1)/(Iout/Number_of_Phases+Iripple_Vinmax/2) -> 0.01488157632 | C155: W | F155: Calculate ESR at Vinmax and 50% duty cycle (Vin = 2*Vout)
A156: CinEsrMax | B156: =IF(VIN_max<2*Vout, B154,B155) -> 0.01488157632 | C156: W
A157: Reported Cin ESR max | B157: =IF(OR(CinEsrMax>0.3, CinEsrMax<0), "N/A",CinEsrMax*1000) -> 14.88157632 | C157: mΩ | F157: …report this
A158: RCinEsr | B158: ='Design Regulator'!E47/1000 -> 0.001 | C158: W | F158: Input capacitance series resistance (ESR)
A160: Vinripple2_Vinmin | B160: =Iout/Number_of_Phases*D1_Vinmin_2*(1-D1_Vinmin_2)/(Cin*Fsw)+(Iout/Number_of_Phases +Iripple_Vinmin/2)*RCinEsr -> 0.2170512388 | C160: Vp-p
A161: Vinripple2_Vinnom | B161: =Iout/Number_of_Phases*D1_Vinnom_2*(1-D1_Vinnom_2)/(Cin*Fsw)+(Iout/Number_of_Phases +Iripple_Vinnom/2)*RCinEsr -> 0.2611890796 | C161: Vp-p
A162: Vinripple2_Vinmax | B162: =Iout/Number_of_Phases*D1_Vinmax_2*(1-D1_Vinmax_2)/(Cin*Fsw)+(Iout/Number_of_Phases +Iripple_Vinmax/2)*RCinEsr -> 0.1964358721 | C162: Vp-p
A163: Vinripple2_50%D | B163: =Iout/Number_of_Phases*0.5*(1-0.5)/(Cin*Fsw)+(Iout/Number_of_Phases +Iripple_Vinmax/2)*RCinEsr -> 0.3431889201 | C163: Vp-p | F163: Calculate ripple at Vinmax and 50% duty cycle (Vin = 2*Vout)
A164: Vinripple2 | B164: =IF(D1_Vinmin<0.5, B160,B163) -> 0.3431889201 | C164: Vp-p | F164: …report highest of these
B166: =Iout*D1_Vinmax_2*(1-D1_Vinmax_2)/(Cin*Fsw) -> 0.1865802853 | C166: Vp-p
A168: Step 6a: Soft Start
A169: Tss | B169: ='Design Regulator'!E52/1000 -> 0 | C169: s | D169: Soft-start time
A170: Iss | B170: =Cout*Vout/Tss ->  | C170: A | D170: Load cap current during soft start
A171: Css | B171: =0.000022*Tss/1.2 -> 0 | C171: F
A172: Css_u | B172: ='Standard Value Calculator'!B4 -> 0 | C172: F
A174: Step 6b: Other Components - Dither, Hiccup, DEMB, MODE
A175: Tres | B175: ='Design Regulator'!E55/1000 -> 0.005 | C175: s | D175: Hiccup time
A176: Cres | B176: =0.00002*Tres/1.2 -> 8.333333333e-08 | C176: F
A177: Cres_u | B177: ='Standard Value Calculator'!G4 -> 8.2e-08 | C177: F
A179: RPG1/2 | B179: 100 | C179: kΩ
A180: RFB1/2 | C180: W | E180: Tie to VDDA or AGND for 3.3V/5V output, respectively.
A181: R_MODE | C181: W | E181: Tie to VDDA or AGND for Single/Dual operation, respectively.
A182: R_DEMB | C182: W | E182: Tie to VDDA or AGND for FPWM/DEM, respectively.
A184: Enable Hysteresis Current | B184: 1e-05 | C184: A | E184: 10 µA Hysteresis Current
A185: Turn ON Voltage | B185: ='Design Regulator'!E54 -> 6
A186: Hysteresis Voltage | B186: ='Design Regulator'!E54-'Design Regulator'!E55 -> 1
A188: Upper FB resistor | B188: =B186/B184 -> 100000 | C188: W
A189: Lower FB resister | B189: =B188/(B185-1) -> 20000 | C189: W
A190: Standard upper FB resistor | B190: ='Standard Value Calculator'!S40 -> 100 | C190: kΩ
A191: Standard lower FB resistor | B191: ='Standard Value Calculator'!S41 -> 20 | C191: kΩ
A193: Dither Modulation Frequency | B193: ='Design Regulator'!E58*1000 -> 29400 | C193: Hz
A194: Cdither_calculated | B194: =10*10^-6/Fdither/0.12 -> 2.83446712e-09 | C194: F
A195: Cdither_stdvalue | B195: ='Standard Value Calculator'!S21 -> 2.7e-09 | C195: F
A198: Step 7: Compensation
A199: Pi | B199: 3.14159265 | D199: p
A200: CS Amp Gain | B200: 10
A201: Ri | B201: =Rs*CSAmp_gain -> 0.05 | C201: W | F201: Current Sense effective resistance = shunt resistor Rs * CS amp gain
A202: gm | B202: =IF(COMP_TYPE=1,0.00003,0.0012) -> 0.0012 | C202: S | F202: Error Amp Transconductance
A204: Se_ext | B204: =B208/Ri*1000 -> 1818181.818 | C204: A/s | F204: Slope Comp Slope - referred to inductor current
A205: Sn | B205: =(Vin-Vout)/Lf -> 5294117.647 | C205: A/s | F205: On-time Slope
A206: Sf | B206: =Vout/Lf -> 1764705.882 | C206: A/s | F206: Off-time Slope
A208: Se_int | B208: =Fsw*0.001*(5/22) -> 90.90909091 | C208: mV/μs | F208: Slope Comp Slope - referred to IC
A209: Sn_int | B209: =Sn*Ri/1000 -> 264.7058824 | C209: mV/μs | F209: etc
A210: Sf_int | B210: =Sf*Ri/1000 -> 88.23529412 | C210: mV/μs | F210: etc
A212: mc_buck | B212: =1+Se_ext/Sn -> 1.343434343 | F212: mc = 1 + Se/Sn for peak current-mode buck
A213: k_buck | B213: =mc_buck*(1-D1_Vinnom_2) -> 1.004499617 | F213: mc*(1-d)
A215: mc | B215: =1+Se_ext/Sn -> 1.343434343
A216: k | B216: =mc_buck*(1-D1_Vinnom_2) -> 1.004499617
A217: Q | B217: =1/Pi/(k-0.5) -> 0.63094178 | F217: 1/(Pi*(k-0.5)) | H217: Q = 2/Pi = 0.636 gives ideal one-cycle damping
A219: Error Amp (EA)
A220: GBW | B220: 6 | C220: MHz | F220: EA gain-bandwidth product
A221: Cbw | B221: =gm/(2*Pi*GBW*1000000) -> 3.183098865e-11 | C221: F | F221: EA effective bandwidth limiting capacitance = gm/(2*Pi*GBW)
A222: RoEA | B222: 64000000 | C222: W | F222: EA output resistance
A223: AEA | B223: =gm*RoEA -> 76800 | C223: V/V | F223: EA DC gain = gm*RoEA
A224: Afb | B224: =IF(VOUT_setting=1,Vref/Vout,SQRT((1+(Fcross*zterm1)^2)/((1+Afbr-pterm4*(Fcross)^2)^2+(Fcross*pterm3)^2))) -> 0.06749667855 | C224: V/V | F224: Feedback gain from Vout to FB
A225: Acs | B225: =1/Ri -> 20 | F225: Acs = 1/Ri
A226: Am_buck | B226: =(Ro/Number_of_Phases)/Ri/((1+Ro/Number_of_Phases*(k-0.5)/(Fsw*Lf))) -> 23.47019874
A227: Am | B227: =(Ro*Number_of_Phases)/Ri/((1+Ro*Number_of_Phases*(k-0.5)/(Fsw*Lf))) -> 23.47019874 | F227: Buck modulator gain
A229: Scaling factor to calculate Rcomp - buck | B229: =2*Pi*Ri/gm -> 261.7993875 | F229: 2*Pi*Ri/gm -- scaling factor to calculate Rcomp given desired buck crossover frequency
A230: DC Gain is Adc = AEA*Afb*Am
A232: Ro | B232: =Rout -> 1.5 | C232: W | F232: Output Resistance
A234: Fp_load_buck | B234: =1/(2*Pi*Ro*Cout)+(k-0.5)/(2*Pi*Fsw*Lf*Cout/Number_of_Phases) -> 1356.230043 | C234: Hz | F234: Buck dominant pole frequency -- note slope comp influence
A235: Fp_dominant | B235: =Fload_u -> 1356.230043 | C235: Hz
B236: =Cbw -> 3.183098865e-11
A237: Fp_EA | B237: =1/(2*Pi*(RoEA+Rcea1_u)*Cc1ea_u) -> 0.9208139805 | C237: Hz | F237: Error Amp LF pole -- related to amplifier ouptut resistance and comp cap
A238: Fp_HF | B238: =1/(2*Pi*Rcea1_u*(Cc2ea_u+Cbw)) -> 207395.7763 | C238: Hz | F238: Error Amp HF pole cancels zero related to Output Cap ESR
A239: Fesr | B239: =1/(2*Pi*Cout*Cout_ESR) -> 1591549.433 | C239: Hz | F239: Cout ESR zero frequency
A240: F_mod | B240: =Fsw/2 -> 200000 | C240: Hz | F240: Zero-order sample-and-hold effects of current-mode control modeled as pole at Fsw/2
D241: Internal Comp Crossover
A242: Desired Crossover Frequency | B242: =CHOOSE(COMP_TYPE,Fcross_Ch2,'Design Regulator'!E64*1000) -> 40000 | C242: Hz | D242: =Fsw/50 -> 8000
A243: Rcea1 | B243: =Fcross*Cout/Number_of_Phases*2*Pi*Ri/(gm*Afb) -> 15514.80121 | C243: W | F243: This component will largely determine the crossover frequency | K243: =Fcross/Fp_dominant/(gm*Afb*Am) -> 15514.80121
A244: Cc1ea, Cc3ea | B244: =10/(Rcea1*Fcross*2*Pi) -> 2.564566267e-09 | C244: F | F244: This along with Rcea1 will set a zero at Fcrossover/5 to optimize phase margin
A245: Cc2ea, Cc4ea | B245: =MAX(1/(Rcea1*2*Pi*Fesr)-Cbw, 1/(Rcea1*2*Pi*(Fsw/2))-Cbw) -> 1.946033668e-11 | C245: F | F245: This along with Rcea1 places a pole at the output cap ESR zero
A247: =CHOOSE(COMP_TYPE,"Internal Compensation","External Compensation") -> External Compensation
A248: Chosen Compensation Components from the standard value sheet | D248: Internal Values
A249: Rcea1_u | B249: =CHOOSE(COMP_TYPE,D249,'Design Regulator'!D71*1000) -> 15400 | C249: W | D249: 400000 | G249: =1/(Rcea1*2*Pi*(Fsw/2))-Cbw -> 1.946033668e-11
A250: Cc1ea_u | B250: =CHOOSE(COMP_TYPE,Cc3ea_u,'Design Regulator'!D72*0.000000001) -> 2.7e-09 | C250: F | D250: =50*0.000000000001 -> 5e-11
A251: Cc2ea_u | B251: =CHOOSE(COMP_TYPE,Cc4ea_u,'Design Regulator'!D73*0.000000000001) -> 1.8e-11 | C251: F | D251: =0.000000000001 -> 1e-12
A253: Resulting Pole/Zero Locations | F253: =Cout -> 0.0001 | G253: =Cout_ESR -> 0.001
... 161 more rows

Sheet Schematic Management (hidden)
N1: 3.3V or 5V fixed (FB1/2)
A2: =IF(MODE=1, CHOOSE(SCH_SETTING, "SCH_SetVout_IntComp_nEN","SCH_SetVout_IntComp_EN","SCH_SetVout_ExtComp_nEN","SCH_SetVout_ExtComp_EN","SCH_AdjVout_IntComp_nEN","SCH_AdjVout_IntComp_EN","SCH_AdjVout_ExtComp_nEN","SCH_AdjVout_ExtComp_EN", "SCH_SetVout_IntComp_nEN_BIAS_GND","SCH_SetVout_IntComp_EN_BIAS_GND","SCH_SetVout_ExtComp_nEN_BIAS_GND","SCH_SetVout_ExtComp_EN_BIAS_GND","SCH_AdjVout_IntComp_nEN_BIAS_GND","SCH_AdjVout_IntComp_EN_BIAS_GND","SCH_AdjVout_ExtComp_nEN_BIAS_GND","SCH_AdjVout_ExtComp_EN_BIAS_GND", "")) -> SCH_SetVout_ExtComp_nEN | J2: With/without dither (DITH) | N2: With/without VOUT connected to VCCX
J3: FPWM or DEM (DEMB)
J4: Shunt or inductor DCR current sensing

Sheet Efficiency Plot Management (hidden)
A2: =IF(PLOT_TYPE=1, "EFF_Ch1", "EFF_Ch2") -> EFF_Ch1

Sheet Standard Value Calculator (hidden)
A2: Capacitors | B2: Css | C2: Cc1ea | D2: Cc2ea | E2: Cout | F2: Cin | G2: Cres | H2: Cdither | I2: Cc3ea | J2: Cc4ea | K2: Cin_Passive | L2: Cdamp_Pssv | M2: Cinj_AEF | N2: Cdamp_AEF
A3: Inputs | B3: =Css -> 0 | C3: =Cc1ea -> 2.564566267e-09 | D3: =Cc2ea -> 1.946033668e-11 | E3: =Cout -> 0.0001 | F3: =Cin -> 1.5e-05 | G3: =Cres -> 8.333333333e-08 | H3: =Cdither_init -> 2.83446712e-09 | I3: =Cc3ea -> 0 | J3: =Cc4ea -> 0 | K3: ='Variable Management'!B294*0.000001 ->  | L3: =K3*4 ->  | M3: =Cinj_AEF*0.000001 ->  | N3: ='Variable Management'!B297*0.000001 ->  | Q3: Resistors | R3: inputs | S3: Standard Result
A4: Standard Result | B4: =SUM(B6:B158)/1000000000000 -> 0 | C4: =IF(C3="OPEN","OPEN",SUM(C6:C158)/1000000000000) -> 2.7e-09 | D4: =SUM(D6:D158)/1000000000000 -> 1.8e-11 | E4: =SUM(E6:E158)/1000000000000 -> 0.0001 | F4: =SUM(F6:F158)/1000000000000 -> 1.5e-05 | G4: =SUM(G6:G158)/1000000000000 -> 8.2e-08 | H4: =IF(H3="OPEN","OPEN",SUM(H6:H158)/1000000000000) -> 2.7e-09 | I4: 0 | J4: 0 | Q4: Rt | R4: =Rfadj -> 54.9 | S4: =IF(R4>(INT(0.5+100*POWER(10,IF(96*(LOG(R4)-INT(LOG(R4)))-ROUND(96*(LOG(R4)-INT(LOG(R4))),0)<0,ROUND(96*(LOG(R4)-INT(LOG(R4))),0)-1,ROUND(96*(LOG(R4)-INT(LOG(R4))),0))/96))*POWER(10,INT(LOG(R4))-2)+INT(0.5+100*POWER(10,(IF(96*(LOG(R4)-INT(LOG(R4)))-ROUND(96*(LOG(R4)-INT(LOG(R4))),0)<0,ROUND(96*(LOG(R4)-INT(LOG(R4))),0)-1,ROUND(96*(LOG(R4)-INT(LOG(R4))),0))+1)/96))*POWER(10,INT(LOG(R4))-2))/2,INT(0.5+100*POWER(10,(IF(96*(LOG(R4)-INT(LOG(R4)))-ROUND(96*(LOG(R4)-INT(LOG(R4))),0)<0,ROUND(96*(LOG(R4)-INT(LOG(R4))),0)-1,ROUND(96*(LOG(R4)-INT(LOG(R4))),0))+1)/96))*POWER(10,INT(LOG(R4))-2),INT(0.5+100*POWER(10,IF(96*(LOG(R4)-INT(LOG(R4)))-ROUND(96*(LOG(R4)-INT(LOG(R4))),0)<0,ROUND(96*(LOG(R4)-INT(LOG(R4))),0)-1,ROUND(96*(LOG(R4)-INT(LOG(R4))),0))/96))*POWER(10,INT(LOG(R4))-2)) -> 54.9 | T4: Ω
A5: (pF)
A6: 0.47 | B6: =IF(IF((B$3*10^12-$A7)*(B$3*10^12-$A6)*-1<0,0,1)*IF(ABS(B$3*10^12-$A7)>(B$3*10^12-$A6),$A6,$A7)=B7,0,IF((B$3*10^12-$A7)*(B$3*10^12-$A6)*-1<0,0,1)*IF(ABS(B$3*10^12-$A7)>(B$3*10^12-$A6),$A6,$A7)) -> 0 | C6: 0 | D6: 0 | E6: 0 | F6: 0 | G6: 0 | H6: 0 | I6: 0 | J6: 0
A7: 0.56 | B7: =IF(IF((B$3*10^12-$A8)*(B$3*10^12-$A7)*-1<0,0,1)*IF(ABS(B$3*10^12-$A8)>(B$3*10^12-$A7),$A7,$A8)=B8,0,IF((B$3*10^12-$A8)*(B$3*10^12-$A7)*-1<0,0,1)*IF(ABS(B$3*10^12-$A8)>(B$3*10^12-$A7),$A7,$A8)) -> 0 | C7: =IF(IF((C$3*10^12-$A8)*(C$3*10^12-$A7)*-1<0,0,1)*IF(ABS(C$3*10^12-$A8)>(C$3*10^12-$A7),$A7,$A8)=C8,0,IF((C$3*10^12-$A8)*(C$3*10^12-$A7)*-1<0,0,1)*IF(ABS(C$3*10^12-$A8)>(C$3*10^12-$A7),$A7,$A8)) -> 0 | D7: =IF(IF((D$3*10^12-$A8)*(D$3*10^12-$A7)*-1<0,0,1)*IF(ABS(D$3*10^12-$A8)>(D$3*10^12-$A7),$A7,$A8)=D8,0,IF((D$3*10^12-$A8)*(D$3*10^12-$A7)*-1<0,0,1)*IF(ABS(D$3*10^12-$A8)>(D$3*10^12-$A7),$A7,$A8)) -> 0 | E7: =IF(IF((E$3*10^12-$A8)*(E$3*10^12-$A7)*-1<0,0,1)*IF(ABS(E$3*10^12-$A8)>(E$3*10^12-$A7),$A7,$A8)=E8,0,IF((E$3*10^12-$A8)*(E$3*10^12-$A7)*-1<0,0,1)*IF(ABS(E$3*10^12-$A8)>(E$3*10^12-$A7),$A7,$A8)) -> 0 | F7: =IF(IF((F$3*10^12-$A8)*(F$3*10^12-$A7)*-1<0,0,1)*IF(ABS(F$3*10^12-$A8)>(F$3*10^12-$A7),$A7,$A8)=F8,0,IF((F$3*10^12-$A8)*(F$3*10^12-$A7)*-1<0,0,1)*IF(ABS(F$3*10^12-$A8)>(F$3*10^12-$A7),$A7,$A8)) -> 0 | G7: =IF(IF((G$3*10^12-$A8)*(G$3*10^12-$A7)*-1<0,0,1)*IF(ABS(G$3*10^12-$A8)>(G$3*10^12-$A7),$A7,$A8)=G8,0,IF((G$3*10^12-$A8)*(G$3*10^12-$A7)*-1<0,0,1)*IF(ABS(G$3*10^12-$A8)>(G$3*10^12-$A7),$A7,$A8)) -> 0 | H7: 0 | I7: 0 | J7: 0 | K7: =IF(IF((K$3*10^12-$A8)*(K$3*10^12-$A7)*-1<0,0,1)*IF(ABS(K$3*10^12-$A8)>(K$3*10^12-$A7),$A7,$A8)=K8,0,IF((K$3*10^12-$A8)*(K$3*10^12-$A7)*-1<0,0,1)*IF(ABS(K$3*10^12-$A8)>(K$3*10^12-$A7),$A7,$A8)) ->  | Q7: Rc1ea | R7: =Rcea1 -> 15514.80121 | S7: =IF(R7>(INT(0.5+100*POWER(10,IF(96*(LOG(R7)-INT(LOG(R7)))-ROUND(96*(LOG(R7)-INT(LOG(R7))),0)<0,ROUND(96*(LOG(R7)-INT(LOG(R7))),0)-1,ROUND(96*(LOG(R7)-INT(LOG(R7))),0))/96))*POWER(10,INT(LOG(R7))-2)+INT(0.5+100*POWER(10,(IF(96*(LOG(R7)-INT(LOG(R7)))-ROUND(96*(LOG(R7)-INT(LOG(R7))),0)<0,ROUND(96*(LOG(R7)-INT(LOG(R7))),0)-1,ROUND(96*(LOG(R7)-INT(LOG(R7))),0))+1)/96))*POWER(10,INT(LOG(R7))-2))/2,INT(0.5+100*POWER(10,(IF(96*(LOG(R7)-INT(LOG(R7)))-ROUND(96*(LOG(R7)-INT(LOG(R7))),0)<0,ROUND(96*(LOG(R7)-INT(LOG(R7))),0)-1,ROUND(96*(LOG(R7)-INT(LOG(R7))),0))+1)/96))*POWER(10,INT(LOG(R7))-2),INT(0.5+100*POWER(10,IF(96*(LOG(R7)-INT(LOG(R7)))-ROUND(96*(LOG(R7)-INT(LOG(R7))),0)<0,ROUND(96*(LOG(R7)-INT(LOG(R7))),0)-1,ROUND(96*(LOG(R7)-INT(LOG(R7))),0))/96))*POWER(10,INT(LOG(R7))-2)) -> 15400 | T7: Ω
A8: 0.68 | B8: 0 | C8: 0 | D8: 0 | E8: 0 | F8: 0 | G8: 0 | H8: 0 | I8: 0 | J8: 0 | Q8: Rc1ea | R8: =Rcea2 -> 0 | S8: =IF(R8>(INT(0.5+100*POWER(10,IF(96*(LOG(R8)-INT(LOG(R8)))-ROUND(96*(LOG(R8)-INT(LOG(R8))),0)<0,ROUND(96*(LOG(R8)-INT(LOG(R8))),0)-1,ROUND(96*(LOG(R8)-INT(LOG(R8))),0))/96))*POWER(10,INT(LOG(R8))-2)+INT(0.5+100*POWER(10,(IF(96*(LOG(R8)-INT(LOG(R8)))-ROUND(96*(LOG(R8)-INT(LOG(R8))),0)<0,ROUND(96*(LOG(R8)-INT(LOG(R8))),0)-1,ROUND(96*(LOG(R8)-INT(LOG(R8))),0))+1)/96))*POWER(10,INT(LOG(R8))-2))/2,INT(0.5+100*POWER(10,(IF(96*(LOG(R8)-INT(LOG(R8)))-ROUND(96*(LOG(R8)-INT(LOG(R8))),0)<0,ROUND(96*(LOG(R8)-INT(LOG(R8))),0)-1,ROUND(96*(LOG(R8)-INT(LOG(R8))),0))+1)/96))*POWER(10,INT(LOG(R8))-2),INT(0.5+100*POWER(10,IF(96*(LOG(R8)-INT(LOG(R8)))-ROUND(96*(LOG(R8)-INT(LOG(R8))),0)<0,ROUND(96*(LOG(R8)-INT(LOG(R8))),0)-1,ROUND(96*(LOG(R8)-INT(LOG(R8))),0))/96))*POWER(10,INT(LOG(R8))-2)) ->  | T8: Ω
A9: 0.82 | B9: 0 | C9: 0 | D9: 0 | E9: 0 | F9: 0 | G9: 0 | H9: 0 | I9: 0 | J9: 0
A10: 1 | B10: 0 | C10: 0 | D10: 0 | E10: 0 | F10: 0 | G10: 0 | H10: 0 | I10: 0 | J10: 0 | Q10: Rfb1 | R10: =Rfb1_ -> 2500000 | S10: =IF(R10>(INT(0.5+100*POWER(10,IF(96*(LOG(R10)-INT(LOG(R10)))-ROUND(96*(LOG(R10)-INT(LOG(R10))),0)<0,ROUND(96*(LOG(R10)-INT(LOG(R10))),0)-1,ROUND(96*(LOG(R10)-INT(LOG(R10))),0))/96))*POWER(10,INT(LOG(R10))-2)+INT(0.5+100*POWER(10,(IF(96*(LOG(R10)-INT(LOG(R10)))-ROUND(96*(LOG(R10)-INT(LOG(R10))),0)<0,ROUND(96*(LOG(R10)-INT(LOG(R10))),0)-1,ROUND(96*(LOG(R10)-INT(LOG(R10))),0))+1)/96))*POWER(10,INT(LOG(R10))-2))/2,INT(0.5+100*POWER(10,(IF(96*(LOG(R10)-INT(LOG(R10)))-ROUND(96*(LOG(R10)-INT(LOG(R10))),0)<0,ROUND(96*(LOG(R10)-INT(LOG(R10))),0)-1,ROUND(96*(LOG(R10)-INT(LOG(R10))),0))+1)/96))*POWER(10,INT(LOG(R10))-2),INT(0.5+100*POWER(10,IF(96*(LOG(R10)-INT(LOG(R10)))-ROUND(96*(LOG(R10)-INT(LOG(R10))),0)<0,ROUND(96*(LOG(R10)-INT(LOG(R10))),0)-1,ROUND(96*(LOG(R10)-INT(LOG(R10))),0))/96))*POWER(10,INT(LOG(R10))-2)) -> 2490000 | T10: Ω
A11: 1.2 | B11: 0 | C11: 0 | D11: 0 | E11: 0 | F11: 0 | G11: 0 | H11: 0 | I11: 0 | J11: 0 | M11: =IF(IF((M$3*10^12-$A12)*(M$3*10^12-$A11)*-1<0,0,1)*IF(ABS(M$3*10^12-$A12)>(M$3*10^12-$A11),$A11,$A12)=M12,0,IF((M$3*10^12-$A12)*(M$3*10^12-$A11)*-1<0,0,1)*IF(ABS(M$3*10^12-$A12)>(M$3*10^12-$A11),$A11,$A12)) ->  | Q11: Rfb2 | R11: =Rfb2_ -> 178571.4286 | S11: =IF(R11="OPEN","OPEN",IF(R11>(INT(0.5+100*POWER(10,IF(96*(LOG(R11)-INT(LOG(R11)))-ROUND(96*(LOG(R11)-INT(LOG(R11))),0)<0,ROUND(96*(LOG(R11)-INT(LOG(R11))),0)-1,ROUND(96*(LOG(R11)-INT(LOG(R11))),0))/96))*POWER(10,INT(LOG(R11))-2)+INT(0.5+100*POWER(10,(IF(96*(LOG(R11)-INT(LOG(R11)))-ROUND(96*(LOG(R11)-INT(LOG(R11))),0)<0,ROUND(96*(LOG(R11)-INT(LOG(R11))),0)-1,ROUND(96*(LOG(R11)-INT(LOG(R11))),0))+1)/96))*POWER(10,INT(LOG(R11))-2))/2,INT(0.5+100*POWER(10,(IF(96*(LOG(R11)-INT(LOG(R11)))-ROUND(96*(LOG(R11)-INT(LOG(R11))),0)<0,ROUND(96*(LOG(R11)-INT(LOG(R11))),0)-1,ROUND(96*(LOG(R11)-INT(LOG(R11))),0))+1)/96))*POWER(10,INT(LOG(R11))-2),INT(0.5+100*POWER(10,IF(96*(LOG(R11)-INT(LOG(R11)))-ROUND(96*(LOG(R11)-INT(LOG(R11))),0)<0,ROUND(96*(LOG(R11)-INT(LOG(R11))),0)-1,ROUND(96*(LOG(R11)-INT(LOG(R11))),0))/96))*POWER(10,INT(LOG(R11))-2))) -> 178000 | T11: Ω
A12: 1.5 | B12: 0 | C12: 0 | D12: 0 | E12: 0 | F12: 0 | G12: 0 | H12: 0 | I12: 0 | J12: 0 | Q12: Rt1 | R12: ='Variable Management'!B27*1000 -> 54477.77778 | S12: =IF(R12>(INT(0.5+100*POWER(10,IF(96*(LOG(R12)-INT(LOG(R12)))-ROUND(96*(LOG(R12)-INT(LOG(R12))),0)<0,ROUND(96*(LOG(R12)-INT(LOG(R12))),0)-1,ROUND(96*(LOG(R12)-INT(LOG(R12))),0))/96))*POWER(10,INT(LOG(R12))-2)+INT(0.5+100*POWER(10,(IF(96*(LOG(R12)-INT(LOG(R12)))-ROUND(96*(LOG(R12)-INT(LOG(R12))),0)<0,ROUND(96*(LOG(R12)-INT(LOG(R12))),0)-1,ROUND(96*(LOG(R12)-INT(LOG(R12))),0))+1)/96))*POWER(10,INT(LOG(R12))-2))/2,INT(0.5+100*POWER(10,(IF(96*(LOG(R12)-INT(LOG(R12)))-ROUND(96*(LOG(R12)-INT(LOG(R12))),0)<0,ROUND(96*(LOG(R12)-INT(LOG(R12))),0)-1,ROUND(96*(LOG(R12)-INT(LOG(R12))),0))+1)/96))*POWER(10,INT(LOG(R12))-2),INT(0.5+100*POWER(10,IF(96*(LOG(R12)-INT(LOG(R12)))-ROUND(96*(LOG(R12)-INT(LOG(R12))),0)<0,ROUND(96*(LOG(R12)-INT(LOG(R12))),0)-1,ROUND(96*(LOG(R12)-INT(LOG(R12))),0))/96))*POWER(10,INT(LOG(R12))-2)) -> 54900 | T12: Ω
A13: 1.8 | B13: 0 | C13: 0 | D13: 0 | E13: 0 | F13: 0 | G13: 0 | H13: 0 | I13: 0 | J13: 0 | Q13: Rd | R13: ='Variable Management'!B28*1000 -> 0 | S13: =IF(R13="OPEN","OPEN",IF(R13>(INT(0.5+100*POWER(10,IF(96*(LOG(R13)-INT(LOG(R13)))-ROUND(96*(LOG(R13)-INT(LOG(R13))),0)<0,ROUND(96*(LOG(R13)-INT(LOG(R13))),0)-1,ROUND(96*(LOG(R13)-INT(LOG(R13))),0))/96))*POWER(10,INT(LOG(R13))-2)+INT(0.5+100*POWER(10,(IF(96*(LOG(R13)-INT(LOG(R13)))-ROUND(96*(LOG(R13)-INT(LOG(R13))),0)<0,ROUND(96*(LOG(R13)-INT(LOG(R13))),0)-1,ROUND(96*(LOG(R13)-INT(LOG(R13))),0))+1)/96))*POWER(10,INT(LOG(R13))-2))/2,INT(0.5+100*POWER(10,(IF(96*(LOG(R13)-INT(LOG(R13)))-ROUND(96*(LOG(R13)-INT(LOG(R13))),0)<0,ROUND(96*(LOG(R13)-INT(LOG(R13))),0)-1,ROUND(96*(LOG(R13)-INT(LOG(R13))),0))+1)/96))*POWER(10,INT(LOG(R13))-2),INT(0.5+100*POWER(10,IF(96*(LOG(R13)-INT(LOG(R13)))-ROUND(96*(LOG(R13)-INT(LOG(R13))),0)<0,ROUND(96*(LOG(R13)-INT(LOG(R13))),0)-1,ROUND(96*(LOG(R13)-INT(LOG(R13))),0))/96))*POWER(10,INT(LOG(R13))-2))) ->  | T13: Ω
A14: 2.2 | B14: =IF(IF((B$3*10^12-$A15)*(B$3*10^12-$A14)*-1<0,0,1)*IF(ABS(B$3*10^12-$A15)>(B$3*10^12-$A14),$A14,$A15)=B15,0,IF((B$3*10^12-$A15)*(B$3*10^12-$A14)*-1<0,0,1)*IF(ABS(B$3*10^12-$A15)>(B$3*10^12-$A14),$A14,$A15)) -> 0 | C14: 0 | D14: 0 | E14: 0 | F14: 0 | G14: 0 | H14: 0 | I14: 0 | J14: 0 | Q14: Rd_AEF | R14: ='Variable Management'!B303 -> 0 | S14: =IF(R14="OPEN","OPEN",IF(R14>(INT(0.5+100*POWER(10,IF(96*(LOG(R14)-INT(LOG(R14)))-ROUND(96*(LOG(R14)-INT(LOG(R14))),0)<0,ROUND(96*(LOG(R14)-INT(LOG(R14))),0)-1,ROUND(96*(LOG(R14)-INT(LOG(R14))),0))/96))*POWER(10,INT(LOG(R14))-2)+INT(0.5+100*POWER(10,(IF(96*(LOG(R14)-INT(LOG(R14)))-ROUND(96*(LOG(R14)-INT(LOG(R14))),0)<0,ROUND(96*(LOG(R14)-INT(LOG(R14))),0)-1,ROUND(96*(LOG(R14)-INT(LOG(R14))),0))+1)/96))*POWER(10,INT(LOG(R14))-2))/2,INT(0.5+100*POWER(10,(IF(96*(LOG(R14)-INT(LOG(R14)))-ROUND(96*(LOG(R14)-INT(LOG(R14))),0)<0,ROUND(96*(LOG(R14)-INT(LOG(R14))),0)-1,ROUND(96*(LOG(R14)-INT(LOG(R14))),0))+1)/96))*POWER(10,INT(LOG(R14))-2),INT(0.5+100*POWER(10,IF(96*(LOG(R14)-INT(LOG(R14)))-ROUND(96*(LOG(R14)-INT(LOG(R14))),0)<0,ROUND(96*(LOG(R14)-INT(LOG(R14))),0)-1,ROUND(96*(LOG(R14)-INT(LOG(R14))),0))/96))*POWER(10,INT(LOG(R14))-2))) ->  | T14: Ω
A15: 2.7 | B15: 0 | C15: 0 | D15: 0 | E15: 0 | F15: 0 | G15: 0 | H15: 0 | I15: 0 | J15: 0 | K15: =IF(IF((K$3*10^12-$A16)*(K$3*10^12-$A15)*-1<0,0,1)*IF(ABS(K$3*10^12-$A16)>(K$3*10^12-$A15),$A15,$A16)=K16,0,IF((K$3*10^12-$A16)*(K$3*10^12-$A15)*-1<0,0,1)*IF(ABS(K$3*10^12-$A16)>(K$3*10^12-$A15),$A15,$A16)) -> 
A16: 3.3 | B16: 0 | C16: 0 | D16: 0 | E16: 0 | F16: 0 | G16: 0 | H16: 0 | I16: 0 | J16: 0 | Q16: Rs | R16: =Rs_ideal*1000 -> 4.351351567 | S16: =IF(R16=0,0,IF(R16>(INT(0.5+100*POWER(10,IF(96*(LOG(R16)-INT(LOG(R16)))-ROUND(96*(LOG(R16)-INT(LOG(R16))),0)<0,ROUND(96*(LOG(R16)-INT(LOG(R16))),0)-1,ROUND(96*(LOG(R16)-INT(LOG(R16))),0))/96))*POWER(10,INT(LOG(R16))-2)+INT(0.5+100*POWER(10,(IF(96*(LOG(R16)-INT(LOG(R16)))-ROUND(96*(LOG(R16)-INT(LOG(R16))),0)<0,ROUND(96*(LOG(R16)-INT(LOG(R16))),0)-1,ROUND(96*(LOG(R16)-INT(LOG(R16))),0))+1)/96))*POWER(10,INT(LOG(R16))-2))/2,INT(0.5+100*POWER(10,(IF(96*(LOG(R16)-INT(LOG(R16)))-ROUND(96*(LOG(R16)-INT(LOG(R16))),0)<0,ROUND(96*(LOG(R16)-INT(LOG(R16))),0)-1,ROUND(96*(LOG(R16)-INT(LOG(R16))),0))+1)/96))*POWER(10,INT(LOG(R16))-2),INT(0.5+100*POWER(10,IF(96*(LOG(R16)-INT(LOG(R16)))-ROUND(96*(LOG(R16)-INT(LOG(R16))),0)<0,ROUND(96*(LOG(R16)-INT(LOG(R16))),0)-1,ROUND(96*(LOG(R16)-INT(LOG(R16))),0))/96))*POWER(10,INT(LOG(R16))-2))) -> 4.32 | T16: mΩ
A17: 3.9 | B17: 0 | C17: 0 | D17: 0 | E17: 0 | F17: 0 | G17: 0 | H17: 0 | I17: 0 | J17: 0 | Q17: Cres | R17: =Cres -> 8.333333333e-08 | S17: =G4*1000000000000 -> 82000 | T17: pF
A18: 4.7 | B18: 0 | C18: 0 | D18: 0 | E18: 0 | F18: 0 | G18: 0 | H18: 0 | I18: 0 | J18: 0
A19: 5.6 | B19: 0 | C19: 0 | D19: 0 | E19: 0 | F19: 0 | G19: 0 | H19: 0 | I19: 0 | J19: 0
A20: 6.8 | B20: 0 | C20: 0 | D20: 0 | E20: 0 | F20: 0 | G20: 0 | H20: 0 | I20: 0 | J20: 0
A21: 8.2 | B21: 0 | C21: 0 | D21: 0 | E21: 0 | F21: 0 | G21: 0 | H21: 0 | I21: 0 | J21: 0 | Q21: Cdither | R21: =Cdither_init -> 2.83446712e-09 | S21: =H4 -> 2.7e-09
A22: 10 | B22: 0 | C22: 0 | D22: 0 | E22: 0 | F22: 0 | G22: 0 | H22: 0 | I22: 0 | J22: 0 | K22: =IF(IF((K$3*10^12-$A23)*(K$3*10^12-$A22)*-1<0,0,1)*IF(ABS(K$3*10^12-$A23)>(K$3*10^12-$A22),$A22,$A23)=K23,0,IF((K$3*10^12-$A23)*(K$3*10^12-$A22)*-1<0,0,1)*IF(ABS(K$3*10^12-$A23)>(K$3*10^12-$A22),$A22,$A23)) -> 
A23: 12 | B23: 0 | C23: 0 | D23: 0 | E23: 0 | F23: 0 | G23: 0 | H23: 0 | I23: 0 | J23: 0 | Q23: Cin_Passive | R23: =K4 ->  | S23: =R23*1000000 ->  | T23: uF
A24: 15 | B24: 0 | C24: 0 | D24: 0 | E24: 0 | F24: 0 | G24: 0 | H24: 0 | I24: 0 | J24: 0 | Q24: Cinj_AEF | R24: =Cinj_AEF ->  | S24: =M4*1000000 ->  | T24: uF
A25: 18 | B25: 0 | C25: 0 | D25: 18 | E25: 0 | F25: 0 | G25: 0 | H25: 0 | I25: 0 | J25: 0 | Q25: Cdamp_AEF | R25: ='Variable Management'!B297 ->  | S25: =N4*1000000 ->  | T25: uF
A26: 22 | B26: 0 | C26: 0 | D26: 0 | E26: 0 | F26: 0 | G26: 0 | H26: 0 | I26: 0 | J26: 0 | Q26: Rdamp_AEF | R26: ='Variable Management'!B298 ->  | S26: =IF(R26="OPEN","OPEN",IF(R26>(INT(0.5+100*POWER(10,IF(96*(LOG(R26)-INT(LOG(R26)))-ROUND(96*(LOG(R26)-INT(LOG(R26))),0)<0,ROUND(96*(LOG(R26)-INT(LOG(R26))),0)-1,ROUND(96*(LOG(R26)-INT(LOG(R26))),0))/96))*POWER(10,INT(LOG(R26))-2)+INT(0.5+100*POWER(10,(IF(96*(LOG(R26)-INT(LOG(R26)))-ROUND(96*(LOG(R26)-INT(LOG(R26))),0)<0,ROUND(96*(LOG(R26)-INT(LOG(R26))),0)-1,ROUND(96*(LOG(R26)-INT(LOG(R26))),0))+1)/96))*POWER(10,INT(LOG(R26))-2))/2,INT(0.5+100*POWER(10,(IF(96*(LOG(R26)-INT(LOG(R26)))-ROUND(96*(LOG(R26)-INT(LOG(R26))),0)<0,ROUND(96*(LOG(R26)-INT(LOG(R26))),0)-1,ROUND(96*(LOG(R26)-INT(LOG(R26))),0))+1)/96))*POWER(10,INT(LOG(R26))-2),INT(0.5+100*POWER(10,IF(96*(LOG(R26)-INT(LOG(R26)))-ROUND(96*(LOG(R26)-INT(LOG(R26))),0)<0,ROUND(96*(LOG(R26)-INT(LOG(R26))),0)-1,ROUND(96*(LOG(R26)-INT(LOG(R26))),0))/96))*POWER(10,INT(LOG(R26))-2))) ->  | T26: Ω
A27: 27 | B27: 0 | C27: 0 | D27: 0 | E27: 0 | F27: 0 | G27: 0 | H27: 0 | I27: 0 | J27: 0 | M27: =IF(IF((M$3*10^12-$A28)*(M$3*10^12-$A27)*-1<0,0,1)*IF(ABS(M$3*10^12-$A28)>(M$3*10^12-$A27),$A27,$A28)=M28,0,IF((M$3*10^12-$A28)*(M$3*10^12-$A27)*-1<0,0,1)*IF(ABS(M$3*10^12-$A28)>(M$3*10^12-$A27),$A27,$A28)) ->  | Q27: Rdamp_Passive | R27: =SQRT(L_infilterStd/K4) ->  | S27: =IF(R27="OPEN","OPEN",IF(R27>(INT(0.5+100*POWER(10,IF(96*(LOG(R27)-INT(LOG(R27)))-ROUND(96*(LOG(R27)-INT(LOG(R27))),0)<0,ROUND(96*(LOG(R27)-INT(LOG(R27))),0)-1,ROUND(96*(LOG(R27)-INT(LOG(R27))),0))/96))*POWER(10,INT(LOG(R27))-2)+INT(0.5+100*POWER(10,(IF(96*(LOG(R27)-INT(LOG(R27)))-ROUND(96*(LOG(R27)-INT(LOG(R27))),0)<0,ROUND(96*(LOG(R27)-INT(LOG(R27))),0)-1,ROUND(96*(LOG(R27)-INT(LOG(R27))),0))+1)/96))*POWER(10,INT(LOG(R27))-2))/2,INT(0.5+100*POWER(10,(IF(96*(LOG(R27)-INT(LOG(R27)))-ROUND(96*(LOG(R27)-INT(LOG(R27))),0)<0,ROUND(96*(LOG(R27)-INT(LOG(R27))),0)-1,ROUND(96*(LOG(R27)-INT(LOG(R27))),0))+1)/96))*POWER(10,INT(LOG(R27))-2),INT(0.5+100*POWER(10,IF(96*(LOG(R27)-INT(LOG(R27)))-ROUND(96*(LOG(R27)-INT(LOG(R27))),0)<0,ROUND(96*(LOG(R27)-INT(LOG(R27))),0)-1,ROUND(96*(LOG(R27)-INT(LOG(R27))),0))/96))*POWER(10,INT(LOG(R27))-2))) ->  | T27: Ω
A28: 33 | B28: 0 | C28: 0 | D28: 0 | E28: 0 | F28: 0 | G28: 0 | H28: 0 | I28: 0 | J28: 0 | Q28: Cdamp_Passive | R28: =L4 ->  | S28: =R28*1000000 ->  | T28: uF
A29: 39 | B29: 0 | C29: 0 | D29: 0 | E29: 0 | F29: 0 | G29: 0 | H29: 0 | I29: 0 | J29: 0
A30: 47 | B30: 0 | C30: 0 | D30: 0 | E30: 0 | F30: 0 | G30: 0 | H30: 0 | I30: 0 | J30: 0
A31: 56 | B31: 0 | C31: 0 | D31: 0 | E31: 0 | F31: 0 | G31: 0 | H31: 0 | I31: 0 | J31: 0
A32: 68 | B32: 0 | C32: 0 | D32: 0 | E32: 0 | F32: 0 | G32: 0 | H32: 0 | I32: 0 | J32: 0 | Q32: Rc1 | R32: =S7/1000&" kΩ" -> 15.4 kΩ | S32: =S7/1000 -> 15.4 | T32: kΩ
A33: 82 | B33: 0 | C33: 0 | D33: 0 | E33: 0 | F33: 0 | G33: 0 | H33: 0 | I33: 0 | J33: 0 | Q33: Cc1 | R33: =C4*1000000000&" nF" -> 2.7 nF | S33: =C4*1000000000 -> 2.7 | T33: nF
A34: =A22*10 -> 100 | B34: 0 | C34: 0 | D34: 0 | E34: 0 | F34: 0 | G34: 0 | H34: 0 | I34: 0 | J34: 0 | Q34: Cc2 | R34: =D4*1000000000000&" pF" -> 18 pF | S34: =D4*1000000000000 -> 18 | T34: pF
A35: =A23*10 -> 120 | B35: 0 | C35: 0 | D35: 0 | E35: 0 | F35: 0 | G35: 0 | H35: 0 | I35: 0 | J35: 0
A36: 150 | B36: 0 | C36: 0 | D36: 0 | E36: 0 | F36: 0 | G36: 0 | H36: 0 | I36: 0 | J36: 0 | Q36: Rc2 | R36: =S8/1000&" kΩ" ->  | S36: =S8/1000 ->  | T36: kΩ
A37: 180 | B37: 0 | C37: 0 | D37: 0 | E37: 0 | F37: 0 | G37: 0 | H37: 0 | I37: 0 | J37: 0 | Q37: Cc3 | R37: =I4*1000000000&" nF" -> 0 nF | S37: =I4*1000000000 -> 0 | T37: nF
A38: 220 | B38: 0 | C38: 0 | D38: 0 | E38: 0 | F38: 0 | G38: 0 | H38: 0 | I38: 0 | J38: 0 | Q38: Cc4 | R38: =J4*1000000000000&" pF" -> 0 pF | S38: =J4*1000000000000 -> 0 | T38: pF
A39: 270 | B39: 0 | C39: =IF(IF((C$3*10^12-$A40)*(C$3*10^12-$A39)*-1<0,0,1)*IF(ABS(C$3*10^12-$A40)>(C$3*10^12-$A39),$A39,$A40)=C40,0,IF((C$3*10^12-$A40)*(C$3*10^12-$A39)*-1<0,0,1)*IF(ABS(C$3*10^12-$A40)>(C$3*10^12-$A39),$A39,$A40)) -> 0 | D39: 0 | E39: 0 | F39: 0 | G39: 0 | H39: 0 | I39: 0 | J39: 0
A40: 330 | B40: 0 | C40: 0 | D40: 0 | E40: 0 | F40: 0 | G40: 0 | H40: 0 | I40: 0 | J40: 0 | Q40: Rent | R40: ='Variable Management'!B188/1000 -> 100 | S40: =IF(R40>(INT(0.5+100*POWER(10,IF(96*(LOG(R40)-INT(LOG(R40)))-ROUND(96*(LOG(R40)-INT(LOG(R40))),0)<0,ROUND(96*(LOG(R40)-INT(LOG(R40))),0)-1,ROUND(96*(LOG(R40)-INT(LOG(R40))),0))/96))*POWER(10,INT(LOG(R40))-2)+INT(0.5+100*POWER(10,(IF(96*(LOG(R40)-INT(LOG(R40)))-ROUND(96*(LOG(R40)-INT(LOG(R40))),0)<0,ROUND(96*(LOG(R40)-INT(LOG(R40))),0)-1,ROUND(96*(LOG(R40)-INT(LOG(R40))),0))+1)/96))*POWER(10,INT(LOG(R40))-2))/2,INT(0.5+100*POWER(10,(IF(96*(LOG(R40)-INT(LOG(R40)))-ROUND(96*(LOG(R40)-INT(LOG(R40))),0)<0,ROUND(96*(LOG(R40)-INT(LOG(R40))),0)-1,ROUND(96*(LOG(R40)-INT(LOG(R40))),0))+1)/96))*POWER(10,INT(LOG(R40))-2),INT(0.5+100*POWER(10,IF(96*(LOG(R40)-INT(LOG(R40)))-ROUND(96*(LOG(R40)-INT(LOG(R40))),0)<0,ROUND(96*(LOG(R40)-INT(LOG(R40))),0)-1,ROUND(96*(LOG(R40)-INT(LOG(R40))),0))/96))*POWER(10,INT(LOG(R40))-2)) -> 100 | T40: kΩ
